Workbook

Sheet Summary
C2: Gas Pipeline Acquisition
C7: Buyout Metrics | M7: Equity Valuation at Acquisition | V7: Buyout Capital Structure | AB7: Project Sources & Uses
L8: Hurdle Rate | N8: 1 | O8: 0.8 | P8: 0.5 | Q8: 0.3 | R8: EV | S8: EV/EBITDA
C9: Acquisition Year | F9: date | I9: =Buyout!J14 -> 2026 | V9: Uses ($m)
C10: Holding Period | F10: year | I10: =Buyout!J15 -> 10 | L10: 0.07 | N10: =Buyout!E91 ->  | O10: =O$8*$N10 ->  | R10: =Buyout!E108 ->  | S10: =Buyout!E125 -> 0
C11: Exit Year | F11: date | I11: =Buyout!J16 -> 2036 | L11: =L10+1% -> 0.08 | N11: =Buyout!E92 ->  | R11: =Buyout!E109 ->  | S11: =Buyout!E126 -> 0 | V11: Price of Equity Stake | X11: =Buyout!J23 ->  | Y11: =X11/$X$13 -> 
L12: 0.09 | N12: =Buyout!E93 ->  | R12: =Buyout!E110 ->  | S12: =Buyout!E127 -> 0 | V12: Financial, Legal, & Advisory Fees | X12: =Buyout!J24 -> 40 | Y12: =X12/$X$13 -> 
C13: Hurdle Rate | F13: % | I13: =InputC!#REF! ->  | L13: 0.1 | N13: =Buyout!E94 ->  | R13: =Buyout!E111 ->  | S13: =Buyout!E128 -> 0 | X13: =SUM(X11:X12) ->  | Y13: =SUM(Y11:Y12) -> 
L14: 0.11 | N14: =Buyout!E95 ->  | R14: =Buyout!E112 ->  | S14: =Buyout!E129 -> 0
C15: Value of Equity Stake | F15: $m | I15: =Buyout!J23 ->  | L15: 0.12 | N15: =Buyout!E96 ->  | R15: =Buyout!E113 ->  | S15: =Buyout!E130 -> 0 | V15: Sources ($m)
C16: Financial, Legal, & Advisory Fees | F16: $m | I16: =Buyout!J24 -> 40 | L16: 0.13 | N16: =Buyout!E97 ->  | R16: =Buyout!E114 ->  | S16: =Buyout!E131 -> 0
C17: Buyout Value | F17: $m | I17: =SUM(I15:I16) ->  | L17: 0.14 | N17: =Buyout!E98 ->  | R17: =Buyout!E115 ->  | S17: =Buyout!E132 -> 0 | V17: Equity | X17: =Buyout!J28 ->  | Y17: =X17/X18 -> 
L18: 0.15 | N18: =Buyout!E99 ->  | R18: =Buyout!E116 ->  | S18: =Buyout!E133 -> 0 | X18: =SUM(X17) ->  | Y18: =SUM(Y17) -> 
C19: Holding Strategy | F19: switch | I19: =Buyout!J12 -> Exit | L19: 0.16 | N19: =Buyout!E100 ->  | R19: =Buyout!E117 ->  | S19: =Buyout!E134 -> 0
C20: Exit Value | F20: $m | I20: =Buyout!J65 -> 5807.997585 | L20: 0.17 | N20: =Buyout!E101 ->  | R20: =Buyout!E118 ->  | S20: =Buyout!E135 -> 0 | V20: Integrity
L21: 0.18 | N21: =Buyout!E102 ->  | R21: =Buyout!E119 ->  | S21: =Buyout!E136 -> 0 | V21: Sources = Uses (Buyout) | Y21: =Financing!J46 -> 
C22: Acquisition Year | L22: 0.19 | N22: =Buyout!E103 ->  | R22: =Buyout!E120 ->  | S22: =Buyout!E137 -> 0 | V22: Macro | Y22: =Macro_Check -> 
C23: EBITDA | F23: $m | I23: =Buyout!J84 ->  | L23: 0.2 | N23: =Buyout!E104 ->  | R23: =Buyout!E121 ->  | S23: =Buyout!E138 -> 0 | V23: Balance Sheet | Y23: =BS!J41 -> 
C24: Debt Balance | F24: $m | I24: =Buyout!J80 ->  | L24: 0.21 | N24: =Buyout!E105 ->  | R24: =Buyout!E122 ->  | S24: =Buyout!E139 -> 0 | V24: Covenant | Y24: =Equity!J21 -> TRUE
C25: EV/EBITDA | F25: x | I25: =Buyout!J85 -> 0 | V25: Aggregate | Y25: =AND(Y21:Y24) -> 
C28: Project Metrics | M28: Debt Service | V28: Project Capital Structure
C30: Unleverd IRR | F30: % | I30: =InputC!E3 ->  | V30: Uses ($m)
C31: Levered IRR | F31: % | I31: =InputC!E4 -> 
V32: =Financing!C15 -> CAPEX | X32: =Financing!N15 ->  | Y32: =X32/$X$35 -> 
C33: Project Valuation | F33: $m | I33: =Valuation!J65 ->  | V33: =Financing!C16 -> Fees | X33: =Financing!N16 -> 500 | Y33: =X33/$X$35 -> 
C34: Equity Valuation | F34: $m | I34: =Valuation!J78 ->  | V34: =Financing!C17 -> Interest During Construction | X34: =Financing!N17 -> 333 | Y34: =X34/$X$35 -> 
X35: =SUM(X32:X34) ->  | Y35: =SUM(Y32:Y34) -> 
C36: Debt
C37: Gearing | F37: % | I37: =Financing!J5 -> 
C38: Min DSCR (Sculpted) | F38: x | I38: =Financing!J6 -> 1.2
C39: Senior Debt Commitment | F39: $m | I39: =Financing!J75 -> 10655.11643 | V39: Sources ($m)
C40: Weghted Cost of Debt | F40: % | I40: =Valuation!J56 -> 
V41: =Financing!C22 -> Equity | X41: =Financing!N22 ->  | Y41: =X41/$X$43 -> 
C42: Operational Data | V42: =Financing!C23 -> Senior Debt | X42: =Financing!N23 ->  | Y42: =X42/$X$43 -> 
C43: Total CAPEX | F43: $m | I43: =CAPEX!N29 ->  | X43: =SUM(X41:X42) ->  | Y43: =SUM(Y41:Y42) -> 
C44: GTA Tenor | F44: years | I44: =InputC!K21 -> 50
C45: Tariff (Unescalated) | F45: $ / 1000 m3 | I45: =TariffCharge -> 33.95238168

Sheet Buyout
M5: Year: | P5: =Timing!R5 -> 2021 | Q5: =Timing!S5 -> 2022 | R5: =Timing!T5 -> 2023 | S5: =Timing!U5 -> 2024 | T5: =Timing!V5 -> 2025 | U5: =Timing!W5 -> 2026 | V5: =Timing!X5 -> 2027 | W5: =Timing!Y5 -> 2028 | X5: =Timing!Z5 -> 2029 | Y5: =Timing!AA5 -> 2030 | Z5: =Timing!AB5 -> 2031 | AA5: =Timing!AC5 -> 2032 | AB5: =Timing!AD5 -> 2033 | AC5: =Timing!AE5 -> 2034 | AD5: =Timing!AF5 -> 2035 | AE5: =Timing!AG5 -> 2036 | AF5: =Timing!AH5 -> 2037 | AG5: =Timing!AI5 -> 2038 | AH5: =Timing!AJ5 -> 2039 | AI5: =Timing!AK5 -> 2040 | AJ5: =Timing!AL5 -> 2041 | AK5: =Timing!AM5 -> 2042 | AL5: =Timing!AN5 -> 2043 | AM5: =Timing!AO5 -> 2044 | AN5: =Timing!AP5 -> 2045 | AO5: =Timing!AQ5 -> 2046 | AP5: =Timing!AR5 -> 2047 | AQ5: =Timing!AS5 -> 2048 | AR5: =Timing!AT5 -> 2049 | AS5: =Timing!AU5 -> 2050 | AT5: =Timing!AV5 -> 2051 | AU5: =Timing!AW5 -> 2052 | AV5: =Timing!AX5 -> 2053 | AW5: =Timing!AY5 -> 2054 | AX5: =Timing!AZ5 -> 2055 | AY5: =Timing!BA5 -> 2056 | AZ5: =Timing!BB5 -> 2057 | BA5: =Timing!BC5 -> 2058 | BB5: =Timing!BD5 -> 2059 | BC5: =Timing!BE5 -> 2060 | BD5: =Timing!BF5 -> 2061 | BE5: =Timing!BG5 -> 2062 | BF5: =Timing!BH5 -> 2063 | BG5: =Timing!BI5 -> 2064 | BH5: =Timing!BJ5 -> 2065 | BI5: =Timing!BK5 -> 2066 | BJ5: =Timing!BL5 -> 2067 | BK5: =Timing!BM5 -> 2068 | BL5: =Timing!BN5 -> 2069 | BM5: =Timing!BO5 -> 2070 | BN5: =Timing!BP5 -> 2071 | BO5: =Timing!BQ5 -> 2072 | BP5: =Timing!BR5 -> 2073 | BQ5: =Timing!BS5 -> 2074 | BR5: =Timing!BT5 -> 2075 | BS5: =Timing!BU5 -> 2076 | BT5: =Timing!BV5 -> 2077 | BU5: =Timing!BW5 -> 2078 | BV5: =Timing!BX5 -> 2079 | BW5: =Timing!BY5 -> 2080 | BX5: =Timing!BZ5 -> 2081 | BY5: =Timing!CA5 -> 2082 | BZ5: =Timing!CB5 -> 2083 | CA5: =Timing!CC5 -> 2084 | CB5: =Timing!CD5 -> 2085 | CC5: =Timing!CE5 -> 2086 | CD5: =Timing!CF5 -> 2087 | CE5: =Timing!CG5 -> 2088 | CF5: =Timing!CH5 -> 2089 | CG5: =Timing!CI5 -> 2090 | CH5: =Timing!CJ5 -> 2091 | CI5: =Timing!CK5 -> 2092 | CJ5: =Timing!CL5 -> 2093 | CK5: =Timing!CM5 -> 2094 | CL5: =Timing!CN5 -> 2095 | CM5: =Timing!CO5 -> 2096 | CN5: =Timing!CP5 -> 2097 | CO5: =Timing!CQ5 -> 2098 | CP5: =Timing!CR5 -> 2099 | CQ5: =Timing!CS5 -> 2100 | CR5: =Timing!CT5 -> 2101 | CS5: =Timing!CU5 -> 2102 | CT5: =Timing!CV5 -> 2103
M6: Year #: | P6: =Timing!R6 -> 1 | Q6: =Timing!S6 -> 2 | R6: =Timing!T6 -> 3 | S6: =Timing!U6 -> 4 | T6: =Timing!V6 -> 5 | U6: =Timing!W6 -> 6 | V6: =Timing!X6 -> 7 | W6: =Timing!Y6 -> 8 | X6: =Timing!Z6 -> 9 | Y6: =Timing!AA6 -> 10 | Z6: =Timing!AB6 -> 11 | AA6: =Timing!AC6 -> 12 | AB6: =Timing!AD6 -> 13 | AC6: =Timing!AE6 -> 14 | AD6: =Timing!AF6 -> 15 | AE6: =Timing!AG6 -> 16 | AF6: =Timing!AH6 -> 17 | AG6: =Timing!AI6 -> 18 | AH6: =Timing!AJ6 -> 19 | AI6: =Timing!AK6 -> 20 | AJ6: =Timing!AL6 -> 21 | AK6: =Timing!AM6 -> 22 | AL6: =Timing!AN6 -> 23 | AM6: =Timing!AO6 -> 24 | AN6: =Timing!AP6 -> 25 | AO6: =Timing!AQ6 -> 26 | AP6: =Timing!AR6 -> 27 | AQ6: =Timing!AS6 -> 28 | AR6: =Timing!AT6 -> 29 | AS6: =Timing!AU6 -> 30 | AT6: =Timing!AV6 -> 31 | AU6: =Timing!AW6 -> 32 | AV6: =Timing!AX6 -> 33 | AW6: =Timing!AY6 -> 34 | AX6: =Timing!AZ6 -> 35 | AY6: =Timing!BA6 -> 36 | AZ6: =Timing!BB6 -> 37 | BA6: =Timing!BC6 -> 38 | BB6: =Timing!BD6 -> 39 | BC6: =Timing!BE6 -> 40 | BD6: =Timing!BF6 -> 41 | BE6: =Timing!BG6 -> 42 | BF6: =Timing!BH6 -> 43 | BG6: =Timing!BI6 -> 44 | BH6: =Timing!BJ6 -> 45 | BI6: =Timing!BK6 -> 46 | BJ6: =Timing!BL6 -> 47 | BK6: =Timing!BM6 -> 48 | BL6: =Timing!BN6 -> 49 | BM6: =Timing!BO6 -> 50 | BN6: =Timing!BP6 -> 51 | BO6: =Timing!BQ6 -> 52 | BP6: =Timing!BR6 -> 53 | BQ6: =Timing!BS6 -> 54 | BR6: =Timing!BT6 -> 55 | BS6: =Timing!BU6 -> 56 | BT6: =Timing!BV6 -> 57 | BU6: =Timing!BW6 -> 58 | BV6: =Timing!BX6 -> 59 | BW6: =Timing!BY6 -> 60 | BX6: =Timing!BZ6 -> 61 | BY6: =Timing!CA6 -> 62 | BZ6: =Timing!CB6 -> 63 | CA6: =Timing!CC6 -> 64 | CB6: =Timing!CD6 -> 65 | CC6: =Timing!CE6 -> 66 | CD6: =Timing!CF6 -> 67 | CE6: =Timing!CG6 -> 68 | CF6: =Timing!CH6 -> 69 | CG6: =Timing!CI6 -> 70 | CH6: =Timing!CJ6 -> 71 | CI6: =Timing!CK6 -> 72 | CJ6: =Timing!CL6 -> 73 | CK6: =Timing!CM6 -> 74 | CL6: =Timing!CN6 -> 75 | CM6: =Timing!CO6 -> 76 | CN6: =Timing!CP6 -> 77 | CO6: =Timing!CQ6 -> 78 | CP6: =Timing!CR6 -> 79 | CQ6: =Timing!CS6 -> 80 | CR6: =Timing!CT6 -> 81 | CS6: =Timing!CU6 -> 82 | CT6: =Timing!CV6 -> 83
C7: Buyout Price | H7: $m | J7: =J28 ->  | M7: Phase: | P7: =Timing!R7 -> Const | Q7: =Timing!S7 -> Const | R7: =Timing!T7 -> Const | S7: =Timing!U7 -> Ops | T7: =Timing!V7 -> Ops | U7: =Timing!W7 -> Ops | V7: =Timing!X7 -> Ops | W7: =Timing!Y7 -> Ops | X7: =Timing!Z7 -> Ops | Y7: =Timing!AA7 -> Ops | Z7: =Timing!AB7 -> Ops | AA7: =Timing!AC7 -> Ops | AB7: =Timing!AD7 -> Ops | AC7: =Timing!AE7 -> Ops | AD7: =Timing!AF7 -> Ops | AE7: =Timing!AG7 -> Ops | AF7: =Timing!AH7 -> Ops | AG7: =Timing!AI7 -> Ops | AH7: =Timing!AJ7 -> Ops | AI7: =Timing!AK7 -> Ops | AJ7: =Timing!AL7 -> Ops | AK7: =Timing!AM7 -> Ops | AL7: =Timing!AN7 -> Ops | AM7: =Timing!AO7 -> Ops | AN7: =Timing!AP7 -> Ops | AO7: =Timing!AQ7 -> Ops | AP7: =Timing!AR7 -> Ops | AQ7: =Timing!AS7 -> Ops | AR7: =Timing!AT7 -> Ops | AS7: =Timing!AU7 -> Ops | AT7: =Timing!AV7 -> Ops | AU7: =Timing!AW7 -> Ops | AV7: =Timing!AX7 -> Ops | AW7: =Timing!AY7 -> Ops | AX7: =Timing!AZ7 -> Ops | AY7: =Timing!BA7 -> Ops | AZ7: =Timing!BB7 -> Ops | BA7: =Timing!BC7 -> Ops | BB7: =Timing!BD7 -> Ops | BC7: =Timing!BE7 -> Ops | BD7: =Timing!BF7 -> Ops | BE7: =Timing!BG7 -> Ops | BF7: =Timing!BH7 -> Ops | BG7: =Timing!BI7 -> Ops | BH7: =Timing!BJ7 -> Ops | BI7: =Timing!BK7 -> Ops | BJ7: =Timing!BL7 -> Ops | BK7: =Timing!BM7 -> Ops | BL7: =Timing!BN7 -> Ops | BM7: =Timing!BO7 -> Ops | BN7: =Timing!BP7 -> Ops | BO7: =Timing!BQ7 -> Ops | BP7: =Timing!BR7 -> Ops | BQ7: =Timing!BS7 -> Ops | BR7: =Timing!BT7 ->  | BS7: =Timing!BU7 ->  | BT7: =Timing!BV7 ->  | BU7: =Timing!BW7 ->  | BV7: =Timing!BX7 ->  | BW7: =Timing!BY7 ->  | BX7: =Timing!BZ7 ->  | BY7: =Timing!CA7 ->  | BZ7: =Timing!CB7 ->  | CA7: =Timing!CC7 ->  | CB7: =Timing!CD7 ->  | CC7: =Timing!CE7 ->  | CD7: =Timing!CF7 ->  | CE7: =Timing!CG7 ->  | CF7: =Timing!CH7 ->  | CG7: =Timing!CI7 ->  | CH7: =Timing!CJ7 ->  | CI7: =Timing!CK7 ->  | CJ7: =Timing!CL7 ->  | CK7: =Timing!CM7 ->  | CL7: =Timing!CN7 ->  | CM7: =Timing!CO7 ->  | CN7: =Timing!CP7 ->  | CO7: =Timing!CQ7 ->  | CP7: =Timing!CR7 ->  | CQ7: =Timing!CS7 ->  | CR7: =Timing!CT7 ->  | CS7: =Timing!CU7 ->  | CT7: =Timing!CV7 -> 
C8: IRR | H8: % | J8: =J49 -> 0 | M8: Holding Period: | P8: =Timing!R8 ->  | Q8: =Timing!S8 ->  | R8: =Timing!T8 ->  | S8: =Timing!U8 ->  | T8: =Timing!V8 ->  | U8: =Timing!W8 -> Hold | V8: =Timing!X8 -> Hold | W8: =Timing!Y8 -> Hold | X8: =Timing!Z8 -> Hold | Y8: =Timing!AA8 -> Hold | Z8: =Timing!AB8 -> Hold | AA8: =Timing!AC8 -> Hold | AB8: =Timing!AD8 -> Hold | AC8: =Timing!AE8 -> Hold | AD8: =Timing!AF8 -> Hold | AE8: =Timing!AG8 -> Hold | AF8: =Timing!AH8 ->  | AG8: =Timing!AI8 ->  | AH8: =Timing!AJ8 ->  | AI8: =Timing!AK8 ->  | AJ8: =Timing!AL8 ->  | AK8: =Timing!AM8 ->  | AL8: =Timing!AN8 ->  | AM8: =Timing!AO8 ->  | AN8: =Timing!AP8 ->  | AO8: =Timing!AQ8 ->  | AP8: =Timing!AR8 ->  | AQ8: =Timing!AS8 ->  | AR8: =Timing!AT8 ->  | AS8: =Timing!AU8 ->  | AT8: =Timing!AV8 ->  | AU8: =Timing!AW8 ->  | AV8: =Timing!AX8 ->  | AW8: =Timing!AY8 ->  | AX8: =Timing!AZ8 ->  | AY8: =Timing!BA8 ->  | AZ8: =Timing!BB8 ->  | BA8: =Timing!BC8 ->  | BB8: =Timing!BD8 ->  | BC8: =Timing!BE8 ->  | BD8: =Timing!BF8 ->  | BE8: =Timing!BG8 ->  | BF8: =Timing!BH8 ->  | BG8: =Timing!BI8 ->  | BH8: =Timing!BJ8 ->  | BI8: =Timing!BK8 ->  | BJ8: =Timing!BL8 ->  | BK8: =Timing!BM8 ->  | BL8: =Timing!BN8 ->  | BM8: =Timing!BO8 ->  | BN8: =Timing!BP8 ->  | BO8: =Timing!BQ8 ->  | BP8: =Timing!BR8 ->  | BQ8: =Timing!BS8 ->  | BR8: =Timing!BT8 ->  | BS8: =Timing!BU8 ->  | BT8: =Timing!BV8 ->  | BU8: =Timing!BW8 ->  | BV8: =Timing!BX8 ->  | BW8: =Timing!BY8 ->  | BX8: =Timing!BZ8 ->  | BY8: =Timing!CA8 ->  | BZ8: =Timing!CB8 ->  | CA8: =Timing!CC8 ->  | CB8: =Timing!CD8 ->  | CC8: =Timing!CE8 ->  | CD8: =Timing!CF8 ->  | CE8: =Timing!CG8 ->  | CF8: =Timing!CH8 ->  | CG8: =Timing!CI8 ->  | CH8: =Timing!CJ8 ->  | CI8: =Timing!CK8 ->  | CJ8: =Timing!CL8 ->  | CK8: =Timing!CM8 ->  | CL8: =Timing!CN8 ->  | CM8: =Timing!CO8 ->  | CN8: =Timing!CP8 ->  | CO8: =Timing!CQ8 ->  | CP8: =Timing!CR8 ->  | CQ8: =Timing!CS8 ->  | CR8: =Timing!CT8 ->  | CS8: =Timing!CU8 ->  | CT8: =Timing!CV8 -> 
A10: Buyout
C12: Holding Strategy | H12: switch | J12: Exit
C14: Acquisition Date | H14: flag | J14: 2026 | N14: =SUM(P14:CT14) -> 1 | P14: =Timing!R52 -> 0 | Q14: =Timing!S52 -> 0 | R14: =Timing!T52 -> 0 | S14: =Timing!U52 -> 0 | T14: =Timing!V52 -> 0 | U14: =Timing!W52 -> 1 | V14: =Timing!X52 -> 0 | W14: =Timing!Y52 -> 0 | X14: =Timing!Z52 -> 0 | Y14: =Timing!AA52 -> 0 | Z14: =Timing!AB52 -> 0 | AA14: =Timing!AC52 -> 0 | AB14: =Timing!AD52 -> 0 | AC14: =Timing!AE52 -> 0 | AD14: =Timing!AF52 -> 0 | AE14: =Timing!AG52 -> 0 | AF14: =Timing!AH52 -> 0 | AG14: =Timing!AI52 -> 0 | AH14: =Timing!AJ52 -> 0 | AI14: =Timing!AK52 -> 0 | AJ14: =Timing!AL52 -> 0 | AK14: =Timing!AM52 -> 0 | AL14: =Timing!AN52 -> 0 | AM14: =Timing!AO52 -> 0 | AN14: =Timing!AP52 -> 0 | AO14: =Timing!AQ52 -> 0 | AP14: =Timing!AR52 -> 0 | AQ14: =Timing!AS52 -> 0 | AR14: =Timing!AT52 -> 0 | AS14: =Timing!AU52 -> 0 | AT14: =Timing!AV52 -> 0 | AU14: =Timing!AW52 -> 0 | AV14: =Timing!AX52 -> 0 | AW14: =Timing!AY52 -> 0 | AX14: =Timing!AZ52 -> 0 | AY14: =Timing!BA52 -> 0 | AZ14: =Timing!BB52 -> 0 | BA14: =Timing!BC52 -> 0 | BB14: =Timing!BD52 -> 0 | BC14: =Timing!BE52 -> 0 | BD14: =Timing!BF52 -> 0 | BE14: =Timing!BG52 -> 0 | BF14: =Timing!BH52 -> 0 | BG14: =Timing!BI52 -> 0 | BH14: =Timing!BJ52 -> 0 | BI14: =Timing!BK52 -> 0 | BJ14: =Timing!BL52 -> 0 | BK14: =Timing!BM52 -> 0 | BL14: =Timing!BN52 -> 0 | BM14: =Timing!BO52 -> 0 | BN14: =Timing!BP52 -> 0 | BO14: =Timing!BQ52 -> 0 | BP14: =Timing!BR52 -> 0 | BQ14: =Timing!BS52 -> 0 | BR14: =Timing!BT52 -> 0 | BS14: =Timing!BU52 -> 0 | BT14: =Timing!BV52 -> 0 | BU14: =Timing!BW52 -> 0 | BV14: =Timing!BX52 -> 0 | BW14: =Timing!BY52 -> 0 | BX14: =Timing!BZ52 -> 0 | BY14: =Timing!CA52 -> 0 | BZ14: =Timing!CB52 -> 0 | CA14: =Timing!CC52 -> 0 | CB14: =Timing!CD52 -> 0 | CC14: =Timing!CE52 -> 0 | CD14: =Timing!CF52 -> 0 | CE14: =Timing!CG52 -> 0 | CF14: =Timing!CH52 -> 0 | CG14: =Timing!CI52 -> 0 | CH14: =Timing!CJ52 -> 0 | CI14: =Timing!CK52 -> 0 | CJ14: =Timing!CL52 -> 0 | CK14: =Timing!CM52 -> 0 | CL14: =Timing!CN52 -> 0 | CM14: =Timing!CO52 -> 0 | CN14: =Timing!CP52 -> 0 | CO14: =Timing!CQ52 -> 0 | CP14: =Timing!CR52 -> 0 | CQ14: =Timing!CS52 -> 0 | CR14: =Timing!CT52 -> 0 | CS14: =Timing!CU52 -> 0 | CT14: =Timing!CV52 -> 0
C15: Holding Period | H15: flag | J15: 10 | N15: 11 | P15: =Timing!R53 -> 0 | Q15: =Timing!S53 -> 0 | R15: =Timing!T53 -> 0 | S15: =Timing!U53 -> 0 | T15: =Timing!V53 -> 0 | U15: =Timing!W53 -> 1 | V15: =Timing!X53 -> 1 | W15: =Timing!Y53 -> 1 | X15: =Timing!Z53 -> 1 | Y15: =Timing!AA53 -> 1 | Z15: =Timing!AB53 -> 1 | AA15: =Timing!AC53 -> 1 | AB15: =Timing!AD53 -> 1 | AC15: =Timing!AE53 -> 1 | AD15: =Timing!AF53 -> 1 | AE15: =Timing!AG53 -> 1 | AF15: =Timing!AH53 -> 0 | AG15: =Timing!AI53 -> 0 | AH15: =Timing!AJ53 -> 0 | AI15: =Timing!AK53 -> 0 | AJ15: =Timing!AL53 -> 0 | AK15: =Timing!AM53 -> 0 | AL15: =Timing!AN53 -> 0 | AM15: =Timing!AO53 -> 0 | AN15: =Timing!AP53 -> 0 | AO15: =Timing!AQ53 -> 0 | AP15: =Timing!AR53 -> 0 | AQ15: =Timing!AS53 -> 0 | AR15: =Timing!AT53 -> 0 | AS15: =Timing!AU53 -> 0 | AT15: =Timing!AV53 -> 0 | AU15: =Timing!AW53 -> 0 | AV15: =Timing!AX53 -> 0 | AW15: =Timing!AY53 -> 0 | AX15: =Timing!AZ53 -> 0 | AY15: =Timing!BA53 -> 0 | AZ15: =Timing!BB53 -> 0 | BA15: =Timing!BC53 -> 0 | BB15: =Timing!BD53 -> 0 | BC15: =Timing!BE53 -> 0 | BD15: =Timing!BF53 -> 0 | BE15: =Timing!BG53 -> 0 | BF15: =Timing!BH53 -> 0 | BG15: =Timing!BI53 -> 0 | BH15: =Timing!BJ53 -> 0 | BI15: =Timing!BK53 -> 0 | BJ15: =Timing!BL53 -> 0 | BK15: =Timing!BM53 -> 0 | BL15: =Timing!BN53 -> 0 | BM15: =Timing!BO53 -> 0 | BN15: =Timing!BP53 -> 0 | BO15: =Timing!BQ53 -> 0 | BP15: =Timing!BR53 -> 0 | BQ15: =Timing!BS53 -> 0 | BR15: =Timing!BT53 -> 0 | BS15: =Timing!BU53 -> 0 | BT15: =Timing!BV53 -> 0 | BU15: =Timing!BW53 -> 0 | BV15: =Timing!BX53 -> 0 | BW15: =Timing!BY53 -> 0 | BX15: =Timing!BZ53 -> 0 | BY15: =Timing!CA53 -> 0 | BZ15: =Timing!CB53 -> 0 | CA15: =Timing!CC53 -> 0 | CB15: =Timing!CD53 -> 0 | CC15: =Timing!CE53 -> 0 | CD15: =Timing!CF53 -> 0 | CE15: =Timing!CG53 -> 0 | CF15: =Timing!CH53 -> 0 | CG15: =Timing!CI53 -> 0 | CH15: =Timing!CJ53 -> 0 | CI15: =Timing!CK53 -> 0 | CJ15: =Timing!CL53 -> 0 | CK15: =Timing!CM53 -> 0 | CL15: =Timing!CN53 -> 0 | CM15: =Timing!CO53 -> 0 | CN15: =Timing!CP53 -> 0 | CO15: =Timing!CQ53 -> 0 | CP15: =Timing!CR53 -> 0 | CQ15: =Timing!CS53 -> 0 | CR15: =Timing!CT53 -> 0 | CS15: =Timing!CU53 -> 0 | CT15: =Timing!CV53 -> 0
C16: Exit Date | H16: flag | J16: =IF(J12=InputC!B174,InputC!K22,J14+J15) -> 2036 | N16: 1 | P16: =Timing!R54 -> 0 | Q16: =Timing!S54 -> 0 | R16: =Timing!T54 -> 0 | S16: =Timing!U54 -> 0 | T16: =Timing!V54 -> 0 | U16: =Timing!W54 -> 0 | V16: =Timing!X54 -> 0 | W16: =Timing!Y54 -> 0 | X16: =Timing!Z54 -> 0 | Y16: =Timing!AA54 -> 0 | Z16: =Timing!AB54 -> 0 | AA16: =Timing!AC54 -> 0 | AB16: =Timing!AD54 -> 0 | AC16: =Timing!AE54 -> 0 | AD16: =Timing!AF54 -> 0 | AE16: =Timing!AG54 -> 1 | AF16: =Timing!AH54 -> 0 | AG16: =Timing!AI54 -> 0 | AH16: =Timing!AJ54 -> 0 | AI16: =Timing!AK54 -> 0 | AJ16: =Timing!AL54 -> 0 | AK16: =Timing!AM54 -> 0 | AL16: =Timing!AN54 -> 0 | AM16: =Timing!AO54 -> 0 | AN16: =Timing!AP54 -> 0 | AO16: =Timing!AQ54 -> 0 | AP16: =Timing!AR54 -> 0 | AQ16: =Timing!AS54 -> 0 | AR16: =Timing!AT54 -> 0 | AS16: =Timing!AU54 -> 0 | AT16: =Timing!AV54 -> 0 | AU16: =Timing!AW54 -> 0 | AV16: =Timing!AX54 -> 0 | AW16: =Timing!AY54 -> 0 | AX16: =Timing!AZ54 -> 0 | AY16: =Timing!BA54 -> 0 | AZ16: =Timing!BB54 -> 0 | BA16: =Timing!BC54 -> 0 | BB16: =Timing!BD54 -> 0 | BC16: =Timing!BE54 -> 0 | BD16: =Timing!BF54 -> 0 | BE16: =Timing!BG54 -> 0 | BF16: =Timing!BH54 -> 0 | BG16: =Timing!BI54 -> 0 | BH16: =Timing!BJ54 -> 0 | BI16: =Timing!BK54 -> 0 | BJ16: =Timing!BL54 -> 0 | BK16: =Timing!BM54 -> 0 | BL16: =Timing!BN54 -> 0 | BM16: =Timing!BO54 -> 0 | BN16: =Timing!BP54 -> 0 | BO16: =Timing!BQ54 -> 0 | BP16: =Timing!BR54 -> 0 | BQ16: =Timing!BS54 -> 0 | BR16: =Timing!BT54 -> 0 | BS16: =Timing!BU54 -> 0 | BT16: =Timing!BV54 -> 0 | BU16: =Timing!BW54 -> 0 | BV16: =Timing!BX54 -> 0 | BW16: =Timing!BY54 -> 0 | BX16: =Timing!BZ54 -> 0 | BY16: =Timing!CA54 -> 0 | BZ16: =Timing!CB54 -> 0 | CA16: =Timing!CC54 -> 0 | CB16: =Timing!CD54 -> 0 | CC16: =Timing!CE54 -> 0 | CD16: =Timing!CF54 -> 0 | CE16: =Timing!CG54 -> 0 | CF16: =Timing!CH54 -> 0 | CG16: =Timing!CI54 -> 0 | CH16: =Timing!CJ54 -> 0 | CI16: =Timing!CK54 -> 0 | CJ16: =Timing!CL54 -> 0 | CK16: =Timing!CM54 -> 0 | CL16: =Timing!CN54 -> 0 | CM16: =Timing!CO54 -> 0 | CN16: =Timing!CP54 -> 0 | CO16: =Timing!CQ54 -> 0 | CP16: =Timing!CR54 -> 0 | CQ16: =Timing!CS54 -> 0 | CR16: =Timing!CT54 -> 0 | CS16: =Timing!CU54 -> 0 | CT16: =Timing!CV54 -> 0
C18: Dates for NPV | H18: date | P18: =DATE(P5,12,31) -> 2021-12-31 | Q18: 2022-12-31 | R18: 2023-12-31 | S18: 2024-12-31 | T18: 2025-12-31 | U18: 2026-12-31 | V18: 2027-12-31 | W18: 2028-12-31 | X18: 2029-12-31 | Y18: 2030-12-31 | Z18: 2031-12-31 | AA18: 2032-12-31 | AB18: 2033-12-31 | AC18: 2034-12-31 | AD18: 2035-12-31 | AE18: 2036-12-31 | AF18: 2037-12-31 | AG18: 2038-12-31 | AH18: 2039-12-31 | AI18: 2040-12-31 | AJ18: 2041-12-31 | AK18: 2042-12-31 | AL18: 2043-12-31 | AM18: 2044-12-31 | AN18: 2045-12-31 | AO18: 2046-12-31 | AP18: 2047-12-31 | AQ18: 2048-12-31 | AR18: 2049-12-31 | AS18: 2050-12-31 | AT18: 2051-12-31 | AU18: 2052-12-31 | AV18: 2053-12-31 | AW18: 2054-12-31 | AX18: 2055-12-31 | AY18: 2056-12-31 | AZ18: 2057-12-31 | BA18: 2058-12-31 | BB18: 2059-12-31 | BC18: 2060-12-31 | BD18: 2061-12-31 | BE18: 2062-12-31 | BF18: 2063-12-31 | BG18: 2064-12-31 | BH18: 2065-12-31 | BI18: 2066-12-31 | BJ18: 2067-12-31 | BK18: 2068-12-31 | BL18: 2069-12-31 | BM18: 2070-12-31 | BN18: 2071-12-31 | BO18: 2072-12-31 | BP18: 2073-12-31 | BQ18: 2074-12-31 | BR18: 2075-12-31 | BS18: 2076-12-31 | BT18: 2077-12-31 | BU18: 2078-12-31 | BV18: 2079-12-31 | BW18: 2080-12-31 | BX18: 2081-12-31 | BY18: 2082-12-31 | BZ18: 2083-12-31 | CA18: 2084-12-31 | CB18: =DATE(CB5,12,31) -> 2085-12-31 | CC18: 2086-12-31 | CD18: 2087-12-31 | CE18: 2088-12-31 | CF18: 2089-12-31 | CG18: 2090-12-31 | CH18: 2091-12-31 | CI18: 2092-12-31 | CJ18: 2093-12-31 | CK18: 2094-12-31 | CL18: 2095-12-31 | CM18: 2096-12-31 | CN18: 2097-12-31 | CO18: 2098-12-31 | CP18: 2099-12-31 | CQ18: 2100-12-31 | CR18: 2101-12-31 | CS18: 2102-12-31 | CT18: 2103-12-31
B20: Sources & Uses
C22: Uses
C23: Price of Equity Stake | H23: $m | J23: =N23 ->  | N23: =SUM(P23:CT23) ->  | P23: =P14*P40 ->  | CB23: =CB14*CB40 ->  | CR23: 0 | CS23: 0 | CT23: 0
C24: Financial, Legal, & Advisory Fees | H24: $m | J24: 40 | N24: =SUM(P24:CT24) -> 40 | P24: =$J24*P$14 -> 0 | Q24: =$J24*Q$14 -> 0 | R24: 0 | S24: 0 | T24: 0 | U24: 40 | V24: 0 | W24: 0 | X24: 0 | Y24: 0 | Z24: 0 | AA24: 0 | AB24: 0 | AC24: 0 | AD24: 0 | AE24: 0 | AF24: 0 | AG24: 0 | AH24: 0 | AI24: 0 | AJ24: 0 | AK24: 0 | AL24: 0 | AM24: 0 | AN24: 0 | AO24: 0 | AP24: 0 | AQ24: 0 | AR24: 0 | AS24: 0 | AT24: 0 | AU24: 0 | AV24: 0 | AW24: 0 | AX24: 0 | AY24: 0 | AZ24: 0 | BA24: 0 | BB24: 0 | BC24: 0 | BD24: 0 | BE24: 0 | BF24: 0 | BG24: 0 | BH24: 0 | BI24: 0 | BJ24: 0 | BK24: 0 | BL24: 0 | BM24: 0 | BN24: 0 | BO24: 0 | BP24: 0 | BQ24: 0 | BR24: 0 | BS24: 0 | BT24: 0 | BU24: 0 | BV24: 0 | BW24: 0 | BX24: 0 | BY24: 0 | BZ24: 0 | CA24: 0 | CB24: 0 | CC24: =$J24*CC$14 -> 0 | CD24: 0 | CE24: 0 | CF24: 0 | CG24: 0 | CH24: 0 | CI24: 0 | CJ24: 0 | CK24: 0 | CL24: 0 | CM24: 0 | CN24: 0 | CO24: 0 | CP24: 0 | CQ24: 0 | CR24: 0 | CS24: 0 | CT24: 0
H25: $m | J25: =SUM(J23:J24) ->  | N25: =SUM(P25:CT25) ->  | P25: =SUM(P23:P24) ->  | Q25: =SUM(Q23:Q24) ->  | CC25: =SUM(CC23:CC24) ->  | CR25: 0 | CS25: 0 | CT25: 0
C27: Sources | J27: Buyout Price
C28: Equity | H28: $m | J28: =SUMPRODUCT(P28:CT28,P14:CT14) ->  | N28: =SUM(P28:CT28) ->  | P28: =P25 ->  | Q28: =Q25 ->  | CC28: =CC25 ->  | CR28: 0 | CS28: 0 | CT28: 0
H29: $m | N29: =SUM(P29:CT29) ->  | P29: =SUM(P28) ->  | Q29: =SUM(Q28) ->  | CC29: =SUM(CC28) ->  | CR29: 0 | CS29: 0 | CT29: 0
C31: Check | H31: check | J31: =AND(P31:CT31) ->  | P31: =IF(P25<>0,P25=P28,"") ->  | Q31: =IF(Q25<>0,Q25=Q28,"") ->  | CC31: =IF(CC25<>0,CC25=CC28,"") -> 
B33: Valuation
C35: Financial, Legal, & Advisory Fees | H35: $m | N35: =SUM(P35:CT35) -> 40 | P35: =P24 -> 0 | Q35: =Q24 -> 0 | R35: 0 | S35: 0 | T35: 0 | U35: 40 | V35: 0 | W35: 0 | X35: 0 | Y35: 0 | Z35: 0 | AA35: 0 | AB35: 0 | AC35: 0 | AD35: 0 | AE35: 0 | AF35: 0 | AG35: 0 | AH35: 0 | AI35: 0 | AJ35: 0 | AK35: 0 | AL35: 0 | AM35: 0 | AN35: 0 | AO35: 0 | AP35: 0 | AQ35: 0 | AR35: 0 | AS35: 0 | AT35: 0 | AU35: 0 | AV35: 0 | AW35: 0 | AX35: 0 | AY35: 0 | AZ35: 0 | BA35: 0 | BB35: 0 | BC35: 0 | BD35: 0 | BE35: 0 | BF35: 0 | BG35: 0 | BH35: 0 | BI35: 0 | BJ35: 0 | BK35: 0 | BL35: 0 | BM35: 0 | BN35: 0 | BO35: 0 | BP35: 0 | BQ35: 0 | BR35: 0 | BS35: 0 | BT35: 0 | BU35: 0 | BV35: 0 | BW35: 0 | BX35: 0 | BY35: 0 | BZ35: 0 | CA35: 0 | CB35: 0 | CC35: =CC24 -> 0 | CD35: 0 | CE35: 0 | CF35: 0 | CG35: 0 | CH35: 0 | CI35: 0 | CJ35: 0 | CK35: 0 | CL35: 0 | CM35: 0 | CN35: 0 | CO35: 0 | CP35: 0 | CQ35: 0 | CR35: 0 | CS35: 0 | CT35: 0
C36: Levered Csahflow to Equity | H36: $m | N36: =SUM(P36:CT36) ->  | P36: =Valuation!P28*Buyout!P15 ->  | Q36: =Valuation!Q28*Buyout!Q15 ->  | R36: =Valuation!R28*Buyout!R15 ->  | S36: =Valuation!S28*Buyout!S15 ->  | T36: =Valuation!T28*Buyout!T15 ->  | U36: =Valuation!U28*Buyout!U15 ->  | V36: =Valuation!V28*Buyout!V15 ->  | W36: =Valuation!W28*Buyout!W15 ->  | X36: =Valuation!X28*Buyout!X15 ->  | Y36: =Valuation!Y28*Buyout!Y15 ->  | Z36: =Valuation!Z28*Buyout!Z15 ->  | AA36: =Valuation!AA28*Buyout!AA15 ->  | AB36: =Valuation!AB28*Buyout!AB15 ->  | AC36: =Valuation!AC28*Buyout!AC15 ->  | AD36: =Valuation!AD28*Buyout!AD15 ->  | AE36: =Valuation!AE28*Buyout!AE15 ->  | AF36: =Valuation!AF28*Buyout!AF15 ->  | AG36: =Valuation!AG28*Buyout!AG15 ->  | AH36: =Valuation!AH28*Buyout!AH15 ->  | AI36: =Valuation!AI28*Buyout!AI15 ->  | AJ36: =Valuation!AJ28*Buyout!AJ15 ->  | AK36: =Valuation!AK28*Buyout!AK15 ->  | AL36: =Valuation!AL28*Buyout!AL15 ->  | AM36: =Valuation!AM28*Buyout!AM15 ->  | AN36: =Valuation!AN28*Buyout!AN15 ->  | AO36: =Valuation!AO28*Buyout!AO15 ->  | AP36: =Valuation!AP28*Buyout!AP15 ->  | AQ36: =Valuation!AQ28*Buyout!AQ15 ->  | AR36: =Valuation!AR28*Buyout!AR15 ->  | AS36: =Valuation!AS28*Buyout!AS15 ->  | AT36: =Valuation!AT28*Buyout!AT15 ->  | AU36: =Valuation!AU28*Buyout!AU15 ->  | AV36: =Valuation!AV28*Buyout!AV15 ->  | AW36: =Valuation!AW28*Buyout!AW15 ->  | AX36: =Valuation!AX28*Buyout!AX15 ->  | AY36: =Valuation!AY28*Buyout!AY15 ->  | AZ36: =Valuation!AZ28*Buyout!AZ15 ->  | BA36: =Valuation!BA28*Buyout!BA15 ->  | BB36: =Valuation!BB28*Buyout!BB15 ->  | BC36: =Valuation!BC28*Buyout!BC15 ->  | BD36: =Valuation!BD28*Buyout!BD15 ->  | BE36: =Valuation!BE28*Buyout!BE15 ->  | BF36: =Valuation!BF28*Buyout!BF15 ->  | BG36: =Valuation!BG28*Buyout!BG15 ->  | BH36: =Valuation!BH28*Buyout!BH15 ->  | BI36: =Valuation!BI28*Buyout!BI15 ->  | BJ36: =Valuation!BJ28*Buyout!BJ15 ->  | BK36: =Valuation!BK28*Buyout!BK15 ->  | BL36: =Valuation!BL28*Buyout!BL15 ->  | BM36: =Valuation!BM28*Buyout!BM15 ->  | BN36: =Valuation!BN28*Buyout!BN15 ->  | BO36: =Valuation!BO28*Buyout!BO15 ->  | BP36: =Valuation!BP28*Buyout!BP15 ->  | BQ36: =Valuation!BQ28*Buyout!BQ15 ->  | BR36: =Valuation!BR28*Buyout!BR15 ->  | BS36: =Valuation!BS28*Buyout!BS15 ->  | BT36: =Valuation!BT28*Buyout!BT15 ->  | BU36: =Valuation!BU28*Buyout!BU15 ->  | BV36: =Valuation!BV28*Buyout!BV15 ->  | BW36: =Valuation!BW28*Buyout!BW15 ->  | BX36: =Valuation!BX28*Buyout!BX15 ->  | BY36: =Valuation!BY28*Buyout!BY15 ->  | BZ36: =Valuation!BZ28*Buyout!BZ15 ->  | CA36: =Valuation!CA28*Buyout!CA15 ->  | CB36: =Valuation!CB28*Buyout!CB15 ->  | CC36: =Valuation!CC28*Buyout!CC15 ->  | CD36: =Valuation!CD28*Buyout!CD15 ->  | CE36: =Valuation!CE28*Buyout!CE15 ->  | CF36: =Valuation!CF28*Buyout!CF15 ->  | CG36: =Valuation!CG28*Buyout!CG15 ->  | CH36: =Valuation!CH28*Buyout!CH15 ->  | CI36: =Valuation!CI28*Buyout!CI15 ->  | CJ36: =Valuation!CJ28*Buyout!CJ15 ->  | CK36: =Valuation!CK28*Buyout!CK15 ->  | CL36: =Valuation!CL28*Buyout!CL15 ->  | CM36: =Valuation!CM28*Buyout!CM15 ->  | CN36: =Valuation!CN28*Buyout!CN15 ->  | CO36: =Valuation!CO28*Buyout!CO15 ->  | CP36: =Valuation!CP28*Buyout!CP15 ->  | CQ36: =Valuation!CQ28*Buyout!CQ15 ->  | CR36: =Valuation!CR28*Buyout!CR15 -> 0 | CS36: =Valuation!CS28*Buyout!CS15 -> 0 | CT36: =Valuation!CT28*Buyout!CT15 -> 0
C37: Exit Value | H37: $m | N37: =SUM(P37:CT37) -> 5807.997585 | P37: =P65 -> 0 | Q37: =Q65 -> 0 | R37: 0 | S37: 0 | T37: 0 | U37: 0 | V37: 0 | W37: 0 | X37: 0 | Y37: 0 | Z37: 0 | AA37: 0 | AB37: 0 | AC37: 0 | AD37: 0 | AE37: 5807.997585 | AF37: 0 | AG37: 0 | AH37: 0 | AI37: 0 | AJ37: 0 | AK37: 0 | AL37: 0 | AM37: 0 | AN37: 0 | AO37: 0 | AP37: 0 | AQ37: 0 | AR37: 0 | AS37: 0 | AT37: 0 | AU37: 0 | AV37: 0 | AW37: 0 | AX37: 0 | AY37: 0 | AZ37: 0 | BA37: 0 | BB37: 0 | BC37: 0 | BD37: 0 | BE37: 0 | BF37: 0 | BG37: 0 | BH37: 0 | BI37: 0 | BJ37: 0 | BK37: 0 | BL37: 0 | BM37: 0 | BN37: 0 | BO37: 0 | BP37: 0 | BQ37: 0 | BR37: 0 | BS37: 0 | BT37: 0 | BU37: 0 | BV37: 0 | BW37: 0 | BX37: 0 | BY37: 0 | BZ37: 0 | CA37: 0 | CB37: 0 | CC37: =CC65 -> 0 | CD37: 0 | CE37: 0 | CF37: 0 | CG37: 0 | CH37: 0 | CI37: 0 | CJ37: 0 | CK37: 0 | CL37: 0 | CM37: 0 | CN37: 0 | CO37: 0 | CP37: 0 | CQ37: 0 | CR37: 0 | CS37: 0 | CT37: 0
H38: $m | N38: =SUM(P38:CT38) ->  | P38: =-P35+P36+P37 ->  | Q38: =-Q35+Q36+Q37 ->  | CC38: =-CC35+CC36+CC37 ->  | CR38: 0 | CS38: 0 | CT38: 0
J39: Hurdle Rate
C40: Rolling Valuation | H40: $m | J40: 0.12 | P40: =XNPV($J$40,P38:$CT38,P18:$CT18)*P15 ->  | Q40: =XNPV($J$40,Q38:$CT38,Q18:$CT18)*Q15 ->  | R40: =XNPV($J$40,R38:$CT38,R18:$CT18)*R15 ->  | S40: =XNPV($J$40,S38:$CT38,S18:$CT18)*S15 ->  | T40: =XNPV($J$40,T38:$CT38,T18:$CT18)*T15 ->  | U40: =XNPV($J$40,U38:$CT38,U18:$CT18)*U15 ->  | V40: =XNPV($J$40,V38:$CT38,V18:$CT18)*V15 ->  | W40: =XNPV($J$40,W38:$CT38,W18:$CT18)*W15 ->  | X40: =XNPV($J$40,X38:$CT38,X18:$CT18)*X15 ->  | Y40: =XNPV($J$40,Y38:$CT38,Y18:$CT18)*Y15 ->  | Z40: =XNPV($J$40,Z38:$CT38,Z18:$CT18)*Z15 ->  | AA40: =XNPV($J$40,AA38:$CT38,AA18:$CT18)*AA15 ->  | AB40: =XNPV($J$40,AB38:$CT38,AB18:$CT18)*AB15 ->  | AC40: =XNPV($J$40,AC38:$CT38,AC18:$CT18)*AC15 ->  | AD40: =XNPV($J$40,AD38:$CT38,AD18:$CT18)*AD15 ->  | AE40: =XNPV($J$40,AE38:$CT38,AE18:$CT18)*AE15 ->  | AF40: =XNPV($J$40,AF38:$CT38,AF18:$CT18)*AF15 ->  | AG40: =XNPV($J$40,AG38:$CT38,AG18:$CT18)*AG15 ->  | AH40: =XNPV($J$40,AH38:$CT38,AH18:$CT18)*AH15 ->  | AI40: =XNPV($J$40,AI38:$CT38,AI18:$CT18)*AI15 ->  | AJ40: =XNPV($J$40,AJ38:$CT38,AJ18:$CT18)*AJ15 ->  | AK40: =XNPV($J$40,AK38:$CT38,AK18:$CT18)*AK15 ->  | AL40: =XNPV($J$40,AL38:$CT38,AL18:$CT18)*AL15 ->  | AM40: =XNPV($J$40,AM38:$CT38,AM18:$CT18)*AM15 ->  | AN40: =XNPV($J$40,AN38:$CT38,AN18:$CT18)*AN15 ->  | AO40: =XNPV($J$40,AO38:$CT38,AO18:$CT18)*AO15 ->  | AP40: =XNPV($J$40,AP38:$CT38,AP18:$CT18)*AP15 ->  | AQ40: =XNPV($J$40,AQ38:$CT38,AQ18:$CT18)*AQ15 ->  | AR40: =XNPV($J$40,AR38:$CT38,AR18:$CT18)*AR15 ->  | AS40: =XNPV($J$40,AS38:$CT38,AS18:$CT18)*AS15 ->  | AT40: =XNPV($J$40,AT38:$CT38,AT18:$CT18)*AT15 ->  | AU40: =XNPV($J$40,AU38:$CT38,AU18:$CT18)*AU15 ->  | AV40: =XNPV($J$40,AV38:$CT38,AV18:$CT18)*AV15 ->  | AW40: =XNPV($J$40,AW38:$CT38,AW18:$CT18)*AW15 ->  | AX40: =XNPV($J$40,AX38:$CT38,AX18:$CT18)*AX15 ->  | AY40: =XNPV($J$40,AY38:$CT38,AY18:$CT18)*AY15 ->  | AZ40: =XNPV($J$40,AZ38:$CT38,AZ18:$CT18)*AZ15 ->  | BA40: =XNPV($J$40,BA38:$CT38,BA18:$CT18)*BA15 ->  | BB40: =XNPV($J$40,BB38:$CT38,BB18:$CT18)*BB15 ->  | BC40: =XNPV($J$40,BC38:$CT38,BC18:$CT18)*BC15 ->  | BD40: =XNPV($J$40,BD38:$CT38,BD18:$CT18)*BD15 ->  | BE40: =XNPV($J$40,BE38:$CT38,BE18:$CT18)*BE15 ->  | BF40: =XNPV($J$40,BF38:$CT38,BF18:$CT18)*BF15 ->  | BG40: =XNPV($J$40,BG38:$CT38,BG18:$CT18)*BG15 ->  | BH40: =XNPV($J$40,BH38:$CT38,BH18:$CT18)*BH15 ->  | BI40: =XNPV($J$40,BI38:$CT38,BI18:$CT18)*BI15 ->  | BJ40: =XNPV($J$40,BJ38:$CT38,BJ18:$CT18)*BJ15 ->  | BK40: =XNPV($J$40,BK38:$CT38,BK18:$CT18)*BK15 ->  | BL40: =XNPV($J$40,BL38:$CT38,BL18:$CT18)*BL15 ->  | BM40: =XNPV($J$40,BM38:$CT38,BM18:$CT18)*BM15 ->  | BN40: =XNPV($J$40,BN38:$CT38,BN18:$CT18)*BN15 ->  | BO40: =XNPV($J$40,BO38:$CT38,BO18:$CT18)*BO15 ->  | BP40: =XNPV($J$40,BP38:$CT38,BP18:$CT18)*BP15 ->  | BQ40: =XNPV($J$40,BQ38:$CT38,BQ18:$CT18)*BQ15 ->  | BR40: =XNPV($J$40,BR38:$CT38,BR18:$CT18)*BR15 ->  | BS40: =XNPV($J$40,BS38:$CT38,BS18:$CT18)*BS15 ->  | BT40: =XNPV($J$40,BT38:$CT38,BT18:$CT18)*BT15 ->  | BU40: =XNPV($J$40,BU38:$CT38,BU18:$CT18)*BU15 ->  | BV40: =XNPV($J$40,BV38:$CT38,BV18:$CT18)*BV15 ->  | BW40: =XNPV($J$40,BW38:$CT38,BW18:$CT18)*BW15 ->  | BX40: =XNPV($J$40,BX38:$CT38,BX18:$CT18)*BX15 ->  | BY40: =XNPV($J$40,BY38:$CT38,BY18:$CT18)*BY15 ->  | BZ40: =XNPV($J$40,BZ38:$CT38,BZ18:$CT18)*BZ15 ->  | CA40: =XNPV($J$40,CA38:$CT38,CA18:$CT18)*CA15 ->  | CB40: =XNPV($J$40,CB38:$CT38,CB18:$CT18)*CB15 ->  | CC40: =XNPV($J$40,CC38:$CT38,CC18:$CT18)*CC15 ->  | CD40: =XNPV($J$40,CD38:$CT38,CD18:$CT18)*CD15 ->  | CE40: =XNPV($J$40,CE38:$CT38,CE18:$CT18)*CE15 ->  | CF40: =XNPV($J$40,CF38:$CT38,CF18:$CT18)*CF15 ->  | CG40: =XNPV($J$40,CG38:$CT38,CG18:$CT18)*CG15 ->  | CH40: =XNPV($J$40,CH38:$CT38,CH18:$CT18)*CH15 ->  | CI40: =XNPV($J$40,CI38:$CT38,CI18:$CT18)*CI15 ->  | CJ40: =XNPV($J$40,CJ38:$CT38,CJ18:$CT18)*CJ15 ->  | CK40: =XNPV($J$40,CK38:$CT38,CK18:$CT18)*CK15 ->  | CL40: =XNPV($J$40,CL38:$CT38,CL18:$CT18)*CL15 ->  | CM40: =XNPV($J$40,CM38:$CT38,CM18:$CT18)*CM15 ->  | CN40: =XNPV($J$40,CN38:$CT38,CN18:$CT18)*CN15 ->  | CO40: =XNPV($J$40,CO38:$CT38,CO18:$CT18)*CO15 ->  | CP40: =XNPV($J$40,CP38:$CT38,CP18:$CT18)*CP15 ->  | CQ40: =XNPV($J$40,CQ38:$CT38,CQ18:$CT18)*CQ15 ->  | CR40: =XNPV($J$40,CR38:$CT38,CR18:$CT18)*CR15 -> 0 | CS40: =XNPV($J$40,CS38:$CT38,CS18:$CT18)*CS15 -> 0 | CT40: =XNPV($J$40,CT38:$CT38,CT18:$CT18)*CT15 -> 0
B42: Return
C44: (-) | D44: Acquisition Equity Injected | H44: $m | N44: =SUM(P44:CT44) ->  | P44: =P28 ->  | CB44: =CB28 ->  | CR44: 0 | CS44: 0 | CT44: 0
C45: (+) | D45: Levered Csahflow to Equity | H45: $m | N45: =SUM(P45:CT45) ->  | P45: =P36 ->  | Q45: =Q36 ->  | CC45: =CC36 ->  | CR45: 0 | CS45: 0 | CT45: 0
C46: (+) | D46: Exit Value | H46: $m | N46: =SUM(P46:CT46) -> 5807.997585 | P46: =P37 -> 0 | Q46: 0 | R46: 0 | S46: 0 | T46: 0 | U46: 0 | V46: 0 | W46: 0 | X46: 0 | Y46: 0 | Z46: 0 | AA46: 0 | AB46: 0 | AC46: 0 | AD46: 0 | AE46: 5807.997585 | AF46: 0 | AG46: 0 | AH46: 0 | AI46: 0 | AJ46: 0 | AK46: 0 | AL46: 0 | AM46: 0 | AN46: 0 | AO46: 0 | AP46: 0 | AQ46: 0 | AR46: 0 | AS46: 0 | AT46: 0 | AU46: 0 | AV46: 0 | AW46: 0 | AX46: 0 | AY46: 0 | AZ46: 0 | BA46: 0 | BB46: 0 | BC46: 0 | BD46: 0 | BE46: 0 | BF46: 0 | BG46: 0 | BH46: 0 | BI46: 0 | BJ46: 0 | BK46: 0 | BL46: 0 | BM46: 0 | BN46: 0 | BO46: 0 | BP46: 0 | BQ46: 0 | BR46: 0 | BS46: 0 | BT46: 0 | BU46: 0 | BV46: 0 | BW46: 0 | BX46: 0 | BY46: 0 | BZ46: 0 | CA46: 0 | CB46: =CB37 -> 0 | CC46: 0 | CD46: 0 | CE46: 0 | CF46: 0 | CG46: 0 | CH46: 0 | CI46: 0 | CJ46: 0 | CK46: 0 | CL46: 0 | CM46: 0 | CN46: 0 | CO46: 0 | CP46: 0 | CQ46: 0 | CR46: 0 | CS46: 0 | CT46: 0
H47: $m | N47: =SUM(P47:CT47) ->  | P47: =-P44+P45+P46 ->  | Q47: =-Q44+Q45+Q46 ->  | CC47: =-CC44+CC45+CC46 ->  | CR47: 0 | CS47: 0 | CT47: 0
C49: IRR | H49: % | J49: =SUMPRODUCT(P49:CT49,P14:CT14) -> 0 | P49: =IFERROR(IRR(P47:$CT47)*P14,0) -> 0 | Q49: =IFERROR(IRR(Q47:$CT47)*Q14,0) -> 0 | R49: =IFERROR(IRR(R47:$CT47)*R14,0) -> 0 | S49: =IFERROR(IRR(S47:$CT47)*S14,0) -> 0 | T49: =IFERROR(IRR(T47:$CT47)*T14,0) -> 0 | U49: =IFERROR(IRR(U47:$CT47)*U14,0) -> 0 | V49: =IFERROR(IRR(V47:$CT47)*V14,0) -> 0 | W49: =IFERROR(IRR(W47:$CT47)*W14,0) -> 0 | X49: =IFERROR(IRR(X47:$CT47)*X14,0) -> 0 | Y49: =IFERROR(IRR(Y47:$CT47)*Y14,0) -> 0 | Z49: =IFERROR(IRR(Z47:$CT47)*Z14,0) -> 0 | AA49: =IFERROR(IRR(AA47:$CT47)*AA14,0) -> 0 | AB49: =IFERROR(IRR(AB47:$CT47)*AB14,0) -> 0 | AC49: =IFERROR(IRR(AC47:$CT47)*AC14,0) -> 0 | AD49: =IFERROR(IRR(AD47:$CT47)*AD14,0) -> 0 | AE49: =IFERROR(IRR(AE47:$CT47)*AE14,0) -> 0 | AF49: =IFERROR(IRR(AF47:$CT47)*AF14,0) -> 0 | AG49: =IFERROR(IRR(AG47:$CT47)*AG14,0) -> 0 | AH49: =IFERROR(IRR(AH47:$CT47)*AH14,0) -> 0 | AI49: =IFERROR(IRR(AI47:$CT47)*AI14,0) -> 0 | AJ49: =IFERROR(IRR(AJ47:$CT47)*AJ14,0) -> 0 | AK49: =IFERROR(IRR(AK47:$CT47)*AK14,0) -> 0 | AL49: =IFERROR(IRR(AL47:$CT47)*AL14,0) -> 0 | AM49: =IFERROR(IRR(AM47:$CT47)*AM14,0) -> 0 | AN49: =IFERROR(IRR(AN47:$CT47)*AN14,0) -> 0 | AO49: =IFERROR(IRR(AO47:$CT47)*AO14,0) -> 0 | AP49: =IFERROR(IRR(AP47:$CT47)*AP14,0) -> 0 | AQ49: =IFERROR(IRR(AQ47:$CT47)*AQ14,0) -> 0 | AR49: =IFERROR(IRR(AR47:$CT47)*AR14,0) -> 0 | AS49: =IFERROR(IRR(AS47:$CT47)*AS14,0) -> 0 | AT49: =IFERROR(IRR(AT47:$CT47)*AT14,0) -> 0 | AU49: =IFERROR(IRR(AU47:$CT47)*AU14,0) -> 0 | AV49: =IFERROR(IRR(AV47:$CT47)*AV14,0) -> 0 | AW49: =IFERROR(IRR(AW47:$CT47)*AW14,0) -> 0 | AX49: =IFERROR(IRR(AX47:$CT47)*AX14,0) -> 0 | AY49: =IFERROR(IRR(AY47:$CT47)*AY14,0) -> 0 | AZ49: =IFERROR(IRR(AZ47:$CT47)*AZ14,0) -> 0 | BA49: =IFERROR(IRR(BA47:$CT47)*BA14,0) -> 0 | BB49: =IFERROR(IRR(BB47:$CT47)*BB14,0) -> 0 | BC49: =IFERROR(IRR(BC47:$CT47)*BC14,0) -> 0 | BD49: =IFERROR(IRR(BD47:$CT47)*BD14,0) -> 0 | BE49: =IFERROR(IRR(BE47:$CT47)*BE14,0) -> 0 | BF49: =IFERROR(IRR(BF47:$CT47)*BF14,0) -> 0 | BG49: =IFERROR(IRR(BG47:$CT47)*BG14,0) -> 0 | BH49: =IFERROR(IRR(BH47:$CT47)*BH14,0) -> 0 | BI49: =IFERROR(IRR(BI47:$CT47)*BI14,0) -> 0 | BJ49: =IFERROR(IRR(BJ47:$CT47)*BJ14,0) -> 0 | BK49: =IFERROR(IRR(BK47:$CT47)*BK14,0) -> 0 | BL49: =IFERROR(IRR(BL47:$CT47)*BL14,0) -> 0 | BM49: =IFERROR(IRR(BM47:$CT47)*BM14,0) -> 0 | BN49: =IFERROR(IRR(BN47:$CT47)*BN14,0) -> 0 | BO49: =IFERROR(IRR(BO47:$CT47)*BO14,0) -> 0 | BP49: =IFERROR(IRR(BP47:$CT47)*BP14,0) -> 0 | BQ49: =IFERROR(IRR(BQ47:$CT47)*BQ14,0) -> 0 | BR49: =IFERROR(IRR(BR47:$CT47)*BR14,0) -> 0 | BS49: =IFERROR(IRR(BS47:$CT47)*BS14,0) -> 0 | BT49: =IFERROR(IRR(BT47:$CT47)*BT14,0) -> 0 | BU49: =IFERROR(IRR(BU47:$CT47)*BU14,0) -> 0 | BV49: =IFERROR(IRR(BV47:$CT47)*BV14,0) -> 0 | BW49: =IFERROR(IRR(BW47:$CT47)*BW14,0) -> 0 | BX49: =IFERROR(IRR(BX47:$CT47)*BX14,0) -> 0 | BY49: =IFERROR(IRR(BY47:$CT47)*BY14,0) -> 0 | BZ49: =IFERROR(IRR(BZ47:$CT47)*BZ14,0) -> 0 | CA49: =IFERROR(IRR(CA47:$CT47)*CA14,0) -> 0 | CB49: =IFERROR(IRR(CB47:$CT47)*CB14,0) -> 0 | CC49: =IFERROR(IRR(CC47:$CT47)*CC14,0) -> 0 | CD49: =IFERROR(IRR(CD47:$CT47)*CD14,0) -> 0 | CE49: =IFERROR(IRR(CE47:$CT47)*CE14,0) -> 0 | CF49: =IFERROR(IRR(CF47:$CT47)*CF14,0) -> 0 | CG49: =IFERROR(IRR(CG47:$CT47)*CG14,0) -> 0 | CH49: =IFERROR(IRR(CH47:$CT47)*CH14,0) -> 0 | CI49: =IFERROR(IRR(CI47:$CT47)*CI14,0) -> 0 | CJ49: =IFERROR(IRR(CJ47:$CT47)*CJ14,0) -> 0 | CK49: =IFERROR(IRR(CK47:$CT47)*CK14,0) -> 0 | CL49: =IFERROR(IRR(CL47:$CT47)*CL14,0) -> 0 | CM49: =IFERROR(IRR(CM47:$CT47)*CM14,0) -> 0 | CN49: =IFERROR(IRR(CN47:$CT47)*CN14,0) -> 0 | CO49: =IFERROR(IRR(CO47:$CT47)*CO14,0) -> 0 | CP49: =IFERROR(IRR(CP47:$CT47)*CP14,0) -> 0 | CQ49: =IFERROR(IRR(CQ47:$CT47)*CQ14,0) -> 0 | CR49: =IFERROR(IRR(CR47:$CT47)*CR14,0) -> 0 | CS49: =IFERROR(IRR(CS47:$CT47)*CS14,0) -> 0 | CT49: =IFERROR(IRR(CT47:$CT47)*CT14,0) -> 0
A51: Exit Value
B53: Exit Valuation
C55: Post Holding Period | H55: flag | N55: =SUM(P55:CT55) -> 39 | P55: =Timing!R60 -> 0 | Q55: =Timing!S60 -> 0 | R55: =Timing!T60 -> 0 | S55: =Timing!U60 -> 0 | T55: =Timing!V60 -> 0 | U55: =Timing!W60 -> 0 | V55: =Timing!X60 -> 0 | W55: =Timing!Y60 -> 0 | X55: =Timing!Z60 -> 0 | Y55: =Timing!AA60 -> 0 | Z55: =Timing!AB60 -> 0 | AA55: =Timing!AC60 -> 0 | AB55: =Timing!AD60 -> 0 | AC55: =Timing!AE60 -> 0 | AD55: =Timing!AF60 -> 0 | AE55: =Timing!AG60 -> 1 | AF55: =Timing!AH60 -> 1 | AG55: =Timing!AI60 -> 1 | AH55: =Timing!AJ60 -> 1 | AI55: =Timing!AK60 -> 1 | AJ55: =Timing!AL60 -> 1 | AK55: =Timing!AM60 -> 1 | AL55: =Timing!AN60 -> 1 | AM55: =Timing!AO60 -> 1 | AN55: =Timing!AP60 -> 1 | AO55: =Timing!AQ60 -> 1 | AP55: =Timing!AR60 -> 1 | AQ55: =Timing!AS60 -> 1 | AR55: =Timing!AT60 -> 1 | AS55: =Timing!AU60 -> 1 | AT55: =Timing!AV60 -> 1 | AU55: =Timing!AW60 -> 1 | AV55: =Timing!AX60 -> 1 | AW55: =Timing!AY60 -> 1 | AX55: =Timing!AZ60 -> 1 | AY55: =Timing!BA60 -> 1 | AZ55: =Timing!BB60 -> 1 | BA55: =Timing!BC60 -> 1 | BB55: =Timing!BD60 -> 1 | BC55: =Timing!BE60 -> 1 | BD55: =Timing!BF60 -> 1 | BE55: =Timing!BG60 -> 1 | BF55: =Timing!BH60 -> 1 | BG55: =Timing!BI60 -> 1 | BH55: =Timing!BJ60 -> 1 | BI55: =Timing!BK60 -> 1 | BJ55: =Timing!BL60 -> 1 | BK55: =Timing!BM60 -> 1 | BL55: =Timing!BN60 -> 1 | BM55: =Timing!BO60 -> 1 | BN55: =Timing!BP60 -> 1 | BO55: =Timing!BQ60 -> 1 | BP55: =Timing!BR60 -> 1 | BQ55: =Timing!BS60 -> 1 | BR55: =Timing!BT60 -> 0 | BS55: =Timing!BU60 -> 0 | BT55: =Timing!BV60 -> 0 | BU55: =Timing!BW60 -> 0 | BV55: =Timing!BX60 -> 0 | BW55: =Timing!BY60 -> 0 | BX55: =Timing!BZ60 -> 0 | BY55: =Timing!CA60 -> 0 | BZ55: =Timing!CB60 -> 0 | CA55: =Timing!CC60 -> 0 | CB55: =Timing!CD60 -> 0 | CC55: =Timing!CE60 -> 0 | CD55: =Timing!CF60 -> 0 | CE55: =Timing!CG60 -> 0 | CF55: =Timing!CH60 -> 0 | CG55: =Timing!CI60 -> 0 | CH55: =Timing!CJ60 -> 0 | CI55: =Timing!CK60 -> 0 | CJ55: =Timing!CL60 -> 0 | CK55: =Timing!CM60 -> 0 | CL55: =Timing!CN60 -> 0 | CM55: =Timing!CO60 -> 0 | CN55: =Timing!CP60 -> 0 | CO55: =Timing!CQ60 -> 0 | CP55: =Timing!CR60 -> 0 | CQ55: =Timing!CS60 -> 0 | CR55: =Timing!CT60 -> 0 | CS55: =Timing!CU60 -> 0 | CT55: =Timing!CV60 -> 0
C56: Exit Date | H56: flag | N56: 1 | P56: =P16 -> 0 | Q56: 0 | R56: 0 | S56: 0 | T56: 0 | U56: 0 | V56: 0 | W56: 0 | X56: 0 | Y56: 0 | Z56: 0 | AA56: 0 | AB56: 0 | AC56: 0 | AD56: 0 | AE56: 1 | AF56: 0 | AG56: 0 | AH56: 0 | AI56: 0 | AJ56: 0 | AK56: 0 | AL56: 0 | AM56: 0 | AN56: 0 | AO56: 0 | AP56: 0 | AQ56: 0 | AR56: 0 | AS56: 0 | AT56: 0 | AU56: 0 | AV56: 0 | AW56: 0 | AX56: 0 | AY56: 0 | AZ56: 0 | BA56: 0 | BB56: 0 | BC56: 0 | BD56: 0 | BE56: 0 | BF56: 0 | BG56: 0 | BH56: 0 | BI56: 0 | BJ56: 0 | BK56: 0 | BL56: 0 | BM56: 0 | BN56: 0 | BO56: 0 | BP56: 0 | BQ56: 0 | BR56: 0 | BS56: 0 | BT56: 0 | BU56: 0 | BV56: 0 | BW56: 0 | BX56: 0 | BY56: 0 | BZ56: 0 | CA56: 0 | CB56: =CB16 -> 0 | CC56: 0 | CD56: 0 | CE56: 0 | CF56: 0 | CG56: 0 | CH56: 0 | CI56: 0 | CJ56: 0 | CK56: 0 | CL56: 0 | CM56: 0 | CN56: 0 | CO56: 0 | CP56: 0 | CQ56: 0 | CR56: 0 | CS56: 0 | CT56: 0
C58: Dates for NPV | H58: date | P58: =P18 -> 2021-12-31 | Q58: 2022-12-31 | R58: 2023-12-31 | S58: 2024-12-31 | T58: 2025-12-31 | U58: 2026-12-31 | V58: 2027-12-31 | W58: 2028-12-31 | X58: 2029-12-31 | Y58: 2030-12-31 | Z58: 2031-12-31 | AA58: 2032-12-31 | AB58: 2033-12-31 | AC58: 2034-12-31 | AD58: 2035-12-31 | AE58: 2036-12-31 | AF58: 2037-12-31 | AG58: 2038-12-31 | AH58: 2039-12-31 | AI58: 2040-12-31 | AJ58: 2041-12-31 | AK58: 2042-12-31 | AL58: 2043-12-31 | AM58: 2044-12-31 | AN58: 2045-12-31 | AO58: 2046-12-31 | AP58: 2047-12-31 | AQ58: 2048-12-31 | AR58: 2049-12-31 | AS58: 2050-12-31 | AT58: 2051-12-31 | AU58: 2052-12-31 | AV58: 2053-12-31 | AW58: 2054-12-31 | AX58: 2055-12-31 | AY58: 2056-12-31 | AZ58: 2057-12-31 | BA58: 2058-12-31 | BB58: 2059-12-31 | BC58: 2060-12-31 | BD58: 2061-12-31 | BE58: 2062-12-31 | BF58: 2063-12-31 | BG58: 2064-12-31 | BH58: 2065-12-31 | BI58: 2066-12-31 | BJ58: 2067-12-31 | BK58: 2068-12-31 | BL58: 2069-12-31 | BM58: 2070-12-31 | BN58: 2071-12-31 | BO58: 2072-12-31 | BP58: 2073-12-31 | BQ58: 2074-12-31 | BR58: 2075-12-31 | BS58: 2076-12-31 | BT58: 2077-12-31 | BU58: 2078-12-31 | BV58: 2079-12-31 | BW58: 2080-12-31 | BX58: 2081-12-31 | BY58: 2082-12-31 | BZ58: 2083-12-31 | CA58: 2084-12-31 | CB58: =CB18 -> 2085-12-31 | CC58: 2086-12-31 | CD58: 2087-12-31 | CE58: 2088-12-31 | CF58: 2089-12-31 | CG58: 2090-12-31 | CH58: 2091-12-31 | CI58: 2092-12-31 | CJ58: 2093-12-31 | CK58: 2094-12-31 | CL58: 2095-12-31 | CM58: 2096-12-31 | CN58: 2097-12-31 | CO58: 2098-12-31 | CP58: 2099-12-31 | CQ58: 2100-12-31 | CR58: 2101-12-31 | CS58: 2102-12-31 | CT58: 2103-12-31
C60: Levered Cash Flow to Equity | H60: $m | N60: 27741.36408 | P60: -1704.4308 | Q60: -945.2556 | R60: -762.1936 | S60: 550.6209182 | T60: 582.6047178 | U60: 581.5884738 | V60: 574.1986844 | W60: 559.5585764 | X60: 578.8910713 | Y60: 577.2039644 | Z60: 572.852063 | AA60: 570.8429107 | AB60: 551.1302809 | AC60: 566.1139191 | AD60: 564.6835096 | AE60: 563.0113452 | AF60: 560.7840124 | AG60: 540.5427974 | AH60: 555.6210258 | AI60: 553.9408244 | AJ60: 551.8533018 | AK60: 549.3625238 | AL60: 528.5326592 | AM60: 543.6732561 | AN60: 541.6919655 | AO60: 539.1106074 | AP60: 536.299298 | AQ60: 514.8091789 | AR60: 822.8314216 | AS60: 821.9693996 | AT60: 820.0657275 | AU60: 818.1430188 | AV60: 786.7736436 | AW60: 813.4011134 | AX60: 669.7178929 | AY60: 640.4861806 | AZ60: 638.462833 | BA60: 619.7580475 | BB60: 633.6858248 | BC60: 631.6011678 | BD60: 629.4956642 | BE60: 627.3691056 | BF60: 608.4067166 | BG60: 622.0552731 | BH60: 619.8642776 | BI60: 617.6513722 | BJ60: 615.4163378 | BK60: 595.7281052 | BL60: 609.0831979 | BM60: 606.7804397 | BN60: 604.4546539 | BO60: 602.1056102 | BP60: 577.6842571 | BQ60: 590.7309165 | BR60: 0 | BS60: 0 | BT60: 0 | BU60: 0 | BV60: 0 | BW60: 0 | BX60: 0 | BY60: 0 | BZ60: 0 | CA60: 0 | CB60: 0 | CC60: 0 | CD60: 0 | CE60: 0 | CF60: 0 | CG60: 0 | CH60: 0 | CI60: 0 | CJ60: 0 | CK60: 0 | CL60: 0 | CM60: 0 | CN60: 0 | CO60: 0 | CP60: 0 | CQ60: 0 | CR60: 0 | CS60: 0 | CT60: 0
C61: Levered Cash Flow to Equity - Adjusted | H61: $m | N61: 23759.94365 | P61: =IF(P56=1,0,P60*P55) -> 0 | Q61: =IF(Q56=1,0,Q60*Q55) -> 0 | R61: 0 | S61: 0 | T61: 0 | U61: 0 | V61: 0 | W61: 0 | X61: 0 | Y61: 0 | Z61: 0 | AA61: 0 | AB61: 0 | AC61: 0 | AD61: 0 | AE61: 0 | AF61: 560.7840124 | AG61: 540.5427974 | AH61: 555.6210258 | AI61: 553.9408244 | AJ61: 551.8533018 | AK61: 549.3625238 | AL61: 528.5326592 | AM61: 543.6732561 | AN61: 541.6919655 | AO61: 539.1106074 | AP61: 536.299298 | AQ61: 514.8091789 | AR61: 822.8314216 | AS61: 821.9693996 | AT61: 820.0657275 | AU61: 818.1430188 | AV61: 786.7736436 | AW61: 813.4011134 | AX61: 669.7178929 | AY61: 640.4861806 | AZ61: 638.462833 | BA61: 619.7580475 | BB61: 633.6858248 | BC61: 631.6011678 | BD61: 629.4956642 | BE61: 627.3691056 | BF61: 608.4067166 | BG61: 622.0552731 | BH61: 619.8642776 | BI61: 617.6513722 | BJ61: 615.4163378 | BK61: 595.7281052 | BL61: 609.0831979 | BM61: 606.7804397 | BN61: 604.4546539 | BO61: 602.1056102 | BP61: 577.6842571 | BQ61: 590.7309165 | BR61: 0 | BS61: 0 | BT61: 0 | BU61: 0 | BV61: 0 | BW61: 0 | BX61: 0 | BY61: 0 | BZ61: 0 | CA61: 0 | CB61: 0 | CC61: =IF(CC56=1,0,CC60*CC55) -> 0 | CD61: 0 | CE61: 0 | CF61: 0 | CG61: 0 | CH61: 0 | CI61: 0 | CJ61: 0 | CK61: 0 | CL61: 0 | CM61: 0 | CN61: 0 | CO61: 0 | CP61: 0 | CQ61: 0 | CR61: 0 | CS61: 0 | CT61: 0
J62: Buyer Hurdle
C63: Rolling Valuation | H63: $m | J63: 0.1 | P63: =XNPV($J$63,P61:$CT61,P58:$CT58)*P55 -> 0 | Q63: =XNPV($J$63,Q61:$CT61,Q58:$CT58)*Q55 -> 0 | R63: =XNPV($J$63,R61:$CT61,R58:$CT58)*R55 -> 0 | S63: =XNPV($J$63,S61:$CT61,S58:$CT58)*S55 -> 0 | T63: =XNPV($J$63,T61:$CT61,T58:$CT58)*T55 -> 0 | U63: =XNPV($J$63,U61:$CT61,U58:$CT58)*U55 -> 0 | V63: =XNPV($J$63,V61:$CT61,V58:$CT58)*V55 -> 0 | W63: =XNPV($J$63,W61:$CT61,W58:$CT58)*W55 -> 0 | X63: =XNPV($J$63,X61:$CT61,X58:$CT58)*X55 -> 0 | Y63: =XNPV($J$63,Y61:$CT61,Y58:$CT58)*Y55 -> 0 | Z63: =XNPV($J$63,Z61:$CT61,Z58:$CT58)*Z55 -> 0 | AA63: =XNPV($J$63,AA61:$CT61,AA58:$CT58)*AA55 -> 0 | AB63: =XNPV($J$63,AB61:$CT61,AB58:$CT58)*AB55 -> 0 | AC63: =XNPV($J$63,AC61:$CT61,AC58:$CT58)*AC55 -> 0 | AD63: =XNPV($J$63,AD61:$CT61,AD58:$CT58)*AD55 -> 0 | AE63: =XNPV($J$63,AE61:$CT61,AE58:$CT58)*AE55 -> 5807.997585 | AF63: =XNPV($J$63,AF61:$CT61,AF58:$CT58)*AF55 -> 6388.797343 | AG63: =XNPV($J$63,AG61:$CT61,AG58:$CT58)*AG55 -> 6410.814664 | AH63: =XNPV($J$63,AH61:$CT61,AH58:$CT58)*AH55 -> 6457.299053 | AI63: =XNPV($J$63,AI61:$CT61,AI58:$CT58)*AI55 -> 6493.541227 | AJ63: =XNPV($J$63,AJ61:$CT61,AJ58:$CT58)*AJ55 -> 6533.560442 | AK63: =XNPV($J$63,AK61:$CT61,AK58:$CT58)*AK55 -> 6579.877855 | AL63: =XNPV($J$63,AL61:$CT61,AL58:$CT58)*AL55 -> 6633.566864 | AM63: =XNPV($J$63,AM61:$CT61,AM58:$CT58)*AM55 -> 6717.291441 | AN63: =XNPV($J$63,AN61:$CT61,AN58:$CT58)*AN55 -> 6790.980003 | AO63: =XNPV($J$63,AO61:$CT61,AO58:$CT58)*AO55 -> 6874.216841 | AP63: =XNPV($J$63,AP61:$CT61,AP58:$CT58)*AP55 -> 6968.616857 | AQ63: =XNPV($J$63,AQ61:$CT61,AQ58:$CT58)*AQ55 -> 7077.397151 | AR63: =XNPV($J$63,AR61:$CT61,AR58:$CT58)*AR55 -> 7218.846769 | AS63: =XNPV($J$63,AS61:$CT61,AS58:$CT58)*AS55 -> 7035.616882 | AT63: =XNPV($J$63,AT61:$CT61,AT58:$CT58)*AT55 -> 6835.012231 | AU63: =XNPV($J$63,AU61:$CT61,AU58:$CT58)*AU55 -> 6618.16909 | AV63: =XNPV($J$63,AV61:$CT61,AV58:$CT58)*AV55 -> 6380.028678 | AW63: =XNPV($J$63,AW61:$CT61,AW58:$CT58)*AW55 -> 6152.580538 | AX63: =XNPV($J$63,AX61:$CT61,AX58:$CT58)*AX55 -> 5873.097367 | AY63: =XNPV($J$63,AY61:$CT61,AY58:$CT58)*AY55 -> 5725.212215 | AZ63: =XNPV($J$63,AZ61:$CT61,AZ58:$CT58)*AZ55 -> 5593.198638 | BA63: =XNPV($J$63,BA61:$CT61,BA58:$CT58)*BA55 -> 5450.209385 | BB63: =XNPV($J$63,BB61:$CT61,BB58:$CT58)*BB55 -> 5313.496472 | BC63: =XNPV($J$63,BC61:$CT61,BC58:$CT58)*BC55 -> 5149.136098 | BD63: =XNPV($J$63,BD61:$CT61,BD58:$CT58)*BD55 -> 4969.288423 | BE63: =XNPV($J$63,BE61:$CT61,BE58:$CT58)*BE55 -> 4773.772035 | BF63: =XNPV($J$63,BF61:$CT61,BF58:$CT58)*BF55 -> 4561.043222 | BG63: =XNPV($J$63,BG61:$CT61,BG58:$CT58)*BG55 -> 4349.035645 | BH63: =XNPV($J$63,BH61:$CT61,BH58:$CT58)*BH55 -> 4099.678409 | BI63: =XNPV($J$63,BI61:$CT61,BI58:$CT58)*BI55 -> 3827.795544 | BJ63: =XNPV($J$63,BJ61:$CT61,BJ58:$CT58)*BJ55 -> 3531.158589 | BK63: =XNPV($J$63,BK61:$CT61,BK58:$CT58)*BK55 -> 3208.154093 | BL63: =XNPV($J$63,BL61:$CT61,BL58:$CT58)*BL55 -> 2873.668586 | BM63: =XNPV($J$63,BM61:$CT61,BM58:$CT58)*BM55 -> 2491.043927 | BN63: =XNPV($J$63,BN61:$CT61,BN58:$CT58)*BN55 -> 2072.689836 | BO63: =XNPV($J$63,BO61:$CT61,BO58:$CT58)*BO55 -> 1615.480486 | BP63: =XNPV($J$63,BP61:$CT61,BP58:$CT58)*BP55 -> 1114.712363 | BQ63: =XNPV($J$63,BQ61:$CT61,BQ58:$CT58)*BQ55 -> 590.7309165 | BR63: =XNPV($J$63,BR61:$CT61,BR58:$CT58)*BR55 -> 0 | BS63: =XNPV($J$63,BS61:$CT61,BS58:$CT58)*BS55 -> 0 | BT63: =XNPV($J$63,BT61:$CT61,BT58:$CT58)*BT55 -> 0 | BU63: =XNPV($J$63,BU61:$CT61,BU58:$CT58)*BU55 -> 0 | BV63: =XNPV($J$63,BV61:$CT61,BV58:$CT58)*BV55 -> 0 | BW63: =XNPV($J$63,BW61:$CT61,BW58:$CT58)*BW55 -> 0 | BX63: =XNPV($J$63,BX61:$CT61,BX58:$CT58)*BX55 -> 0 | BY63: =XNPV($J$63,BY61:$CT61,BY58:$CT58)*BY55 -> 0 | BZ63: =XNPV($J$63,BZ61:$CT61,BZ58:$CT58)*BZ55 -> 0 | CA63: =XNPV($J$63,CA61:$CT61,CA58:$CT58)*CA55 -> 0 | CB63: =XNPV($J$63,CB61:$CT61,CB58:$CT58)*CB55 -> 0 | CC63: =XNPV($J$63,CC61:$CT61,CC58:$CT58)*CC55 -> 0 | CD63: =XNPV($J$63,CD61:$CT61,CD58:$CT58)*CD55 -> 0 | CE63: =XNPV($J$63,CE61:$CT61,CE58:$CT58)*CE55 -> 0 | CF63: =XNPV($J$63,CF61:$CT61,CF58:$CT58)*CF55 -> 0 | CG63: =XNPV($J$63,CG61:$CT61,CG58:$CT58)*CG55 -> 0 | CH63: =XNPV($J$63,CH61:$CT61,CH58:$CT58)*CH55 -> 0 | CI63: =XNPV($J$63,CI61:$CT61,CI58:$CT58)*CI55 -> 0 | CJ63: =XNPV($J$63,CJ61:$CT61,CJ58:$CT58)*CJ55 -> 0 | CK63: =XNPV($J$63,CK61:$CT61,CK58:$CT58)*CK55 -> 0 | CL63: =XNPV($J$63,CL61:$CT61,CL58:$CT58)*CL55 -> 0 | CM63: =XNPV($J$63,CM61:$CT61,CM58:$CT58)*CM55 -> 0 | CN63: =XNPV($J$63,CN61:$CT61,CN58:$CT58)*CN55 -> 0 | CO63: =XNPV($J$63,CO61:$CT61,CO58:$CT58)*CO55 -> 0 | CP63: =XNPV($J$63,CP61:$CT61,CP58:$CT58)*CP55 -> 0 | CQ63: =XNPV($J$63,CQ61:$CT61,CQ58:$CT58)*CQ55 -> 0 | CR63: =XNPV($J$63,CR61:$CT61,CR58:$CT58)*CR55 -> 0 | CS63: =XNPV($J$63,CS61:$CT61,CS58:$CT58)*CS55 -> 0 | CT63: =XNPV($J$63,CT61:$CT61,CT58:$CT58)*CT55 -> 0
C65: Exit Value | H65: $m | J65: =N65 -> 5807.997585 | N65: =SUM(P65:CT65) -> 5807.997585 | P65: =P63*P56 -> 0 | Q65: 0 | R65: 0 | S65: 0 | T65: 0 | U65: 0 | V65: 0 | W65: 0 | X65: 0 | Y65: 0 | Z65: 0 | AA65: 0 | AB65: 0 | AC65: 0 | AD65: 0 | AE65: 5807.997585 | AF65: 0 | AG65: 0 | AH65: 0 | AI65: 0 | AJ65: 0 | AK65: 0 | AL65: 0 | AM65: 0 | AN65: 0 | AO65: 0 | AP65: 0 | AQ65: 0 | AR65: 0 | AS65: 0 | AT65: 0 | AU65: 0 | AV65: 0 | AW65: 0 | AX65: 0 | AY65: 0 | AZ65: 0 | BA65: 0 | BB65: 0 | BC65: 0 | BD65: 0 | BE65: 0 | BF65: 0 | BG65: 0 | BH65: 0 | BI65: 0 | BJ65: 0 | BK65: 0 | BL65: 0 | BM65: 0 | BN65: 0 | BO65: 0 | BP65: 0 | BQ65: 0 | BR65: 0 | BS65: 0 | BT65: 0 | BU65: 0 | BV65: 0 | BW65: 0 | BX65: 0 | BY65: 0 | BZ65: 0 | CA65: 0 | CB65: =CB63*CB56 -> 0 | CC65: 0 | CD65: 0 | CE65: 0 | CF65: 0 | CG65: 0 | CH65: 0 | CI65: 0 | CJ65: 0 | CK65: 0 | CL65: 0 | CM65: 0 | CN65: 0 | CO65: 0 | CP65: 0 | CQ65: 0 | CR65: 0 | CS65: 0 | CT65: 0
B67: Buyer Return
C69: (-) | D69: Acquisition Equity Injected | H69: $m | N69: =SUM(P69:CT69) -> 5807.997585 | P69: =P65 -> 0 | Q69: =Q65 -> 0 | R69: 0 | S69: 0 | T69: 0 | U69: 0 | V69: 0 | W69: 0 | X69: 0 | Y69: 0 | Z69: 0 | AA69: 0 | AB69: 0 | AC69: 0 | AD69: 0 | AE69: 5807.997585 | AF69: 0 | AG69: 0 | AH69: 0 | AI69: 0 | AJ69: 0 | AK69: 0 | AL69: 0 | AM69: 0 | AN69: 0 | AO69: 0 | AP69: 0 | AQ69: 0 | AR69: 0 | AS69: 0 | AT69: 0 | AU69: 0 | AV69: 0 | AW69: 0 | AX69: 0 | AY69: 0 | AZ69: 0 | BA69: 0 | BB69: 0 | BC69: 0 | BD69: 0 | BE69: 0 | BF69: 0 | BG69: 0 | BH69: 0 | BI69: 0 | BJ69: 0 | BK69: 0 | BL69: 0 | BM69: 0 | BN69: 0 | BO69: 0 | BP69: 0 | BQ69: 0 | BR69: 0 | BS69: 0 | BT69: 0 | BU69: 0 | BV69: 0 | BW69: 0 | BX69: 0 | BY69: 0 | BZ69: 0 | CA69: 0 | CB69: 0 | CC69: =CC65 -> 0 | CD69: 0 | CE69: 0 | CF69: 0 | CG69: 0 | CH69: 0 | CI69: 0 | CJ69: 0 | CK69: 0 | CL69: 0 | CM69: 0 | CN69: 0 | CO69: 0 | CP69: 0 | CQ69: 0 | CR69: 0 | CS69: 0 | CT69: 0
C70: (+) | D70: Levered Cashflow to Equity | H70: $m | N70: 23759.94365 | P70: =P61 -> 0 | Q70: =Q61 -> 0 | R70: 0 | S70: 0 | T70: 0 | U70: 0 | V70: 0 | W70: 0 | X70: 0 | Y70: 0 | Z70: 0 | AA70: 0 | AB70: 0 | AC70: 0 | AD70: 0 | AE70: 0 | AF70: 560.7840124 | AG70: 540.5427974 | AH70: 555.6210258 | AI70: 553.9408244 | AJ70: 551.8533018 | AK70: 549.3625238 | AL70: 528.5326592 | AM70: 543.6732561 | AN70: 541.6919655 | AO70: 539.1106074 | AP70: 536.299298 | AQ70: 514.8091789 | AR70: 822.8314216 | AS70: 821.9693996 | AT70: 820.0657275 | AU70: 818.1430188 | AV70: 786.7736436 | AW70: 813.4011134 | AX70: 669.7178929 | AY70: 640.4861806 | AZ70: 638.462833 | BA70: 619.7580475 | BB70: 633.6858248 | BC70: 631.6011678 | BD70: 629.4956642 | BE70: 627.3691056 | BF70: 608.4067166 | BG70: 622.0552731 | BH70: 619.8642776 | BI70: 617.6513722 | BJ70: 615.4163378 | BK70: 595.7281052 | BL70: 609.0831979 | BM70: 606.7804397 | BN70: 604.4546539 | BO70: 602.1056102 | BP70: 577.6842571 | BQ70: 590.7309165 | BR70: 0 | BS70: 0 | BT70: 0 | BU70: 0 | BV70: 0 | BW70: 0 | BX70: 0 | BY70: 0 | BZ70: 0 | CA70: 0 | CB70: 0 | CC70: =CC61 -> 0 | CD70: 0 | CE70: 0 | CF70: 0 | CG70: 0 | CH70: 0 | CI70: 0 | CJ70: 0 | CK70: 0 | CL70: 0 | CM70: 0 | CN70: 0 | CO70: 0 | CP70: 0 | CQ70: 0 | CR70: 0 | CS70: 0 | CT70: 0
H71: $m | N71: 17951.94606 | P71: =-P69+P70 -> 0 | Q71: =-Q69+Q70 -> 0 | R71: 0 | S71: 0 | T71: 0 | U71: 0 | V71: 0 | W71: 0 | X71: 0 | Y71: 0 | Z71: 0 | AA71: 0 | AB71: 0 | AC71: 0 | AD71: 0 | AE71: -5807.997585 | AF71: 560.7840124 | AG71: 540.5427974 | AH71: 555.6210258 | AI71: 553.9408244 | AJ71: 551.8533018 | AK71: 549.3625238 | AL71: 528.5326592 | AM71: 543.6732561 | AN71: 541.6919655 | AO71: 539.1106074 | AP71: 536.299298 | AQ71: 514.8091789 | AR71: 822.8314216 | AS71: 821.9693996 | AT71: 820.0657275 | AU71: 818.1430188 | AV71: 786.7736436 | AW71: 813.4011134 | AX71: 669.7178929 | AY71: 640.4861806 | AZ71: 638.462833 | BA71: 619.7580475 | BB71: 633.6858248 | BC71: 631.6011678 | BD71: 629.4956642 | BE71: 627.3691056 | BF71: 608.4067166 | BG71: 622.0552731 | BH71: 619.8642776 | BI71: 617.6513722 | BJ71: 615.4163378 | BK71: 595.7281052 | BL71: 609.0831979 | BM71: 606.7804397 | BN71: 604.4546539 | BO71: 602.1056102 | BP71: 577.6842571 | BQ71: 590.7309165 | BR71: 0 | BS71: 0 | BT71: 0 | BU71: 0 | BV71: 0 | BW71: 0 | BX71: 0 | BY71: 0 | BZ71: 0 | CA71: 0 | CB71: 0 | CC71: =-CC69+CC70 -> 0 | CD71: 0 | CE71: 0 | CF71: 0 | CG71: 0 | CH71: 0 | CI71: 0 | CJ71: 0 | CK71: 0 | CL71: 0 | CM71: 0 | CN71: 0 | CO71: 0 | CP71: 0 | CQ71: 0 | CR71: 0 | CS71: 0 | CT71: 0
C73: IRR | H73: % | J73: =SUMPRODUCT(P73:CT73,P56:CT56) -> 0.1000614892 | P73: =IFERROR(IRR(P71:$CT71)*P56,0) -> 0 | Q73: =IFERROR(IRR(Q71:$CT71)*Q56,0) -> 0 | R73: =IFERROR(IRR(R71:$CT71)*R56,0) -> 0 | S73: =IFERROR(IRR(S71:$CT71)*S56,0) -> 0 | T73: =IFERROR(IRR(T71:$CT71)*T56,0) -> 0 | U73: =IFERROR(IRR(U71:$CT71)*U56,0) -> 0 | V73: =IFERROR(IRR(V71:$CT71)*V56,0) -> 0 | W73: =IFERROR(IRR(W71:$CT71)*W56,0) -> 0 | X73: =IFERROR(IRR(X71:$CT71)*X56,0) -> 0 | Y73: =IFERROR(IRR(Y71:$CT71)*Y56,0) -> 0 | Z73: =IFERROR(IRR(Z71:$CT71)*Z56,0) -> 0 | AA73: =IFERROR(IRR(AA71:$CT71)*AA56,0) -> 0 | AB73: =IFERROR(IRR(AB71:$CT71)*AB56,0) -> 0 | AC73: =IFERROR(IRR(AC71:$CT71)*AC56,0) -> 0 | AD73: =IFERROR(IRR(AD71:$CT71)*AD56,0) -> 0 | AE73: =IFERROR(IRR(AE71:$CT71)*AE56,0) -> 0.1000614892 | AF73: =IFERROR(IRR(AF71:$CT71)*AF56,0) -> 0 | AG73: =IFERROR(IRR(AG71:$CT71)*AG56,0) -> 0 | AH73: =IFERROR(IRR(AH71:$CT71)*AH56,0) -> 0 | AI73: =IFERROR(IRR(AI71:$CT71)*AI56,0) -> 0 | AJ73: =IFERROR(IRR(AJ71:$CT71)*AJ56,0) -> 0 | AK73: =IFERROR(IRR(AK71:$CT71)*AK56,0) -> 0 | AL73: =IFERROR(IRR(AL71:$CT71)*AL56,0) -> 0 | AM73: =IFERROR(IRR(AM71:$CT71)*AM56,0) -> 0 | AN73: =IFERROR(IRR(AN71:$CT71)*AN56,0) -> 0 | AO73: =IFERROR(IRR(AO71:$CT71)*AO56,0) -> 0 | AP73: =IFERROR(IRR(AP71:$CT71)*AP56,0) -> 0 | AQ73: =IFERROR(IRR(AQ71:$CT71)*AQ56,0) -> 0 | AR73: =IFERROR(IRR(AR71:$CT71)*AR56,0) -> 0 | AS73: =IFERROR(IRR(AS71:$CT71)*AS56,0) -> 0 | AT73: =IFERROR(IRR(AT71:$CT71)*AT56,0) -> 0 | AU73: =IFERROR(IRR(AU71:$CT71)*AU56,0) -> 0 | AV73: =IFERROR(IRR(AV71:$CT71)*AV56,0) -> 0 | AW73: =IFERROR(IRR(AW71:$CT71)*AW56,0) -> 0 | AX73: =IFERROR(IRR(AX71:$CT71)*AX56,0) -> 0 | AY73: =IFERROR(IRR(AY71:$CT71)*AY56,0) -> 0 | AZ73: =IFERROR(IRR(AZ71:$CT71)*AZ56,0) -> 0 | BA73: =IFERROR(IRR(BA71:$CT71)*BA56,0) -> 0 | BB73: =IFERROR(IRR(BB71:$CT71)*BB56,0) -> 0 | BC73: =IFERROR(IRR(BC71:$CT71)*BC56,0) -> 0 | BD73: =IFERROR(IRR(BD71:$CT71)*BD56,0) -> 0 | BE73: =IFERROR(IRR(BE71:$CT71)*BE56,0) -> 0 | BF73: =IFERROR(IRR(BF71:$CT71)*BF56,0) -> 0 | BG73: =IFERROR(IRR(BG71:$CT71)*BG56,0) -> 0 | BH73: =IFERROR(IRR(BH71:$CT71)*BH56,0) -> 0 | BI73: =IFERROR(IRR(BI71:$CT71)*BI56,0) -> 0 | BJ73: =IFERROR(IRR(BJ71:$CT71)*BJ56,0) -> 0 | BK73: =IFERROR(IRR(BK71:$CT71)*BK56,0) -> 0 | BL73: =IFERROR(IRR(BL71:$CT71)*BL56,0) -> 0 | BM73: =IFERROR(IRR(BM71:$CT71)*BM56,0) -> 0 | BN73: =IFERROR(IRR(BN71:$CT71)*BN56,0) -> 0 | BO73: =IFERROR(IRR(BO71:$CT71)*BO56,0) -> 0 | BP73: =IFERROR(IRR(BP71:$CT71)*BP56,0) -> 0 | BQ73: =IFERROR(IRR(BQ71:$CT71)*BQ56,0) -> 0 | BR73: =IFERROR(IRR(BR71:$CT71)*BR56,0) -> 0 | BS73: =IFERROR(IRR(BS71:$CT71)*BS56,0) -> 0 | BT73: =IFERROR(IRR(BT71:$CT71)*BT56,0) -> 0 | BU73: =IFERROR(IRR(BU71:$CT71)*BU56,0) -> 0 | BV73: =IFERROR(IRR(BV71:$CT71)*BV56,0) -> 0 | BW73: =IFERROR(IRR(BW71:$CT71)*BW56,0) -> 0 | BX73: =IFERROR(IRR(BX71:$CT71)*BX56,0) -> 0 | BY73: =IFERROR(IRR(BY71:$CT71)*BY56,0) -> 0 | BZ73: =IFERROR(IRR(BZ71:$CT71)*BZ56,0) -> 0 | CA73: =IFERROR(IRR(CA71:$CT71)*CA56,0) -> 0 | CB73: =IFERROR(IRR(CB71:$CT71)*CB56,0) -> 0 | CC73: =IFERROR(IRR(CC71:$CT71)*CC56,0) -> 0 | CD73: =IFERROR(IRR(CD71:$CT71)*CD56,0) -> 0 | CE73: =IFERROR(IRR(CE71:$CT71)*CE56,0) -> 0 | CF73: =IFERROR(IRR(CF71:$CT71)*CF56,0) -> 0 | CG73: =IFERROR(IRR(CG71:$CT71)*CG56,0) -> 0 | CH73: =IFERROR(IRR(CH71:$CT71)*CH56,0) -> 0 | CI73: =IFERROR(IRR(CI71:$CT71)*CI56,0) -> 0 | CJ73: =IFERROR(IRR(CJ71:$CT71)*CJ56,0) -> 0 | CK73: =IFERROR(IRR(CK71:$CT71)*CK56,0) -> 0 | CL73: =IFERROR(IRR(CL71:$CT71)*CL56,0) -> 0 | CM73: =IFERROR(IRR(CM71:$CT71)*CM56,0) -> 0 | CN73: =IFERROR(IRR(CN71:$CT71)*CN56,0) -> 0 | CO73: =IFERROR(IRR(CO71:$CT71)*CO56,0) -> 0 | CP73: =IFERROR(IRR(CP71:$CT71)*CP56,0) -> 0 | CQ73: =IFERROR(IRR(CQ71:$CT71)*CQ56,0) -> 0 | CR73: =IFERROR(IRR(CR71:$CT71)*CR56,0) -> 0 | CS73: =IFERROR(IRR(CS71:$CT71)*CS56,0) -> 0 | CT73: =IFERROR(IRR(CT71:$CT71)*CT56,0) -> 0
A75: End Sheet
A76: Additional Data
B78: Enterprise Value
B79: Rolling Value of Equity | H79: $m | J79: =SUMPRODUCT(P79:CT79,P14:CT14) ->  | P79: =P40 ->  | Q79: =Q40 ->  | CC79: =CC40 ->  | CR79: 0 | CS79: 0 | CT79: 0
B80: Debt Balance | H80: $m | J80: =SUMPRODUCT(P80:CT80,P14:CT14) ->  | P80: =BS!P27 ->  | Q80: =BS!Q27 ->  | R80: =BS!R27 ->  | S80: =BS!S27 ->  | T80: =BS!T27 ->  | U80: =BS!U27 ->  | V80: =BS!V27 ->  | W80: =BS!W27 ->  | X80: =BS!X27 ->  | Y80: =BS!Y27 ->  | Z80: =BS!Z27 ->  | AA80: =BS!AA27 ->  | AB80: =BS!AB27 ->  | AC80: =BS!AC27 ->  | AD80: =BS!AD27 ->  | AE80: =BS!AE27 ->  | AF80: =BS!AF27 ->  | AG80: =BS!AG27 ->  | AH80: =BS!AH27 ->  | AI80: =BS!AI27 ->  | AJ80: =BS!AJ27 ->  | AK80: =BS!AK27 ->  | AL80: =BS!AL27 ->  | AM80: =BS!AM27 ->  | AN80: =BS!AN27 ->  | AO80: =BS!AO27 ->  | AP80: =BS!AP27 ->  | AQ80: =BS!AQ27 ->  | AR80: =BS!AR27 ->  | AS80: =BS!AS27 ->  | AT80: =BS!AT27 ->  | AU80: =BS!AU27 ->  | AV80: =BS!AV27 ->  | AW80: =BS!AW27 ->  | AX80: =BS!AX27 ->  | AY80: =BS!AY27 ->  | AZ80: =BS!AZ27 ->  | BA80: =BS!BA27 ->  | BB80: =BS!BB27 ->  | BC80: =BS!BC27 ->  | BD80: =BS!BD27 ->  | BE80: =BS!BE27 ->  | BF80: =BS!BF27 ->  | BG80: =BS!BG27 ->  | BH80: =BS!BH27 ->  | BI80: =BS!BI27 ->  | BJ80: =BS!BJ27 ->  | BK80: =BS!BK27 ->  | BL80: =BS!BL27 ->  | BM80: =BS!BM27 ->  | BN80: =BS!BN27 ->  | BO80: =BS!BO27 ->  | BP80: =BS!BP27 ->  | BQ80: =BS!BQ27 ->  | BR80: =BS!BR27 ->  | BS80: =BS!BS27 ->  | BT80: =BS!BT27 ->  | BU80: =BS!BU27 ->  | BV80: =BS!BV27 ->  | BW80: =BS!BW27 ->  | BX80: =BS!BX27 ->  | BY80: =BS!BY27 ->  | BZ80: =BS!BZ27 ->  | CA80: =BS!CA27 ->  | CB80: =BS!CB27 ->  | CC80: =BS!CC27 ->  | CD80: =BS!CD27 ->  | CE80: =BS!CE27 ->  | CF80: =BS!CF27 ->  | CG80: =BS!CG27 ->  | CH80: =BS!CH27 ->  | CI80: =BS!CI27 ->  | CJ80: =BS!CJ27 ->  | CK80: =BS!CK27 ->  | CL80: =BS!CL27 ->  | CM80: =BS!CM27 ->  | CN80: =BS!CN27 ->  | CO80: =BS!CO27 ->  | CP80: =BS!CP27 ->  | CQ80: =BS!CQ27 ->  | CR80: =BS!CR27 -> 0 | CS80: =BS!CS27 -> 0 | CT80: =BS!CT27 -> 0
H81: $m | P81: =SUM(P79:P80) ->  | Q81: =SUM(Q79:Q80) ->  | CC81: =SUM(CC79:CC80) ->  | CR81: 0 | CS81: 0 | CT81: 0
B82: Acquisition Year
B83: EV at Acquisition | H83: $m | J83: =SUM(P83:CT83) ->  | P83: =P81*P14 ->  | Q83: =Q81*Q14 ->  | CC83: =CC81*CC14 ->  | CR83: 0 | CS83: 0 | CT83: 0
B84: EBITDA | H84: $m | J84: =SUM(P84:CT84) ->  | P84: =CF!P26*Buyout!P14 ->  | Q84: =CF!Q26*Buyout!Q14 ->  | R84: =CF!R26*Buyout!R14 ->  | S84: =CF!S26*Buyout!S14 ->  | T84: =CF!T26*Buyout!T14 ->  | U84: =CF!U26*Buyout!U14 ->  | V84: =CF!V26*Buyout!V14 ->  | W84: =CF!W26*Buyout!W14 ->  | X84: =CF!X26*Buyout!X14 ->  | Y84: =CF!Y26*Buyout!Y14 ->  | Z84: =CF!Z26*Buyout!Z14 ->  | AA84: =CF!AA26*Buyout!AA14 ->  | AB84: =CF!AB26*Buyout!AB14 ->  | AC84: =CF!AC26*Buyout!AC14 ->  | AD84: =CF!AD26*Buyout!AD14 ->  | AE84: =CF!AE26*Buyout!AE14 ->  | AF84: =CF!AF26*Buyout!AF14 ->  | AG84: =CF!AG26*Buyout!AG14 ->  | AH84: =CF!AH26*Buyout!AH14 ->  | AI84: =CF!AI26*Buyout!AI14 ->  | AJ84: =CF!AJ26*Buyout!AJ14 ->  | AK84: =CF!AK26*Buyout!AK14 ->  | AL84: =CF!AL26*Buyout!AL14 ->  | AM84: =CF!AM26*Buyout!AM14 ->  | AN84: =CF!AN26*Buyout!AN14 ->  | AO84: =CF!AO26*Buyout!AO14 ->  | AP84: =CF!AP26*Buyout!AP14 ->  | AQ84: =CF!AQ26*Buyout!AQ14 ->  | AR84: =CF!AR26*Buyout!AR14 ->  | AS84: =CF!AS26*Buyout!AS14 ->  | AT84: =CF!AT26*Buyout!AT14 ->  | AU84: =CF!AU26*Buyout!AU14 ->  | AV84: =CF!AV26*Buyout!AV14 ->  | AW84: =CF!AW26*Buyout!AW14 ->  | AX84: =CF!AX26*Buyout!AX14 ->  | AY84: =CF!AY26*Buyout!AY14 ->  | AZ84: =CF!AZ26*Buyout!AZ14 ->  | BA84: =CF!BA26*Buyout!BA14 ->  | BB84: =CF!BB26*Buyout!BB14 ->  | BC84: =CF!BC26*Buyout!BC14 ->  | BD84: =CF!BD26*Buyout!BD14 ->  | BE84: =CF!BE26*Buyout!BE14 ->  | BF84: =CF!BF26*Buyout!BF14 ->  | BG84: =CF!BG26*Buyout!BG14 ->  | BH84: =CF!BH26*Buyout!BH14 ->  | BI84: =CF!BI26*Buyout!BI14 ->  | BJ84: =CF!BJ26*Buyout!BJ14 ->  | BK84: =CF!BK26*Buyout!BK14 ->  | BL84: =CF!BL26*Buyout!BL14 ->  | BM84: =CF!BM26*Buyout!BM14 ->  | BN84: =CF!BN26*Buyout!BN14 ->  | BO84: =CF!BO26*Buyout!BO14 ->  | BP84: =CF!BP26*Buyout!BP14 ->  | BQ84: =CF!BQ26*Buyout!BQ14 ->  | BR84: =CF!BR26*Buyout!BR14 ->  | BS84: =CF!BS26*Buyout!BS14 ->  | BT84: =CF!BT26*Buyout!BT14 ->  | BU84: =CF!BU26*Buyout!BU14 ->  | BV84: =CF!BV26*Buyout!BV14 ->  | BW84: =CF!BW26*Buyout!BW14 ->  | BX84: =CF!BX26*Buyout!BX14 ->  | BY84: =CF!BY26*Buyout!BY14 ->  | BZ84: =CF!BZ26*Buyout!BZ14 ->  | CA84: =CF!CA26*Buyout!CA14 ->  | CB84: =CF!CB26*Buyout!CB14 ->  | CC84: =CF!CC26*Buyout!CC14 ->  | CD84: =CF!CD26*Buyout!CD14 ->  | CE84: =CF!CE26*Buyout!CE14 ->  | CF84: =CF!CF26*Buyout!CF14 ->  | CG84: =CF!CG26*Buyout!CG14 ->  | CH84: =CF!CH26*Buyout!CH14 ->  | CI84: =CF!CI26*Buyout!CI14 ->  | CJ84: =CF!CJ26*Buyout!CJ14 ->  | CK84: =CF!CK26*Buyout!CK14 ->  | CL84: =CF!CL26*Buyout!CL14 ->  | CM84: =CF!CM26*Buyout!CM14 ->  | CN84: =CF!CN26*Buyout!CN14 ->  | CO84: =CF!CO26*Buyout!CO14 ->  | CP84: =CF!CP26*Buyout!CP14 ->  | CQ84: =CF!CQ26*Buyout!CQ14 ->  | CR84: =CF!CR26*Buyout!CR14 ->  | CS84: =CF!CS26*Buyout!CS14 ->  | CT84: =CF!CT26*Buyout!CT14 -> 
B85: EV/EBITDA | H85: x | J85: =SUM(P85:CT85) -> 0 | P85: =IFERROR(P83/P84,0) -> 0 | Q85: =IFERROR(Q83/Q84,0) -> 0 | R85: 0 | S85: 0 | T85: 0 | U85: 0 | V85: 0 | W85: 0 | X85: 0 | Y85: 0 | Z85: 0 | AA85: 0 | AB85: 0 | AC85: 0 | AD85: 0 | AE85: 0 | AF85: 0 | AG85: 0 | AH85: 0 | AI85: 0 | AJ85: 0 | AK85: 0 | AL85: 0 | AM85: 0 | AN85: 0 | AO85: 0 | AP85: 0 | AQ85: 0 | AR85: 0 | AS85: 0 | AT85: 0 | AU85: 0 | AV85: 0 | AW85: 0 | AX85: 0 | AY85: 0 | AZ85: 0 | BA85: 0 | BB85: 0 | BC85: 0 | BD85: 0 | BE85: 0 | BF85: 0 | BG85: 0 | BH85: 0 | BI85: 0 | BJ85: 0 | BK85: 0 | BL85: 0 | BM85: 0 | BN85: 0 | BO85: 0 | BP85: 0 | BQ85: 0 | BR85: 0 | BS85: 0 | BT85: 0 | BU85: 0 | BV85: 0 | BW85: 0 | BX85: 0 | BY85: 0 | BZ85: 0 | CA85: 0 | CB85: 0 | CC85: =IFERROR(CC83/CC84,0) -> 0 | CD85: 0 | CE85: 0 | CF85: 0 | CG85: 0 | CH85: 0 | CI85: 0 | CJ85: 0 | CK85: 0 | CL85: 0 | CM85: 0 | CN85: 0 | CO85: 0 | CP85: 0 | CQ85: 0 | CR85: 0 | CS85: 0 | CT85: 0
A88: Sensitivities
D90: Hurdle | E90: =J7 -> 
D91: =Summary!L10 -> 0.07
D92: =Summary!L11 -> 0.08
D93: =Summary!L12 -> 0.09
D94: =Summary!L13 -> 0.1
D95: =Summary!L14 -> 0.11
D96: =Summary!L15 -> 0.12
D97: =Summary!L16 -> 0.13
D98: =Summary!L17 -> 0.14
D99: =Summary!L18 -> 0.15
D100: =Summary!L19 -> 0.16
D101: =Summary!L20 -> 0.17
D102: =Summary!L21 -> 0.18
D103: =Summary!L22 -> 0.19
D104: =Summary!L23 -> 0.2
D105: =Summary!L24 -> 0.21
D107: Hurdle | E107: =J83 -> 
D108: =D91 -> 0.07
D109: 0.08
D110: 0.09
D111: 0.1
D112: 0.11
D113: 0.12
D114: 0.13
D115: 0.14
D116: 0.15
D117: 0.16
D118: 0.17
D119: 0.18
D120: 0.19
D121: 0.2
D122: 0.21
D124: Hurdle | E124: =J85 -> 0
D125: =D91 -> 0.07 | E125: 0
D126: =D92 -> 0.08 | E126: 0
D127: 0.09 | E127: 0
D128: 0.1 | E128: 0
D129: 0.11 | E129: 0
D130: 0.12 | E130: 0
D131: 0.13 | E131: 0
D132: 0.14 | E132: 0
D133: 0.15 | E133: 0
D134: 0.16 | E134: 0
D135: 0.17 | E135: 0
D136: 0.18 | E136: 0
A137: End Sheet | D137: 0.19 | E137: 0
D138: 0.2 | E138: 0
D139: 0.21 | E139: 0

Sheet InputC
B2: IRR | K2: 1 | M2: 1 | N2: =M2+1 -> 2 | O2: =N2+1 -> 3 | P2: =O2+1 -> 4 | Q2: =P2+1 -> 5
B3: Unlevered | E3: =Valuation!J21 ->  | K3: =INDEX(M3:Q8,,K2) -> Base Case | M3: Base Case | N3: Spare | O3: Spare | P3: Spare | Q3: Spare
B4: Levered | E4: =Valuation!J30 ->  | H4: =K164 -> 
A10: Timing
B12: Construction
C14: Construction start date | H14: date | K14: =IF(INDEX(M14:Q14,0,$K$2)<>"",INDEX(M14:Q14,0,$K$2),M14) -> 2021 | M14: 2021 | N14: 2016 | O14: 2016 | P14: 2016 | Q14: 2016
C15: Construction period | H15: years | K15: =IF(INDEX(M15:Q15,0,$K$2)<>"",INDEX(M15:Q15,0,$K$2),M15) -> 3 | M15: 3 | N15: 2 | O15: 2 | P15: 2 | Q15: 2
C16: Scheduled construction end date | H16: date | K16: =IF(INDEX(M16:Q16,0,$K$2)<>"",INDEX(M16:Q16,0,$K$2),M16) -> 2023 | M16: =M14+M15-1 -> 2023 | N16: =N14+N15-1 -> 2017 | O16: =O14+O15-1 -> 2017 | P16: =P14+P15-1 -> 2017 | Q16: =Q14+Q15-1 -> 2017
B18: Operations
C20: COD | H20: date | K20: =IF(INDEX(M20:Q20,0,$K$2)<>"",INDEX(M20:Q20,0,$K$2),M20) -> 2024 | M20: =M16+1 -> 2024 | N20: =N16+1 -> 2018 | O20: =O16+1 -> 2018 | P20: =P16+1 -> 2018 | Q20: =Q16+1 -> 2018
C21: Gas Transportation Agreement (GTA) | H21: years | K21: =IF(INDEX(M21:Q21,0,$K$2)<>"",INDEX(M21:Q21,0,$K$2),M21) -> 50 | M21: 50 | N21: 50 | O21: 50 | P21: 50 | Q21: 50
C22: Decommissioning | H22: date | K22: =IF(INDEX(M22:Q22,0,$K$2)<>"",INDEX(M22:Q22,0,$K$2),M22) -> 2074 | M22: =M20+M21 -> 2074 | N22: =EDATE(N20,N21) -> 3541 | O22: =EDATE(O20,O21) -> 3541 | P22: =EDATE(P20,P21) -> 3541 | Q22: =EDATE(Q20,Q21) -> 3541
A24: CAPEX
B26: Engineering, Construction, & Procurement
C28: Total Project Costs | H28: $m | K28: =IF(INDEX(M28:Q28,0,$K$2)<>"",INDEX(M28:Q28,0,$K$2),M28) -> 120 | M28: 120 | N28: 120 | O28: 120 | P28: 120 | Q28: 120
C29: [Spare] | H29: $m | K29: 0 | M29: 0 | N29: 0 | O29: 0 | P29: 0 | Q29: 0
C30: [Spare] | H30: $m | K30: 0 | M30: 0 | N30: 0 | O30: 0 | P30: 0 | Q30: 0
C31: [Spare] | H31: $m | K31: 0 | M31: 0 | N31: 0 | O31: 0 | P31: 0 | Q31: 0
K32: 120 | M32: =SUM(M28:M31) -> 120 | N32: =SUM(N28:N31) -> 120 | O32: =SUM(O28:O31) -> 120 | P32: =SUM(P28:P31) -> 120 | Q32: =SUM(Q28:Q31) -> 120
A35: Operations
B37: Capacity
C39: Capacity | H39: MW | K39: =IF(INDEX(M39:Q39,0,$K$2)<>"",INDEX(M39:Q39,0,$K$2),M39) -> 120 | M39: 120 | N39: 120 | O39: 120 | P39: 120 | Q39: 120
C40: Capacity Factor | H40: % | K40: =IF(INDEX(M40:Q40,0,$K$2)<>"",INDEX(M40:Q40,0,$K$2),M40) -> 0.45 | M40: 0.45 | N40: 0.45 | O40: 0.45 | P40: 0.45 | Q40: 0.45
B42: Revenues
C44: Electricity Price
B46: OPEX
C48: Operating Costs | H48: $m p.a. | K48: =IF(INDEX(M48:Q48,0,$K$2)<>"",INDEX(M48:Q48,0,$K$2),M48) -> 3.158843434 | M48: 3.158843434 | N48: 3.158843434 | O48: 3.158843434 | P48: 3.158843434 | Q48: 3.158843434
A50: Offtake
B52: Yr | C52: Date
B53: 1 | C53: =M20 -> 2024 | H53: bcm p.a. | K53: =IF(INDEX(M53:Q53,0,$K$2)<>"",INDEX(M53:Q53,0,$K$2),M53) -> 31.15 | M53: 31.15 | N53: 31.15 | O53: 31.15 | P53: 31.15 | Q53: 31.15
B54: 5 | C54: =B54+$C$53 -> 2029 | H54: bcm p.a. | K54: 31.15 | M54: 31.15 | N54: 31.15 | O54: 31.15 | P54: 31.15 | Q54: 31.15
B55: =B54+5 -> 10 | C55: 2034 | H55: bcm p.a. | K55: 31.15 | M55: 31.15 | N55: 31.15 | O55: 31.15 | P55: 31.15 | Q55: 31.15
B56: 15 | C56: 2039 | H56: bcm p.a. | K56: 31.15 | M56: 31.15 | N56: 31.15 | O56: 31.15 | P56: 31.15 | Q56: 31.15
B57: 20 | C57: 2044 | H57: bcm p.a. | K57: 31.15 | M57: 31.15 | N57: 31.15 | O57: 31.15 | P57: 31.15 | Q57: 31.15
B58: 25 | C58: 2049 | H58: bcm p.a. | K58: 31.15 | M58: 31.15 | N58: 31.15 | O58: 31.15 | P58: 31.15 | Q58: 31.15
B59: 30 | C59: 2054 | H59: bcm p.a. | K59: 31.15 | M59: 31.15 | N59: 31.15 | O59: 31.15 | P59: 31.15 | Q59: 31.15
B60: 35 | C60: 2059 | H60: bcm p.a. | K60: 31.15 | M60: 31.15 | N60: 31.15 | O60: 31.15 | P60: 31.15 | Q60: 31.15
B61: 40 | C61: 2064 | H61: bcm p.a. | K61: 31.15 | M61: 31.15 | N61: 31.15 | O61: 31.15 | P61: 31.15 | Q61: 31.15
B62: 45 | C62: 2069 | H62: bcm p.a. | K62: 31.15 | M62: 31.15 | N62: 31.15 | O62: 31.15 | P62: 31.15 | Q62: 31.15
B63: 50 | C63: 2074 | H63: bcm p.a. | K63: 31.15 | M63: 31.15 | N63: 31.15 | O63: 31.15 | P63: 31.15 | Q63: 31.15
B64: 55 | C64: 2079 | H64: bcm p.a. | K64: 31.15 | M64: 31.15 | N64: 31.15 | O64: 31.15 | P64: 31.15 | Q64: 31.15
A67: Financing
A68: Debt Sizing
B70: Maximum Gearing
C72: Debt | H72: % | K72: =IF(INDEX(M72:Q72,0,$K$2)<>"",INDEX(M72:Q72,0,$K$2),M72) -> 0.8 | M72: 0.8 | N72: 0.7 | O72: 0.7 | P72: 0.7 | Q72: 0.7
C73: Equity | H73: % | K73: =IF(INDEX(M73:Q73,0,$K$2)<>"",INDEX(M73:Q73,0,$K$2),M73) -> 0.2 | M73: =1-M72 -> 0.2 | N73: =1-N72 -> 0.3 | O73: =1-O72 -> 0.3 | P73: =1-P72 -> 0.3 | Q73: =1-Q72 -> 0.3
B75: DSCR for Sculpting
C77: Min DSCR | H77: x | K77: =IF(INDEX(M77:Q77,0,$K$2)<>"",INDEX(M77:Q77,0,$K$2),M77) -> 1.2 | M77: 1.2 | N77: 1.2 | O77: 1.2 | P77: 1.2 | Q77: 1.2
A79: Equity
C81: Cost of Equity | H81: % | K81: =IF(INDEX(M81:Q81,0,$K$2)<>"",INDEX(M81:Q81,0,$K$2),M81) -> 0.07 | M81: 0.07 | N81: 0.1 | O81: 0.1 | P81: 0.1 | Q81: 0.1
C83: Shareholder Structure
C84: Govt of Senegal | H84: % | K84: =IF(INDEX(M84:Q84,0,$K$2)<>"",INDEX(M84:Q84,0,$K$2),M84) -> 0.1 | M84: 0.1 | N84: 0.1 | O84: 0.1 | P84: 0.1 | Q84: 0.1
C85: Meridiam Infrastructure Partners | H85: % | K85: =IF(INDEX(M85:Q85,0,$K$2)<>"",INDEX(M85:Q85,0,$K$2),M85) -> 0.6 | M85: 0.6 | N85: 0.6 | O85: 0.6 | P85: 0.6 | Q85: 0.6
C86: [spare] | H86: % | K86: =IF(INDEX(M86:Q86,0,$K$2)<>"",INDEX(M86:Q86,0,$K$2),M86) -> 0.3 | M86: =1-SUM(M84:M85) -> 0.3 | N86: =1-SUM(N84:N85) -> 0.3 | O86: =1-SUM(O84:O85) -> 0.3 | P86: =1-SUM(P84:P85) -> 0.3 | Q86: =1-SUM(Q84:Q85) -> 0.3
M87: =SUM(M84:M86) -> 1 | N87: =SUM(N84:N86) -> 1 | O87: =SUM(O84:O86) -> 1 | P87: =SUM(P84:P86) -> 1 | Q87: =SUM(Q84:Q86) -> 1
C88: Covenants
C89: Min DSCR | H89: x | K89: =IF(INDEX(M89:Q89,0,$K$2)<>"",INDEX(M89:Q89,0,$K$2),M89) -> 1.1 | M89: 1.1 | N89: 1.1 | O89: 1.1 | P89: 1.1 | Q89: 1.1
A91: Term Loan
B93: Timing
C95: 1st Repayment | H95: date | K95: =IF(INDEX(M95:Q95,0,$K$2)<>"",INDEX(M95:Q95,0,$K$2),M95) -> 2024 | M95: =M20 -> 2024 | N95: =N20 -> 2018 | O95: =O20 -> 2018 | P95: =P20 -> 2018 | Q95: =Q20 -> 2018
C96: Tenor | H96: years | K96: 22 | M96: 25 | N96: 10 | O96: 10 | P96: 10 | Q96: 10
C97: Maturity | H97: date | K97: =IF(INDEX(M97:Q97,0,$K$2)<>"",INDEX(M97:Q97,0,$K$2),M97) -> 2048 | M97: =M95+M96-1 -> 2048 | N97: =N95+N96-1 -> 2027 | O97: =O95+O96-1 -> 2027 | P97: =P95+P96-1 -> 2027 | Q97: =Q95+Q96-1 -> 2027
B99: Fees
C101: Commitment Fee | H101: % | K101: =IF(INDEX(M101:Q101,0,$K$2)<>"",INDEX(M101:Q101,0,$K$2),M101) -> 0.005 | M101: 0.005 | N101: 0.005 | O101: 0.005 | P101: 0.005 | Q101: 0.005
C102: Upfront Fee | H102: $m | K102: =IF(INDEX(M102:Q102,0,$K$2)<>"",INDEX(M102:Q102,0,$K$2),M102) -> 3.2 | M102: 3.2 | N102: 3.2 | O102: 3.2 | P102: 3.2 | Q102: 3.2
B104: Margins
B106: Yr | C106: Date
B107: 1 | C107: =K14 -> 2021 | H107: % | K107: =IF(INDEX(M107:Q107,0,$K$2)<>"",INDEX(M107:Q107,0,$K$2),M107) -> 0.013 | M107: 0.013 | N107: 0.023 | O107: 0.023 | P107: 0.023 | Q107: 0.023
B108: 5 | C108: =B108+$C$107 -> 2026 | H108: % | K108: 0.014 | M108: 0.014 | N108: 0.024 | O108: 0.024 | P108: 0.024 | Q108: 0.024
B109: =B108+5 -> 10 | C109: 2031 | H109: % | K109: 0.015 | M109: 0.015 | N109: 0.025 | O109: 0.025 | P109: 0.025 | Q109: 0.025
B110: 15 | C110: 2036 | H110: % | K110: 0.016 | M110: 0.016 | N110: 0.026 | O110: 0.026 | P110: 0.026 | Q110: 0.026
B111: 20 | C111: 2041 | H111: % | K111: 0.017 | M111: 0.017 | N111: 0.027 | O111: 0.027 | P111: 0.027 | Q111: 0.027
B112: 25 | C112: 2046 | H112: % | K112: 0.018 | M112: 0.018 | N112: 0.028 | O112: 0.028 | P112: 0.028 | Q112: 0.028
B113: 30 | C113: 2051 | H113: % | K113: 0.019 | M113: 0.019 | N113: 0.029 | O113: 0.029 | P113: 0.029 | Q113: 0.029
B114: 35 | C114: 2056 | H114: % | K114: 0.02 | M114: 0.02 | N114: 0.03 | O114: 0.03 | P114: 0.03 | Q114: 0.03
B115: 40 | C115: 2061 | H115: % | K115: 0.021 | M115: 0.021 | N115: 0.031 | O115: 0.031 | P115: 0.031 | Q115: 0.031
B116: 45 | C116: 2066 | H116: % | K116: 0.022 | M116: 0.022 | N116: 0.032 | O116: 0.032 | P116: 0.032 | Q116: 0.032
B117: 50 | C117: 2071 | H117: % | K117: 0.023 | M117: 0.023 | N117: 0.033 | O117: 0.033 | P117: 0.033 | Q117: 0.033
B118: 55 | C118: 2076 | H118: % | K118: 0.024 | M118: 0.024 | N118: 0.034 | O118: 0.034 | P118: 0.034 | Q118: 0.034
B120: Cash Sweep
C122: Cash Sweep Amount | H122: % | K122: =IF(INDEX(M122:Q122,0,$K$2)<>"",INDEX(M122:Q122,0,$K$2),M122) -> 0 | M122: 0 | N122: 0 | O122: 0 | P122: 0 | Q122: 0
C123: Cash Sweep Start | H123: year | K123: =IF(INDEX(M123:Q123,0,$K$2)<>"",INDEX(M123:Q123,0,$K$2),M123) -> 5 | M123: 5 | N123: 5 | O123: 5 | P123: 5 | Q123: 5
C124: Cash Sweep Start | H124: date | K124: =IF(INDEX(M124:Q124,0,$K$2)<>"",INDEX(M124:Q124,0,$K$2),M124) -> 2028 | M124: =M95+M123-1 -> 2028 | N124: =N95+N123-1 -> 2022 | O124: =O95+O123-1 -> 2022 | P124: =P95+P123-1 -> 2022 | Q124: =Q95+Q123-1 -> 2022
A126: DSRF
C128: Max Facility Amount | H128: $m | K128: =IF(INDEX(M128:Q128,0,$K$2)<>"",INDEX(M128:Q128,0,$K$2),M128) -> 500 | M128: 500 | N128: 25 | O128: 25 | P128: 25 | Q128: 25
C129: Availability Start | H129: date | K129: 1905-07-16 | M129: =M95 -> 2024 | N129: =N95 -> 2018 | O129: =O95 -> 2018 | P129: =P95 -> 2018 | Q129: =Q95 -> 2018
C130: Maturity | H130: date | K130: 1905-08-09 | M130: =M97 -> 2048 | N130: =N97 -> 2027 | O130: =O97 -> 2027 | P130: =P97 -> 2027 | Q130: =Q97 -> 2027
C131: Margin | H131: % | K131: 0.02 | M131: 0.02 | N131: 0.02 | O131: 0.02 | P131: 0.02 | Q131: 0.02
C132: Commitment Fee | H132: % of margin | K132: 0.33 | M132: 0.33 | N132: 0.33 | O132: 0.33 | P132: 0.33 | Q132: 0.33
A134: Reserve Accounts
B137: Debt Service Reserve Facility
C139: Max Facility Amount | H139: $m | K139: =IF(INDEX(M139:Q139,0,$K$2)<>"",INDEX(M139:Q139,0,$K$2),M139) -> 5 | M139: 5 | N139: 5 | O139: 5 | P139: 5 | Q139: 5
C140: Availability Start | H140: % | K140: 2024 | M140: =M20 -> 2024 | N140: =N20 -> 2018 | O140: =O20 -> 2018 | P140: =P20 -> 2018 | Q140: =Q20 -> 2018
C141: Maturity | H141: date | K141: 2048 | M141: =M97 -> 2048 | N141: =N97 -> 2027 | O141: =O97 -> 2027 | P141: =P97 -> 2027 | Q141: =Q97 -> 2027
C142: Base Rate | H142: % | K142: LIBOR - 6 month | M142: LIBOR - 6 month | N142: LIBOR - 6 month | O142: LIBOR - 6 month | P142: LIBOR - 6 month | Q142: LIBOR - 6 month
C143: Margin | H143: % | K143: 0.02 | M143: 0.02 | N143: 0.02 | O143: 0.02 | P143: 0.02 | Q143: 0.02
C144: Commitment Fee | H144: % | K144: 0.02 | M144: 0.02 | N144: 0.02 | O144: 0.02 | P144: 0.02 | Q144: 0.02
A146: Covenants
B148: Ratios
C150: Min DSCR | H150: x | K150: =IF(INDEX(M150:Q150,0,$K$2)<>"",INDEX(M150:Q150,0,$K$2),M150) -> 1.2 | M150: 1.2 | N150: 1.2 | O150: 1.2 | P150: 1.2 | Q150: 1.2
A152: Tax & Accounting
C154: Corporate Tax Rate | H154: % | K154: =IF(INDEX(M154:Q154,0,$K$2)<>"",INDEX(M154:Q154,0,$K$2),M154) -> 0.25 | M154: 0.25 | N154: 0.2 | O154: 0.2 | P154: 0.2 | Q154: 0.2
A156: Audit
C158: Sources = Uses | H158: check | K158: =Financing!J27 -> 
C159: S Surve Fully Allocated | H159: check | K159: =InputT!L43 -> TRUE
C160: Tariff Optimised | H160: check | K160: =Tariff!J36 -> 
C161: Fully Depreciated | H161: check | K161: ='T&D'!J46 -> 
C162: Model Balanced | H162: check | K162: =BS!J41 -> 
C163: Macro | H163: check | K163: =Macro_Check -> 
H164: check | K164: =AND(K158:K163) -> 
A167: Data
B169: Funding Method
B170: Pro Rata
B171: Equity First
B173: Holding Strategy
B174: To Maturity
B175: Exit
A1103: END SHEET

Sheet InputT
P5: Year: | R5: =Timing!R5 -> 2021 | S5: =Timing!S5 -> 2022 | T5: =Timing!T5 -> 2023 | U5: =Timing!U5 -> 2024 | V5: =Timing!V5 -> 2025 | W5: =Timing!W5 -> 2026 | X5: =Timing!X5 -> 2027 | Y5: =Timing!Y5 -> 2028 | Z5: =Timing!Z5 -> 2029 | AA5: =Timing!AA5 -> 2030 | AB5: =Timing!AB5 -> 2031 | AC5: =Timing!AC5 -> 2032 | AD5: =Timing!AD5 -> 2033 | AE5: =Timing!AE5 -> 2034 | AF5: =Timing!AF5 -> 2035 | AG5: =Timing!AG5 -> 2036 | AH5: =Timing!AH5 -> 2037 | AI5: =Timing!AI5 -> 2038 | AJ5: =Timing!AJ5 -> 2039 | AK5: =Timing!AK5 -> 2040 | AL5: =Timing!AL5 -> 2041 | AM5: =Timing!AM5 -> 2042 | AN5: =Timing!AN5 -> 2043 | AO5: =Timing!AO5 -> 2044 | AP5: =Timing!AP5 -> 2045 | AQ5: =Timing!AQ5 -> 2046 | AR5: =Timing!AR5 -> 2047 | AS5: =Timing!AS5 -> 2048 | AT5: =Timing!AT5 -> 2049 | AU5: =Timing!AU5 -> 2050 | AV5: =Timing!AV5 -> 2051 | AW5: =Timing!AW5 -> 2052 | AX5: =Timing!AX5 -> 2053 | AY5: =Timing!AY5 -> 2054 | AZ5: =Timing!AZ5 -> 2055 | BA5: =Timing!BA5 -> 2056 | BB5: =Timing!BB5 -> 2057 | BC5: =Timing!BC5 -> 2058 | BD5: =Timing!BD5 -> 2059 | BE5: =Timing!BE5 -> 2060 | BF5: =Timing!BF5 -> 2061 | BG5: =Timing!BG5 -> 2062 | BH5: =Timing!BH5 -> 2063 | BI5: =Timing!BI5 -> 2064 | BJ5: =Timing!BJ5 -> 2065 | BK5: =Timing!BK5 -> 2066 | BL5: =Timing!BL5 -> 2067 | BM5: =Timing!BM5 -> 2068 | BN5: =Timing!BN5 -> 2069 | BO5: =Timing!BO5 -> 2070 | BP5: =Timing!BP5 -> 2071 | BQ5: =Timing!BQ5 -> 2072 | BR5: =Timing!BR5 -> 2073 | BS5: =Timing!BS5 -> 2074 | BT5: =Timing!BT5 -> 2075 | BU5: =Timing!BU5 -> 2076 | BV5: =Timing!BV5 -> 2077 | BW5: =Timing!BW5 -> 2078 | BX5: =Timing!BX5 -> 2079 | BY5: =Timing!BY5 -> 2080 | BZ5: =Timing!BZ5 -> 2081 | CA5: =Timing!CA5 -> 2082 | CB5: =Timing!CB5 -> 2083 | CC5: =Timing!CC5 -> 2084 | CD5: =Timing!CD5 -> 2085 | CE5: =Timing!CE5 -> 2086 | CF5: =Timing!CF5 -> 2087 | CG5: =Timing!CG5 -> 2088 | CH5: =Timing!CH5 -> 2089 | CI5: =Timing!CI5 -> 2090 | CJ5: =Timing!CJ5 -> 2091 | CK5: =Timing!CK5 -> 2092 | CL5: =Timing!CL5 -> 2093 | CM5: =Timing!CM5 -> 2094 | CN5: =Timing!CN5 -> 2095 | CO5: =Timing!CO5 -> 2096 | CP5: =Timing!CP5 -> 2097 | CQ5: =Timing!CQ5 -> 2098 | CR5: =Timing!CR5 -> 2099 | CS5: =Timing!CS5 -> 2100 | CT5: =Timing!CT5 -> 2101 | CU5: =Timing!CU5 -> 2102 | CV5: =Timing!CV5 -> 2103 | CW5: =CV5+1 -> 2104 | CX5: 2105 | CY5: 2106 | CZ5: 2107 | DA5: 2108 | DB5: 2109 | DC5: 2110 | DD5: 2111 | DE5: 2112 | DF5: 2113
P6: Year #: | R6: =Timing!R6 -> 1 | S6: =Timing!S6 -> 2 | T6: =Timing!T6 -> 3 | U6: =Timing!U6 -> 4 | V6: =Timing!V6 -> 5 | W6: =Timing!W6 -> 6 | X6: =Timing!X6 -> 7 | Y6: =Timing!Y6 -> 8 | Z6: =Timing!Z6 -> 9 | AA6: =Timing!AA6 -> 10 | AB6: =Timing!AB6 -> 11 | AC6: =Timing!AC6 -> 12 | AD6: =Timing!AD6 -> 13 | AE6: =Timing!AE6 -> 14 | AF6: =Timing!AF6 -> 15 | AG6: =Timing!AG6 -> 16 | AH6: =Timing!AH6 -> 17 | AI6: =Timing!AI6 -> 18 | AJ6: =Timing!AJ6 -> 19 | AK6: =Timing!AK6 -> 20 | AL6: =Timing!AL6 -> 21 | AM6: =Timing!AM6 -> 22 | AN6: =Timing!AN6 -> 23 | AO6: =Timing!AO6 -> 24 | AP6: =Timing!AP6 -> 25 | AQ6: =Timing!AQ6 -> 26 | AR6: =Timing!AR6 -> 27 | AS6: =Timing!AS6 -> 28 | AT6: =Timing!AT6 -> 29 | AU6: =Timing!AU6 -> 30 | AV6: =Timing!AV6 -> 31 | AW6: =Timing!AW6 -> 32 | AX6: =Timing!AX6 -> 33 | AY6: =Timing!AY6 -> 34 | AZ6: =Timing!AZ6 -> 35 | BA6: =Timing!BA6 -> 36 | BB6: =Timing!BB6 -> 37 | BC6: =Timing!BC6 -> 38 | BD6: =Timing!BD6 -> 39 | BE6: =Timing!BE6 -> 40 | BF6: =Timing!BF6 -> 41 | BG6: =Timing!BG6 -> 42 | BH6: =Timing!BH6 -> 43 | BI6: =Timing!BI6 -> 44 | BJ6: =Timing!BJ6 -> 45 | BK6: =Timing!BK6 -> 46 | BL6: =Timing!BL6 -> 47 | BM6: =Timing!BM6 -> 48 | BN6: =Timing!BN6 -> 49 | BO6: =Timing!BO6 -> 50 | BP6: =Timing!BP6 -> 51 | BQ6: =Timing!BQ6 -> 52 | BR6: =Timing!BR6 -> 53 | BS6: =Timing!BS6 -> 54 | BT6: =Timing!BT6 -> 55 | BU6: =Timing!BU6 -> 56 | BV6: =Timing!BV6 -> 57 | BW6: =Timing!BW6 -> 58 | BX6: =Timing!BX6 -> 59 | BY6: =Timing!BY6 -> 60 | BZ6: =Timing!BZ6 -> 61 | CA6: =Timing!CA6 -> 62 | CB6: =Timing!CB6 -> 63 | CC6: =Timing!CC6 -> 64 | CD6: =Timing!CD6 -> 65 | CE6: =Timing!CE6 -> 66 | CF6: =Timing!CF6 -> 67 | CG6: =Timing!CG6 -> 68 | CH6: =Timing!CH6 -> 69 | CI6: =Timing!CI6 -> 70 | CJ6: =Timing!CJ6 -> 71 | CK6: =Timing!CK6 -> 72 | CL6: =Timing!CL6 -> 73 | CM6: =Timing!CM6 -> 74 | CN6: =Timing!CN6 -> 75 | CO6: =Timing!CO6 -> 76 | CP6: =Timing!CP6 -> 77 | CQ6: =Timing!CQ6 -> 78 | CR6: =Timing!CR6 -> 79 | CS6: =Timing!CS6 -> 80 | CT6: =Timing!CT6 -> 81 | CU6: =Timing!CU6 -> 82 | CV6: =Timing!CV6 -> 83 | CW6: =#REF! ->  | CX6: =#REF! ->  | CY6: =#REF! ->  | CZ6: =#REF! ->  | DA6: =#REF! ->  | DB6: =#REF! ->  | DC6: =#REF! ->  | DD6: =#REF! ->  | DE6: =#REF! ->  | DF6: =#REF! -> 
P7: Forecast: | R7: =Timing!R7 -> Const | S7: =Timing!S7 -> Const | T7: =Timing!T7 -> Const | U7: =Timing!U7 -> Ops | V7: =Timing!V7 -> Ops | W7: =Timing!W7 -> Ops | X7: =Timing!X7 -> Ops | Y7: =Timing!Y7 -> Ops | Z7: =Timing!Z7 -> Ops | AA7: =Timing!AA7 -> Ops | AB7: =Timing!AB7 -> Ops | AC7: =Timing!AC7 -> Ops | AD7: =Timing!AD7 -> Ops | AE7: =Timing!AE7 -> Ops | AF7: =Timing!AF7 -> Ops | AG7: =Timing!AG7 -> Ops | AH7: =Timing!AH7 -> Ops | AI7: =Timing!AI7 -> Ops | AJ7: =Timing!AJ7 -> Ops | AK7: =Timing!AK7 -> Ops | AL7: =Timing!AL7 -> Ops | AM7: =Timing!AM7 -> Ops | AN7: =Timing!AN7 -> Ops | AO7: =Timing!AO7 -> Ops | AP7: =Timing!AP7 -> Ops | AQ7: =Timing!AQ7 -> Ops | AR7: =Timing!AR7 -> Ops | AS7: =Timing!AS7 -> Ops | AT7: =Timing!AT7 -> Ops | AU7: =Timing!AU7 -> Ops | AV7: =Timing!AV7 -> Ops | AW7: =Timing!AW7 -> Ops | AX7: =Timing!AX7 -> Ops | AY7: =Timing!AY7 -> Ops | AZ7: =Timing!AZ7 -> Ops | BA7: =Timing!BA7 -> Ops | BB7: =Timing!BB7 -> Ops | BC7: =Timing!BC7 -> Ops | BD7: =Timing!BD7 -> Ops | BE7: =Timing!BE7 -> Ops | BF7: =Timing!BF7 -> Ops | BG7: =Timing!BG7 -> Ops | BH7: =Timing!BH7 -> Ops | BI7: =Timing!BI7 -> Ops | BJ7: =Timing!BJ7 -> Ops | BK7: =Timing!BK7 -> Ops | BL7: =Timing!BL7 -> Ops | BM7: =Timing!BM7 -> Ops | BN7: =Timing!BN7 -> Ops | BO7: =Timing!BO7 -> Ops | BP7: =Timing!BP7 -> Ops | BQ7: =Timing!BQ7 -> Ops | BR7: =Timing!BR7 -> Ops | BS7: =Timing!BS7 -> Ops | BT7: =Timing!BT7 ->  | BU7: =Timing!BU7 ->  | BV7: =Timing!BV7 ->  | BW7: =Timing!BW7 ->  | BX7: =Timing!BX7 ->  | BY7: =Timing!BY7 ->  | BZ7: =Timing!BZ7 ->  | CA7: =Timing!CA7 ->  | CB7: =Timing!CB7 ->  | CC7: =Timing!CC7 ->  | CD7: =Timing!CD7 ->  | CE7: =Timing!CE7 ->  | CF7: =Timing!CF7 ->  | CG7: =Timing!CG7 ->  | CH7: =Timing!CH7 ->  | CI7: =Timing!CI7 ->  | CJ7: =Timing!CJ7 ->  | CK7: =Timing!CK7 ->  | CL7: =Timing!CL7 ->  | CM7: =Timing!CM7 ->  | CN7: =Timing!CN7 ->  | CO7: =Timing!CO7 ->  | CP7: =Timing!CP7 ->  | CQ7: =Timing!CQ7 ->  | CR7: =Timing!CR7 ->  | CS7: =Timing!CS7 ->  | CT7: =Timing!CT7 ->  | CU7: =Timing!CU7 ->  | CV7: =Timing!CV7 ->  | CW7: =#REF! ->  | CX7: =#REF! ->  | CY7: =#REF! ->  | CZ7: =#REF! ->  | DA7: =#REF! ->  | DB7: =#REF! ->  | DC7: =#REF! ->  | DD7: =#REF! ->  | DE7: =#REF! ->  | DF7: =#REF! -> 
P8: Holding Period: | R8: =Timing!R8 ->  | S8: =Timing!S8 ->  | T8: =Timing!T8 ->  | U8: =Timing!U8 ->  | V8: =Timing!V8 ->  | W8: =Timing!W8 -> Hold | X8: =Timing!X8 -> Hold | Y8: =Timing!Y8 -> Hold | Z8: =Timing!Z8 -> Hold | AA8: =Timing!AA8 -> Hold | AB8: =Timing!AB8 -> Hold | AC8: =Timing!AC8 -> Hold | AD8: =Timing!AD8 -> Hold | AE8: =Timing!AE8 -> Hold | AF8: =Timing!AF8 -> Hold | AG8: =Timing!AG8 -> Hold | AH8: =Timing!AH8 ->  | AI8: =Timing!AI8 ->  | AJ8: =Timing!AJ8 ->  | AK8: =Timing!AK8 ->  | AL8: =Timing!AL8 ->  | AM8: =Timing!AM8 ->  | AN8: =Timing!AN8 ->  | AO8: =Timing!AO8 ->  | AP8: =Timing!AP8 ->  | AQ8: =Timing!AQ8 ->  | AR8: =Timing!AR8 ->  | AS8: =Timing!AS8 ->  | AT8: =Timing!AT8 ->  | AU8: =Timing!AU8 ->  | AV8: =Timing!AV8 ->  | AW8: =Timing!AW8 ->  | AX8: =Timing!AX8 ->  | AY8: =Timing!AY8 ->  | AZ8: =Timing!AZ8 ->  | BA8: =Timing!BA8 ->  | BB8: =Timing!BB8 ->  | BC8: =Timing!BC8 ->  | BD8: =Timing!BD8 ->  | BE8: =Timing!BE8 ->  | BF8: =Timing!BF8 ->  | BG8: =Timing!BG8 ->  | BH8: =Timing!BH8 ->  | BI8: =Timing!BI8 ->  | BJ8: =Timing!BJ8 ->  | BK8: =Timing!BK8 ->  | BL8: =Timing!BL8 ->  | BM8: =Timing!BM8 ->  | BN8: =Timing!BN8 ->  | BO8: =Timing!BO8 ->  | BP8: =Timing!BP8 ->  | BQ8: =Timing!BQ8 ->  | BR8: =Timing!BR8 ->  | BS8: =Timing!BS8 ->  | BT8: =Timing!BT8 ->  | BU8: =Timing!BU8 ->  | BV8: =Timing!BV8 ->  | BW8: =Timing!BW8 ->  | BX8: =Timing!BX8 ->  | BY8: =Timing!BY8 ->  | BZ8: =Timing!BZ8 ->  | CA8: =Timing!CA8 ->  | CB8: =Timing!CB8 ->  | CC8: =Timing!CC8 ->  | CD8: =Timing!CD8 ->  | CE8: =Timing!CE8 ->  | CF8: =Timing!CF8 ->  | CG8: =Timing!CG8 ->  | CH8: =Timing!CH8 ->  | CI8: =Timing!CI8 ->  | CJ8: =Timing!CJ8 ->  | CK8: =Timing!CK8 ->  | CL8: =Timing!CL8 ->  | CM8: =Timing!CM8 ->  | CN8: =Timing!CN8 ->  | CO8: =Timing!CO8 ->  | CP8: =Timing!CP8 ->  | CQ8: =Timing!CQ8 ->  | CR8: =Timing!CR8 ->  | CS8: =Timing!CS8 ->  | CT8: =Timing!CT8 ->  | CU8: =Timing!CU8 ->  | CV8: =Timing!CV8 ->  | CW8: =#REF! ->  | CX8: =#REF! ->  | CY8: =#REF! ->  | CZ8: =#REF! ->  | DA8: =#REF! ->  | DB8: =#REF! ->  | DC8: =#REF! ->  | DD8: =#REF! ->  | DE8: =#REF! ->  | DF8: =#REF! -> 
A10: Macroeconomic
B12: Inflation
C14: Global Inflation Basket | J14: % | R14: 0.01 | S14: 0.01 | T14: 0.01 | U14: 0.01 | V14: 0.01 | W14: 0.01 | X14: 0.01 | Y14: 0.01 | Z14: 0.01 | AA14: 0.01 | AB14: 0.01 | AC14: 0.01 | AD14: 0.01 | AE14: 0.01 | AF14: 0.01 | AG14: 0.01 | AH14: 0.01 | AI14: 0.01 | AJ14: 0.01 | AK14: 0.01 | AL14: 0.01 | AM14: 0.01 | AN14: 0.01 | AO14: 0.01 | AP14: 0.01 | AQ14: 0.01 | AR14: 0.01 | AS14: 0.01 | AT14: 0.01 | AU14: 0.01 | AV14: 0.01 | AW14: 0.01 | AX14: 0.01 | AY14: 0.01 | AZ14: 0.01 | BA14: 0.01 | BB14: 0.01 | BC14: 0.01 | BD14: 0.01 | BE14: 0.01 | BF14: 0.01 | BG14: 0.01 | BH14: 0.01 | BI14: 0.01 | BJ14: 0.01 | BK14: 0.01 | BL14: 0.01 | BM14: 0.01 | BN14: 0.01 | BO14: 0.01 | BP14: 0.01 | BQ14: 0.01 | BR14: 0.01 | BS14: 0.01 | BT14: 0.01 | BU14: 0.01 | BV14: 0.01 | BW14: 0.01 | BX14: 0.01 | BY14: 0.01 | BZ14: 0.01 | CA14: 0.01 | CB14: 0.01 | CC14: 0.01 | CD14: 0.01 | CE14: 0.01 | CF14: 0.01
B16: Floating Interest Rates
C18: LIBOR - 6 month | J18: % | R18: 0.01 | S18: 0.01 | T18: 0.01 | U18: 0.01 | V18: 0.01 | W18: 0.01 | X18: 0.01 | Y18: 0.01 | Z18: 0.01 | AA18: 0.01 | AB18: 0.01 | AC18: 0.01 | AD18: 0.01 | AE18: 0.01 | AF18: 0.01 | AG18: 0.01 | AH18: 0.01 | AI18: 0.01 | AJ18: 0.01 | AK18: 0.01 | AL18: 0.01 | AM18: 0.01 | AN18: 0.01 | AO18: 0.01 | AP18: 0.01 | AQ18: 0.01 | AR18: 0.01 | AS18: 0.01 | AT18: 0.01 | AU18: 0.01 | AV18: 0.01 | AW18: 0.01 | AX18: 0.01 | AY18: 0.01 | AZ18: 0.01 | BA18: 0.01 | BB18: 0.01 | BC18: 0.01 | BD18: 0.01 | BE18: 0.01 | BF18: 0.01 | BG18: 0.01 | BH18: 0.01 | BI18: 0.01 | BJ18: 0.01 | BK18: 0.01 | BL18: 0.01 | BM18: 0.01 | BN18: 0.01 | BO18: 0.01 | BP18: 0.01 | BQ18: 0.01 | BR18: 0.01 | BS18: 0.01 | BT18: 0.01 | BU18: 0.01 | BV18: 0.01 | BW18: 0.01 | BX18: 0.01 | BY18: 0.01 | BZ18: 0.01 | CA18: 0.01 | CB18: 0.01 | CC18: 0.01 | CD18: 0.01 | CE18: 0.01 | CF18: 0.01
A20: CAPEX S Cruve
B22: S Curve
L23: Check
C24: =InputC!C28 -> Total Project Costs | J24: % | L24: =P24=1 -> TRUE | P24: =SUM(R24:DI24) -> 1 | R24: 0.51 | S24: 0.29 | T24: 0.2
C25: =InputC!C29 -> [Spare] | J25: % | L25: TRUE | P25: 1 | R25: 0.54 | S25: 0.12 | T25: 0.34
C26: =InputC!#REF! ->  | J26: % | L26: TRUE | P26: 1 | R26: 0.43 | S26: 0.24 | T26: 0.33
C27: =InputC!#REF! ->  | J27: % | L27: TRUE | P27: 1 | R27: 0.3 | S27: 0.22 | T27: 0.48
C28: =InputC!#REF! ->  | J28: % | L28: TRUE | P28: 1 | R28: 0.39 | S28: 0.3 | T28: 0.31
C29: =InputC!#REF! ->  | J29: % | L29: TRUE | P29: 1 | R29: 0.52 | S29: 0.21 | T29: 0.27
C30: =InputC!#REF! ->  | J30: % | L30: TRUE | P30: 1 | R30: 0.33 | S30: 0.27 | T30: 0.4
C31: =InputC!#REF! ->  | J31: % | L31: TRUE | P31: 1 | R31: 0.47 | S31: 0.26 | T31: 0.27
C32: =InputC!#REF! ->  | J32: % | L32: TRUE | P32: 1 | R32: 0.43 | S32: 0.11 | T32: 0.46
C33: =InputC!#REF! ->  | J33: % | L33: TRUE | P33: 1 | R33: 0.41 | S33: 0.11 | T33: 0.48
C34: =InputC!#REF! ->  | J34: % | L34: TRUE | P34: 1 | R34: 0.6 | S34: 0.3 | T34: 0.1
C35: =InputC!#REF! ->  | J35: % | L35: TRUE | P35: 1 | R35: 0.34 | S35: 0.13 | T35: 0.53
C36: =InputC!#REF! ->  | J36: % | L36: TRUE | P36: 1 | R36: 0.34 | S36: 0.28 | T36: 0.38
C37: =InputC!#REF! ->  | J37: % | L37: TRUE | P37: 1 | R37: 0.53 | S37: 0.23 | T37: 0.24
C38: =InputC!#REF! ->  | J38: % | L38: TRUE | P38: 1 | R38: 0.51 | S38: 0.28 | T38: 0.21
C39: =InputC!#REF! ->  | J39: % | P39: 0
C40: =InputC!C30 -> [Spare] | J40: % | P40: 0
C41: =InputC!C31 -> [Spare] | J41: % | P41: 0
B43: Check | J43: check | L43: =AND(L24:L41) -> TRUE
A45: End Sheet

Sheet IS
M5: Year: | P5: =Timing!R5 -> 2021 | Q5: =Timing!S5 -> 2022 | R5: =Timing!T5 -> 2023 | S5: =Timing!U5 -> 2024 | T5: =Timing!V5 -> 2025 | U5: =Timing!W5 -> 2026 | V5: =Timing!X5 -> 2027 | W5: =Timing!Y5 -> 2028 | X5: =Timing!Z5 -> 2029 | Y5: =Timing!AA5 -> 2030 | Z5: =Timing!AB5 -> 2031 | AA5: =Timing!AC5 -> 2032 | AB5: =Timing!AD5 -> 2033 | AC5: =Timing!AE5 -> 2034 | AD5: =Timing!AF5 -> 2035 | AE5: =Timing!AG5 -> 2036 | AF5: =Timing!AH5 -> 2037 | AG5: =Timing!AI5 -> 2038 | AH5: =Timing!AJ5 -> 2039 | AI5: =Timing!AK5 -> 2040 | AJ5: =Timing!AL5 -> 2041 | AK5: =Timing!AM5 -> 2042 | AL5: =Timing!AN5 -> 2043 | AM5: =Timing!AO5 -> 2044 | AN5: =Timing!AP5 -> 2045 | AO5: =Timing!AQ5 -> 2046 | AP5: =Timing!AR5 -> 2047 | AQ5: =Timing!AS5 -> 2048 | AR5: =Timing!AT5 -> 2049 | AS5: =Timing!AU5 -> 2050 | AT5: =Timing!AV5 -> 2051 | AU5: =Timing!AW5 -> 2052 | AV5: =Timing!AX5 -> 2053 | AW5: =Timing!AY5 -> 2054 | AX5: =Timing!AZ5 -> 2055 | AY5: =Timing!BA5 -> 2056 | AZ5: =Timing!BB5 -> 2057 | BA5: =Timing!BC5 -> 2058 | BB5: =Timing!BD5 -> 2059 | BC5: =Timing!BE5 -> 2060 | BD5: =Timing!BF5 -> 2061 | BE5: =Timing!BG5 -> 2062 | BF5: =Timing!BH5 -> 2063 | BG5: =Timing!BI5 -> 2064 | BH5: =Timing!BJ5 -> 2065 | BI5: =Timing!BK5 -> 2066 | BJ5: =Timing!BL5 -> 2067 | BK5: =Timing!BM5 -> 2068 | BL5: =Timing!BN5 -> 2069 | BM5: =Timing!BO5 -> 2070 | BN5: =Timing!BP5 -> 2071 | BO5: =Timing!BQ5 -> 2072 | BP5: =Timing!BR5 -> 2073 | BQ5: =Timing!BS5 -> 2074 | BR5: =Timing!BT5 -> 2075 | BS5: =Timing!BU5 -> 2076 | BT5: =Timing!BV5 -> 2077 | BU5: =Timing!BW5 -> 2078 | BV5: =Timing!BX5 -> 2079 | BW5: =Timing!BY5 -> 2080 | BX5: =Timing!BZ5 -> 2081 | BY5: =Timing!CA5 -> 2082 | BZ5: =Timing!CB5 -> 2083 | CA5: =Timing!CC5 -> 2084 | CB5: =Timing!CD5 -> 2085 | CC5: =Timing!CE5 -> 2086 | CD5: =Timing!CF5 -> 2087 | CE5: =Timing!CG5 -> 2088 | CF5: =Timing!CH5 -> 2089 | CG5: =Timing!CI5 -> 2090 | CH5: =Timing!CJ5 -> 2091 | CI5: =Timing!CK5 -> 2092 | CJ5: =Timing!CL5 -> 2093 | CK5: =Timing!CM5 -> 2094 | CL5: =Timing!CN5 -> 2095 | CM5: =Timing!CO5 -> 2096 | CN5: =Timing!CP5 -> 2097 | CO5: =Timing!CQ5 -> 2098 | CP5: =Timing!CR5 -> 2099 | CQ5: =Timing!CS5 -> 2100 | CR5: =Timing!CT5 -> 2101 | CS5: =Timing!CU5 -> 2102 | CT5: =Timing!CV5 -> 2103 | CU5: =CT5+1 -> 2104 | CV5: 2105 | CW5: 2106 | CX5: 2107 | CY5: 2108 | CZ5: 2109 | DA5: 2110 | DB5: 2111 | DC5: 2112 | DD5: 2113
M6: Year #: | P6: =Timing!R6 -> 1 | Q6: =Timing!S6 -> 2 | R6: =Timing!T6 -> 3 | S6: =Timing!U6 -> 4 | T6: =Timing!V6 -> 5 | U6: =Timing!W6 -> 6 | V6: =Timing!X6 -> 7 | W6: =Timing!Y6 -> 8 | X6: =Timing!Z6 -> 9 | Y6: =Timing!AA6 -> 10 | Z6: =Timing!AB6 -> 11 | AA6: =Timing!AC6 -> 12 | AB6: =Timing!AD6 -> 13 | AC6: =Timing!AE6 -> 14 | AD6: =Timing!AF6 -> 15 | AE6: =Timing!AG6 -> 16 | AF6: =Timing!AH6 -> 17 | AG6: =Timing!AI6 -> 18 | AH6: =Timing!AJ6 -> 19 | AI6: =Timing!AK6 -> 20 | AJ6: =Timing!AL6 -> 21 | AK6: =Timing!AM6 -> 22 | AL6: =Timing!AN6 -> 23 | AM6: =Timing!AO6 -> 24 | AN6: =Timing!AP6 -> 25 | AO6: =Timing!AQ6 -> 26 | AP6: =Timing!AR6 -> 27 | AQ6: =Timing!AS6 -> 28 | AR6: =Timing!AT6 -> 29 | AS6: =Timing!AU6 -> 30 | AT6: =Timing!AV6 -> 31 | AU6: =Timing!AW6 -> 32 | AV6: =Timing!AX6 -> 33 | AW6: =Timing!AY6 -> 34 | AX6: =Timing!AZ6 -> 35 | AY6: =Timing!BA6 -> 36 | AZ6: =Timing!BB6 -> 37 | BA6: =Timing!BC6 -> 38 | BB6: =Timing!BD6 -> 39 | BC6: =Timing!BE6 -> 40 | BD6: =Timing!BF6 -> 41 | BE6: =Timing!BG6 -> 42 | BF6: =Timing!BH6 -> 43 | BG6: =Timing!BI6 -> 44 | BH6: =Timing!BJ6 -> 45 | BI6: =Timing!BK6 -> 46 | BJ6: =Timing!BL6 -> 47 | BK6: =Timing!BM6 -> 48 | BL6: =Timing!BN6 -> 49 | BM6: =Timing!BO6 -> 50 | BN6: =Timing!BP6 -> 51 | BO6: =Timing!BQ6 -> 52 | BP6: =Timing!BR6 -> 53 | BQ6: =Timing!BS6 -> 54 | BR6: =Timing!BT6 -> 55 | BS6: =Timing!BU6 -> 56 | BT6: =Timing!BV6 -> 57 | BU6: =Timing!BW6 -> 58 | BV6: =Timing!BX6 -> 59 | BW6: =Timing!BY6 -> 60 | BX6: =Timing!BZ6 -> 61 | BY6: =Timing!CA6 -> 62 | BZ6: =Timing!CB6 -> 63 | CA6: =Timing!CC6 -> 64 | CB6: =Timing!CD6 -> 65 | CC6: =Timing!CE6 -> 66 | CD6: =Timing!CF6 -> 67 | CE6: =Timing!CG6 -> 68 | CF6: =Timing!CH6 -> 69 | CG6: =Timing!CI6 -> 70 | CH6: =Timing!CJ6 -> 71 | CI6: =Timing!CK6 -> 72 | CJ6: =Timing!CL6 -> 73 | CK6: =Timing!CM6 -> 74 | CL6: =Timing!CN6 -> 75 | CM6: =Timing!CO6 -> 76 | CN6: =Timing!CP6 -> 77 | CO6: =Timing!CQ6 -> 78 | CP6: =Timing!CR6 -> 79 | CQ6: =Timing!CS6 -> 80 | CR6: =Timing!CT6 -> 81 | CS6: =Timing!CU6 -> 82 | CT6: =Timing!CV6 -> 83 | CU6: =#REF! ->  | CV6: =#REF! ->  | CW6: =#REF! ->  | CX6: =#REF! ->  | CY6: =#REF! ->  | CZ6: =#REF! ->  | DA6: =#REF! ->  | DB6: =#REF! ->  | DC6: =#REF! ->  | DD6: =#REF! -> 
M7: Forecast: | P7: =Timing!R7 -> Const | Q7: =Timing!S7 -> Const | R7: =Timing!T7 -> Const | S7: =Timing!U7 -> Ops | T7: =Timing!V7 -> Ops | U7: =Timing!W7 -> Ops | V7: =Timing!X7 -> Ops | W7: =Timing!Y7 -> Ops | X7: =Timing!Z7 -> Ops | Y7: =Timing!AA7 -> Ops | Z7: =Timing!AB7 -> Ops | AA7: =Timing!AC7 -> Ops | AB7: =Timing!AD7 -> Ops | AC7: =Timing!AE7 -> Ops | AD7: =Timing!AF7 -> Ops | AE7: =Timing!AG7 -> Ops | AF7: =Timing!AH7 -> Ops | AG7: =Timing!AI7 -> Ops | AH7: =Timing!AJ7 -> Ops | AI7: =Timing!AK7 -> Ops | AJ7: =Timing!AL7 -> Ops | AK7: =Timing!AM7 -> Ops | AL7: =Timing!AN7 -> Ops | AM7: =Timing!AO7 -> Ops | AN7: =Timing!AP7 -> Ops | AO7: =Timing!AQ7 -> Ops | AP7: =Timing!AR7 -> Ops | AQ7: =Timing!AS7 -> Ops | AR7: =Timing!AT7 -> Ops | AS7: =Timing!AU7 -> Ops | AT7: =Timing!AV7 -> Ops | AU7: =Timing!AW7 -> Ops | AV7: =Timing!AX7 -> Ops | AW7: =Timing!AY7 -> Ops | AX7: =Timing!AZ7 -> Ops | AY7: =Timing!BA7 -> Ops | AZ7: =Timing!BB7 -> Ops | BA7: =Timing!BC7 -> Ops | BB7: =Timing!BD7 -> Ops | BC7: =Timing!BE7 -> Ops | BD7: =Timing!BF7 -> Ops | BE7: =Timing!BG7 -> Ops | BF7: =Timing!BH7 -> Ops | BG7: =Timing!BI7 -> Ops | BH7: =Timing!BJ7 -> Ops | BI7: =Timing!BK7 -> Ops | BJ7: =Timing!BL7 -> Ops | BK7: =Timing!BM7 -> Ops | BL7: =Timing!BN7 -> Ops | BM7: =Timing!BO7 -> Ops | BN7: =Timing!BP7 -> Ops | BO7: =Timing!BQ7 -> Ops | BP7: =Timing!BR7 -> Ops | BQ7: =Timing!BS7 -> Ops | BR7: =Timing!BT7 ->  | BS7: =Timing!BU7 ->  | BT7: =Timing!BV7 ->  | BU7: =Timing!BW7 ->  | BV7: =Timing!BX7 ->  | BW7: =Timing!BY7 ->  | BX7: =Timing!BZ7 ->  | BY7: =Timing!CA7 ->  | BZ7: =Timing!CB7 ->  | CA7: =Timing!CC7 ->  | CB7: =Timing!CD7 ->  | CC7: =Timing!CE7 ->  | CD7: =Timing!CF7 ->  | CE7: =Timing!CG7 ->  | CF7: =Timing!CH7 ->  | CG7: =Timing!CI7 ->  | CH7: =Timing!CJ7 ->  | CI7: =Timing!CK7 ->  | CJ7: =Timing!CL7 ->  | CK7: =Timing!CM7 ->  | CL7: =Timing!CN7 ->  | CM7: =Timing!CO7 ->  | CN7: =Timing!CP7 ->  | CO7: =Timing!CQ7 ->  | CP7: =Timing!CR7 ->  | CQ7: =Timing!CS7 ->  | CR7: =Timing!CT7 ->  | CS7: =Timing!CU7 ->  | CT7: =Timing!CV7 ->  | CU7: =#REF! ->  | CV7: =#REF! ->  | CW7: =#REF! ->  | CX7: =#REF! ->  | CY7: =#REF! ->  | CZ7: =#REF! ->  | DA7: =#REF! ->  | DB7: =#REF! ->  | DC7: =#REF! ->  | DD7: =#REF! -> 
B10: (+) | C10: Revenue | H10: $m | N10: =SUM(P10:DD10) ->  | P10: =Ops!P39 -> 0 | Q10: =Ops!Q39 -> 0 | R10: =Ops!R39 -> 0 | S10: =Ops!S39 -> 4074.285802 | T10: =Ops!T39 ->  | U10: =Ops!U39 -> 4074.285802 | V10: =Ops!V39 ->  | W10: =Ops!W39 -> 4074.285802 | X10: =Ops!X39 ->  | Y10: =Ops!Y39 -> 4074.285802 | Z10: =Ops!Z39 ->  | AA10: =Ops!AA39 -> 4074.285802 | AB10: =Ops!AB39 ->  | AC10: =Ops!AC39 -> 4074.285802 | AD10: =Ops!AD39 ->  | AE10: =Ops!AE39 -> 4074.285802 | AF10: =Ops!AF39 ->  | AG10: =Ops!AG39 -> 4074.285802 | AH10: =Ops!AH39 ->  | AI10: =Ops!AI39 -> 4074.285802 | AJ10: =Ops!AJ39 ->  | AK10: =Ops!AK39 -> 4074.285802 | AL10: =Ops!AL39 ->  | AM10: =Ops!AM39 -> 4074.285802 | AN10: =Ops!AN39 ->  | AO10: =Ops!AO39 -> 4074.285802 | AP10: =Ops!AP39 ->  | AQ10: =Ops!AQ39 -> 4074.285802 | AR10: =Ops!AR39 ->  | AS10: =Ops!AS39 -> 4074.285802 | AT10: =Ops!AT39 ->  | AU10: =Ops!AU39 -> 4074.285802 | AV10: =Ops!AV39 ->  | AW10: =Ops!AW39 -> 4074.285802 | AX10: =Ops!AX39 ->  | AY10: =Ops!AY39 -> 4074.285802 | AZ10: =Ops!AZ39 ->  | BA10: =Ops!BA39 -> 4074.285802 | BB10: =Ops!BB39 ->  | BC10: =Ops!BC39 -> 4074.285802 | BD10: =Ops!BD39 ->  | BE10: =Ops!BE39 -> 4074.285802 | BF10: =Ops!BF39 ->  | BG10: =Ops!BG39 -> 4074.285802 | BH10: =Ops!BH39 ->  | BI10: =Ops!BI39 -> 4074.285802 | BJ10: =Ops!BJ39 ->  | BK10: =Ops!BK39 -> 4074.285802 | BL10: =Ops!BL39 ->  | BM10: =Ops!BM39 -> 4074.285802 | BN10: =Ops!BN39 ->  | BO10: =Ops!BO39 -> 4074.285802 | BP10: =Ops!BP39 ->  | BQ10: =Ops!BQ39 -> 4074.285802 | BR10: =Ops!BR39 -> 0 | BS10: =Ops!BS39 -> 0 | BT10: =Ops!BT39 -> 0 | BU10: =Ops!BU39 -> 0 | BV10: =Ops!BV39 -> 0 | BW10: =Ops!BW39 -> 0 | BX10: =Ops!BX39 -> 0 | BY10: =Ops!BY39 -> 0 | BZ10: =Ops!BZ39 -> 0 | CA10: =Ops!CA39 -> 0 | CB10: =Ops!CB39 -> 0 | CC10: =Ops!CC39 -> 0 | CD10: =Ops!CD39 -> 0 | CE10: =Ops!CE39 -> 0 | CF10: =Ops!CF39 -> 0 | CG10: =Ops!CG39 -> 0 | CH10: =Ops!CH39 -> 0 | CI10: =Ops!CI39 -> 0 | CJ10: =Ops!CJ39 -> 0 | CK10: =Ops!CK39 -> 0 | CL10: =Ops!CL39 -> 0 | CM10: =Ops!CM39 -> 0 | CN10: =Ops!CN39 -> 0 | CO10: =Ops!CO39 -> 0 | CP10: =Ops!CP39 -> 0 | CQ10: =Ops!CQ39 -> 0
B11: (-) | C11: OpEx | H11: $m | N11: =SUM(P11:DD11) ->  | P11: =Ops!P61 ->  | Q11: =Ops!Q61 ->  | R11: =Ops!R61 ->  | S11: =Ops!S61 ->  | T11: =Ops!T61 ->  | U11: =Ops!U61 ->  | V11: =Ops!V61 ->  | W11: =Ops!W61 ->  | X11: =Ops!X61 ->  | Y11: =Ops!Y61 ->  | Z11: =Ops!Z61 ->  | AA11: =Ops!AA61 ->  | AB11: =Ops!AB61 ->  | AC11: =Ops!AC61 ->  | AD11: =Ops!AD61 ->  | AE11: =Ops!AE61 ->  | AF11: =Ops!AF61 ->  | AG11: =Ops!AG61 ->  | AH11: =Ops!AH61 ->  | AI11: =Ops!AI61 ->  | AJ11: =Ops!AJ61 ->  | AK11: =Ops!AK61 ->  | AL11: =Ops!AL61 ->  | AM11: =Ops!AM61 ->  | AN11: =Ops!AN61 ->  | AO11: =Ops!AO61 ->  | AP11: =Ops!AP61 ->  | AQ11: =Ops!AQ61 ->  | AR11: =Ops!AR61 ->  | AS11: =Ops!AS61 ->  | AT11: =Ops!AT61 ->  | AU11: =Ops!AU61 ->  | AV11: =Ops!AV61 ->  | AW11: =Ops!AW61 ->  | AX11: =Ops!AX61 ->  | AY11: =Ops!AY61 ->  | AZ11: =Ops!AZ61 ->  | BA11: =Ops!BA61 ->  | BB11: =Ops!BB61 ->  | BC11: =Ops!BC61 ->  | BD11: =Ops!BD61 ->  | BE11: =Ops!BE61 ->  | BF11: =Ops!BF61 ->  | BG11: =Ops!BG61 ->  | BH11: =Ops!BH61 ->  | BI11: =Ops!BI61 ->  | BJ11: =Ops!BJ61 ->  | BK11: =Ops!BK61 ->  | BL11: =Ops!BL61 ->  | BM11: =Ops!BM61 ->  | BN11: =Ops!BN61 ->  | BO11: =Ops!BO61 ->  | BP11: =Ops!BP61 ->  | BQ11: =Ops!BQ61 ->  | BR11: =Ops!BR61 ->  | BS11: =Ops!BS61 ->  | BT11: =Ops!BT61 ->  | BU11: =Ops!BU61 ->  | BV11: =Ops!BV61 ->  | BW11: =Ops!BW61 ->  | BX11: =Ops!BX61 ->  | BY11: =Ops!BY61 ->  | BZ11: =Ops!BZ61 ->  | CA11: =Ops!CA61 ->  | CB11: =Ops!CB61 ->  | CC11: =Ops!CC61 ->  | CD11: =Ops!CD61 ->  | CE11: =Ops!CE61 ->  | CF11: =Ops!CF61 ->  | CG11: =Ops!CG61 ->  | CH11: =Ops!CH61 ->  | CI11: =Ops!CI61 ->  | CJ11: =Ops!CJ61 ->  | CK11: =Ops!CK61 ->  | CL11: =Ops!CL61 ->  | CM11: =Ops!CM61 ->  | CN11: =Ops!CN61 ->  | CO11: =Ops!CO61 ->  | CP11: =Ops!CP61 ->  | CQ11: =Ops!CQ61 -> 
B13: EBITDA | H13: $m | N13: =SUM(P13:DD13) ->  | P13: =P10-P11 ->  | CB13: =CB10-CB11 -> 
B14: Operating Margin | H14: % | P14: =IFERROR(P13/P10,0) -> 0 | Q14: 0 | R14: 0 | S14: 0 | T14: 0 | U14: 0 | V14: 0 | W14: 0 | X14: 0 | Y14: 0 | Z14: 0 | AA14: 0 | AB14: 0 | AC14: 0 | AD14: 0 | AE14: 0 | AF14: 0 | AG14: 0 | AH14: 0 | AI14: 0 | AJ14: 0 | AK14: 0 | AL14: 0 | AM14: 0 | AN14: 0 | AO14: 0 | AP14: 0 | AQ14: 0 | AR14: 0 | AS14: 0 | AT14: 0 | AU14: 0 | AV14: 0 | AW14: 0 | AX14: 0 | AY14: 0 | AZ14: 0 | BA14: 0 | BB14: 0 | BC14: 0 | BD14: 0 | BE14: 0 | BF14: 0 | BG14: 0 | BH14: 0 | BI14: 0 | BJ14: 0 | BK14: 0 | BL14: 0 | BM14: 0 | BN14: 0 | BO14: 0 | BP14: 0 | BQ14: 0 | BR14: 0 | BS14: 0 | BT14: 0 | BU14: 0 | BV14: 0 | BW14: 0 | BX14: 0 | BY14: 0 | BZ14: 0 | CA14: 0 | CB14: =IFERROR(CB13/CB10,0) -> 0 | CC14: 0 | CD14: 0 | CE14: 0 | CF14: 0 | CG14: 0 | CH14: 0 | CI14: 0 | CJ14: 0 | CK14: 0 | CL14: 0 | CM14: 0 | CN14: 0 | CO14: 0 | CP14: 0 | CQ14: 0
B16: (-) | C16: Depreciation | H16: $m | N16: =SUM(P16:DD16) ->  | P16: ='T&D'!P46 ->  | Q16: ='T&D'!Q46 ->  | R16: ='T&D'!R46 ->  | S16: ='T&D'!S46 ->  | T16: ='T&D'!T46 ->  | U16: ='T&D'!U46 ->  | V16: ='T&D'!V46 ->  | W16: ='T&D'!W46 ->  | X16: ='T&D'!X46 ->  | Y16: ='T&D'!Y46 ->  | Z16: ='T&D'!Z46 ->  | AA16: ='T&D'!AA46 ->  | AB16: ='T&D'!AB46 ->  | AC16: ='T&D'!AC46 ->  | AD16: ='T&D'!AD46 ->  | AE16: ='T&D'!AE46 ->  | AF16: ='T&D'!AF46 ->  | AG16: ='T&D'!AG46 ->  | AH16: ='T&D'!AH46 ->  | AI16: ='T&D'!AI46 ->  | AJ16: ='T&D'!AJ46 ->  | AK16: ='T&D'!AK46 ->  | AL16: ='T&D'!AL46 ->  | AM16: ='T&D'!AM46 ->  | AN16: ='T&D'!AN46 ->  | AO16: ='T&D'!AO46 ->  | AP16: ='T&D'!AP46 ->  | AQ16: ='T&D'!AQ46 ->  | AR16: ='T&D'!AR46 ->  | AS16: ='T&D'!AS46 ->  | AT16: ='T&D'!AT46 ->  | AU16: ='T&D'!AU46 ->  | AV16: ='T&D'!AV46 ->  | AW16: ='T&D'!AW46 ->  | AX16: ='T&D'!AX46 ->  | AY16: ='T&D'!AY46 ->  | AZ16: ='T&D'!AZ46 ->  | BA16: ='T&D'!BA46 ->  | BB16: ='T&D'!BB46 ->  | BC16: ='T&D'!BC46 ->  | BD16: ='T&D'!BD46 ->  | BE16: ='T&D'!BE46 ->  | BF16: ='T&D'!BF46 ->  | BG16: ='T&D'!BG46 ->  | BH16: ='T&D'!BH46 ->  | BI16: ='T&D'!BI46 ->  | BJ16: ='T&D'!BJ46 ->  | BK16: ='T&D'!BK46 ->  | BL16: ='T&D'!BL46 ->  | BM16: ='T&D'!BM46 ->  | BN16: ='T&D'!BN46 ->  | BO16: ='T&D'!BO46 ->  | BP16: ='T&D'!BP46 ->  | BQ16: ='T&D'!BQ46 ->  | BR16: ='T&D'!BR46 ->  | BS16: ='T&D'!BS46 ->  | BT16: ='T&D'!BT46 ->  | BU16: ='T&D'!BU46 ->  | BV16: ='T&D'!BV46 ->  | BW16: ='T&D'!BW46 ->  | BX16: ='T&D'!BX46 ->  | BY16: ='T&D'!BY46 ->  | BZ16: ='T&D'!BZ46 ->  | CA16: ='T&D'!CA46 ->  | CB16: ='T&D'!CB46 ->  | CC16: ='T&D'!CC46 ->  | CD16: ='T&D'!CD46 ->  | CE16: ='T&D'!CE46 ->  | CF16: ='T&D'!CF46 ->  | CG16: ='T&D'!CG46 ->  | CH16: ='T&D'!CH46 ->  | CI16: ='T&D'!CI46 ->  | CJ16: ='T&D'!CJ46 ->  | CK16: ='T&D'!CK46 ->  | CL16: ='T&D'!CL46 ->  | CM16: ='T&D'!CM46 ->  | CN16: ='T&D'!CN46 ->  | CO16: ='T&D'!CO46 ->  | CP16: ='T&D'!CP46 ->  | CQ16: ='T&D'!CQ46 -> 
B18: EBIT | H18: $m | N18: =SUM(P18:DD18) ->  | P18: =P13-P16 ->  | CB18: =CB13-CB16 -> 
B20: (-) | C20: Senior Debt Interest Expense | H20: $m | N20: =SUM(P20:DD20) ->  | P20: =Financing!P108 -> 0 | Q20: =Financing!Q108 ->  | R20: =Financing!R108 ->  | S20: =Financing!S108 ->  | T20: =Financing!T108 ->  | U20: =Financing!U108 ->  | V20: =Financing!V108 ->  | W20: =Financing!W108 ->  | X20: =Financing!X108 ->  | Y20: =Financing!Y108 ->  | Z20: =Financing!Z108 ->  | AA20: =Financing!AA108 ->  | AB20: =Financing!AB108 ->  | AC20: =Financing!AC108 ->  | AD20: =Financing!AD108 ->  | AE20: =Financing!AE108 ->  | AF20: =Financing!AF108 ->  | AG20: =Financing!AG108 ->  | AH20: =Financing!AH108 ->  | AI20: =Financing!AI108 ->  | AJ20: =Financing!AJ108 ->  | AK20: =Financing!AK108 ->  | AL20: =Financing!AL108 ->  | AM20: =Financing!AM108 ->  | AN20: =Financing!AN108 ->  | AO20: =Financing!AO108 ->  | AP20: =Financing!AP108 ->  | AQ20: =Financing!AQ108 ->  | AR20: =Financing!AR108 ->  | AS20: =Financing!AS108 ->  | AT20: =Financing!AT108 ->  | AU20: =Financing!AU108 ->  | AV20: =Financing!AV108 ->  | AW20: =Financing!AW108 ->  | AX20: =Financing!AX108 ->  | AY20: =Financing!AY108 ->  | AZ20: =Financing!AZ108 ->  | BA20: =Financing!BA108 ->  | BB20: =Financing!BB108 ->  | BC20: =Financing!BC108 ->  | BD20: =Financing!BD108 ->  | BE20: =Financing!BE108 ->  | BF20: =Financing!BF108 ->  | BG20: =Financing!BG108 ->  | BH20: =Financing!BH108 ->  | BI20: =Financing!BI108 ->  | BJ20: =Financing!BJ108 ->  | BK20: =Financing!BK108 ->  | BL20: =Financing!BL108 ->  | BM20: =Financing!BM108 ->  | BN20: =Financing!BN108 ->  | BO20: =Financing!BO108 ->  | BP20: =Financing!BP108 ->  | BQ20: =Financing!BQ108 ->  | BR20: =Financing!BR108 ->  | BS20: =Financing!BS108 ->  | BT20: =Financing!BT108 ->  | BU20: =Financing!BU108 ->  | BV20: =Financing!BV108 ->  | BW20: =Financing!BW108 ->  | BX20: =Financing!BX108 ->  | BY20: =Financing!BY108 ->  | BZ20: =Financing!BZ108 ->  | CA20: =Financing!CA108 ->  | CB20: =Financing!CB108 ->  | CC20: =Financing!CC108 ->  | CD20: =Financing!CD108 ->  | CE20: =Financing!CE108 ->  | CF20: =Financing!CF108 ->  | CG20: =Financing!CG108 ->  | CH20: =Financing!CH108 ->  | CI20: =Financing!CI108 ->  | CJ20: =Financing!CJ108 ->  | CK20: =Financing!CK108 ->  | CL20: =Financing!CL108 ->  | CM20: =Financing!CM108 ->  | CN20: =Financing!CN108 ->  | CO20: =Financing!CO108 ->  | CP20: =Financing!CP108 ->  | CQ20: =Financing!CQ108 -> 
B21: (-) | C21: DSRF Interest | H21: $m | N21: =SUM(P21:DD21) ->  | P21: =Financing!P138 -> 0 | Q21: =Financing!Q138 ->  | R21: =Financing!R138 ->  | S21: =Financing!S138 ->  | T21: =Financing!T138 ->  | U21: =Financing!U138 ->  | V21: =Financing!V138 ->  | W21: =Financing!W138 ->  | X21: =Financing!X138 ->  | Y21: =Financing!Y138 ->  | Z21: =Financing!Z138 ->  | AA21: =Financing!AA138 ->  | AB21: =Financing!AB138 ->  | AC21: =Financing!AC138 ->  | AD21: =Financing!AD138 ->  | AE21: =Financing!AE138 ->  | AF21: =Financing!AF138 ->  | AG21: =Financing!AG138 ->  | AH21: =Financing!AH138 ->  | AI21: =Financing!AI138 ->  | AJ21: =Financing!AJ138 ->  | AK21: =Financing!AK138 ->  | AL21: =Financing!AL138 ->  | AM21: =Financing!AM138 ->  | AN21: =Financing!AN138 ->  | AO21: =Financing!AO138 ->  | AP21: =Financing!AP138 ->  | AQ21: =Financing!AQ138 ->  | AR21: =Financing!AR138 ->  | AS21: =Financing!AS138 ->  | AT21: =Financing!AT138 ->  | AU21: =Financing!AU138 ->  | AV21: =Financing!AV138 ->  | AW21: =Financing!AW138 ->  | AX21: =Financing!AX138 ->  | AY21: =Financing!AY138 ->  | AZ21: =Financing!AZ138 ->  | BA21: =Financing!BA138 ->  | BB21: =Financing!BB138 ->  | BC21: =Financing!BC138 ->  | BD21: =Financing!BD138 ->  | BE21: =Financing!BE138 ->  | BF21: =Financing!BF138 ->  | BG21: =Financing!BG138 ->  | BH21: =Financing!BH138 ->  | BI21: =Financing!BI138 ->  | BJ21: =Financing!BJ138 ->  | BK21: =Financing!BK138 ->  | BL21: =Financing!BL138 ->  | BM21: =Financing!BM138 ->  | BN21: =Financing!BN138 ->  | BO21: =Financing!BO138 ->  | BP21: =Financing!BP138 ->  | BQ21: =Financing!BQ138 ->  | BR21: =Financing!BR138 ->  | BS21: =Financing!BS138 ->  | BT21: =Financing!BT138 ->  | BU21: =Financing!BU138 ->  | BV21: =Financing!BV138 ->  | BW21: =Financing!BW138 ->  | BX21: =Financing!BX138 ->  | BY21: =Financing!BY138 ->  | BZ21: =Financing!BZ138 ->  | CA21: =Financing!CA138 ->  | CB21: =Financing!CB138 ->  | CC21: =Financing!CC138 ->  | CD21: =Financing!CD138 ->  | CE21: =Financing!CE138 ->  | CF21: =Financing!CF138 ->  | CG21: =Financing!CG138 ->  | CH21: =Financing!CH138 ->  | CI21: =Financing!CI138 ->  | CJ21: =Financing!CJ138 ->  | CK21: =Financing!CK138 ->  | CL21: =Financing!CL138 ->  | CM21: =Financing!CM138 ->  | CN21: =Financing!CN138 ->  | CO21: =Financing!CO138 ->  | CP21: =Financing!CP138 ->  | CQ21: =Financing!CQ138 -> 
B23: Earnings Before Tax (EBT) | H23: $m | N23: =SUM(P23:DD23) ->  | P23: =P18-SUM(P20:P21) ->  | AV23: =AV18-SUM(AV20:AV21) ->  | CB23: =CB18-SUM(CB20:CB21) -> 
B25: (-) | C25: Tax Paid | H25: $m | N25: =SUM(P25:DD25) ->  | P25: ='T&D'!P27 ->  | Q25: ='T&D'!Q27 ->  | R25: ='T&D'!R27 ->  | S25: ='T&D'!S27 ->  | T25: ='T&D'!T27 ->  | U25: ='T&D'!U27 ->  | V25: ='T&D'!V27 ->  | W25: ='T&D'!W27 ->  | X25: ='T&D'!X27 ->  | Y25: ='T&D'!Y27 ->  | Z25: ='T&D'!Z27 ->  | AA25: ='T&D'!AA27 ->  | AB25: ='T&D'!AB27 ->  | AC25: ='T&D'!AC27 ->  | AD25: ='T&D'!AD27 ->  | AE25: ='T&D'!AE27 ->  | AF25: ='T&D'!AF27 ->  | AG25: ='T&D'!AG27 ->  | AH25: ='T&D'!AH27 ->  | AI25: ='T&D'!AI27 ->  | AJ25: ='T&D'!AJ27 ->  | AK25: ='T&D'!AK27 ->  | AL25: ='T&D'!AL27 ->  | AM25: ='T&D'!AM27 ->  | AN25: ='T&D'!AN27 ->  | AO25: ='T&D'!AO27 ->  | AP25: ='T&D'!AP27 ->  | AQ25: ='T&D'!AQ27 ->  | AR25: ='T&D'!AR27 ->  | AS25: ='T&D'!AS27 ->  | AT25: ='T&D'!AT27 ->  | AU25: ='T&D'!AU27 ->  | AV25: ='T&D'!AV27 ->  | AW25: ='T&D'!AW27 ->  | AX25: ='T&D'!AX27 ->  | AY25: ='T&D'!AY27 ->  | AZ25: ='T&D'!AZ27 ->  | BA25: ='T&D'!BA27 ->  | BB25: ='T&D'!BB27 ->  | BC25: ='T&D'!BC27 ->  | BD25: ='T&D'!BD27 ->  | BE25: ='T&D'!BE27 ->  | BF25: ='T&D'!BF27 ->  | BG25: ='T&D'!BG27 ->  | BH25: ='T&D'!BH27 ->  | BI25: ='T&D'!BI27 ->  | BJ25: ='T&D'!BJ27 ->  | BK25: ='T&D'!BK27 ->  | BL25: ='T&D'!BL27 ->  | BM25: ='T&D'!BM27 ->  | BN25: ='T&D'!BN27 ->  | BO25: ='T&D'!BO27 ->  | BP25: ='T&D'!BP27 ->  | BQ25: ='T&D'!BQ27 ->  | BR25: ='T&D'!BR27 ->  | BS25: ='T&D'!BS27 ->  | BT25: ='T&D'!BT27 ->  | BU25: ='T&D'!BU27 ->  | BV25: ='T&D'!BV27 ->  | BW25: ='T&D'!BW27 ->  | BX25: ='T&D'!BX27 ->  | BY25: ='T&D'!BY27 ->  | BZ25: ='T&D'!BZ27 ->  | CA25: ='T&D'!CA27 ->  | CB25: ='T&D'!CB27 ->  | CC25: ='T&D'!CC27 ->  | CD25: ='T&D'!CD27 ->  | CE25: ='T&D'!CE27 ->  | CF25: ='T&D'!CF27 ->  | CG25: ='T&D'!CG27 ->  | CH25: ='T&D'!CH27 ->  | CI25: ='T&D'!CI27 ->  | CJ25: ='T&D'!CJ27 ->  | CK25: ='T&D'!CK27 ->  | CL25: ='T&D'!CL27 ->  | CM25: ='T&D'!CM27 ->  | CN25: ='T&D'!CN27 ->  | CO25: ='T&D'!CO27 ->  | CP25: ='T&D'!CP27 ->  | CQ25: ='T&D'!CQ27 -> 
B27: Net Income | H27: $m | N27: =SUM(P27:DD27) ->  | P27: =P23-P25 ->  | CB27: =CB23-CB25 -> 
B28: Net Margin | H28: % | P28: =IFERROR(P27/P10,0) -> 0 | Q28: 0 | R28: 0 | S28: 0 | T28: 0 | U28: 0 | V28: 0 | W28: 0 | X28: 0 | Y28: 0 | Z28: 0 | AA28: 0 | AB28: 0 | AC28: 0 | AD28: 0 | AE28: 0 | AF28: 0 | AG28: 0 | AH28: 0 | AI28: 0 | AJ28: 0 | AK28: 0 | AL28: 0 | AM28: 0 | AN28: 0 | AO28: 0 | AP28: 0 | AQ28: 0 | AR28: 0 | AS28: 0 | AT28: 0 | AU28: 0 | AV28: 0 | AW28: 0 | AX28: 0 | AY28: 0 | AZ28: 0 | BA28: 0 | BB28: 0 | BC28: 0 | BD28: 0 | BE28: 0 | BF28: 0 | BG28: 0 | BH28: 0 | BI28: 0 | BJ28: 0 | BK28: 0 | BL28: 0 | BM28: 0 | BN28: 0 | BO28: 0 | BP28: 0 | BQ28: 0 | BR28: 0 | BS28: 0 | BT28: 0 | BU28: 0 | BV28: 0 | BW28: 0 | BX28: 0 | BY28: 0 | BZ28: 0 | CA28: 0 | CB28: =IFERROR(CB27/CB10,0) -> 0 | CC28: 0 | CD28: 0 | CE28: 0 | CF28: 0 | CG28: 0 | CH28: 0 | CI28: 0 | CJ28: 0 | CK28: 0 | CL28: 0 | CM28: 0 | CN28: 0 | CO28: 0 | CP28: 0 | CQ28: 0
B30: (-) | C30: Dividend Distribution | H30: $m | N30: =SUM(P30:CT30) ->  | P30: =Equity!P50 ->  | Q30: =Equity!Q50 ->  | R30: =Equity!R50 ->  | S30: =Equity!S50 ->  | T30: =Equity!T50 ->  | U30: =Equity!U50 ->  | V30: =Equity!V50 ->  | W30: =Equity!W50 ->  | X30: =Equity!X50 ->  | Y30: =Equity!Y50 ->  | Z30: =Equity!Z50 ->  | AA30: =Equity!AA50 ->  | AB30: =Equity!AB50 ->  | AC30: =Equity!AC50 ->  | AD30: =Equity!AD50 ->  | AE30: =Equity!AE50 ->  | AF30: =Equity!AF50 ->  | AG30: =Equity!AG50 ->  | AH30: =Equity!AH50 ->  | AI30: =Equity!AI50 ->  | AJ30: =Equity!AJ50 ->  | AK30: =Equity!AK50 ->  | AL30: =Equity!AL50 ->  | AM30: =Equity!AM50 ->  | AN30: =Equity!AN50 ->  | AO30: =Equity!AO50 ->  | AP30: =Equity!AP50 ->  | AQ30: =Equity!AQ50 ->  | AR30: =Equity!AR50 ->  | AS30: =Equity!AS50 ->  | AT30: =Equity!AT50 ->  | AU30: =Equity!AU50 ->  | AV30: =Equity!AV50 ->  | AW30: =Equity!AW50 ->  | AX30: =Equity!AX50 ->  | AY30: =Equity!AY50 ->  | AZ30: =Equity!AZ50 ->  | BA30: =Equity!BA50 ->  | BB30: =Equity!BB50 ->  | BC30: =Equity!BC50 ->  | BD30: =Equity!BD50 ->  | BE30: =Equity!BE50 ->  | BF30: =Equity!BF50 ->  | BG30: =Equity!BG50 ->  | BH30: =Equity!BH50 ->  | BI30: =Equity!BI50 ->  | BJ30: =Equity!BJ50 ->  | BK30: =Equity!BK50 ->  | BL30: =Equity!BL50 ->  | BM30: =Equity!BM50 ->  | BN30: =Equity!BN50 ->  | BO30: =Equity!BO50 ->  | BP30: =Equity!BP50 ->  | BQ30: =Equity!BQ50 ->  | BR30: =Equity!BR50 ->  | BS30: =Equity!BS50 ->  | BT30: =Equity!BT50 ->  | BU30: =Equity!BU50 ->  | BV30: =Equity!BV50 ->  | BW30: =Equity!BW50 ->  | BX30: =Equity!BX50 ->  | BY30: =Equity!BY50 ->  | BZ30: =Equity!BZ50 ->  | CA30: =Equity!CA50 ->  | CB30: =Equity!CB50 ->  | CC30: =Equity!CC50 ->  | CD30: =Equity!CD50 ->  | CE30: =Equity!CE50 ->  | CF30: =Equity!CF50 ->  | CG30: =Equity!CG50 ->  | CH30: =Equity!CH50 ->  | CI30: =Equity!CI50 ->  | CJ30: =Equity!CJ50 ->  | CK30: =Equity!CK50 ->  | CL30: =Equity!CL50 ->  | CM30: =Equity!CM50 ->  | CN30: =Equity!CN50 ->  | CO30: =Equity!CO50 ->  | CP30: =Equity!CP50 ->  | CQ30: =Equity!CQ50 -> 
B32: Retained Earnings | H32: $m | N32: =SUM(P32:CT32) ->  | P32: =P27-P30 ->  | CB32: =CB27-CB30 -> 
A34: End Sheet

Sheet CF
N5: Year: | P5: =Timing!R5 -> 2021 | Q5: =Timing!S5 -> 2022 | R5: =Timing!T5 -> 2023 | S5: =Timing!U5 -> 2024 | T5: =Timing!V5 -> 2025 | U5: =Timing!W5 -> 2026 | V5: =Timing!X5 -> 2027 | W5: =Timing!Y5 -> 2028 | X5: =Timing!Z5 -> 2029 | Y5: =Timing!AA5 -> 2030 | Z5: =Timing!AB5 -> 2031 | AA5: =Timing!AC5 -> 2032 | AB5: =Timing!AD5 -> 2033 | AC5: =Timing!AE5 -> 2034 | AD5: =Timing!AF5 -> 2035 | AE5: =Timing!AG5 -> 2036 | AF5: =Timing!AH5 -> 2037 | AG5: =Timing!AI5 -> 2038 | AH5: =Timing!AJ5 -> 2039 | AI5: =Timing!AK5 -> 2040 | AJ5: =Timing!AL5 -> 2041 | AK5: =Timing!AM5 -> 2042 | AL5: =Timing!AN5 -> 2043 | AM5: =Timing!AO5 -> 2044 | AN5: =Timing!AP5 -> 2045 | AO5: =Timing!AQ5 -> 2046 | AP5: =Timing!AR5 -> 2047 | AQ5: =Timing!AS5 -> 2048 | AR5: =Timing!AT5 -> 2049 | AS5: =Timing!AU5 -> 2050 | AT5: =Timing!AV5 -> 2051 | AU5: =Timing!AW5 -> 2052 | AV5: =Timing!AX5 -> 2053 | AW5: =Timing!AY5 -> 2054 | AX5: =Timing!AZ5 -> 2055 | AY5: =Timing!BA5 -> 2056 | AZ5: =Timing!BB5 -> 2057 | BA5: =Timing!BC5 -> 2058 | BB5: =Timing!BD5 -> 2059 | BC5: =Timing!BE5 -> 2060 | BD5: =Timing!BF5 -> 2061 | BE5: =Timing!BG5 -> 2062 | BF5: =Timing!BH5 -> 2063 | BG5: =Timing!BI5 -> 2064 | BH5: =Timing!BJ5 -> 2065 | BI5: =Timing!BK5 -> 2066 | BJ5: =Timing!BL5 -> 2067 | BK5: =Timing!BM5 -> 2068 | BL5: =Timing!BN5 -> 2069 | BM5: =Timing!BO5 -> 2070 | BN5: =Timing!BP5 -> 2071 | BO5: =Timing!BQ5 -> 2072 | BP5: =Timing!BR5 -> 2073 | BQ5: =Timing!BS5 -> 2074 | BR5: =Timing!BT5 -> 2075 | BS5: =Timing!BU5 -> 2076 | BT5: =Timing!BV5 -> 2077 | BU5: =Timing!BW5 -> 2078 | BV5: =Timing!BX5 -> 2079 | BW5: =Timing!BY5 -> 2080 | BX5: =Timing!BZ5 -> 2081 | BY5: =Timing!CA5 -> 2082 | BZ5: =Timing!CB5 -> 2083 | CA5: =Timing!CC5 -> 2084 | CB5: =Timing!CD5 -> 2085 | CC5: =Timing!CE5 -> 2086 | CD5: =Timing!CF5 -> 2087 | CE5: =Timing!CG5 -> 2088 | CF5: =Timing!CH5 -> 2089 | CG5: =Timing!CI5 -> 2090 | CH5: =Timing!CJ5 -> 2091 | CI5: =Timing!CK5 -> 2092 | CJ5: =Timing!CL5 -> 2093 | CK5: =Timing!CM5 -> 2094 | CL5: =Timing!CN5 -> 2095 | CM5: =Timing!CO5 -> 2096 | CN5: =Timing!CP5 -> 2097 | CO5: =Timing!CQ5 -> 2098 | CP5: =Timing!CR5 -> 2099 | CQ5: =Timing!CS5 -> 2100 | CR5: =Timing!CT5 -> 2101 | CS5: =Timing!CU5 -> 2102 | CT5: =Timing!CV5 -> 2103 | CU5: =CT5+1 -> 2104 | CV5: 2105 | CW5: 2106 | CX5: 2107 | CY5: 2108 | CZ5: 2109 | DA5: 2110 | DB5: 2111 | DC5: 2112 | DD5: 2113
N6: Year #: | P6: =Timing!R6 -> 1 | Q6: =Timing!S6 -> 2 | R6: =Timing!T6 -> 3 | S6: =Timing!U6 -> 4 | T6: =Timing!V6 -> 5 | U6: =Timing!W6 -> 6 | V6: =Timing!X6 -> 7 | W6: =Timing!Y6 -> 8 | X6: =Timing!Z6 -> 9 | Y6: =Timing!AA6 -> 10 | Z6: =Timing!AB6 -> 11 | AA6: =Timing!AC6 -> 12 | AB6: =Timing!AD6 -> 13 | AC6: =Timing!AE6 -> 14 | AD6: =Timing!AF6 -> 15 | AE6: =Timing!AG6 -> 16 | AF6: =Timing!AH6 -> 17 | AG6: =Timing!AI6 -> 18 | AH6: =Timing!AJ6 -> 19 | AI6: =Timing!AK6 -> 20 | AJ6: =Timing!AL6 -> 21 | AK6: =Timing!AM6 -> 22 | AL6: =Timing!AN6 -> 23 | AM6: =Timing!AO6 -> 24 | AN6: =Timing!AP6 -> 25 | AO6: =Timing!AQ6 -> 26 | AP6: =Timing!AR6 -> 27 | AQ6: =Timing!AS6 -> 28 | AR6: =Timing!AT6 -> 29 | AS6: =Timing!AU6 -> 30 | AT6: =Timing!AV6 -> 31 | AU6: =Timing!AW6 -> 32 | AV6: =Timing!AX6 -> 33 | AW6: =Timing!AY6 -> 34 | AX6: =Timing!AZ6 -> 35 | AY6: =Timing!BA6 -> 36 | AZ6: =Timing!BB6 -> 37 | BA6: =Timing!BC6 -> 38 | BB6: =Timing!BD6 -> 39 | BC6: =Timing!BE6 -> 40 | BD6: =Timing!BF6 -> 41 | BE6: =Timing!BG6 -> 42 | BF6: =Timing!BH6 -> 43 | BG6: =Timing!BI6 -> 44 | BH6: =Timing!BJ6 -> 45 | BI6: =Timing!BK6 -> 46 | BJ6: =Timing!BL6 -> 47 | BK6: =Timing!BM6 -> 48 | BL6: =Timing!BN6 -> 49 | BM6: =Timing!BO6 -> 50 | BN6: =Timing!BP6 -> 51 | BO6: =Timing!BQ6 -> 52 | BP6: =Timing!BR6 -> 53 | BQ6: =Timing!BS6 -> 54 | BR6: =Timing!BT6 -> 55 | BS6: =Timing!BU6 -> 56 | BT6: =Timing!BV6 -> 57 | BU6: =Timing!BW6 -> 58 | BV6: =Timing!BX6 -> 59 | BW6: =Timing!BY6 -> 60 | BX6: =Timing!BZ6 -> 61 | BY6: =Timing!CA6 -> 62 | BZ6: =Timing!CB6 -> 63 | CA6: =Timing!CC6 -> 64 | CB6: =Timing!CD6 -> 65 | CC6: =Timing!CE6 -> 66 | CD6: =Timing!CF6 -> 67 | CE6: =Timing!CG6 -> 68 | CF6: =Timing!CH6 -> 69 | CG6: =Timing!CI6 -> 70 | CH6: =Timing!CJ6 -> 71 | CI6: =Timing!CK6 -> 72 | CJ6: =Timing!CL6 -> 73 | CK6: =Timing!CM6 -> 74 | CL6: =Timing!CN6 -> 75 | CM6: =Timing!CO6 -> 76 | CN6: =Timing!CP6 -> 77 | CO6: =Timing!CQ6 -> 78 | CP6: =Timing!CR6 -> 79 | CQ6: =Timing!CS6 -> 80 | CR6: =Timing!CT6 -> 81 | CS6: =Timing!CU6 -> 82 | CT6: =Timing!CV6 -> 83 | CU6: =#REF! ->  | CV6: =#REF! ->  | CW6: =#REF! ->  | CX6: =#REF! ->  | CY6: =#REF! ->  | CZ6: =#REF! ->  | DA6: =#REF! ->  | DB6: =#REF! ->  | DC6: =#REF! ->  | DD6: =#REF! -> 
N7: Forecast: | P7: =Timing!R7 -> Const | Q7: =Timing!S7 -> Const | R7: =Timing!T7 -> Const | S7: =Timing!U7 -> Ops | T7: =Timing!V7 -> Ops | U7: =Timing!W7 -> Ops | V7: =Timing!X7 -> Ops | W7: =Timing!Y7 -> Ops | X7: =Timing!Z7 -> Ops | Y7: =Timing!AA7 -> Ops | Z7: =Timing!AB7 -> Ops | AA7: =Timing!AC7 -> Ops | AB7: =Timing!AD7 -> Ops | AC7: =Timing!AE7 -> Ops | AD7: =Timing!AF7 -> Ops | AE7: =Timing!AG7 -> Ops | AF7: =Timing!AH7 -> Ops | AG7: =Timing!AI7 -> Ops | AH7: =Timing!AJ7 -> Ops | AI7: =Timing!AK7 -> Ops | AJ7: =Timing!AL7 -> Ops | AK7: =Timing!AM7 -> Ops | AL7: =Timing!AN7 -> Ops | AM7: =Timing!AO7 -> Ops | AN7: =Timing!AP7 -> Ops | AO7: =Timing!AQ7 -> Ops | AP7: =Timing!AR7 -> Ops | AQ7: =Timing!AS7 -> Ops | AR7: =Timing!AT7 -> Ops | AS7: =Timing!AU7 -> Ops | AT7: =Timing!AV7 -> Ops | AU7: =Timing!AW7 -> Ops | AV7: =Timing!AX7 -> Ops | AW7: =Timing!AY7 -> Ops | AX7: =Timing!AZ7 -> Ops | AY7: =Timing!BA7 -> Ops | AZ7: =Timing!BB7 -> Ops | BA7: =Timing!BC7 -> Ops | BB7: =Timing!BD7 -> Ops | BC7: =Timing!BE7 -> Ops | BD7: =Timing!BF7 -> Ops | BE7: =Timing!BG7 -> Ops | BF7: =Timing!BH7 -> Ops | BG7: =Timing!BI7 -> Ops | BH7: =Timing!BJ7 -> Ops | BI7: =Timing!BK7 -> Ops | BJ7: =Timing!BL7 -> Ops | BK7: =Timing!BM7 -> Ops | BL7: =Timing!BN7 -> Ops | BM7: =Timing!BO7 -> Ops | BN7: =Timing!BP7 -> Ops | BO7: =Timing!BQ7 -> Ops | BP7: =Timing!BR7 -> Ops | BQ7: =Timing!BS7 -> Ops | BR7: =Timing!BT7 ->  | BS7: =Timing!BU7 ->  | BT7: =Timing!BV7 ->  | BU7: =Timing!BW7 ->  | BV7: =Timing!BX7 ->  | BW7: =Timing!BY7 ->  | BX7: =Timing!BZ7 ->  | BY7: =Timing!CA7 ->  | BZ7: =Timing!CB7 ->  | CA7: =Timing!CC7 ->  | CB7: =Timing!CD7 ->  | CC7: =Timing!CE7 ->  | CD7: =Timing!CF7 ->  | CE7: =Timing!CG7 ->  | CF7: =Timing!CH7 ->  | CG7: =Timing!CI7 ->  | CH7: =Timing!CJ7 ->  | CI7: =Timing!CK7 ->  | CJ7: =Timing!CL7 ->  | CK7: =Timing!CM7 ->  | CL7: =Timing!CN7 ->  | CM7: =Timing!CO7 ->  | CN7: =Timing!CP7 ->  | CO7: =Timing!CQ7 ->  | CP7: =Timing!CR7 ->  | CQ7: =Timing!CS7 ->  | CR7: =Timing!CT7 ->  | CS7: =Timing!CU7 ->  | CT7: =Timing!CV7 ->  | CU7: =#REF! ->  | CV7: =#REF! ->  | CW7: =#REF! ->  | CX7: =#REF! ->  | CY7: =#REF! ->  | CZ7: =#REF! ->  | DA7: =#REF! ->  | DB7: =#REF! ->  | DC7: =#REF! ->  | DD7: =#REF! -> 
B10: (+) | C10: EBITDA | H10: $m | N10: =SUM(P10:DD10) ->  | P10: =IS!P13 ->  | Q10: =IS!Q13 ->  | R10: =IS!R13 ->  | S10: =IS!S13 ->  | T10: =IS!T13 ->  | U10: =IS!U13 ->  | V10: =IS!V13 ->  | W10: =IS!W13 ->  | X10: =IS!X13 ->  | Y10: =IS!Y13 ->  | Z10: =IS!Z13 ->  | AA10: =IS!AA13 ->  | AB10: =IS!AB13 ->  | AC10: =IS!AC13 ->  | AD10: =IS!AD13 ->  | AE10: =IS!AE13 ->  | AF10: =IS!AF13 ->  | AG10: =IS!AG13 ->  | AH10: =IS!AH13 ->  | AI10: =IS!AI13 ->  | AJ10: =IS!AJ13 ->  | AK10: =IS!AK13 ->  | AL10: =IS!AL13 ->  | AM10: =IS!AM13 ->  | AN10: =IS!AN13 ->  | AO10: =IS!AO13 ->  | AP10: =IS!AP13 ->  | AQ10: =IS!AQ13 ->  | AR10: =IS!AR13 ->  | AS10: =IS!AS13 ->  | AT10: =IS!AT13 ->  | AU10: =IS!AU13 ->  | AV10: =IS!AV13 ->  | AW10: =IS!AW13 ->  | AX10: =IS!AX13 ->  | AY10: =IS!AY13 ->  | AZ10: =IS!AZ13 ->  | BA10: =IS!BA13 ->  | BB10: =IS!BB13 ->  | BC10: =IS!BC13 ->  | BD10: =IS!BD13 ->  | BE10: =IS!BE13 ->  | BF10: =IS!BF13 ->  | BG10: =IS!BG13 ->  | BH10: =IS!BH13 ->  | BI10: =IS!BI13 ->  | BJ10: =IS!BJ13 ->  | BK10: =IS!BK13 ->  | BL10: =IS!BL13 ->  | BM10: =IS!BM13 ->  | BN10: =IS!BN13 ->  | BO10: =IS!BO13 ->  | BP10: =IS!BP13 ->  | BQ10: =IS!BQ13 ->  | BR10: =IS!BR13 ->  | BS10: =IS!BS13 ->  | BT10: =IS!BT13 ->  | BU10: =IS!BU13 ->  | BV10: =IS!BV13 ->  | BW10: =IS!BW13 ->  | BX10: =IS!BX13 ->  | BY10: =IS!BY13 ->  | BZ10: =IS!BZ13 ->  | CA10: =IS!CA13 ->  | CB10: =IS!CB13 ->  | CC10: =IS!CC13 ->  | CD10: =IS!CD13 ->  | CE10: =IS!CE13 ->  | CF10: =IS!CF13 ->  | CG10: =IS!CG13 ->  | CH10: =IS!CH13 ->  | CI10: =IS!CI13 ->  | CJ10: =IS!CJ13 ->  | CK10: =IS!CK13 ->  | CL10: =IS!CL13 ->  | CM10: =IS!CM13 ->  | CN10: =IS!CN13 ->  | CO10: =IS!CO13 ->  | CP10: =IS!CP13 ->  | CQ10: =IS!CQ13 ->  | CR10: =IS!CR13 -> 0 | CS10: =IS!CS13 -> 0 | CT10: =IS!CT13 -> 0
B11: (-) | C11: Lifecycle CAPEX | H11: $m | N11: =SUM(P11:DD11) ->  | P11: =CAPEX!P38 ->  | Q11: =CAPEX!Q38 ->  | R11: =CAPEX!R38 ->  | S11: =CAPEX!S38 ->  | T11: =CAPEX!T38 ->  | U11: =CAPEX!U38 ->  | V11: =CAPEX!V38 ->  | W11: =CAPEX!W38 ->  | X11: =CAPEX!X38 ->  | Y11: =CAPEX!Y38 ->  | Z11: =CAPEX!Z38 ->  | AA11: =CAPEX!AA38 ->  | AB11: =CAPEX!AB38 ->  | AC11: =CAPEX!AC38 ->  | AD11: =CAPEX!AD38 ->  | AE11: =CAPEX!AE38 ->  | AF11: =CAPEX!AF38 ->  | AG11: =CAPEX!AG38 ->  | AH11: =CAPEX!AH38 ->  | AI11: =CAPEX!AI38 ->  | AJ11: =CAPEX!AJ38 ->  | AK11: =CAPEX!AK38 ->  | AL11: =CAPEX!AL38 ->  | AM11: =CAPEX!AM38 ->  | AN11: =CAPEX!AN38 ->  | AO11: =CAPEX!AO38 ->  | AP11: =CAPEX!AP38 ->  | AQ11: =CAPEX!AQ38 ->  | AR11: =CAPEX!AR38 ->  | AS11: =CAPEX!AS38 ->  | AT11: =CAPEX!AT38 ->  | AU11: =CAPEX!AU38 ->  | AV11: =CAPEX!AV38 ->  | AW11: =CAPEX!AW38 ->  | AX11: =CAPEX!AX38 ->  | AY11: =CAPEX!AY38 ->  | AZ11: =CAPEX!AZ38 ->  | BA11: =CAPEX!BA38 ->  | BB11: =CAPEX!BB38 ->  | BC11: =CAPEX!BC38 ->  | BD11: =CAPEX!BD38 ->  | BE11: =CAPEX!BE38 ->  | BF11: =CAPEX!BF38 ->  | BG11: =CAPEX!BG38 ->  | BH11: =CAPEX!BH38 ->  | BI11: =CAPEX!BI38 ->  | BJ11: =CAPEX!BJ38 ->  | BK11: =CAPEX!BK38 ->  | BL11: =CAPEX!BL38 ->  | BM11: =CAPEX!BM38 ->  | BN11: =CAPEX!BN38 ->  | BO11: =CAPEX!BO38 ->  | BP11: =CAPEX!BP38 ->  | BQ11: =CAPEX!BQ38 ->  | BR11: =CAPEX!BR38 ->  | BS11: =CAPEX!BS38 ->  | BT11: =CAPEX!BT38 ->  | BU11: =CAPEX!BU38 ->  | BV11: =CAPEX!BV38 ->  | BW11: =CAPEX!BW38 ->  | BX11: =CAPEX!BX38 ->  | BY11: =CAPEX!BY38 ->  | BZ11: =CAPEX!BZ38 ->  | CA11: =CAPEX!CA38 ->  | CB11: =CAPEX!CB38 ->  | CC11: =CAPEX!CC38 ->  | CD11: =CAPEX!CD38 ->  | CE11: =CAPEX!CE38 ->  | CF11: =CAPEX!CF38 ->  | CG11: =CAPEX!CG38 ->  | CH11: =CAPEX!CH38 ->  | CI11: =CAPEX!CI38 ->  | CJ11: =CAPEX!CJ38 ->  | CK11: =CAPEX!CK38 ->  | CL11: =CAPEX!CL38 ->  | CM11: =CAPEX!CM38 ->  | CN11: =CAPEX!CN38 ->  | CO11: =CAPEX!CO38 ->  | CP11: =CAPEX!CP38 ->  | CQ11: =CAPEX!CQ38 ->  | CR11: =CAPEX!CR38 -> 0 | CS11: =CAPEX!CS38 -> 0 | CT11: =CAPEX!CT38 -> 0
B12: (-) | C12: Tax Paid | H12: $m | N12: =SUM(P12:DD12) ->  | P12: =IS!P25 ->  | Q12: =IS!Q25 ->  | R12: =IS!R25 ->  | S12: =IS!S25 ->  | T12: =IS!T25 ->  | U12: =IS!U25 ->  | V12: =IS!V25 ->  | W12: =IS!W25 ->  | X12: =IS!X25 ->  | Y12: =IS!Y25 ->  | Z12: =IS!Z25 ->  | AA12: =IS!AA25 ->  | AB12: =IS!AB25 ->  | AC12: =IS!AC25 ->  | AD12: =IS!AD25 ->  | AE12: =IS!AE25 ->  | AF12: =IS!AF25 ->  | AG12: =IS!AG25 ->  | AH12: =IS!AH25 ->  | AI12: =IS!AI25 ->  | AJ12: =IS!AJ25 ->  | AK12: =IS!AK25 ->  | AL12: =IS!AL25 ->  | AM12: =IS!AM25 ->  | AN12: =IS!AN25 ->  | AO12: =IS!AO25 ->  | AP12: =IS!AP25 ->  | AQ12: =IS!AQ25 ->  | AR12: =IS!AR25 ->  | AS12: =IS!AS25 ->  | AT12: =IS!AT25 ->  | AU12: =IS!AU25 ->  | AV12: =IS!AV25 ->  | AW12: =IS!AW25 ->  | AX12: =IS!AX25 ->  | AY12: =IS!AY25 ->  | AZ12: =IS!AZ25 ->  | BA12: =IS!BA25 ->  | BB12: =IS!BB25 ->  | BC12: =IS!BC25 ->  | BD12: =IS!BD25 ->  | BE12: =IS!BE25 ->  | BF12: =IS!BF25 ->  | BG12: =IS!BG25 ->  | BH12: =IS!BH25 ->  | BI12: =IS!BI25 ->  | BJ12: =IS!BJ25 ->  | BK12: =IS!BK25 ->  | BL12: =IS!BL25 ->  | BM12: =IS!BM25 ->  | BN12: =IS!BN25 ->  | BO12: =IS!BO25 ->  | BP12: =IS!BP25 ->  | BQ12: =IS!BQ25 ->  | BR12: =IS!BR25 ->  | BS12: =IS!BS25 ->  | BT12: =IS!BT25 ->  | BU12: =IS!BU25 ->  | BV12: =IS!BV25 ->  | BW12: =IS!BW25 ->  | BX12: =IS!BX25 ->  | BY12: =IS!BY25 ->  | BZ12: =IS!BZ25 ->  | CA12: =IS!CA25 ->  | CB12: =IS!CB25 ->  | CC12: =IS!CC25 ->  | CD12: =IS!CD25 ->  | CE12: =IS!CE25 ->  | CF12: =IS!CF25 ->  | CG12: =IS!CG25 ->  | CH12: =IS!CH25 ->  | CI12: =IS!CI25 ->  | CJ12: =IS!CJ25 ->  | CK12: =IS!CK25 ->  | CL12: =IS!CL25 ->  | CM12: =IS!CM25 ->  | CN12: =IS!CN25 ->  | CO12: =IS!CO25 ->  | CP12: =IS!CP25 ->  | CQ12: =IS!CQ25 ->  | CR12: =IS!CR25 -> 0 | CS12: =IS!CS25 -> 0 | CT12: =IS!CT25 -> 0
B13: (-) | C13: Working Capital Adjsutments | H13: $m | N13: =SUM(P13:DD13) ->  | P13: =Ops!P89 ->  | Q13: =Ops!Q89 ->  | R13: =Ops!R89 ->  | S13: =Ops!S89 ->  | T13: =Ops!T89 ->  | U13: =Ops!U89 ->  | V13: =Ops!V89 ->  | W13: =Ops!W89 ->  | X13: =Ops!X89 ->  | Y13: =Ops!Y89 ->  | Z13: =Ops!Z89 ->  | AA13: =Ops!AA89 ->  | AB13: =Ops!AB89 ->  | AC13: =Ops!AC89 ->  | AD13: =Ops!AD89 ->  | AE13: =Ops!AE89 ->  | AF13: =Ops!AF89 ->  | AG13: =Ops!AG89 ->  | AH13: =Ops!AH89 ->  | AI13: =Ops!AI89 ->  | AJ13: =Ops!AJ89 ->  | AK13: =Ops!AK89 ->  | AL13: =Ops!AL89 ->  | AM13: =Ops!AM89 ->  | AN13: =Ops!AN89 ->  | AO13: =Ops!AO89 ->  | AP13: =Ops!AP89 ->  | AQ13: =Ops!AQ89 ->  | AR13: =Ops!AR89 ->  | AS13: =Ops!AS89 ->  | AT13: =Ops!AT89 ->  | AU13: =Ops!AU89 ->  | AV13: =Ops!AV89 ->  | AW13: =Ops!AW89 ->  | AX13: =Ops!AX89 ->  | AY13: =Ops!AY89 ->  | AZ13: =Ops!AZ89 ->  | BA13: =Ops!BA89 ->  | BB13: =Ops!BB89 ->  | BC13: =Ops!BC89 ->  | BD13: =Ops!BD89 ->  | BE13: =Ops!BE89 ->  | BF13: =Ops!BF89 ->  | BG13: =Ops!BG89 ->  | BH13: =Ops!BH89 ->  | BI13: =Ops!BI89 ->  | BJ13: =Ops!BJ89 ->  | BK13: =Ops!BK89 ->  | BL13: =Ops!BL89 ->  | BM13: =Ops!BM89 ->  | BN13: =Ops!BN89 ->  | BO13: =Ops!BO89 ->  | BP13: =Ops!BP89 ->  | BQ13: =Ops!BQ89 ->  | BR13: =Ops!BR89 ->  | BS13: =Ops!BS89 ->  | BT13: =Ops!BT89 ->  | BU13: =Ops!BU89 ->  | BV13: =Ops!BV89 ->  | BW13: =Ops!BW89 ->  | BX13: =Ops!BX89 ->  | BY13: =Ops!BY89 ->  | BZ13: =Ops!BZ89 ->  | CA13: =Ops!CA89 ->  | CB13: =Ops!CB89 ->  | CC13: =Ops!CC89 ->  | CD13: =Ops!CD89 ->  | CE13: =Ops!CE89 ->  | CF13: =Ops!CF89 ->  | CG13: =Ops!CG89 ->  | CH13: =Ops!CH89 ->  | CI13: =Ops!CI89 ->  | CJ13: =Ops!CJ89 ->  | CK13: =Ops!CK89 ->  | CL13: =Ops!CL89 ->  | CM13: =Ops!CM89 ->  | CN13: =Ops!CN89 ->  | CO13: =Ops!CO89 ->  | CP13: =Ops!CP89 ->  | CQ13: =Ops!CQ89 ->  | CR13: =Ops!CR89 ->  | CS13: =Ops!CS89 ->  | CT13: =Ops!CT89 -> 
B15: Operating Cash Flow | H15: $m | N15: =SUM(P15:DD15) ->  | P15: =P10-P11-P12-P13 ->  | Q15: =Q10-Q11-Q12-Q13 ->  | AK15: =AK10-AK11-AK12-AK13 -> 
B17: (-) | C17: CAPEX | H17: $m | N17: =SUM(P17:DD17) ->  | P17: =Financing!P15 ->  | Q17: =Financing!Q15 ->  | R17: =Financing!R15 ->  | S17: =Financing!S15 ->  | T17: =Financing!T15 ->  | U17: =Financing!U15 ->  | V17: =Financing!V15 ->  | W17: =Financing!W15 ->  | X17: =Financing!X15 ->  | Y17: =Financing!Y15 ->  | Z17: =Financing!Z15 ->  | AA17: =Financing!AA15 ->  | AB17: =Financing!AB15 ->  | AC17: =Financing!AC15 ->  | AD17: =Financing!AD15 ->  | AE17: =Financing!AE15 ->  | AF17: =Financing!AF15 ->  | AG17: =Financing!AG15 ->  | AH17: =Financing!AH15 ->  | AI17: =Financing!AI15 ->  | AJ17: =Financing!AJ15 ->  | AK17: =Financing!AK15 ->  | AL17: =Financing!AL15 ->  | AM17: =Financing!AM15 ->  | AN17: =Financing!AN15 ->  | AO17: =Financing!AO15 ->  | AP17: =Financing!AP15 ->  | AQ17: =Financing!AQ15 ->  | AR17: =Financing!AR15 ->  | AS17: =Financing!AS15 ->  | AT17: =Financing!AT15 ->  | AU17: =Financing!AU15 ->  | AV17: =Financing!AV15 ->  | AW17: =Financing!AW15 ->  | AX17: =Financing!AX15 ->  | AY17: =Financing!AY15 ->  | AZ17: =Financing!AZ15 ->  | BA17: =Financing!BA15 ->  | BB17: =Financing!BB15 ->  | BC17: =Financing!BC15 ->  | BD17: =Financing!BD15 ->  | BE17: =Financing!BE15 ->  | BF17: =Financing!BF15 ->  | BG17: =Financing!BG15 ->  | BH17: =Financing!BH15 ->  | BI17: =Financing!BI15 ->  | BJ17: =Financing!BJ15 ->  | BK17: =Financing!BK15 ->  | BL17: =Financing!BL15 ->  | BM17: =Financing!BM15 ->  | BN17: =Financing!BN15 ->  | BO17: =Financing!BO15 ->  | BP17: =Financing!BP15 ->  | BQ17: =Financing!BQ15 ->  | BR17: =Financing!BR15 ->  | BS17: =Financing!BS15 ->  | BT17: =Financing!BT15 ->  | BU17: =Financing!BU15 ->  | BV17: =Financing!BV15 ->  | BW17: =Financing!BW15 ->  | BX17: =Financing!BX15 ->  | BY17: =Financing!BY15 ->  | BZ17: =Financing!BZ15 ->  | CA17: =Financing!CA15 ->  | CB17: =Financing!CB15 ->  | CC17: =Financing!CC15 ->  | CD17: =Financing!CD15 ->  | CE17: =Financing!CE15 ->  | CF17: =Financing!CF15 ->  | CG17: =Financing!CG15 ->  | CH17: =Financing!CH15 ->  | CI17: =Financing!CI15 ->  | CJ17: =Financing!CJ15 ->  | CK17: =Financing!CK15 ->  | CL17: =Financing!CL15 ->  | CM17: =Financing!CM15 ->  | CN17: =Financing!CN15 ->  | CO17: =Financing!CO15 ->  | CP17: =Financing!CP15 ->  | CQ17: =Financing!CQ15 ->  | CR17: =Financing!CR15 -> 0 | CS17: =Financing!CS15 -> 0 | CT17: =Financing!CT15 -> 0
B18: (-) | C18: Fees | H18: $m | N18: =SUM(P18:DD18) -> 500 | P18: =Financing!P16 -> 300 | Q18: =Financing!Q16 -> 100 | R18: =Financing!R16 -> 100 | S18: =Financing!S16 -> 0 | T18: =Financing!T16 -> 0 | U18: =Financing!U16 -> 0 | V18: =Financing!V16 -> 0 | W18: =Financing!W16 -> 0 | X18: =Financing!X16 -> 0 | Y18: =Financing!Y16 -> 0 | Z18: =Financing!Z16 -> 0 | AA18: =Financing!AA16 -> 0 | AB18: =Financing!AB16 -> 0 | AC18: =Financing!AC16 -> 0 | AD18: =Financing!AD16 -> 0 | AE18: =Financing!AE16 -> 0 | AF18: =Financing!AF16 -> 0 | AG18: =Financing!AG16 -> 0 | AH18: =Financing!AH16 -> 0 | AI18: =Financing!AI16 -> 0 | AJ18: =Financing!AJ16 -> 0 | AK18: =Financing!AK16 -> 0 | AL18: =Financing!AL16 -> 0 | AM18: =Financing!AM16 -> 0 | AN18: =Financing!AN16 -> 0 | AO18: =Financing!AO16 -> 0 | AP18: =Financing!AP16 -> 0 | AQ18: =Financing!AQ16 -> 0 | AR18: =Financing!AR16 -> 0 | AS18: =Financing!AS16 -> 0 | AT18: =Financing!AT16 -> 0 | AU18: =Financing!AU16 -> 0 | AV18: =Financing!AV16 -> 0 | AW18: =Financing!AW16 -> 0 | AX18: =Financing!AX16 -> 0 | AY18: =Financing!AY16 -> 0 | AZ18: =Financing!AZ16 -> 0 | BA18: =Financing!BA16 -> 0 | BB18: =Financing!BB16 -> 0 | BC18: =Financing!BC16 -> 0 | BD18: =Financing!BD16 -> 0 | BE18: =Financing!BE16 -> 0 | BF18: =Financing!BF16 -> 0 | BG18: =Financing!BG16 -> 0 | BH18: =Financing!BH16 -> 0 | BI18: =Financing!BI16 -> 0 | BJ18: =Financing!BJ16 -> 0 | BK18: =Financing!BK16 -> 0 | BL18: =Financing!BL16 -> 0 | BM18: =Financing!BM16 -> 0 | BN18: =Financing!BN16 -> 0 | BO18: =Financing!BO16 -> 0 | BP18: =Financing!BP16 -> 0 | BQ18: =Financing!BQ16 -> 0 | BR18: =Financing!BR16 -> 0 | BS18: =Financing!BS16 -> 0 | BT18: =Financing!BT16 -> 0 | BU18: =Financing!BU16 -> 0 | BV18: =Financing!BV16 -> 0 | BW18: =Financing!BW16 -> 0 | BX18: =Financing!BX16 -> 0 | BY18: =Financing!BY16 -> 0 | BZ18: =Financing!BZ16 -> 0 | CA18: =Financing!CA16 -> 0 | CB18: =Financing!CB16 -> 0 | CC18: =Financing!CC16 -> 0 | CD18: =Financing!CD16 -> 0 | CE18: =Financing!CE16 -> 0 | CF18: =Financing!CF16 -> 0 | CG18: =Financing!CG16 -> 0 | CH18: =Financing!CH16 -> 0 | CI18: =Financing!CI16 -> 0 | CJ18: =Financing!CJ16 -> 0 | CK18: =Financing!CK16 -> 0 | CL18: =Financing!CL16 -> 0 | CM18: =Financing!CM16 -> 0 | CN18: =Financing!CN16 -> 0 | CO18: =Financing!CO16 -> 0 | CP18: =Financing!CP16 -> 0 | CQ18: =Financing!CQ16 -> 0 | CR18: =Financing!CR16 -> 0 | CS18: =Financing!CS16 -> 0 | CT18: =Financing!CT16 -> 0
B19: (-) | C19: Interest During Construction | H19: $m | N19: 333 | P19: =Financing!P17 -> 111 | Q19: =Financing!Q17 -> 111 | R19: =Financing!R17 -> 111 | S19: =Financing!S17 -> 0 | T19: =Financing!T17 -> 0 | U19: =Financing!U17 -> 0 | V19: =Financing!V17 -> 0 | W19: =Financing!W17 -> 0 | X19: =Financing!X17 -> 0 | Y19: =Financing!Y17 -> 0 | Z19: =Financing!Z17 -> 0 | AA19: =Financing!AA17 -> 0 | AB19: =Financing!AB17 -> 0 | AC19: =Financing!AC17 -> 0 | AD19: =Financing!AD17 -> 0 | AE19: =Financing!AE17 -> 0 | AF19: =Financing!AF17 -> 0 | AG19: =Financing!AG17 -> 0 | AH19: =Financing!AH17 -> 0 | AI19: =Financing!AI17 -> 0 | AJ19: =Financing!AJ17 -> 0 | AK19: =Financing!AK17 -> 0 | AL19: =Financing!AL17 -> 0 | AM19: =Financing!AM17 -> 0 | AN19: =Financing!AN17 -> 0 | AO19: =Financing!AO17 -> 0 | AP19: =Financing!AP17 -> 0 | AQ19: =Financing!AQ17 -> 0 | AR19: =Financing!AR17 -> 0 | AS19: =Financing!AS17 -> 0 | AT19: =Financing!AT17 -> 0 | AU19: =Financing!AU17 -> 0 | AV19: =Financing!AV17 -> 0 | AW19: =Financing!AW17 -> 0 | AX19: =Financing!AX17 -> 0 | AY19: =Financing!AY17 -> 0 | AZ19: =Financing!AZ17 -> 0 | BA19: =Financing!BA17 -> 0 | BB19: =Financing!BB17 -> 0 | BC19: =Financing!BC17 -> 0 | BD19: =Financing!BD17 -> 0 | BE19: =Financing!BE17 -> 0 | BF19: =Financing!BF17 -> 0 | BG19: =Financing!BG17 -> 0 | BH19: =Financing!BH17 -> 0 | BI19: =Financing!BI17 -> 0 | BJ19: =Financing!BJ17 -> 0 | BK19: =Financing!BK17 -> 0 | BL19: =Financing!BL17 -> 0 | BM19: =Financing!BM17 -> 0 | BN19: =Financing!BN17 -> 0 | BO19: =Financing!BO17 -> 0 | BP19: =Financing!BP17 -> 0 | BQ19: =Financing!BQ17 -> 0 | BR19: =Financing!BR17 -> 0 | BS19: =Financing!BS17 -> 0 | BT19: =Financing!BT17 -> 0 | BU19: =Financing!BU17 -> 0 | BV19: =Financing!BV17 -> 0 | BW19: =Financing!BW17 -> 0 | BX19: =Financing!BX17 -> 0 | BY19: =Financing!BY17 -> 0 | BZ19: =Financing!BZ17 -> 0 | CA19: =Financing!CA17 -> 0 | CB19: =Financing!CB17 -> 0 | CC19: =Financing!CC17 -> 0 | CD19: =Financing!CD17 -> 0 | CE19: =Financing!CE17 -> 0 | CF19: =Financing!CF17 -> 0 | CG19: =Financing!CG17 -> 0 | CH19: =Financing!CH17 -> 0 | CI19: =Financing!CI17 -> 0 | CJ19: =Financing!CJ17 -> 0 | CK19: =Financing!CK17 -> 0 | CL19: =Financing!CL17 -> 0 | CM19: =Financing!CM17 -> 0 | CN19: =Financing!CN17 -> 0 | CO19: =Financing!CO17 -> 0 | CP19: =Financing!CP17 -> 0 | CQ19: =Financing!CQ17 -> 0 | CR19: =Financing!CR17 -> 0 | CS19: =Financing!CS17 -> 0 | CT19: =Financing!CT17 -> 0
B21: Cash Flow Before Financing | H21: $m | N21: =SUM(P21:DD21) ->  | P21: =P15-SUM(P17:P19) ->  | Q21: =Q15-SUM(Q17:Q19) ->  | AK21: =AK15-SUM(AK17:AK19) -> 
B23: (+) | C23: Share Capital Drawdown | H23: $m | N23: =SUM(P23:DD23) ->  | P23: =Financing!P22 ->  | Q23: =Financing!Q22 ->  | R23: =Financing!R22 ->  | S23: =Financing!S22 ->  | T23: =Financing!T22 ->  | U23: =Financing!U22 ->  | V23: =Financing!V22 ->  | W23: =Financing!W22 ->  | X23: =Financing!X22 ->  | Y23: =Financing!Y22 ->  | Z23: =Financing!Z22 ->  | AA23: =Financing!AA22 ->  | AB23: =Financing!AB22 ->  | AC23: =Financing!AC22 ->  | AD23: =Financing!AD22 ->  | AE23: =Financing!AE22 ->  | AF23: =Financing!AF22 ->  | AG23: =Financing!AG22 ->  | AH23: =Financing!AH22 ->  | AI23: =Financing!AI22 ->  | AJ23: =Financing!AJ22 ->  | AK23: =Financing!AK22 ->  | AL23: =Financing!AL22 ->  | AM23: =Financing!AM22 ->  | AN23: =Financing!AN22 ->  | AO23: =Financing!AO22 ->  | AP23: =Financing!AP22 ->  | AQ23: =Financing!AQ22 ->  | AR23: =Financing!AR22 ->  | AS23: =Financing!AS22 ->  | AT23: =Financing!AT22 ->  | AU23: =Financing!AU22 ->  | AV23: =Financing!AV22 ->  | AW23: =Financing!AW22 ->  | AX23: =Financing!AX22 ->  | AY23: =Financing!AY22 ->  | AZ23: =Financing!AZ22 ->  | BA23: =Financing!BA22 ->  | BB23: =Financing!BB22 ->  | BC23: =Financing!BC22 ->  | BD23: =Financing!BD22 ->  | BE23: =Financing!BE22 ->  | BF23: =Financing!BF22 ->  | BG23: =Financing!BG22 ->  | BH23: =Financing!BH22 ->  | BI23: =Financing!BI22 ->  | BJ23: =Financing!BJ22 ->  | BK23: =Financing!BK22 ->  | BL23: =Financing!BL22 ->  | BM23: =Financing!BM22 ->  | BN23: =Financing!BN22 ->  | BO23: =Financing!BO22 ->  | BP23: =Financing!BP22 ->  | BQ23: =Financing!BQ22 ->  | BR23: =Financing!BR22 ->  | BS23: =Financing!BS22 ->  | BT23: =Financing!BT22 ->  | BU23: =Financing!BU22 ->  | BV23: =Financing!BV22 ->  | BW23: =Financing!BW22 ->  | BX23: =Financing!BX22 ->  | BY23: =Financing!BY22 ->  | BZ23: =Financing!BZ22 ->  | CA23: =Financing!CA22 ->  | CB23: =Financing!CB22 ->  | CC23: =Financing!CC22 ->  | CD23: =Financing!CD22 ->  | CE23: =Financing!CE22 ->  | CF23: =Financing!CF22 ->  | CG23: =Financing!CG22 ->  | CH23: =Financing!CH22 ->  | CI23: =Financing!CI22 ->  | CJ23: =Financing!CJ22 ->  | CK23: =Financing!CK22 ->  | CL23: =Financing!CL22 ->  | CM23: =Financing!CM22 ->  | CN23: =Financing!CN22 ->  | CO23: =Financing!CO22 ->  | CP23: =Financing!CP22 ->  | CQ23: =Financing!CQ22 ->  | CR23: =Financing!CR22 ->  | CS23: =Financing!CS22 ->  | CT23: =Financing!CT22 -> 
B24: (+) | C24: Senior Debt Drawdown | H24: $m | N24: =SUM(P24:DD24) ->  | P24: =Financing!P23 ->  | Q24: =Financing!Q23 ->  | R24: =Financing!R23 ->  | S24: =Financing!S23 ->  | T24: =Financing!T23 ->  | U24: =Financing!U23 ->  | V24: =Financing!V23 ->  | W24: =Financing!W23 ->  | X24: =Financing!X23 ->  | Y24: =Financing!Y23 ->  | Z24: =Financing!Z23 ->  | AA24: =Financing!AA23 ->  | AB24: =Financing!AB23 ->  | AC24: =Financing!AC23 ->  | AD24: =Financing!AD23 ->  | AE24: =Financing!AE23 ->  | AF24: =Financing!AF23 ->  | AG24: =Financing!AG23 ->  | AH24: =Financing!AH23 ->  | AI24: =Financing!AI23 ->  | AJ24: =Financing!AJ23 ->  | AK24: =Financing!AK23 ->  | AL24: =Financing!AL23 ->  | AM24: =Financing!AM23 ->  | AN24: =Financing!AN23 ->  | AO24: =Financing!AO23 ->  | AP24: =Financing!AP23 ->  | AQ24: =Financing!AQ23 ->  | AR24: =Financing!AR23 ->  | AS24: =Financing!AS23 ->  | AT24: =Financing!AT23 ->  | AU24: =Financing!AU23 ->  | AV24: =Financing!AV23 ->  | AW24: =Financing!AW23 ->  | AX24: =Financing!AX23 ->  | AY24: =Financing!AY23 ->  | AZ24: =Financing!AZ23 ->  | BA24: =Financing!BA23 ->  | BB24: =Financing!BB23 ->  | BC24: =Financing!BC23 ->  | BD24: =Financing!BD23 ->  | BE24: =Financing!BE23 ->  | BF24: =Financing!BF23 ->  | BG24: =Financing!BG23 ->  | BH24: =Financing!BH23 ->  | BI24: =Financing!BI23 ->  | BJ24: =Financing!BJ23 ->  | BK24: =Financing!BK23 ->  | BL24: =Financing!BL23 ->  | BM24: =Financing!BM23 ->  | BN24: =Financing!BN23 ->  | BO24: =Financing!BO23 ->  | BP24: =Financing!BP23 ->  | BQ24: =Financing!BQ23 ->  | BR24: =Financing!BR23 ->  | BS24: =Financing!BS23 ->  | BT24: =Financing!BT23 ->  | BU24: =Financing!BU23 ->  | BV24: =Financing!BV23 ->  | BW24: =Financing!BW23 ->  | BX24: =Financing!BX23 ->  | BY24: =Financing!BY23 ->  | BZ24: =Financing!BZ23 ->  | CA24: =Financing!CA23 ->  | CB24: =Financing!CB23 ->  | CC24: =Financing!CC23 ->  | CD24: =Financing!CD23 ->  | CE24: =Financing!CE23 ->  | CF24: =Financing!CF23 ->  | CG24: =Financing!CG23 ->  | CH24: =Financing!CH23 ->  | CI24: =Financing!CI23 ->  | CJ24: =Financing!CJ23 ->  | CK24: =Financing!CK23 ->  | CL24: =Financing!CL23 ->  | CM24: =Financing!CM23 ->  | CN24: =Financing!CN23 ->  | CO24: =Financing!CO23 ->  | CP24: =Financing!CP23 ->  | CQ24: =Financing!CQ23 ->  | CR24: =Financing!CR23 ->  | CS24: =Financing!CS23 ->  | CT24: =Financing!CT23 -> 
B26: CFADS | H26: $m | N26: =SUM(P26:DD26) ->  | P26: =P21+SUM(P23:P24) ->  | Q26: =Q21+SUM(Q23:Q24) ->  | AK26: =AK21+SUM(AK23:AK24) -> 
B28: Senior Debt
B29: (-) | C29: Principal Repayment | H29: $m | N29: =SUM(P29:DD29) ->  | P29: =Financing!P107 -> 0 | Q29: =Financing!Q107 ->  | R29: =Financing!R107 ->  | S29: =Financing!S107 ->  | T29: =Financing!T107 ->  | U29: =Financing!U107 ->  | V29: =Financing!V107 ->  | W29: =Financing!W107 ->  | X29: =Financing!X107 ->  | Y29: =Financing!Y107 ->  | Z29: =Financing!Z107 ->  | AA29: =Financing!AA107 ->  | AB29: =Financing!AB107 ->  | AC29: =Financing!AC107 ->  | AD29: =Financing!AD107 ->  | AE29: =Financing!AE107 ->  | AF29: =Financing!AF107 ->  | AG29: =Financing!AG107 ->  | AH29: =Financing!AH107 ->  | AI29: =Financing!AI107 ->  | AJ29: =Financing!AJ107 ->  | AK29: =Financing!AK107 ->  | AL29: =Financing!AL107 ->  | AM29: =Financing!AM107 ->  | AN29: =Financing!AN107 ->  | AO29: =Financing!AO107 ->  | AP29: =Financing!AP107 ->  | AQ29: =Financing!AQ107 ->  | AR29: =Financing!AR107 ->  | AS29: =Financing!AS107 ->  | AT29: =Financing!AT107 ->  | AU29: =Financing!AU107 ->  | AV29: =Financing!AV107 ->  | AW29: =Financing!AW107 ->  | AX29: =Financing!AX107 ->  | AY29: =Financing!AY107 ->  | AZ29: =Financing!AZ107 ->  | BA29: =Financing!BA107 ->  | BB29: =Financing!BB107 ->  | BC29: =Financing!BC107 ->  | BD29: =Financing!BD107 ->  | BE29: =Financing!BE107 ->  | BF29: =Financing!BF107 ->  | BG29: =Financing!BG107 ->  | BH29: =Financing!BH107 ->  | BI29: =Financing!BI107 ->  | BJ29: =Financing!BJ107 ->  | BK29: =Financing!BK107 ->  | BL29: =Financing!BL107 ->  | BM29: =Financing!BM107 ->  | BN29: =Financing!BN107 ->  | BO29: =Financing!BO107 ->  | BP29: =Financing!BP107 ->  | BQ29: =Financing!BQ107 ->  | BR29: =Financing!BR107 ->  | BS29: =Financing!BS107 ->  | BT29: =Financing!BT107 ->  | BU29: =Financing!BU107 ->  | BV29: =Financing!BV107 ->  | BW29: =Financing!BW107 ->  | BX29: =Financing!BX107 ->  | BY29: =Financing!BY107 ->  | BZ29: =Financing!BZ107 ->  | CA29: =Financing!CA107 ->  | CB29: =Financing!CB107 ->  | CC29: =Financing!CC107 ->  | CD29: =Financing!CD107 ->  | CE29: =Financing!CE107 ->  | CF29: =Financing!CF107 ->  | CG29: =Financing!CG107 ->  | CH29: =Financing!CH107 ->  | CI29: =Financing!CI107 ->  | CJ29: =Financing!CJ107 ->  | CK29: =Financing!CK107 ->  | CL29: =Financing!CL107 ->  | CM29: =Financing!CM107 ->  | CN29: =Financing!CN107 ->  | CO29: =Financing!CO107 ->  | CP29: =Financing!CP107 ->  | CQ29: =Financing!CQ107 ->  | CR29: =Financing!CR107 ->  | CS29: =Financing!CS107 ->  | CT29: =Financing!CT107 -> 
B30: (-) | C30: Interest Expense | H30: $m | N30: =SUM(P30:DD30) ->  | P30: =Financing!P108 -> 0 | Q30: =Financing!Q108 ->  | R30: =Financing!R108 ->  | S30: =Financing!S108 ->  | T30: =Financing!T108 ->  | U30: =Financing!U108 ->  | V30: =Financing!V108 ->  | W30: =Financing!W108 ->  | X30: =Financing!X108 ->  | Y30: =Financing!Y108 ->  | Z30: =Financing!Z108 ->  | AA30: =Financing!AA108 ->  | AB30: =Financing!AB108 ->  | AC30: =Financing!AC108 ->  | AD30: =Financing!AD108 ->  | AE30: =Financing!AE108 ->  | AF30: =Financing!AF108 ->  | AG30: =Financing!AG108 ->  | AH30: =Financing!AH108 ->  | AI30: =Financing!AI108 ->  | AJ30: =Financing!AJ108 ->  | AK30: =Financing!AK108 ->  | AL30: =Financing!AL108 ->  | AM30: =Financing!AM108 ->  | AN30: =Financing!AN108 ->  | AO30: =Financing!AO108 ->  | AP30: =Financing!AP108 ->  | AQ30: =Financing!AQ108 ->  | AR30: =Financing!AR108 ->  | AS30: =Financing!AS108 ->  | AT30: =Financing!AT108 ->  | AU30: =Financing!AU108 ->  | AV30: =Financing!AV108 ->  | AW30: =Financing!AW108 ->  | AX30: =Financing!AX108 ->  | AY30: =Financing!AY108 ->  | AZ30: =Financing!AZ108 ->  | BA30: =Financing!BA108 ->  | BB30: =Financing!BB108 ->  | BC30: =Financing!BC108 ->  | BD30: =Financing!BD108 ->  | BE30: =Financing!BE108 ->  | BF30: =Financing!BF108 ->  | BG30: =Financing!BG108 ->  | BH30: =Financing!BH108 ->  | BI30: =Financing!BI108 ->  | BJ30: =Financing!BJ108 ->  | BK30: =Financing!BK108 ->  | BL30: =Financing!BL108 ->  | BM30: =Financing!BM108 ->  | BN30: =Financing!BN108 ->  | BO30: =Financing!BO108 ->  | BP30: =Financing!BP108 ->  | BQ30: =Financing!BQ108 ->  | BR30: =Financing!BR108 ->  | BS30: =Financing!BS108 ->  | BT30: =Financing!BT108 ->  | BU30: =Financing!BU108 ->  | BV30: =Financing!BV108 ->  | BW30: =Financing!BW108 ->  | BX30: =Financing!BX108 ->  | BY30: =Financing!BY108 ->  | BZ30: =Financing!BZ108 ->  | CA30: =Financing!CA108 ->  | CB30: =Financing!CB108 ->  | CC30: =Financing!CC108 ->  | CD30: =Financing!CD108 ->  | CE30: =Financing!CE108 ->  | CF30: =Financing!CF108 ->  | CG30: =Financing!CG108 ->  | CH30: =Financing!CH108 ->  | CI30: =Financing!CI108 ->  | CJ30: =Financing!CJ108 ->  | CK30: =Financing!CK108 ->  | CL30: =Financing!CL108 ->  | CM30: =Financing!CM108 ->  | CN30: =Financing!CN108 ->  | CO30: =Financing!CO108 ->  | CP30: =Financing!CP108 ->  | CQ30: =Financing!CQ108 ->  | CR30: =Financing!CR108 ->  | CS30: =Financing!CS108 ->  | CT30: =Financing!CT108 -> 
B32: Cash Flow To Sweep | H32: $m | N32: =SUM(P32:DD32) ->  | P32: =P26-P29-P30 ->  | Q32: =Q26-Q29-Q30 ->  | AK32: =AK26-AK29-AK30 -> 
B34: (-) | C34: Cash Swept | H34: $m | N34: =SUM(P34:DD34) ->  | P34: =Financing!P95 ->  | Q34: =Financing!Q95 ->  | R34: =Financing!R95 ->  | S34: =Financing!S95 ->  | T34: =Financing!T95 ->  | U34: =Financing!U95 ->  | V34: =Financing!V95 ->  | W34: =Financing!W95 ->  | X34: =Financing!X95 ->  | Y34: =Financing!Y95 ->  | Z34: =Financing!Z95 ->  | AA34: =Financing!AA95 ->  | AB34: =Financing!AB95 ->  | AC34: =Financing!AC95 ->  | AD34: =Financing!AD95 ->  | AE34: =Financing!AE95 ->  | AF34: =Financing!AF95 ->  | AG34: =Financing!AG95 ->  | AH34: =Financing!AH95 ->  | AI34: =Financing!AI95 ->  | AJ34: =Financing!AJ95 ->  | AK34: =Financing!AK95 ->  | AL34: =Financing!AL95 ->  | AM34: =Financing!AM95 ->  | AN34: =Financing!AN95 ->  | AO34: =Financing!AO95 ->  | AP34: =Financing!AP95 ->  | AQ34: =Financing!AQ95 ->  | AR34: =Financing!AR95 ->  | AS34: =Financing!AS95 ->  | AT34: =Financing!AT95 ->  | AU34: =Financing!AU95 ->  | AV34: =Financing!AV95 ->  | AW34: =Financing!AW95 ->  | AX34: =Financing!AX95 ->  | AY34: =Financing!AY95 ->  | AZ34: =Financing!AZ95 ->  | BA34: =Financing!BA95 ->  | BB34: =Financing!BB95 ->  | BC34: =Financing!BC95 ->  | BD34: =Financing!BD95 ->  | BE34: =Financing!BE95 ->  | BF34: =Financing!BF95 ->  | BG34: =Financing!BG95 ->  | BH34: =Financing!BH95 ->  | BI34: =Financing!BI95 ->  | BJ34: =Financing!BJ95 ->  | BK34: =Financing!BK95 ->  | BL34: =Financing!BL95 ->  | BM34: =Financing!BM95 ->  | BN34: =Financing!BN95 ->  | BO34: =Financing!BO95 ->  | BP34: =Financing!BP95 ->  | BQ34: =Financing!BQ95 ->  | BR34: =Financing!BR95 ->  | BS34: =Financing!BS95 ->  | BT34: =Financing!BT95 ->  | BU34: =Financing!BU95 ->  | BV34: =Financing!BV95 ->  | BW34: =Financing!BW95 ->  | BX34: =Financing!BX95 ->  | BY34: =Financing!BY95 ->  | BZ34: =Financing!BZ95 ->  | CA34: =Financing!CA95 ->  | CB34: =Financing!CB95 ->  | CC34: =Financing!CC95 ->  | CD34: =Financing!CD95 ->  | CE34: =Financing!CE95 ->  | CF34: =Financing!CF95 ->  | CG34: =Financing!CG95 ->  | CH34: =Financing!CH95 ->  | CI34: =Financing!CI95 ->  | CJ34: =Financing!CJ95 ->  | CK34: =Financing!CK95 ->  | CL34: =Financing!CL95 ->  | CM34: =Financing!CM95 ->  | CN34: =Financing!CN95 ->  | CO34: =Financing!CO95 ->  | CP34: =Financing!CP95 ->  | CQ34: =Financing!CQ95 ->  | CR34: =Financing!CR95 ->  | CS34: =Financing!CS95 ->  | CT34: =Financing!CT95 -> 
B36: Cash Flow to DSRF | H36: $m | N36: =SUM(P36:DD36) ->  | P36: =P32-P34 ->  | Q36: =Q32-Q34 ->  | AK36: =AK32-AK34 -> 
B38: (+) | C38: DSRF Drawdown | H38: $m | N38: =SUM(P38:DD38) ->  | P38: =Financing!P124 -> 0 | Q38: =Financing!Q124 ->  | R38: =Financing!R124 ->  | S38: =Financing!S124 ->  | T38: =Financing!T124 ->  | U38: =Financing!U124 ->  | V38: =Financing!V124 ->  | W38: =Financing!W124 ->  | X38: =Financing!X124 ->  | Y38: =Financing!Y124 ->  | Z38: =Financing!Z124 ->  | AA38: =Financing!AA124 ->  | AB38: =Financing!AB124 ->  | AC38: =Financing!AC124 ->  | AD38: =Financing!AD124 ->  | AE38: =Financing!AE124 ->  | AF38: =Financing!AF124 ->  | AG38: =Financing!AG124 ->  | AH38: =Financing!AH124 ->  | AI38: =Financing!AI124 ->  | AJ38: =Financing!AJ124 ->  | AK38: =Financing!AK124 ->  | AL38: =Financing!AL124 ->  | AM38: =Financing!AM124 ->  | AN38: =Financing!AN124 ->  | AO38: =Financing!AO124 ->  | AP38: =Financing!AP124 ->  | AQ38: =Financing!AQ124 ->  | AR38: =Financing!AR124 ->  | AS38: =Financing!AS124 ->  | AT38: =Financing!AT124 ->  | AU38: =Financing!AU124 ->  | AV38: =Financing!AV124 ->  | AW38: =Financing!AW124 ->  | AX38: =Financing!AX124 ->  | AY38: =Financing!AY124 ->  | AZ38: =Financing!AZ124 ->  | BA38: =Financing!BA124 ->  | BB38: =Financing!BB124 ->  | BC38: =Financing!BC124 ->  | BD38: =Financing!BD124 ->  | BE38: =Financing!BE124 ->  | BF38: =Financing!BF124 ->  | BG38: =Financing!BG124 ->  | BH38: =Financing!BH124 ->  | BI38: =Financing!BI124 ->  | BJ38: =Financing!BJ124 ->  | BK38: =Financing!BK124 ->  | BL38: =Financing!BL124 ->  | BM38: =Financing!BM124 ->  | BN38: =Financing!BN124 ->  | BO38: =Financing!BO124 ->  | BP38: =Financing!BP124 ->  | BQ38: =Financing!BQ124 ->  | BR38: =Financing!BR124 ->  | BS38: =Financing!BS124 ->  | BT38: =Financing!BT124 ->  | BU38: =Financing!BU124 ->  | BV38: =Financing!BV124 ->  | BW38: =Financing!BW124 ->  | BX38: =Financing!BX124 ->  | BY38: =Financing!BY124 ->  | BZ38: =Financing!BZ124 ->  | CA38: =Financing!CA124 ->  | CB38: =Financing!CB124 ->  | CC38: =Financing!CC124 ->  | CD38: =Financing!CD124 ->  | CE38: =Financing!CE124 ->  | CF38: =Financing!CF124 ->  | CG38: =Financing!CG124 ->  | CH38: =Financing!CH124 ->  | CI38: =Financing!CI124 ->  | CJ38: =Financing!CJ124 ->  | CK38: =Financing!CK124 ->  | CL38: =Financing!CL124 ->  | CM38: =Financing!CM124 ->  | CN38: =Financing!CN124 ->  | CO38: =Financing!CO124 ->  | CP38: =Financing!CP124 ->  | CQ38: =Financing!CQ124 ->  | CR38: =Financing!CR124 ->  | CS38: =Financing!CS124 ->  | CT38: =Financing!CT124 -> 
B39: (-) | C39: Cash Sweep - DSRF Repayment | H39: $m | N39: =SUM(P39:DD39) ->  | P39: =Financing!P125 ->  | Q39: =Financing!Q125 ->  | R39: =Financing!R125 ->  | S39: =Financing!S125 ->  | T39: =Financing!T125 ->  | U39: =Financing!U125 ->  | V39: =Financing!V125 ->  | W39: =Financing!W125 ->  | X39: =Financing!X125 ->  | Y39: =Financing!Y125 ->  | Z39: =Financing!Z125 ->  | AA39: =Financing!AA125 ->  | AB39: =Financing!AB125 ->  | AC39: =Financing!AC125 ->  | AD39: =Financing!AD125 ->  | AE39: =Financing!AE125 ->  | AF39: =Financing!AF125 ->  | AG39: =Financing!AG125 ->  | AH39: =Financing!AH125 ->  | AI39: =Financing!AI125 ->  | AJ39: =Financing!AJ125 ->  | AK39: =Financing!AK125 ->  | AL39: =Financing!AL125 ->  | AM39: =Financing!AM125 ->  | AN39: =Financing!AN125 ->  | AO39: =Financing!AO125 ->  | AP39: =Financing!AP125 ->  | AQ39: =Financing!AQ125 ->  | AR39: =Financing!AR125 ->  | AS39: =Financing!AS125 ->  | AT39: =Financing!AT125 ->  | AU39: =Financing!AU125 ->  | AV39: =Financing!AV125 ->  | AW39: =Financing!AW125 ->  | AX39: =Financing!AX125 ->  | AY39: =Financing!AY125 ->  | AZ39: =Financing!AZ125 ->  | BA39: =Financing!BA125 ->  | BB39: =Financing!BB125 ->  | BC39: =Financing!BC125 ->  | BD39: =Financing!BD125 ->  | BE39: =Financing!BE125 ->  | BF39: =Financing!BF125 ->  | BG39: =Financing!BG125 ->  | BH39: =Financing!BH125 ->  | BI39: =Financing!BI125 ->  | BJ39: =Financing!BJ125 ->  | BK39: =Financing!BK125 ->  | BL39: =Financing!BL125 ->  | BM39: =Financing!BM125 ->  | BN39: =Financing!BN125 ->  | BO39: =Financing!BO125 ->  | BP39: =Financing!BP125 ->  | BQ39: =Financing!BQ125 ->  | BR39: =Financing!BR125 ->  | BS39: =Financing!BS125 ->  | BT39: =Financing!BT125 ->  | BU39: =Financing!BU125 ->  | BV39: =Financing!BV125 ->  | BW39: =Financing!BW125 ->  | BX39: =Financing!BX125 ->  | BY39: =Financing!BY125 ->  | BZ39: =Financing!BZ125 ->  | CA39: =Financing!CA125 ->  | CB39: =Financing!CB125 ->  | CC39: =Financing!CC125 ->  | CD39: =Financing!CD125 ->  | CE39: =Financing!CE125 ->  | CF39: =Financing!CF125 ->  | CG39: =Financing!CG125 ->  | CH39: =Financing!CH125 ->  | CI39: =Financing!CI125 ->  | CJ39: =Financing!CJ125 ->  | CK39: =Financing!CK125 ->  | CL39: =Financing!CL125 ->  | CM39: =Financing!CM125 ->  | CN39: =Financing!CN125 ->  | CO39: =Financing!CO125 ->  | CP39: =Financing!CP125 ->  | CQ39: =Financing!CQ125 ->  | CR39: =Financing!CR125 ->  | CS39: =Financing!CS125 ->  | CT39: =Financing!CT125 -> 
B40: (-) | C40: DSRF Interest | H40: $m | N40: =SUM(P40:DD40) ->  | P40: =IS!P21 -> 0 | Q40: =IS!Q21 ->  | R40: =IS!R21 ->  | S40: =IS!S21 ->  | T40: =IS!T21 ->  | U40: =IS!U21 ->  | V40: =IS!V21 ->  | W40: =IS!W21 ->  | X40: =IS!X21 ->  | Y40: =IS!Y21 ->  | Z40: =IS!Z21 ->  | AA40: =IS!AA21 ->  | AB40: =IS!AB21 ->  | AC40: =IS!AC21 ->  | AD40: =IS!AD21 ->  | AE40: =IS!AE21 ->  | AF40: =IS!AF21 ->  | AG40: =IS!AG21 ->  | AH40: =IS!AH21 ->  | AI40: =IS!AI21 ->  | AJ40: =IS!AJ21 ->  | AK40: =IS!AK21 ->  | AL40: =IS!AL21 ->  | AM40: =IS!AM21 ->  | AN40: =IS!AN21 ->  | AO40: =IS!AO21 ->  | AP40: =IS!AP21 ->  | AQ40: =IS!AQ21 ->  | AR40: =IS!AR21 ->  | AS40: =IS!AS21 ->  | AT40: =IS!AT21 ->  | AU40: =IS!AU21 ->  | AV40: =IS!AV21 ->  | AW40: =IS!AW21 ->  | AX40: =IS!AX21 ->  | AY40: =IS!AY21 ->  | AZ40: =IS!AZ21 ->  | BA40: =IS!BA21 ->  | BB40: =IS!BB21 ->  | BC40: =IS!BC21 ->  | BD40: =IS!BD21 ->  | BE40: =IS!BE21 ->  | BF40: =IS!BF21 ->  | BG40: =IS!BG21 ->  | BH40: =IS!BH21 ->  | BI40: =IS!BI21 ->  | BJ40: =IS!BJ21 ->  | BK40: =IS!BK21 ->  | BL40: =IS!BL21 ->  | BM40: =IS!BM21 ->  | BN40: =IS!BN21 ->  | BO40: =IS!BO21 ->  | BP40: =IS!BP21 ->  | BQ40: =IS!BQ21 ->  | BR40: =IS!BR21 ->  | BS40: =IS!BS21 ->  | BT40: =IS!BT21 ->  | BU40: =IS!BU21 ->  | BV40: =IS!BV21 ->  | BW40: =IS!BW21 ->  | BX40: =IS!BX21 ->  | BY40: =IS!BY21 ->  | BZ40: =IS!BZ21 ->  | CA40: =IS!CA21 ->  | CB40: =IS!CB21 ->  | CC40: =IS!CC21 ->  | CD40: =IS!CD21 ->  | CE40: =IS!CE21 ->  | CF40: =IS!CF21 ->  | CG40: =IS!CG21 ->  | CH40: =IS!CH21 ->  | CI40: =IS!CI21 ->  | CJ40: =IS!CJ21 ->  | CK40: =IS!CK21 ->  | CL40: =IS!CL21 ->  | CM40: =IS!CM21 ->  | CN40: =IS!CN21 ->  | CO40: =IS!CO21 ->  | CP40: =IS!CP21 ->  | CQ40: =IS!CQ21 ->  | CR40: =IS!CR21 -> 0 | CS40: =IS!CS21 -> 0 | CT40: =IS!CT21 -> 0
B42: Cash Flow To Equity | H42: $m | N42: =SUM(P42:DD42) ->  | P42: =P36-P38-P39-P40 ->  | Q42: =Q36-Q38-Q39-Q40 ->  | AK42: =AK36-AK38-AK39-AK40 -> 
B44: (+) | C44: Shortfall Equity Injected | H44: $m | N44: =SUM(P44:DD44) ->  | P44: =ABS(MIN(P42,0)) ->  | Q44: =ABS(MIN(Q42,0)) ->  | AK44: =ABS(MIN(AK42,0)) -> 
B46: (-) | C46: Dividend Distribution | H46: $m | N46: =SUM(P46:DD46) ->  | P46: =Equity!P50 ->  | Q46: =Equity!Q50 ->  | R46: =Equity!R50 ->  | S46: =Equity!S50 ->  | T46: =Equity!T50 ->  | U46: =Equity!U50 ->  | V46: =Equity!V50 ->  | W46: =Equity!W50 ->  | X46: =Equity!X50 ->  | Y46: =Equity!Y50 ->  | Z46: =Equity!Z50 ->  | AA46: =Equity!AA50 ->  | AB46: =Equity!AB50 ->  | AC46: =Equity!AC50 ->  | AD46: =Equity!AD50 ->  | AE46: =Equity!AE50 ->  | AF46: =Equity!AF50 ->  | AG46: =Equity!AG50 ->  | AH46: =Equity!AH50 ->  | AI46: =Equity!AI50 ->  | AJ46: =Equity!AJ50 ->  | AK46: =Equity!AK50 ->  | AL46: =Equity!AL50 ->  | AM46: =Equity!AM50 ->  | AN46: =Equity!AN50 ->  | AO46: =Equity!AO50 ->  | AP46: =Equity!AP50 ->  | AQ46: =Equity!AQ50 ->  | AR46: =Equity!AR50 ->  | AS46: =Equity!AS50 ->  | AT46: =Equity!AT50 ->  | AU46: =Equity!AU50 ->  | AV46: =Equity!AV50 ->  | AW46: =Equity!AW50 ->  | AX46: =Equity!AX50 ->  | AY46: =Equity!AY50 ->  | AZ46: =Equity!AZ50 ->  | BA46: =Equity!BA50 ->  | BB46: =Equity!BB50 ->  | BC46: =Equity!BC50 ->  | BD46: =Equity!BD50 ->  | BE46: =Equity!BE50 ->  | BF46: =Equity!BF50 ->  | BG46: =Equity!BG50 ->  | BH46: =Equity!BH50 ->  | BI46: =Equity!BI50 ->  | BJ46: =Equity!BJ50 ->  | BK46: =Equity!BK50 ->  | BL46: =Equity!BL50 ->  | BM46: =Equity!BM50 ->  | BN46: =Equity!BN50 ->  | BO46: =Equity!BO50 ->  | BP46: =Equity!BP50 ->  | BQ46: =Equity!BQ50 ->  | BR46: =Equity!BR50 ->  | BS46: =Equity!BS50 ->  | BT46: =Equity!BT50 ->  | BU46: =Equity!BU50 ->  | BV46: =Equity!BV50 ->  | BW46: =Equity!BW50 ->  | BX46: =Equity!BX50 ->  | BY46: =Equity!BY50 ->  | BZ46: =Equity!BZ50 ->  | CA46: =Equity!CA50 ->  | CB46: =Equity!CB50 ->  | CC46: =Equity!CC50 ->  | CD46: =Equity!CD50 ->  | CE46: =Equity!CE50 ->  | CF46: =Equity!CF50 ->  | CG46: =Equity!CG50 ->  | CH46: =Equity!CH50 ->  | CI46: =Equity!CI50 ->  | CJ46: =Equity!CJ50 ->  | CK46: =Equity!CK50 ->  | CL46: =Equity!CL50 ->  | CM46: =Equity!CM50 ->  | CN46: =Equity!CN50 ->  | CO46: =Equity!CO50 ->  | CP46: =Equity!CP50 ->  | CQ46: =Equity!CQ50 ->  | CR46: =Equity!CR50 ->  | CS46: =Equity!CS50 ->  | CT46: =Equity!CT50 -> 
B48: Net Cash Flow | H48: $m | N48: =SUM(P48:DD48) ->  | P48: =P42+P44-P46 ->  | AK48: =AK42+AK44-AK46 -> 
A50: End Sheet

Sheet BS
N5: Year: | P5: =Timing!R5 -> 2021 | Q5: =Timing!S5 -> 2022 | R5: =Timing!T5 -> 2023 | S5: =Timing!U5 -> 2024 | T5: =Timing!V5 -> 2025 | U5: =Timing!W5 -> 2026 | V5: =Timing!X5 -> 2027 | W5: =Timing!Y5 -> 2028 | X5: =Timing!Z5 -> 2029 | Y5: =Timing!AA5 -> 2030 | Z5: =Timing!AB5 -> 2031 | AA5: =Timing!AC5 -> 2032 | AB5: =Timing!AD5 -> 2033 | AC5: =Timing!AE5 -> 2034 | AD5: =Timing!AF5 -> 2035 | AE5: =Timing!AG5 -> 2036 | AF5: =Timing!AH5 -> 2037 | AG5: =Timing!AI5 -> 2038 | AH5: =Timing!AJ5 -> 2039 | AI5: =Timing!AK5 -> 2040 | AJ5: =Timing!AL5 -> 2041 | AK5: =Timing!AM5 -> 2042 | AL5: =Timing!AN5 -> 2043 | AM5: =Timing!AO5 -> 2044 | AN5: =Timing!AP5 -> 2045 | AO5: =Timing!AQ5 -> 2046 | AP5: =Timing!AR5 -> 2047 | AQ5: =Timing!AS5 -> 2048 | AR5: =Timing!AT5 -> 2049 | AS5: =Timing!AU5 -> 2050 | AT5: =Timing!AV5 -> 2051 | AU5: =Timing!AW5 -> 2052 | AV5: =Timing!AX5 -> 2053 | AW5: =Timing!AY5 -> 2054 | AX5: =Timing!AZ5 -> 2055 | AY5: =Timing!BA5 -> 2056 | AZ5: =Timing!BB5 -> 2057 | BA5: =Timing!BC5 -> 2058 | BB5: =Timing!BD5 -> 2059 | BC5: =Timing!BE5 -> 2060 | BD5: =Timing!BF5 -> 2061 | BE5: =Timing!BG5 -> 2062 | BF5: =Timing!BH5 -> 2063 | BG5: =Timing!BI5 -> 2064 | BH5: =Timing!BJ5 -> 2065 | BI5: =Timing!BK5 -> 2066 | BJ5: =Timing!BL5 -> 2067 | BK5: =Timing!BM5 -> 2068 | BL5: =Timing!BN5 -> 2069 | BM5: =Timing!BO5 -> 2070 | BN5: =Timing!BP5 -> 2071 | BO5: =Timing!BQ5 -> 2072 | BP5: =Timing!BR5 -> 2073 | BQ5: =Timing!BS5 -> 2074 | BR5: =Timing!BT5 -> 2075 | BS5: =Timing!BU5 -> 2076 | BT5: =Timing!BV5 -> 2077 | BU5: =Timing!BW5 -> 2078 | BV5: =Timing!BX5 -> 2079 | BW5: =Timing!BY5 -> 2080 | BX5: =Timing!BZ5 -> 2081 | BY5: =Timing!CA5 -> 2082 | BZ5: =Timing!CB5 -> 2083 | CA5: =Timing!CC5 -> 2084 | CB5: =Timing!CD5 -> 2085 | CC5: =Timing!CE5 -> 2086 | CD5: =Timing!CF5 -> 2087 | CE5: =Timing!CG5 -> 2088 | CF5: =Timing!CH5 -> 2089 | CG5: =Timing!CI5 -> 2090 | CH5: =Timing!CJ5 -> 2091 | CI5: =Timing!CK5 -> 2092 | CJ5: =Timing!CL5 -> 2093 | CK5: =Timing!CM5 -> 2094 | CL5: =Timing!CN5 -> 2095 | CM5: =Timing!CO5 -> 2096 | CN5: =Timing!CP5 -> 2097 | CO5: =Timing!CQ5 -> 2098 | CP5: =Timing!CR5 -> 2099 | CQ5: =Timing!CS5 -> 2100 | CR5: =Timing!CT5 -> 2101 | CS5: =Timing!CU5 -> 2102 | CT5: =Timing!CV5 -> 2103 | CU5: =CT5+1 -> 2104 | CV5: 2105 | CW5: 2106 | CX5: 2107 | CY5: 2108 | CZ5: 2109 | DA5: 2110 | DB5: 2111 | DC5: 2112 | DD5: 2113
N6: Year #: | P6: =Timing!R6 -> 1 | Q6: =Timing!S6 -> 2 | R6: =Timing!T6 -> 3 | S6: =Timing!U6 -> 4 | T6: =Timing!V6 -> 5 | U6: =Timing!W6 -> 6 | V6: =Timing!X6 -> 7 | W6: =Timing!Y6 -> 8 | X6: =Timing!Z6 -> 9 | Y6: =Timing!AA6 -> 10 | Z6: =Timing!AB6 -> 11 | AA6: =Timing!AC6 -> 12 | AB6: =Timing!AD6 -> 13 | AC6: =Timing!AE6 -> 14 | AD6: =Timing!AF6 -> 15 | AE6: =Timing!AG6 -> 16 | AF6: =Timing!AH6 -> 17 | AG6: =Timing!AI6 -> 18 | AH6: =Timing!AJ6 -> 19 | AI6: =Timing!AK6 -> 20 | AJ6: =Timing!AL6 -> 21 | AK6: =Timing!AM6 -> 22 | AL6: =Timing!AN6 -> 23 | AM6: =Timing!AO6 -> 24 | AN6: =Timing!AP6 -> 25 | AO6: =Timing!AQ6 -> 26 | AP6: =Timing!AR6 -> 27 | AQ6: =Timing!AS6 -> 28 | AR6: =Timing!AT6 -> 29 | AS6: =Timing!AU6 -> 30 | AT6: =Timing!AV6 -> 31 | AU6: =Timing!AW6 -> 32 | AV6: =Timing!AX6 -> 33 | AW6: =Timing!AY6 -> 34 | AX6: =Timing!AZ6 -> 35 | AY6: =Timing!BA6 -> 36 | AZ6: =Timing!BB6 -> 37 | BA6: =Timing!BC6 -> 38 | BB6: =Timing!BD6 -> 39 | BC6: =Timing!BE6 -> 40 | BD6: =Timing!BF6 -> 41 | BE6: =Timing!BG6 -> 42 | BF6: =Timing!BH6 -> 43 | BG6: =Timing!BI6 -> 44 | BH6: =Timing!BJ6 -> 45 | BI6: =Timing!BK6 -> 46 | BJ6: =Timing!BL6 -> 47 | BK6: =Timing!BM6 -> 48 | BL6: =Timing!BN6 -> 49 | BM6: =Timing!BO6 -> 50 | BN6: =Timing!BP6 -> 51 | BO6: =Timing!BQ6 -> 52 | BP6: =Timing!BR6 -> 53 | BQ6: =Timing!BS6 -> 54 | BR6: =Timing!BT6 -> 55 | BS6: =Timing!BU6 -> 56 | BT6: =Timing!BV6 -> 57 | BU6: =Timing!BW6 -> 58 | BV6: =Timing!BX6 -> 59 | BW6: =Timing!BY6 -> 60 | BX6: =Timing!BZ6 -> 61 | BY6: =Timing!CA6 -> 62 | BZ6: =Timing!CB6 -> 63 | CA6: =Timing!CC6 -> 64 | CB6: =Timing!CD6 -> 65 | CC6: =Timing!CE6 -> 66 | CD6: =Timing!CF6 -> 67 | CE6: =Timing!CG6 -> 68 | CF6: =Timing!CH6 -> 69 | CG6: =Timing!CI6 -> 70 | CH6: =Timing!CJ6 -> 71 | CI6: =Timing!CK6 -> 72 | CJ6: =Timing!CL6 -> 73 | CK6: =Timing!CM6 -> 74 | CL6: =Timing!CN6 -> 75 | CM6: =Timing!CO6 -> 76 | CN6: =Timing!CP6 -> 77 | CO6: =Timing!CQ6 -> 78 | CP6: =Timing!CR6 -> 79 | CQ6: =Timing!CS6 -> 80 | CR6: =Timing!CT6 -> 81 | CS6: =Timing!CU6 -> 82 | CT6: =Timing!CV6 -> 83 | CU6: =#REF! ->  | CV6: =#REF! ->  | CW6: =#REF! ->  | CX6: =#REF! ->  | CY6: =#REF! ->  | CZ6: =#REF! ->  | DA6: =#REF! ->  | DB6: =#REF! ->  | DC6: =#REF! ->  | DD6: =#REF! -> 
N7: Forecast: | P7: =Timing!R7 -> Const | Q7: =Timing!S7 -> Const | R7: =Timing!T7 -> Const | S7: =Timing!U7 -> Ops | T7: =Timing!V7 -> Ops | U7: =Timing!W7 -> Ops | V7: =Timing!X7 -> Ops | W7: =Timing!Y7 -> Ops | X7: =Timing!Z7 -> Ops | Y7: =Timing!AA7 -> Ops | Z7: =Timing!AB7 -> Ops | AA7: =Timing!AC7 -> Ops | AB7: =Timing!AD7 -> Ops | AC7: =Timing!AE7 -> Ops | AD7: =Timing!AF7 -> Ops | AE7: =Timing!AG7 -> Ops | AF7: =Timing!AH7 -> Ops | AG7: =Timing!AI7 -> Ops | AH7: =Timing!AJ7 -> Ops | AI7: =Timing!AK7 -> Ops | AJ7: =Timing!AL7 -> Ops | AK7: =Timing!AM7 -> Ops | AL7: =Timing!AN7 -> Ops | AM7: =Timing!AO7 -> Ops | AN7: =Timing!AP7 -> Ops | AO7: =Timing!AQ7 -> Ops | AP7: =Timing!AR7 -> Ops | AQ7: =Timing!AS7 -> Ops | AR7: =Timing!AT7 -> Ops | AS7: =Timing!AU7 -> Ops | AT7: =Timing!AV7 -> Ops | AU7: =Timing!AW7 -> Ops | AV7: =Timing!AX7 -> Ops | AW7: =Timing!AY7 -> Ops | AX7: =Timing!AZ7 -> Ops | AY7: =Timing!BA7 -> Ops | AZ7: =Timing!BB7 -> Ops | BA7: =Timing!BC7 -> Ops | BB7: =Timing!BD7 -> Ops | BC7: =Timing!BE7 -> Ops | BD7: =Timing!BF7 -> Ops | BE7: =Timing!BG7 -> Ops | BF7: =Timing!BH7 -> Ops | BG7: =Timing!BI7 -> Ops | BH7: =Timing!BJ7 -> Ops | BI7: =Timing!BK7 -> Ops | BJ7: =Timing!BL7 -> Ops | BK7: =Timing!BM7 -> Ops | BL7: =Timing!BN7 -> Ops | BM7: =Timing!BO7 -> Ops | BN7: =Timing!BP7 -> Ops | BO7: =Timing!BQ7 -> Ops | BP7: =Timing!BR7 -> Ops | BQ7: =Timing!BS7 -> Ops | BR7: =Timing!BT7 ->  | BS7: =Timing!BU7 ->  | BT7: =Timing!BV7 ->  | BU7: =Timing!BW7 ->  | BV7: =Timing!BX7 ->  | BW7: =Timing!BY7 ->  | BX7: =Timing!BZ7 ->  | BY7: =Timing!CA7 ->  | BZ7: =Timing!CB7 ->  | CA7: =Timing!CC7 ->  | CB7: =Timing!CD7 ->  | CC7: =Timing!CE7 ->  | CD7: =Timing!CF7 ->  | CE7: =Timing!CG7 ->  | CF7: =Timing!CH7 ->  | CG7: =Timing!CI7 ->  | CH7: =Timing!CJ7 ->  | CI7: =Timing!CK7 ->  | CJ7: =Timing!CL7 ->  | CK7: =Timing!CM7 ->  | CL7: =Timing!CN7 ->  | CM7: =Timing!CO7 ->  | CN7: =Timing!CP7 ->  | CO7: =Timing!CQ7 ->  | CP7: =Timing!CR7 ->  | CQ7: =Timing!CS7 ->  | CR7: =Timing!CT7 ->  | CS7: =Timing!CU7 ->  | CT7: =Timing!CV7 ->  | CU7: =#REF! ->  | CV7: =#REF! ->  | CW7: =#REF! ->  | CX7: =#REF! ->  | CY7: =#REF! ->  | CZ7: =#REF! ->  | DA7: =#REF! ->  | DB7: =#REF! ->  | DC7: =#REF! ->  | DD7: =#REF! -> 
B10: Assets
B12: Non-Current Assets
B14: Net PP&E | H14: $m | P14: ='T&D'!P47 ->  | Q14: ='T&D'!Q47 ->  | R14: ='T&D'!R47 ->  | S14: ='T&D'!S47 ->  | T14: ='T&D'!T47 ->  | U14: ='T&D'!U47 ->  | V14: ='T&D'!V47 ->  | W14: ='T&D'!W47 ->  | X14: ='T&D'!X47 ->  | Y14: ='T&D'!Y47 ->  | Z14: ='T&D'!Z47 ->  | AA14: ='T&D'!AA47 ->  | AB14: ='T&D'!AB47 ->  | AC14: ='T&D'!AC47 ->  | AD14: ='T&D'!AD47 ->  | AE14: ='T&D'!AE47 ->  | AF14: ='T&D'!AF47 ->  | AG14: ='T&D'!AG47 ->  | AH14: ='T&D'!AH47 ->  | AI14: ='T&D'!AI47 ->  | AJ14: ='T&D'!AJ47 ->  | AK14: ='T&D'!AK47 ->  | AL14: ='T&D'!AL47 ->  | AM14: ='T&D'!AM47 ->  | AN14: ='T&D'!AN47 ->  | AO14: ='T&D'!AO47 ->  | AP14: ='T&D'!AP47 ->  | AQ14: ='T&D'!AQ47 ->  | AR14: ='T&D'!AR47 ->  | AS14: ='T&D'!AS47 ->  | AT14: ='T&D'!AT47 ->  | AU14: ='T&D'!AU47 ->  | AV14: ='T&D'!AV47 ->  | AW14: ='T&D'!AW47 ->  | AX14: ='T&D'!AX47 ->  | AY14: ='T&D'!AY47 ->  | AZ14: ='T&D'!AZ47 ->  | BA14: ='T&D'!BA47 ->  | BB14: ='T&D'!BB47 ->  | BC14: ='T&D'!BC47 ->  | BD14: ='T&D'!BD47 ->  | BE14: ='T&D'!BE47 ->  | BF14: ='T&D'!BF47 ->  | BG14: ='T&D'!BG47 ->  | BH14: ='T&D'!BH47 ->  | BI14: ='T&D'!BI47 ->  | BJ14: ='T&D'!BJ47 ->  | BK14: ='T&D'!BK47 ->  | BL14: ='T&D'!BL47 ->  | BM14: ='T&D'!BM47 ->  | BN14: ='T&D'!BN47 ->  | BO14: ='T&D'!BO47 ->  | BP14: ='T&D'!BP47 ->  | BQ14: ='T&D'!BQ47 ->  | BR14: ='T&D'!BR47 ->  | BS14: ='T&D'!BS47 ->  | BT14: ='T&D'!BT47 ->  | BU14: ='T&D'!BU47 ->  | BV14: ='T&D'!BV47 ->  | BW14: ='T&D'!BW47 ->  | BX14: ='T&D'!BX47 ->  | BY14: ='T&D'!BY47 ->  | BZ14: ='T&D'!BZ47 ->  | CA14: ='T&D'!CA47 ->  | CB14: ='T&D'!CB47 ->  | CC14: ='T&D'!CC47 ->  | CD14: ='T&D'!CD47 ->  | CE14: ='T&D'!CE47 ->  | CF14: ='T&D'!CF47 ->  | CG14: ='T&D'!CG47 ->  | CH14: ='T&D'!CH47 ->  | CI14: ='T&D'!CI47 ->  | CJ14: ='T&D'!CJ47 ->  | CK14: ='T&D'!CK47 ->  | CL14: ='T&D'!CL47 ->  | CM14: ='T&D'!CM47 ->  | CN14: ='T&D'!CN47 ->  | CO14: ='T&D'!CO47 ->  | CP14: ='T&D'!CP47 ->  | CQ14: ='T&D'!CQ47 -> 
B16: Current Assets
B18: Accounts Receivable | P18: =Ops!P72 ->  | Q18: =Ops!Q72 ->  | R18: =Ops!R72 ->  | S18: =Ops!S72 ->  | T18: =Ops!T72 ->  | U18: =Ops!U72 ->  | V18: =Ops!V72 ->  | W18: =Ops!W72 ->  | X18: =Ops!X72 ->  | Y18: =Ops!Y72 ->  | Z18: =Ops!Z72 ->  | AA18: =Ops!AA72 ->  | AB18: =Ops!AB72 ->  | AC18: =Ops!AC72 ->  | AD18: =Ops!AD72 ->  | AE18: =Ops!AE72 ->  | AF18: =Ops!AF72 ->  | AG18: =Ops!AG72 ->  | AH18: =Ops!AH72 ->  | AI18: =Ops!AI72 ->  | AJ18: =Ops!AJ72 ->  | AK18: =Ops!AK72 ->  | AL18: =Ops!AL72 ->  | AM18: =Ops!AM72 ->  | AN18: =Ops!AN72 ->  | AO18: =Ops!AO72 ->  | AP18: =Ops!AP72 ->  | AQ18: =Ops!AQ72 ->  | AR18: =Ops!AR72 ->  | AS18: =Ops!AS72 ->  | AT18: =Ops!AT72 ->  | AU18: =Ops!AU72 ->  | AV18: =Ops!AV72 ->  | AW18: =Ops!AW72 ->  | AX18: =Ops!AX72 ->  | AY18: =Ops!AY72 ->  | AZ18: =Ops!AZ72 ->  | BA18: =Ops!BA72 ->  | BB18: =Ops!BB72 ->  | BC18: =Ops!BC72 ->  | BD18: =Ops!BD72 ->  | BE18: =Ops!BE72 ->  | BF18: =Ops!BF72 ->  | BG18: =Ops!BG72 ->  | BH18: =Ops!BH72 ->  | BI18: =Ops!BI72 ->  | BJ18: =Ops!BJ72 ->  | BK18: =Ops!BK72 ->  | BL18: =Ops!BL72 ->  | BM18: =Ops!BM72 ->  | BN18: =Ops!BN72 ->  | BO18: =Ops!BO72 ->  | BP18: =Ops!BP72 ->  | BQ18: =Ops!BQ72 ->  | BR18: =Ops!BR72 ->  | BS18: =Ops!BS72 ->  | BT18: =Ops!BT72 ->  | BU18: =Ops!BU72 ->  | BV18: =Ops!BV72 ->  | BW18: =Ops!BW72 ->  | BX18: =Ops!BX72 ->  | BY18: =Ops!BY72 ->  | BZ18: =Ops!BZ72 ->  | CA18: =Ops!CA72 ->  | CB18: =Ops!CB72 ->  | CC18: =Ops!CC72 ->  | CD18: =Ops!CD72 ->  | CE18: =Ops!CE72 ->  | CF18: =Ops!CF72 ->  | CG18: =Ops!CG72 ->  | CH18: =Ops!CH72 ->  | CI18: =Ops!CI72 ->  | CJ18: =Ops!CJ72 ->  | CK18: =Ops!CK72 ->  | CL18: =Ops!CL72 ->  | CM18: =Ops!CM72 ->  | CN18: =Ops!CN72 ->  | CO18: =Ops!CO72 ->  | CP18: =Ops!CP72 ->  | CQ18: =Ops!CQ72 -> 
B19: Cash | H19: $m | P19: =Equity!P71 ->  | Q19: =Equity!Q71 ->  | R19: =Equity!R71 ->  | S19: =Equity!S71 ->  | T19: =Equity!T71 ->  | U19: =Equity!U71 ->  | V19: =Equity!V71 ->  | W19: =Equity!W71 ->  | X19: =Equity!X71 ->  | Y19: =Equity!Y71 ->  | Z19: =Equity!Z71 ->  | AA19: =Equity!AA71 ->  | AB19: =Equity!AB71 ->  | AC19: =Equity!AC71 ->  | AD19: =Equity!AD71 ->  | AE19: =Equity!AE71 ->  | AF19: =Equity!AF71 ->  | AG19: =Equity!AG71 ->  | AH19: =Equity!AH71 ->  | AI19: =Equity!AI71 ->  | AJ19: =Equity!AJ71 ->  | AK19: =Equity!AK71 ->  | AL19: =Equity!AL71 ->  | AM19: =Equity!AM71 ->  | AN19: =Equity!AN71 ->  | AO19: =Equity!AO71 ->  | AP19: =Equity!AP71 ->  | AQ19: =Equity!AQ71 ->  | AR19: =Equity!AR71 ->  | AS19: =Equity!AS71 ->  | AT19: =Equity!AT71 ->  | AU19: =Equity!AU71 ->  | AV19: =Equity!AV71 ->  | AW19: =Equity!AW71 ->  | AX19: =Equity!AX71 ->  | AY19: =Equity!AY71 ->  | AZ19: =Equity!AZ71 ->  | BA19: =Equity!BA71 ->  | BB19: =Equity!BB71 ->  | BC19: =Equity!BC71 ->  | BD19: =Equity!BD71 ->  | BE19: =Equity!BE71 ->  | BF19: =Equity!BF71 ->  | BG19: =Equity!BG71 ->  | BH19: =Equity!BH71 ->  | BI19: =Equity!BI71 ->  | BJ19: =Equity!BJ71 ->  | BK19: =Equity!BK71 ->  | BL19: =Equity!BL71 ->  | BM19: =Equity!BM71 ->  | BN19: =Equity!BN71 ->  | BO19: =Equity!BO71 ->  | BP19: =Equity!BP71 ->  | BQ19: =Equity!BQ71 ->  | BR19: =Equity!BR71 ->  | BS19: =Equity!BS71 ->  | BT19: =Equity!BT71 ->  | BU19: =Equity!BU71 ->  | BV19: =Equity!BV71 ->  | BW19: =Equity!BW71 ->  | BX19: =Equity!BX71 ->  | BY19: =Equity!BY71 ->  | BZ19: =Equity!BZ71 ->  | CA19: =Equity!CA71 ->  | CB19: =Equity!CB71 ->  | CC19: =Equity!CC71 ->  | CD19: =Equity!CD71 ->  | CE19: =Equity!CE71 ->  | CF19: =Equity!CF71 ->  | CG19: =Equity!CG71 ->  | CH19: =Equity!CH71 ->  | CI19: =Equity!CI71 ->  | CJ19: =Equity!CJ71 ->  | CK19: =Equity!CK71 ->  | CL19: =Equity!CL71 ->  | CM19: =Equity!CM71 ->  | CN19: =Equity!CN71 ->  | CO19: =Equity!CO71 ->  | CP19: =Equity!CP71 ->  | CQ19: =Equity!CQ71 -> 
B21: Total Assets | H21: $m | P21: =SUM(P14:P19) ->  | Q21: =SUM(Q14:Q19) ->  | CC21: =SUM(CC14:CC19) -> 
B23: Liabilities & Equity
B25: Liabilities
B27: Senior Debt | H27: $m | P27: =Financing!P89 ->  | Q27: =Financing!Q89 ->  | R27: =Financing!R89 ->  | S27: =Financing!S89 ->  | T27: =Financing!T89 ->  | U27: =Financing!U89 ->  | V27: =Financing!V89 ->  | W27: =Financing!W89 ->  | X27: =Financing!X89 ->  | Y27: =Financing!Y89 ->  | Z27: =Financing!Z89 ->  | AA27: =Financing!AA89 ->  | AB27: =Financing!AB89 ->  | AC27: =Financing!AC89 ->  | AD27: =Financing!AD89 ->  | AE27: =Financing!AE89 ->  | AF27: =Financing!AF89 ->  | AG27: =Financing!AG89 ->  | AH27: =Financing!AH89 ->  | AI27: =Financing!AI89 ->  | AJ27: =Financing!AJ89 ->  | AK27: =Financing!AK89 ->  | AL27: =Financing!AL89 ->  | AM27: =Financing!AM89 ->  | AN27: =Financing!AN89 ->  | AO27: =Financing!AO89 ->  | AP27: =Financing!AP89 ->  | AQ27: =Financing!AQ89 ->  | AR27: =Financing!AR89 ->  | AS27: =Financing!AS89 ->  | AT27: =Financing!AT89 ->  | AU27: =Financing!AU89 ->  | AV27: =Financing!AV89 ->  | AW27: =Financing!AW89 ->  | AX27: =Financing!AX89 ->  | AY27: =Financing!AY89 ->  | AZ27: =Financing!AZ89 ->  | BA27: =Financing!BA89 ->  | BB27: =Financing!BB89 ->  | BC27: =Financing!BC89 ->  | BD27: =Financing!BD89 ->  | BE27: =Financing!BE89 ->  | BF27: =Financing!BF89 ->  | BG27: =Financing!BG89 ->  | BH27: =Financing!BH89 ->  | BI27: =Financing!BI89 ->  | BJ27: =Financing!BJ89 ->  | BK27: =Financing!BK89 ->  | BL27: =Financing!BL89 ->  | BM27: =Financing!BM89 ->  | BN27: =Financing!BN89 ->  | BO27: =Financing!BO89 ->  | BP27: =Financing!BP89 ->  | BQ27: =Financing!BQ89 ->  | BR27: =Financing!BR89 ->  | BS27: =Financing!BS89 ->  | BT27: =Financing!BT89 ->  | BU27: =Financing!BU89 ->  | BV27: =Financing!BV89 ->  | BW27: =Financing!BW89 ->  | BX27: =Financing!BX89 ->  | BY27: =Financing!BY89 ->  | BZ27: =Financing!BZ89 ->  | CA27: =Financing!CA89 ->  | CB27: =Financing!CB89 ->  | CC27: =Financing!CC89 ->  | CD27: =Financing!CD89 ->  | CE27: =Financing!CE89 ->  | CF27: =Financing!CF89 ->  | CG27: =Financing!CG89 ->  | CH27: =Financing!CH89 ->  | CI27: =Financing!CI89 ->  | CJ27: =Financing!CJ89 ->  | CK27: =Financing!CK89 ->  | CL27: =Financing!CL89 ->  | CM27: =Financing!CM89 ->  | CN27: =Financing!CN89 ->  | CO27: =Financing!CO89 ->  | CP27: =Financing!CP89 ->  | CQ27: =Financing!CQ89 -> 
B28: DSRF | H28: $m | P28: =Financing!P126 ->  | Q28: =Financing!Q126 ->  | R28: =Financing!R126 ->  | S28: =Financing!S126 ->  | T28: =Financing!T126 ->  | U28: =Financing!U126 ->  | V28: =Financing!V126 ->  | W28: =Financing!W126 ->  | X28: =Financing!X126 ->  | Y28: =Financing!Y126 ->  | Z28: =Financing!Z126 ->  | AA28: =Financing!AA126 ->  | AB28: =Financing!AB126 ->  | AC28: =Financing!AC126 ->  | AD28: =Financing!AD126 ->  | AE28: =Financing!AE126 ->  | AF28: =Financing!AF126 ->  | AG28: =Financing!AG126 ->  | AH28: =Financing!AH126 ->  | AI28: =Financing!AI126 ->  | AJ28: =Financing!AJ126 ->  | AK28: =Financing!AK126 ->  | AL28: =Financing!AL126 ->  | AM28: =Financing!AM126 ->  | AN28: =Financing!AN126 ->  | AO28: =Financing!AO126 ->  | AP28: =Financing!AP126 ->  | AQ28: =Financing!AQ126 ->  | AR28: =Financing!AR126 ->  | AS28: =Financing!AS126 ->  | AT28: =Financing!AT126 ->  | AU28: =Financing!AU126 ->  | AV28: =Financing!AV126 ->  | AW28: =Financing!AW126 ->  | AX28: =Financing!AX126 ->  | AY28: =Financing!AY126 ->  | AZ28: =Financing!AZ126 ->  | BA28: =Financing!BA126 ->  | BB28: =Financing!BB126 ->  | BC28: =Financing!BC126 ->  | BD28: =Financing!BD126 ->  | BE28: =Financing!BE126 ->  | BF28: =Financing!BF126 ->  | BG28: =Financing!BG126 ->  | BH28: =Financing!BH126 ->  | BI28: =Financing!BI126 ->  | BJ28: =Financing!BJ126 ->  | BK28: =Financing!BK126 ->  | BL28: =Financing!BL126 ->  | BM28: =Financing!BM126 ->  | BN28: =Financing!BN126 ->  | BO28: =Financing!BO126 ->  | BP28: =Financing!BP126 ->  | BQ28: =Financing!BQ126 ->  | BR28: =Financing!BR126 ->  | BS28: =Financing!BS126 ->  | BT28: =Financing!BT126 ->  | BU28: =Financing!BU126 ->  | BV28: =Financing!BV126 ->  | BW28: =Financing!BW126 ->  | BX28: =Financing!BX126 ->  | BY28: =Financing!BY126 ->  | BZ28: =Financing!BZ126 ->  | CA28: =Financing!CA126 ->  | CB28: =Financing!CB126 ->  | CC28: =Financing!CC126 ->  | CD28: =Financing!CD126 ->  | CE28: =Financing!CE126 ->  | CF28: =Financing!CF126 ->  | CG28: =Financing!CG126 ->  | CH28: =Financing!CH126 ->  | CI28: =Financing!CI126 ->  | CJ28: =Financing!CJ126 ->  | CK28: =Financing!CK126 ->  | CL28: =Financing!CL126 ->  | CM28: =Financing!CM126 ->  | CN28: =Financing!CN126 ->  | CO28: =Financing!CO126 ->  | CP28: =Financing!CP126 ->  | CQ28: =Financing!CQ126 -> 
B29: Accounts Payable | H29: $m | P29: =Ops!P81 ->  | Q29: =Ops!Q81 ->  | R29: =Ops!R81 ->  | S29: =Ops!S81 ->  | T29: =Ops!T81 ->  | U29: =Ops!U81 ->  | V29: =Ops!V81 ->  | W29: =Ops!W81 ->  | X29: =Ops!X81 ->  | Y29: =Ops!Y81 ->  | Z29: =Ops!Z81 ->  | AA29: =Ops!AA81 ->  | AB29: =Ops!AB81 ->  | AC29: =Ops!AC81 ->  | AD29: =Ops!AD81 ->  | AE29: =Ops!AE81 ->  | AF29: =Ops!AF81 ->  | AG29: =Ops!AG81 ->  | AH29: =Ops!AH81 ->  | AI29: =Ops!AI81 ->  | AJ29: =Ops!AJ81 ->  | AK29: =Ops!AK81 ->  | AL29: =Ops!AL81 ->  | AM29: =Ops!AM81 ->  | AN29: =Ops!AN81 ->  | AO29: =Ops!AO81 ->  | AP29: =Ops!AP81 ->  | AQ29: =Ops!AQ81 ->  | AR29: =Ops!AR81 ->  | AS29: =Ops!AS81 ->  | AT29: =Ops!AT81 ->  | AU29: =Ops!AU81 ->  | AV29: =Ops!AV81 ->  | AW29: =Ops!AW81 ->  | AX29: =Ops!AX81 ->  | AY29: =Ops!AY81 ->  | AZ29: =Ops!AZ81 ->  | BA29: =Ops!BA81 ->  | BB29: =Ops!BB81 ->  | BC29: =Ops!BC81 ->  | BD29: =Ops!BD81 ->  | BE29: =Ops!BE81 ->  | BF29: =Ops!BF81 ->  | BG29: =Ops!BG81 ->  | BH29: =Ops!BH81 ->  | BI29: =Ops!BI81 ->  | BJ29: =Ops!BJ81 ->  | BK29: =Ops!BK81 ->  | BL29: =Ops!BL81 ->  | BM29: =Ops!BM81 ->  | BN29: =Ops!BN81 ->  | BO29: =Ops!BO81 ->  | BP29: =Ops!BP81 ->  | BQ29: =Ops!BQ81 ->  | BR29: =Ops!BR81 ->  | BS29: =Ops!BS81 ->  | BT29: =Ops!BT81 ->  | BU29: =Ops!BU81 ->  | BV29: =Ops!BV81 ->  | BW29: =Ops!BW81 ->  | BX29: =Ops!BX81 ->  | BY29: =Ops!BY81 ->  | BZ29: =Ops!BZ81 ->  | CA29: =Ops!CA81 ->  | CB29: =Ops!CB81 ->  | CC29: =Ops!CC81 ->  | CD29: =Ops!CD81 ->  | CE29: =Ops!CE81 ->  | CF29: =Ops!CF81 ->  | CG29: =Ops!CG81 ->  | CH29: =Ops!CH81 ->  | CI29: =Ops!CI81 ->  | CJ29: =Ops!CJ81 ->  | CK29: =Ops!CK81 ->  | CL29: =Ops!CL81 ->  | CM29: =Ops!CM81 ->  | CN29: =Ops!CN81 ->  | CO29: =Ops!CO81 ->  | CP29: =Ops!CP81 ->  | CQ29: =Ops!CQ81 -> 
B31: Equity
B33: Retained Earnings | H33: $m | P33: =Equity!P65 ->  | Q33: =Equity!Q65 ->  | R33: =Equity!R65 ->  | S33: =Equity!S65 ->  | T33: =Equity!T65 ->  | U33: =Equity!U65 ->  | V33: =Equity!V65 ->  | W33: =Equity!W65 ->  | X33: =Equity!X65 ->  | Y33: =Equity!Y65 ->  | Z33: =Equity!Z65 ->  | AA33: =Equity!AA65 ->  | AB33: =Equity!AB65 ->  | AC33: =Equity!AC65 ->  | AD33: =Equity!AD65 ->  | AE33: =Equity!AE65 ->  | AF33: =Equity!AF65 ->  | AG33: =Equity!AG65 ->  | AH33: =Equity!AH65 ->  | AI33: =Equity!AI65 ->  | AJ33: =Equity!AJ65 ->  | AK33: =Equity!AK65 ->  | AL33: =Equity!AL65 ->  | AM33: =Equity!AM65 ->  | AN33: =Equity!AN65 ->  | AO33: =Equity!AO65 ->  | AP33: =Equity!AP65 ->  | AQ33: =Equity!AQ65 ->  | AR33: =Equity!AR65 ->  | AS33: =Equity!AS65 ->  | AT33: =Equity!AT65 ->  | AU33: =Equity!AU65 ->  | AV33: =Equity!AV65 ->  | AW33: =Equity!AW65 ->  | AX33: =Equity!AX65 ->  | AY33: =Equity!AY65 ->  | AZ33: =Equity!AZ65 ->  | BA33: =Equity!BA65 ->  | BB33: =Equity!BB65 ->  | BC33: =Equity!BC65 ->  | BD33: =Equity!BD65 ->  | BE33: =Equity!BE65 ->  | BF33: =Equity!BF65 ->  | BG33: =Equity!BG65 ->  | BH33: =Equity!BH65 ->  | BI33: =Equity!BI65 ->  | BJ33: =Equity!BJ65 ->  | BK33: =Equity!BK65 ->  | BL33: =Equity!BL65 ->  | BM33: =Equity!BM65 ->  | BN33: =Equity!BN65 ->  | BO33: =Equity!BO65 ->  | BP33: =Equity!BP65 ->  | BQ33: =Equity!BQ65 ->  | BR33: =Equity!BR65 ->  | BS33: =Equity!BS65 ->  | BT33: =Equity!BT65 ->  | BU33: =Equity!BU65 ->  | BV33: =Equity!BV65 ->  | BW33: =Equity!BW65 ->  | BX33: =Equity!BX65 ->  | BY33: =Equity!BY65 ->  | BZ33: =Equity!BZ65 ->  | CA33: =Equity!CA65 ->  | CB33: =Equity!CB65 ->  | CC33: =Equity!CC65 ->  | CD33: =Equity!CD65 ->  | CE33: =Equity!CE65 ->  | CF33: =Equity!CF65 ->  | CG33: =Equity!CG65 ->  | CH33: =Equity!CH65 ->  | CI33: =Equity!CI65 ->  | CJ33: =Equity!CJ65 ->  | CK33: =Equity!CK65 ->  | CL33: =Equity!CL65 ->  | CM33: =Equity!CM65 ->  | CN33: =Equity!CN65 ->  | CO33: =Equity!CO65 ->  | CP33: =Equity!CP65 ->  | CQ33: =Equity!CQ65 -> 
B34: Share Capital | H34: $m | P34: =Equity!P59 ->  | Q34: =Equity!Q59 ->  | R34: =Equity!R59 ->  | S34: =Equity!S59 ->  | T34: =Equity!T59 ->  | U34: =Equity!U59 ->  | V34: =Equity!V59 ->  | W34: =Equity!W59 ->  | X34: =Equity!X59 ->  | Y34: =Equity!Y59 ->  | Z34: =Equity!Z59 ->  | AA34: =Equity!AA59 ->  | AB34: =Equity!AB59 ->  | AC34: =Equity!AC59 ->  | AD34: =Equity!AD59 ->  | AE34: =Equity!AE59 ->  | AF34: =Equity!AF59 ->  | AG34: =Equity!AG59 ->  | AH34: =Equity!AH59 ->  | AI34: =Equity!AI59 ->  | AJ34: =Equity!AJ59 ->  | AK34: =Equity!AK59 ->  | AL34: =Equity!AL59 ->  | AM34: =Equity!AM59 ->  | AN34: =Equity!AN59 ->  | AO34: =Equity!AO59 ->  | AP34: =Equity!AP59 ->  | AQ34: =Equity!AQ59 ->  | AR34: =Equity!AR59 ->  | AS34: =Equity!AS59 ->  | AT34: =Equity!AT59 ->  | AU34: =Equity!AU59 ->  | AV34: =Equity!AV59 ->  | AW34: =Equity!AW59 ->  | AX34: =Equity!AX59 ->  | AY34: =Equity!AY59 ->  | AZ34: =Equity!AZ59 ->  | BA34: =Equity!BA59 ->  | BB34: =Equity!BB59 ->  | BC34: =Equity!BC59 ->  | BD34: =Equity!BD59 ->  | BE34: =Equity!BE59 ->  | BF34: =Equity!BF59 ->  | BG34: =Equity!BG59 ->  | BH34: =Equity!BH59 ->  | BI34: =Equity!BI59 ->  | BJ34: =Equity!BJ59 ->  | BK34: =Equity!BK59 ->  | BL34: =Equity!BL59 ->  | BM34: =Equity!BM59 ->  | BN34: =Equity!BN59 ->  | BO34: =Equity!BO59 ->  | BP34: =Equity!BP59 ->  | BQ34: =Equity!BQ59 ->  | BR34: =Equity!BR59 ->  | BS34: =Equity!BS59 ->  | BT34: =Equity!BT59 ->  | BU34: =Equity!BU59 ->  | BV34: =Equity!BV59 ->  | BW34: =Equity!BW59 ->  | BX34: =Equity!BX59 ->  | BY34: =Equity!BY59 ->  | BZ34: =Equity!BZ59 ->  | CA34: =Equity!CA59 ->  | CB34: =Equity!CB59 ->  | CC34: =Equity!CC59 ->  | CD34: =Equity!CD59 ->  | CE34: =Equity!CE59 ->  | CF34: =Equity!CF59 ->  | CG34: =Equity!CG59 ->  | CH34: =Equity!CH59 ->  | CI34: =Equity!CI59 ->  | CJ34: =Equity!CJ59 ->  | CK34: =Equity!CK59 ->  | CL34: =Equity!CL59 ->  | CM34: =Equity!CM59 ->  | CN34: =Equity!CN59 ->  | CO34: =Equity!CO59 ->  | CP34: =Equity!CP59 ->  | CQ34: =Equity!CQ59 -> 
B36: Total Liabilities & Equity | H36: $m | P36: =SUM(P27:P34) ->  | Q36: =SUM(Q27:Q34) ->  | CC36: =SUM(CC27:CC34) -> 
B39: Difference | H39: $m | N39: =SUM(P39:DD39) ->  | P39: =ROUND(P21-P36,5) ->  | CB39: =ROUND(CB21-CB36,5) -> 
B41: Balanced? | H41: check | J41: =IF(N39=0,TRUE,FALSE) ->  | P41: =IF(P39=0,"OK!","CHECK") ->  | CB41: =IF(CB39=0,"OK!","CHECK") -> 
A44: End Sheet

Sheet Timing
O5: Year: | R5: =L23 -> 2021 | S5: =R5+1 -> 2022 | T5: =S5+1 -> 2023 | U5: 2024 | V5: 2025 | W5: 2026 | X5: 2027 | Y5: 2028 | Z5: 2029 | AA5: 2030 | AB5: 2031 | AC5: 2032 | AD5: 2033 | AE5: 2034 | AF5: 2035 | AG5: 2036 | AH5: 2037 | AI5: 2038 | AJ5: 2039 | AK5: 2040 | AL5: 2041 | AM5: 2042 | AN5: 2043 | AO5: 2044 | AP5: 2045 | AQ5: 2046 | AR5: 2047 | AS5: 2048 | AT5: 2049 | AU5: 2050 | AV5: 2051 | AW5: 2052 | AX5: 2053 | AY5: 2054 | AZ5: 2055 | BA5: 2056 | BB5: 2057 | BC5: 2058 | BD5: 2059 | BE5: 2060 | BF5: 2061 | BG5: 2062 | BH5: 2063 | BI5: 2064 | BJ5: 2065 | BK5: 2066 | BL5: 2067 | BM5: 2068 | BN5: 2069 | BO5: 2070 | BP5: 2071 | BQ5: 2072 | BR5: 2073 | BS5: 2074 | BT5: 2075 | BU5: 2076 | BV5: 2077 | BW5: 2078 | BX5: 2079 | BY5: 2080 | BZ5: 2081 | CA5: 2082 | CB5: 2083 | CC5: 2084 | CD5: 2085 | CE5: 2086 | CF5: =CE5+1 -> 2087 | CG5: 2088 | CH5: 2089 | CI5: 2090 | CJ5: 2091 | CK5: 2092 | CL5: 2093 | CM5: 2094 | CN5: 2095 | CO5: 2096 | CP5: 2097 | CQ5: 2098 | CR5: 2099 | CS5: 2100 | CT5: 2101 | CU5: 2102 | CV5: 2103 | CW5: 2104 | CX5: 2105 | CY5: 2106 | CZ5: 2107 | DA5: 2108 | DB5: 2109 | DC5: 2110 | DD5: 2111 | DE5: 2112 | DF5: 2113
O6: Year #: | R6: =R18 -> 1 | S6: 2 | T6: 3 | U6: 4 | V6: 5 | W6: 6 | X6: 7 | Y6: 8 | Z6: 9 | AA6: 10 | AB6: 11 | AC6: 12 | AD6: 13 | AE6: 14 | AF6: 15 | AG6: 16 | AH6: 17 | AI6: 18 | AJ6: 19 | AK6: 20 | AL6: 21 | AM6: 22 | AN6: 23 | AO6: 24 | AP6: 25 | AQ6: 26 | AR6: 27 | AS6: 28 | AT6: 29 | AU6: 30 | AV6: 31 | AW6: 32 | AX6: 33 | AY6: 34 | AZ6: 35 | BA6: 36 | BB6: 37 | BC6: 38 | BD6: 39 | BE6: 40 | BF6: 41 | BG6: 42 | BH6: 43 | BI6: 44 | BJ6: 45 | BK6: 46 | BL6: 47 | BM6: 48 | BN6: 49 | BO6: 50 | BP6: 51 | BQ6: 52 | BR6: 53 | BS6: 54 | BT6: 55 | BU6: 56 | BV6: 57 | BW6: 58 | BX6: 59 | BY6: 60 | BZ6: 61 | CA6: 62 | CB6: 63 | CC6: 64 | CD6: =CD18 -> 65 | CE6: 66 | CF6: 67 | CG6: 68 | CH6: 69 | CI6: 70 | CJ6: 71 | CK6: 72 | CL6: 73 | CM6: 74 | CN6: 75 | CO6: 76 | CP6: 77 | CQ6: 78 | CR6: 79 | CS6: 80 | CT6: 81 | CU6: 82 | CV6: 83 | CW6: 84 | CX6: 85 | CY6: 86 | CZ6: 87 | DA6: 88 | DB6: 89 | DC6: 90 | DD6: 91 | DE6: 92 | DF6: 93
O7: Forecast: | R7: =R19 -> Const | S7: Const | T7: Const | U7: Ops | V7: Ops | W7: Ops | X7: Ops | Y7: Ops | Z7: Ops | AA7: Ops | AB7: Ops | AC7: Ops | AD7: Ops | AE7: Ops | AF7: Ops | AG7: Ops | AH7: Ops | AI7: Ops | AJ7: Ops | AK7: Ops | AL7: Ops | AM7: Ops | AN7: Ops | AO7: Ops | AP7: Ops | AQ7: Ops | AR7: Ops | AS7: Ops | AT7: Ops | AU7: Ops | AV7: Ops | AW7: Ops | AX7: Ops | AY7: Ops | AZ7: Ops | BA7: Ops | BB7: Ops | BC7: Ops | BD7: Ops | BE7: Ops | BF7: Ops | BG7: Ops | BH7: Ops | BI7: Ops | BJ7: Ops | BK7: Ops | BL7: Ops | BM7: Ops | BN7: Ops | BO7: Ops | BP7: Ops | BQ7: Ops | BR7: Ops | BS7: Ops
O8: Holding Period: | R8: =R57 ->  | W8: Hold | X8: Hold | Y8: Hold | Z8: Hold | AA8: Hold | AB8: Hold | AC8: Hold | AD8: Hold | AE8: Hold | AF8: Hold | AG8: Hold | CD8: =CD57 -> 
B11: Macroeconomic
B13: CPI | J13: % | R13: 0.01 | S13: 0.01 | T13: 0.01 | U13: 0.01 | V13: 0.01 | W13: 0.01 | X13: 0.01 | Y13: 0.01 | Z13: 0.01 | AA13: 0.01 | AB13: 0.01 | AC13: 0.01 | AD13: 0.01 | AE13: 0.01 | AF13: 0.01 | AG13: 0.01 | AH13: 0.01 | AI13: 0.01 | AJ13: 0.01 | AK13: 0.01 | AL13: 0.01 | AM13: 0.01 | AN13: 0.01 | AO13: 0.01 | AP13: 0.01 | AQ13: 0.01 | AR13: 0.01 | AS13: 0.01 | AT13: 0.01 | AU13: 0.01 | AV13: 0.01 | AW13: 0.01 | AX13: 0.01 | AY13: 0.01 | AZ13: 0.01 | BA13: 0.01 | BB13: 0.01 | BC13: 0.01 | BD13: 0.01 | BE13: 0.01 | BF13: 0.01 | BG13: 0.01 | BH13: 0.01 | BI13: 0.01 | BJ13: 0.01 | BK13: 0.01 | BL13: 0.01 | BM13: 0.01 | BN13: 0.01 | BO13: 0.01 | BP13: 0.01 | BQ13: 0.01 | BR13: 0.01 | BS13: 0.01 | BT13: 0.01 | BU13: 0.01 | BV13: 0.01 | BW13: 0.01 | BX13: 0.01 | BY13: 0.01 | BZ13: 0.01 | CA13: 0.01 | CB13: 0.01 | CC13: 0.01 | CD13: 0.01 | CE13: 0.01 | CF13: 0.01 | CG13: 0 | CH13: 0 | CI13: 0 | CJ13: 0 | CK13: 0 | CL13: 0 | CM13: 0 | CN13: 0 | CO13: 0 | CP13: 0 | CQ13: 0 | CR13: 0 | CS13: 0 | CT13: 0 | CU13: 0 | CV13: 0 | CW13: 0 | CX13: 0 | CY13: 0 | CZ13: 0 | DA13: 0 | DB13: 0 | DC13: 0 | DD13: 0 | DE13: 0 | DF13: 0
B14: CPI Index | J14: # | L14: 1 | R14: =L14*(1+R13) -> 1.01 | S14: =R14*(1+S13) -> 1.0201 | T14: 1.030301 | U14: 1.04060401 | V14: 1.05101005 | W14: 1.061520151 | X14: 1.072135352 | Y14: 1.082856706 | Z14: 1.093685273 | AA14: 1.104622125 | AB14: 1.115668347 | AC14: 1.12682503 | AD14: 1.13809328 | AE14: 1.149474213 | AF14: 1.160968955 | AG14: 1.172578645 | AH14: 1.184304431 | AI14: 1.196147476 | AJ14: 1.20810895 | AK14: 1.22019004 | AL14: 1.23239194 | AM14: 1.24471586 | AN14: 1.257163018 | AO14: 1.269734649 | AP14: 1.282431995 | AQ14: 1.295256315 | AR14: 1.308208878 | AS14: 1.321290967 | AT14: 1.334503877 | AU14: 1.347848915 | AV14: 1.361327404 | AW14: 1.374940679 | AX14: 1.388690085 | AY14: 1.402576986 | AZ14: 1.416602756 | BA14: 1.430768784 | BB14: 1.445076471 | BC14: 1.459527236 | BD14: 1.474122509 | BE14: 1.488863734 | BF14: 1.503752371 | BG14: 1.518789895 | BH14: 1.533977794 | BI14: 1.549317572 | BJ14: 1.564810747 | BK14: 1.580458855 | BL14: 1.596263443 | BM14: 1.612226078 | BN14: 1.628348338 | BO14: 1.644631822 | BP14: 1.66107814 | BQ14: 1.677688921 | BR14: 1.694465811 | BS14: 1.711410469 | BT14: 1.728524573 | BU14: 1.745809819 | BV14: 1.763267917 | BW14: 1.780900597 | BX14: 1.798709603 | BY14: 1.816696699 | BZ14: 1.834863666 | CA14: 1.853212302 | CB14: 1.871744425 | CC14: 1.890461869 | CD14: 1.909366488 | CE14: =CD14*(1+CE13) -> 1.928460153 | CF14: 1.947744755 | CG14: 1.947744755 | CH14: 1.947744755 | CI14: 1.947744755 | CJ14: 1.947744755 | CK14: 1.947744755 | CL14: 1.947744755 | CM14: 1.947744755 | CN14: 1.947744755 | CO14: 1.947744755 | CP14: 1.947744755 | CQ14: 1.947744755 | CR14: 1.947744755 | CS14: 1.947744755 | CT14: 1.947744755 | CU14: 1.947744755 | CV14: 1.947744755 | CW14: 1.947744755 | CX14: 1.947744755 | CY14: 1.947744755 | CZ14: 1.947744755 | DA14: 1.947744755 | DB14: 1.947744755 | DC14: 1.947744755 | DD14: 1.947744755 | DE14: 1.947744755 | DF14: 1.947744755
B16: Operations
B18: Model Period Counter | J18: # | R18: =IF(R5>1,1+Q18,0) -> 1 | S18: 2 | T18: 3 | U18: 4 | V18: 5 | W18: 6 | X18: 7 | Y18: 8 | Z18: 9 | AA18: 10 | AB18: 11 | AC18: 12 | AD18: 13 | AE18: 14 | AF18: 15 | AG18: 16 | AH18: 17 | AI18: 18 | AJ18: 19 | AK18: 20 | AL18: 21 | AM18: 22 | AN18: 23 | AO18: 24 | AP18: 25 | AQ18: 26 | AR18: 27 | AS18: 28 | AT18: 29 | AU18: 30 | AV18: 31 | AW18: 32 | AX18: 33 | AY18: 34 | AZ18: 35 | BA18: 36 | BB18: 37 | BC18: 38 | BD18: 39 | BE18: 40 | BF18: 41 | BG18: 42 | BH18: 43 | BI18: 44 | BJ18: 45 | BK18: 46 | BL18: 47 | BM18: 48 | BN18: 49 | BO18: 50 | BP18: 51 | BQ18: 52 | BR18: 53 | BS18: 54 | BT18: 55 | BU18: 56 | BV18: 57 | BW18: 58 | BX18: 59 | BY18: 60 | BZ18: 61 | CA18: 62 | CB18: 63 | CC18: 64 | CD18: =IF(CD5>1,1+CC18,0) -> 65 | CE18: 66 | CF18: 67 | CG18: 68 | CH18: 69 | CI18: 70 | CJ18: 71 | CK18: 72 | CL18: 73 | CM18: 74 | CN18: 75 | CO18: 76 | CP18: 77 | CQ18: 78 | CR18: 79 | CS18: 80 | CT18: 81 | CU18: 82 | CV18: 83 | CW18: 84 | CX18: 85 | CY18: 86 | CZ18: 87 | DA18: 88 | DB18: 89 | DC18: 90 | DD18: 91 | DE18: 92 | DF18: 93
B19: Label | J19: label | R19: =IF(R24=1,"Const",IF(R29=1,"Ops","")) -> Const | S19: Const | T19: Const | U19: Ops | V19: Ops | W19: Ops | X19: Ops | Y19: Ops | Z19: Ops | AA19: Ops | AB19: Ops | AC19: Ops | AD19: Ops | AE19: Ops | AF19: Ops | AG19: Ops | AH19: Ops | AI19: Ops | AJ19: Ops | AK19: Ops | AL19: Ops | AM19: Ops | AN19: Ops | AO19: Ops | AP19: Ops | AQ19: Ops | AR19: Ops | AS19: Ops | AT19: Ops | AU19: Ops | AV19: Ops | AW19: Ops | AX19: Ops | AY19: Ops | AZ19: Ops | BA19: Ops | BB19: Ops | BC19: Ops | BD19: Ops | BE19: Ops | BF19: Ops | BG19: Ops | BH19: Ops | BI19: Ops | BJ19: Ops | BK19: Ops | BL19: Ops | BM19: Ops | BN19: Ops | BO19: Ops | BP19: Ops | BQ19: Ops | BR19: Ops | BS19: Ops | CD19: =IF(CD24=1,"Const",IF(CD29=1,"Ops","")) -> 
B22: Construction
B23: Construction Start | J23: flag | L23: =InputC!K14 -> 2021 | P23: =SUM(R23:DF23) -> 1 | R23: =IF(R$5=$L23,1,0) -> 1 | S23: 0 | T23: 0 | U23: 0 | V23: 0 | W23: 0 | X23: 0 | Y23: 0 | Z23: 0 | AA23: 0 | AB23: 0 | AC23: 0 | AD23: 0 | AE23: 0 | AF23: 0 | AG23: 0 | AH23: 0 | AI23: 0 | AJ23: 0 | AK23: 0 | AL23: 0 | AM23: 0 | AN23: 0 | AO23: 0 | AP23: 0 | AQ23: 0 | AR23: 0 | AS23: 0 | AT23: 0 | AU23: 0 | AV23: 0 | AW23: 0 | AX23: =IF(AX$5=$L23,1,0) -> 0 | AY23: 0 | AZ23: 0 | BA23: 0 | BB23: 0 | BC23: 0 | BD23: 0 | BE23: 0 | BF23: 0 | BG23: 0 | BH23: 0 | BI23: 0 | BJ23: 0 | BK23: 0 | BL23: 0 | BM23: 0 | BN23: 0 | BO23: 0 | BP23: 0 | BQ23: 0 | BR23: 0 | BS23: 0 | BT23: 0 | BU23: 0 | BV23: 0 | BW23: 0 | BX23: 0 | BY23: 0 | BZ23: 0 | CA23: 0 | CB23: 0 | CC23: 0 | CD23: =IF(CD$5=$L23,1,0) -> 0 | CE23: 0 | CF23: 0 | CG23: 0 | CH23: 0 | CI23: 0 | CJ23: 0 | CK23: 0 | CL23: 0 | CM23: 0 | CN23: 0 | CO23: 0 | CP23: 0 | CQ23: 0 | CR23: 0 | CS23: 0 | CT23: 0 | CU23: 0 | CV23: 0 | CW23: 0 | CX23: 0 | CY23: 0 | CZ23: 0 | DA23: 0 | DB23: 0 | DC23: 0 | DD23: 0 | DE23: 0 | DF23: 0
B24: Construction Period | J24: flag | P24: =SUM(R24:DF24) -> 3 | R24: =Q24+R23-Q25 -> 1 | S24: 1 | T24: 1 | U24: 0 | V24: 0 | W24: 0 | X24: 0 | Y24: 0 | Z24: 0 | AA24: 0 | AB24: 0 | AC24: 0 | AD24: 0 | AE24: 0 | AF24: 0 | AG24: 0 | AH24: 0 | AI24: 0 | AJ24: 0 | AK24: 0 | AL24: 0 | AM24: 0 | AN24: 0 | AO24: 0 | AP24: 0 | AQ24: 0 | AR24: 0 | AS24: 0 | AT24: 0 | AU24: 0 | AV24: 0 | AW24: 0 | AX24: 0 | AY24: 0 | AZ24: 0 | BA24: 0 | BB24: 0 | BC24: 0 | BD24: 0 | BE24: 0 | BF24: 0 | BG24: 0 | BH24: 0 | BI24: 0 | BJ24: 0 | BK24: 0 | BL24: 0 | BM24: 0 | BN24: 0 | BO24: 0 | BP24: 0 | BQ24: 0 | BR24: 0 | BS24: 0 | BT24: 0 | BU24: 0 | BV24: 0 | BW24: 0 | BX24: 0 | BY24: 0 | BZ24: 0 | CA24: 0 | CB24: 0 | CC24: 0 | CD24: =CC24+CD23-CC25 -> 0 | CE24: 0 | CF24: 0 | CG24: 0 | CH24: 0 | CI24: 0 | CJ24: 0 | CK24: 0 | CL24: 0 | CM24: 0 | CN24: 0 | CO24: 0 | CP24: 0 | CQ24: 0 | CR24: 0 | CS24: 0 | CT24: 0 | CU24: 0 | CV24: 0 | CW24: 0 | CX24: 0 | CY24: 0 | CZ24: 0 | DA24: 0 | DB24: 0 | DC24: 0 | DD24: 0 | DE24: 0 | DF24: 0
B25: Construction End | J25: flag | L25: =InputC!K16 -> 2023 | P25: =SUM(R25:DF25) -> 1 | R25: =IF(R$5=$L25,1,0) -> 0 | S25: 0 | T25: 1 | U25: 0 | V25: 0 | W25: 0 | X25: 0 | Y25: 0 | Z25: 0 | AA25: 0 | AB25: 0 | AC25: 0 | AD25: 0 | AE25: 0 | AF25: 0 | AG25: 0 | AH25: 0 | AI25: 0 | AJ25: 0 | AK25: 0 | AL25: 0 | AM25: 0 | AN25: 0 | AO25: 0 | AP25: 0 | AQ25: 0 | AR25: 0 | AS25: 0 | AT25: 0 | AU25: 0 | AV25: 0 | AW25: 0 | AX25: =IF(AX$5=$L25,1,0) -> 0 | AY25: 0 | AZ25: 0 | BA25: 0 | BB25: 0 | BC25: 0 | BD25: 0 | BE25: 0 | BF25: 0 | BG25: 0 | BH25: 0 | BI25: 0 | BJ25: 0 | BK25: 0 | BL25: 0 | BM25: 0 | BN25: 0 | BO25: 0 | BP25: 0 | BQ25: 0 | BR25: 0 | BS25: 0 | BT25: 0 | BU25: 0 | BV25: 0 | BW25: 0 | BX25: 0 | BY25: 0 | BZ25: 0 | CA25: 0 | CB25: 0 | CC25: 0 | CD25: =IF(CD$5=$L25,1,0) -> 0 | CE25: 0 | CF25: 0 | CG25: 0 | CH25: 0 | CI25: 0 | CJ25: 0 | CK25: 0 | CL25: 0 | CM25: 0 | CN25: 0 | CO25: 0 | CP25: 0 | CQ25: 0 | CR25: 0 | CS25: 0 | CT25: 0 | CU25: 0 | CV25: 0 | CW25: 0 | CX25: 0 | CY25: 0 | CZ25: 0 | DA25: 0 | DB25: 0 | DC25: 0 | DD25: 0 | DE25: 0 | DF25: 0
B27: Operation
B28: COD | J28: flag | L28: =InputC!K20 -> 2024 | P28: =SUM(R28:DF28) -> 1 | R28: =IF(R$5=$L28,1,0) -> 0 | S28: 0 | T28: 0 | U28: 1 | V28: 0 | W28: 0 | X28: 0 | Y28: 0 | Z28: 0 | AA28: 0 | AB28: 0 | AC28: 0 | AD28: 0 | AE28: 0 | AF28: 0 | AG28: 0 | AH28: 0 | AI28: 0 | AJ28: 0 | AK28: 0 | AL28: 0 | AM28: 0 | AN28: 0 | AO28: 0 | AP28: 0 | AQ28: 0 | AR28: 0 | AS28: 0 | AT28: 0 | AU28: 0 | AV28: 0 | AW28: 0 | AX28: =IF(AX$5=$L28,1,0) -> 0 | AY28: 0 | AZ28: 0 | BA28: 0 | BB28: 0 | BC28: 0 | BD28: 0 | BE28: 0 | BF28: 0 | BG28: 0 | BH28: 0 | BI28: 0 | BJ28: 0 | BK28: 0 | BL28: 0 | BM28: 0 | BN28: 0 | BO28: 0 | BP28: 0 | BQ28: 0 | BR28: 0 | BS28: 0 | BT28: 0 | BU28: 0 | BV28: 0 | BW28: 0 | BX28: 0 | BY28: 0 | BZ28: 0 | CA28: 0 | CB28: 0 | CC28: 0 | CD28: =IF(CD$5=$L28,1,0) -> 0 | CE28: 0 | CF28: 0 | CG28: 0 | CH28: 0 | CI28: 0 | CJ28: 0 | CK28: 0 | CL28: 0 | CM28: 0 | CN28: 0 | CO28: 0 | CP28: 0 | CQ28: 0 | CR28: 0 | CS28: 0 | CT28: 0 | CU28: 0 | CV28: 0 | CW28: 0 | CX28: 0 | CY28: 0 | CZ28: 0 | DA28: 0 | DB28: 0 | DC28: 0 | DD28: 0 | DE28: 0 | DF28: 0
B29: Operation Period | J29: flag | P29: =SUM(R29:DF29) -> 51 | R29: =Q29+R28-Q30 -> 0 | S29: 0 | T29: 0 | U29: 1 | V29: 1 | W29: 1 | X29: 1 | Y29: 1 | Z29: 1 | AA29: 1 | AB29: 1 | AC29: 1 | AD29: 1 | AE29: 1 | AF29: 1 | AG29: 1 | AH29: 1 | AI29: 1 | AJ29: 1 | AK29: 1 | AL29: 1 | AM29: 1 | AN29: 1 | AO29: 1 | AP29: 1 | AQ29: 1 | AR29: 1 | AS29: 1 | AT29: 1 | AU29: 1 | AV29: 1 | AW29: 1 | AX29: 1 | AY29: 1 | AZ29: 1 | BA29: 1 | BB29: 1 | BC29: 1 | BD29: 1 | BE29: 1 | BF29: 1 | BG29: 1 | BH29: 1 | BI29: 1 | BJ29: 1 | BK29: 1 | BL29: 1 | BM29: 1 | BN29: 1 | BO29: 1 | BP29: 1 | BQ29: 1 | BR29: 1 | BS29: 1 | BT29: 0 | BU29: 0 | BV29: 0 | BW29: 0 | BX29: 0 | BY29: 0 | BZ29: 0 | CA29: 0 | CB29: 0 | CC29: 0 | CD29: =CC29+CD28-CC30 -> 0 | CE29: 0 | CF29: 0 | CG29: 0 | CH29: 0 | CI29: 0 | CJ29: 0 | CK29: 0 | CL29: 0 | CM29: 0 | CN29: 0 | CO29: 0 | CP29: 0 | CQ29: 0 | CR29: 0 | CS29: 0 | CT29: 0 | CU29: 0 | CV29: 0 | CW29: 0 | CX29: 0 | CY29: 0 | CZ29: 0 | DA29: 0 | DB29: 0 | DC29: 0 | DD29: 0 | DE29: 0 | DF29: 0
B30: Decommissioning | J30: flag | L30: =InputC!K22 -> 2074 | P30: =SUM(R30:DF30) -> 1 | R30: =IF(R$5=$L30,1,0) -> 0 | S30: 0 | T30: 0 | U30: 0 | V30: 0 | W30: 0 | X30: 0 | Y30: 0 | Z30: 0 | AA30: 0 | AB30: 0 | AC30: 0 | AD30: 0 | AE30: 0 | AF30: 0 | AG30: 0 | AH30: 0 | AI30: 0 | AJ30: 0 | AK30: 0 | AL30: 0 | AM30: 0 | AN30: 0 | AO30: 0 | AP30: 0 | AQ30: 0 | AR30: 0 | AS30: 0 | AT30: 0 | AU30: 0 | AV30: 0 | AW30: 0 | AX30: =IF(AX$5=$L30,1,0) -> 0 | AY30: 0 | AZ30: 0 | BA30: 0 | BB30: 0 | BC30: 0 | BD30: 0 | BE30: 0 | BF30: 0 | BG30: 0 | BH30: 0 | BI30: 0 | BJ30: 0 | BK30: 0 | BL30: 0 | BM30: 0 | BN30: 0 | BO30: 0 | BP30: 0 | BQ30: 0 | BR30: 0 | BS30: 1 | BT30: 0 | BU30: 0 | BV30: 0 | BW30: 0 | BX30: 0 | BY30: 0 | BZ30: 0 | CA30: 0 | CB30: 0 | CC30: 0 | CD30: =IF(CD$5=$L30,1,0) -> 0 | CE30: 0 | CF30: 0 | CG30: 0 | CH30: 0 | CI30: 0 | CJ30: 0 | CK30: 0 | CL30: 0 | CM30: 0 | CN30: 0 | CO30: 0 | CP30: 0 | CQ30: 0 | CR30: 0 | CS30: 0 | CT30: 0 | CU30: 0 | CV30: 0 | CW30: 0 | CX30: 0 | CY30: 0 | CZ30: 0 | DA30: 0 | DB30: 0 | DC30: 0 | DD30: 0 | DE30: 0 | DF30: 0
B32: Operating Period Counter | J32: # | R32: =(Q32+R29)*R29 -> 0 | S32: =(R32+S29)*S29 -> 0 | T32: 0 | U32: 1 | V32: 2 | W32: 3 | X32: 4 | Y32: 5 | Z32: 6 | AA32: 7 | AB32: 8 | AC32: 9 | AD32: 10 | AE32: 11 | AF32: 12 | AG32: 13 | AH32: 14 | AI32: 15 | AJ32: 16 | AK32: 17 | AL32: 18 | AM32: 19 | AN32: 20 | AO32: 21 | AP32: 22 | AQ32: 23 | AR32: 24 | AS32: 25 | AT32: 26 | AU32: 27 | AV32: 28 | AW32: 29 | AX32: 30 | AY32: 31 | AZ32: 32 | BA32: 33 | BB32: 34 | BC32: 35 | BD32: 36 | BE32: 37 | BF32: 38 | BG32: 39 | BH32: 40 | BI32: 41 | BJ32: 42 | BK32: 43 | BL32: 44 | BM32: 45 | BN32: 46 | BO32: 47 | BP32: 48 | BQ32: 49 | BR32: 50 | BS32: 51 | BT32: 0 | BU32: 0 | BV32: 0 | BW32: 0 | BX32: 0 | BY32: 0 | BZ32: 0 | CA32: 0 | CB32: 0 | CC32: 0 | CD32: 0 | CE32: =(CD32+CE29)*CE29 -> 0 | CF32: 0 | CG32: 0 | CH32: 0 | CI32: 0 | CJ32: 0 | CK32: 0 | CL32: 0 | CM32: 0 | CN32: 0 | CO32: 0 | CP32: 0 | CQ32: 0 | CR32: 0 | CS32: 0 | CT32: 0 | CU32: 0 | CV32: 0 | CW32: 0 | CX32: 0 | CY32: 0 | CZ32: 0 | DA32: 0 | DB32: 0 | DC32: 0 | DD32: 0 | DE32: 0 | DF32: 0
B34: Maintenance Year | J34: flag | L34: 2 | P34: =SUM(R34:DF34) -> 25 | R34: =IF(AND(R32>0,MOD(R32,$L$34)=0),1,0) -> 0 | S34: 0 | T34: 0 | U34: 0 | V34: 1 | W34: 0 | X34: 1 | Y34: 0 | Z34: 1 | AA34: 0 | AB34: 1 | AC34: 0 | AD34: 1 | AE34: 0 | AF34: 1 | AG34: 0 | AH34: 1 | AI34: 0 | AJ34: 1 | AK34: 0 | AL34: 1 | AM34: 0 | AN34: 1 | AO34: 0 | AP34: 1 | AQ34: 0 | AR34: 1 | AS34: 0 | AT34: 1 | AU34: 0 | AV34: 1 | AW34: 0 | AX34: =IF(AND(AX32>0,MOD(AX32,$L$34)=0),1,0) -> 1 | AY34: 0 | AZ34: 1 | BA34: 0 | BB34: 1 | BC34: 0 | BD34: 1 | BE34: 0 | BF34: 1 | BG34: 0 | BH34: 1 | BI34: 0 | BJ34: 1 | BK34: 0 | BL34: 1 | BM34: 0 | BN34: 1 | BO34: 0 | BP34: 1 | BQ34: 0 | BR34: 1 | BS34: 0 | BT34: 0 | BU34: 0 | BV34: 0 | BW34: 0 | BX34: 0 | BY34: 0 | BZ34: 0 | CA34: 0 | CB34: 0 | CC34: 0 | CD34: =IF(AND(CD32>0,MOD(CD32,$L$34)=0),1,0) -> 0 | CE34: 0 | CF34: 0 | CG34: 0 | CH34: 0 | CI34: 0 | CJ34: 0 | CK34: 0 | CL34: 0 | CM34: 0 | CN34: 0 | CO34: 0 | CP34: 0 | CQ34: 0 | CR34: 0 | CS34: 0 | CT34: 0 | CU34: 0 | CV34: 0 | CW34: 0 | CX34: 0 | CY34: 0 | CZ34: 0 | DA34: 0 | DB34: 0 | DC34: 0 | DD34: 0 | DE34: 0 | DF34: 0
B36: Debt
B38: Senior Debt
B39: First Repayment | J39: flag | L39: =InputC!K95 -> 2024 | P39: =SUM(R39:DF39) -> 1 | R39: =IF(R$5=$L39,1,0) -> 0 | S39: 0 | T39: 0 | U39: 1 | V39: 0 | W39: 0 | X39: 0 | Y39: 0 | Z39: 0 | AA39: 0 | AB39: 0 | AC39: 0 | AD39: 0 | AE39: 0 | AF39: 0 | AG39: 0 | AH39: 0 | AI39: 0 | AJ39: 0 | AK39: 0 | AL39: 0 | AM39: 0 | AN39: 0 | AO39: 0 | AP39: 0 | AQ39: 0 | AR39: 0 | AS39: 0 | AT39: 0 | AU39: 0 | AV39: 0 | AW39: 0 | AX39: =IF(AX$5=$L39,1,0) -> 0 | AY39: 0 | AZ39: 0 | BA39: 0 | BB39: 0 | BC39: 0 | BD39: 0 | BE39: 0 | BF39: 0 | BG39: 0 | BH39: 0 | BI39: 0 | BJ39: 0 | BK39: 0 | BL39: 0 | BM39: 0 | BN39: 0 | BO39: 0 | BP39: 0 | BQ39: 0 | BR39: 0 | BS39: 0 | BT39: 0 | BU39: 0 | BV39: 0 | BW39: 0 | BX39: 0 | BY39: 0 | BZ39: 0 | CA39: 0 | CB39: 0 | CC39: 0 | CD39: =IF(CD$5=$L39,1,0) -> 0 | CE39: 0 | CF39: 0 | CG39: 0 | CH39: 0 | CI39: 0 | CJ39: 0 | CK39: 0 | CL39: 0 | CM39: 0 | CN39: 0 | CO39: 0 | CP39: 0 | CQ39: 0 | CR39: 0 | CS39: 0 | CT39: 0 | CU39: 0 | CV39: 0 | CW39: 0 | CX39: 0 | CY39: 0 | CZ39: 0 | DA39: 0 | DB39: 0 | DC39: 0 | DD39: 0 | DE39: 0 | DF39: 0
B40: Repayment Period | J40: flag | P40: =SUM(R40:DF40) -> 25 | R40: =Q40+R39-Q41 -> 0 | S40: 0 | T40: 0 | U40: 1 | V40: 1 | W40: 1 | X40: 1 | Y40: 1 | Z40: 1 | AA40: 1 | AB40: 1 | AC40: 1 | AD40: 1 | AE40: 1 | AF40: 1 | AG40: 1 | AH40: 1 | AI40: 1 | AJ40: 1 | AK40: 1 | AL40: 1 | AM40: 1 | AN40: 1 | AO40: 1 | AP40: 1 | AQ40: 1 | AR40: 1 | AS40: 1 | AT40: 0 | AU40: 0 | AV40: 0 | AW40: 0 | AX40: 0 | AY40: 0 | AZ40: 0 | BA40: 0 | BB40: 0 | BC40: 0 | BD40: 0 | BE40: 0 | BF40: 0 | BG40: 0 | BH40: 0 | BI40: 0 | BJ40: 0 | BK40: 0 | BL40: 0 | BM40: 0 | BN40: 0 | BO40: 0 | BP40: 0 | BQ40: 0 | BR40: 0 | BS40: 0 | BT40: 0 | BU40: 0 | BV40: 0 | BW40: 0 | BX40: 0 | BY40: 0 | BZ40: 0 | CA40: 0 | CB40: 0 | CC40: 0 | CD40: =CC40+CD39-CC41 -> 0 | CE40: 0 | CF40: 0 | CG40: 0 | CH40: 0 | CI40: 0 | CJ40: 0 | CK40: 0 | CL40: 0 | CM40: 0 | CN40: 0 | CO40: 0 | CP40: 0 | CQ40: 0 | CR40: 0 | CS40: 0 | CT40: 0 | CU40: 0 | CV40: 0 | CW40: 0 | CX40: 0 | CY40: 0 | CZ40: 0 | DA40: 0 | DB40: 0 | DC40: 0 | DD40: 0 | DE40: 0 | DF40: 0
B41: Maturity | J41: flag | L41: =InputC!K97 -> 2048 | P41: =SUM(R41:DF41) -> 1 | R41: =IF(R$5=$L41,1,0) -> 0 | S41: 0 | T41: 0 | U41: 0 | V41: 0 | W41: 0 | X41: 0 | Y41: 0 | Z41: 0 | AA41: 0 | AB41: 0 | AC41: 0 | AD41: 0 | AE41: 0 | AF41: 0 | AG41: 0 | AH41: 0 | AI41: 0 | AJ41: 0 | AK41: 0 | AL41: 0 | AM41: 0 | AN41: 0 | AO41: 0 | AP41: 0 | AQ41: 0 | AR41: 0 | AS41: 1 | AT41: 0 | AU41: 0 | AV41: 0 | AW41: 0 | AX41: =IF(AX$5=$L41,1,0) -> 0 | AY41: 0 | AZ41: 0 | BA41: 0 | BB41: 0 | BC41: 0 | BD41: 0 | BE41: 0 | BF41: 0 | BG41: 0 | BH41: 0 | BI41: 0 | BJ41: 0 | BK41: 0 | BL41: 0 | BM41: 0 | BN41: 0 | BO41: 0 | BP41: 0 | BQ41: 0 | BR41: 0 | BS41: 0 | BT41: 0 | BU41: 0 | BV41: 0 | BW41: 0 | BX41: 0 | BY41: 0 | BZ41: 0 | CA41: 0 | CB41: 0 | CC41: 0 | CD41: =IF(CD$5=$L41,1,0) -> 0 | CE41: 0 | CF41: 0 | CG41: 0 | CH41: 0 | CI41: 0 | CJ41: 0 | CK41: 0 | CL41: 0 | CM41: 0 | CN41: 0 | CO41: 0 | CP41: 0 | CQ41: 0 | CR41: 0 | CS41: 0 | CT41: 0 | CU41: 0 | CV41: 0 | CW41: 0 | CX41: 0 | CY41: 0 | CZ41: 0 | DA41: 0 | DB41: 0 | DC41: 0 | DD41: 0 | DE41: 0 | DF41: 0
B43: Repayment Counter | J43: # | R43: =(Q43+R40)*R40 -> 0 | S43: =(R43+S40)*S40 -> 0 | T43: 0 | U43: 1 | V43: 2 | W43: 3 | X43: 4 | Y43: 5 | Z43: 6 | AA43: 7 | AB43: 8 | AC43: 9 | AD43: 10 | AE43: 11 | AF43: 12 | AG43: 13 | AH43: 14 | AI43: 15 | AJ43: 16 | AK43: 17 | AL43: 18 | AM43: 19 | AN43: 20 | AO43: 21 | AP43: 22 | AQ43: 23 | AR43: 24 | AS43: 25 | AT43: 0 | AU43: 0 | AV43: 0 | AW43: 0 | AX43: 0 | AY43: 0 | AZ43: 0 | BA43: 0 | BB43: 0 | BC43: 0 | BD43: 0 | BE43: 0 | BF43: 0 | BG43: 0 | BH43: 0 | BI43: 0 | BJ43: 0 | BK43: 0 | BL43: 0 | BM43: 0 | BN43: 0 | BO43: 0 | BP43: 0 | BQ43: 0 | BR43: 0 | BS43: 0 | BT43: 0 | BU43: 0 | BV43: 0 | BW43: 0 | BX43: 0 | BY43: 0 | BZ43: 0 | CA43: 0 | CB43: 0 | CC43: 0 | CD43: 0 | CE43: =(CD43+CE40)*CE40 -> 0 | CF43: 0 | CG43: 0 | CH43: 0 | CI43: 0 | CJ43: 0 | CK43: 0 | CL43: 0 | CM43: 0 | CN43: 0 | CO43: 0 | CP43: 0 | CQ43: 0 | CR43: 0 | CS43: 0 | CT43: 0 | CU43: 0 | CV43: 0 | CW43: 0 | CX43: 0 | CY43: 0 | CZ43: 0 | DA43: 0 | DB43: 0 | DC43: 0 | DD43: 0 | DE43: 0 | DF43: 0
B45: Cash Sweep
B46: Sweep Start | J46: flag | L46: =InputC!K124 -> 2028 | P46: =SUM(R46:DF46) -> 1 | R46: =IF(R$5=$L46,1,0) -> 0 | S46: 0 | T46: 0 | U46: 0 | V46: 0 | W46: 0 | X46: 0 | Y46: 1 | Z46: 0 | AA46: 0 | AB46: 0 | AC46: 0 | AD46: 0 | AE46: 0 | AF46: 0 | AG46: 0 | AH46: 0 | AI46: 0 | AJ46: 0 | AK46: 0 | AL46: 0 | AM46: 0 | AN46: 0 | AO46: 0 | AP46: 0 | AQ46: 0 | AR46: 0 | AS46: 0 | AT46: 0 | AU46: 0 | AV46: 0 | AW46: 0 | AX46: =IF(AX$5=$L46,1,0) -> 0 | AY46: 0 | AZ46: 0 | BA46: 0 | BB46: 0 | BC46: 0 | BD46: 0 | BE46: 0 | BF46: 0 | BG46: 0 | BH46: 0 | BI46: 0 | BJ46: 0 | BK46: 0 | BL46: 0 | BM46: 0 | BN46: 0 | BO46: 0 | BP46: 0 | BQ46: 0 | BR46: 0 | BS46: 0 | BT46: 0 | BU46: 0 | BV46: 0 | BW46: 0 | BX46: 0 | BY46: 0 | BZ46: 0 | CA46: 0 | CB46: 0 | CC46: 0 | CD46: =IF(CD$5=$L46,1,0) -> 0 | CE46: 0 | CF46: 0 | CG46: 0 | CH46: 0 | CI46: 0 | CJ46: 0 | CK46: 0 | CL46: 0 | CM46: 0 | CN46: 0 | CO46: 0 | CP46: 0 | CQ46: 0 | CR46: 0 | CS46: 0 | CT46: 0 | CU46: 0 | CV46: 0 | CW46: 0 | CX46: 0 | CY46: 0 | CZ46: 0 | DA46: 0 | DB46: 0 | DC46: 0 | DD46: 0 | DE46: 0 | DF46: 0
B47: Sweep Active | J47: flag | P47: =SUM(R47:DF47) -> 21 | R47: =Q47+R46-Q48 -> 0 | S47: 0 | T47: 0 | U47: 0 | V47: 0 | W47: 0 | X47: 0 | Y47: 1 | Z47: 1 | AA47: 1 | AB47: 1 | AC47: 1 | AD47: 1 | AE47: 1 | AF47: 1 | AG47: 1 | AH47: 1 | AI47: 1 | AJ47: 1 | AK47: 1 | AL47: 1 | AM47: 1 | AN47: 1 | AO47: 1 | AP47: 1 | AQ47: 1 | AR47: 1 | AS47: 1 | AT47: 0 | AU47: 0 | AV47: 0 | AW47: 0 | AX47: 0 | AY47: 0 | AZ47: 0 | BA47: 0 | BB47: 0 | BC47: 0 | BD47: 0 | BE47: 0 | BF47: 0 | BG47: 0 | BH47: 0 | BI47: 0 | BJ47: 0 | BK47: 0 | BL47: 0 | BM47: 0 | BN47: 0 | BO47: 0 | BP47: 0 | BQ47: 0 | BR47: 0 | BS47: 0 | BT47: 0 | BU47: 0 | BV47: 0 | BW47: 0 | BX47: 0 | BY47: 0 | BZ47: 0 | CA47: 0 | CB47: 0 | CC47: 0 | CD47: =CC47+CD46-CC48 -> 0 | CE47: 0 | CF47: 0 | CG47: 0 | CH47: 0 | CI47: 0 | CJ47: 0 | CK47: 0 | CL47: 0 | CM47: 0 | CN47: 0 | CO47: 0 | CP47: 0 | CQ47: 0 | CR47: 0 | CS47: 0 | CT47: 0 | CU47: 0 | CV47: 0 | CW47: 0 | CX47: 0 | CY47: 0 | CZ47: 0 | DA47: 0 | DB47: 0 | DC47: 0 | DD47: 0 | DE47: 0 | DF47: 0
B48: Sweep End | J48: flag | L48: =InputC!K97 -> 2048 | P48: =SUM(R48:DF48) -> 1 | R48: =IF(R$5=$L48,1,0) -> 0 | S48: 0 | T48: 0 | U48: 0 | V48: 0 | W48: 0 | X48: 0 | Y48: 0 | Z48: 0 | AA48: 0 | AB48: 0 | AC48: 0 | AD48: 0 | AE48: 0 | AF48: 0 | AG48: 0 | AH48: 0 | AI48: 0 | AJ48: 0 | AK48: 0 | AL48: 0 | AM48: 0 | AN48: 0 | AO48: 0 | AP48: 0 | AQ48: 0 | AR48: 0 | AS48: 1 | AT48: 0 | AU48: 0 | AV48: 0 | AW48: 0 | AX48: =IF(AX$5=$L48,1,0) -> 0 | AY48: 0 | AZ48: 0 | BA48: 0 | BB48: 0 | BC48: 0 | BD48: 0 | BE48: 0 | BF48: 0 | BG48: 0 | BH48: 0 | BI48: 0 | BJ48: 0 | BK48: 0 | BL48: 0 | BM48: 0 | BN48: 0 | BO48: 0 | BP48: 0 | BQ48: 0 | BR48: 0 | BS48: 0 | BT48: 0 | BU48: 0 | BV48: 0 | BW48: 0 | BX48: 0 | BY48: 0 | BZ48: 0 | CA48: 0 | CB48: 0 | CC48: 0 | CD48: =IF(CD$5=$L48,1,0) -> 0 | CE48: 0 | CF48: 0 | CG48: 0 | CH48: 0 | CI48: 0 | CJ48: 0 | CK48: 0 | CL48: 0 | CM48: 0 | CN48: 0 | CO48: 0 | CP48: 0 | CQ48: 0 | CR48: 0 | CS48: 0 | CT48: 0 | CU48: 0 | CV48: 0 | CW48: 0 | CX48: 0 | CY48: 0 | CZ48: 0 | DA48: 0 | DB48: 0 | DC48: 0 | DD48: 0 | DE48: 0 | DF48: 0
B50: Acquisition
B52: Acquisition Date | J52: flag | L52: =Buyout!J14 -> 2026 | P52: =SUM(R52:DF52) -> 1 | R52: =IF(R$5=$L52,1,0) -> 0 | S52: 0 | T52: 0 | U52: 0 | V52: 0 | W52: 1 | X52: 0 | Y52: 0 | Z52: 0 | AA52: 0 | AB52: 0 | AC52: 0 | AD52: 0 | AE52: 0 | AF52: 0 | AG52: 0 | AH52: 0 | AI52: 0 | AJ52: 0 | AK52: 0 | AL52: 0 | AM52: 0 | AN52: 0 | AO52: 0 | AP52: 0 | AQ52: 0 | AR52: 0 | AS52: 0 | AT52: 0 | AU52: 0 | AV52: 0 | AW52: 0 | AX52: =IF(AX$5=$L52,1,0) -> 0 | AY52: 0 | AZ52: 0 | BA52: 0 | BB52: 0 | BC52: 0 | BD52: 0 | BE52: 0 | BF52: 0 | BG52: 0 | BH52: 0 | BI52: 0 | BJ52: 0 | BK52: 0 | BL52: 0 | BM52: 0 | BN52: 0 | BO52: 0 | BP52: 0 | BQ52: 0 | BR52: 0 | BS52: 0 | BT52: 0 | BU52: 0 | BV52: 0 | BW52: 0 | BX52: 0 | BY52: 0 | BZ52: 0 | CA52: 0 | CB52: 0 | CC52: 0 | CD52: =IF(CD$5=$L52,1,0) -> 0 | CE52: 0 | CF52: 0 | CG52: 0 | CH52: 0 | CI52: 0 | CJ52: 0 | CK52: 0 | CL52: 0 | CM52: 0 | CN52: 0 | CO52: 0 | CP52: 0 | CQ52: 0 | CR52: 0 | CS52: 0 | CT52: 0 | CU52: 0 | CV52: 0 | CW52: 0 | CX52: 0 | CY52: 0 | CZ52: 0 | DA52: 0 | DB52: 0 | DC52: 0 | DD52: 0 | DE52: 0 | DF52: 0
B53: Holding Period | J53: flag | P53: =SUM(R53:DF53) -> 11 | R53: =Q53+R52-Q54 -> 0 | S53: 0 | T53: 0 | U53: 0 | V53: 0 | W53: 1 | X53: 1 | Y53: 1 | Z53: 1 | AA53: 1 | AB53: 1 | AC53: 1 | AD53: 1 | AE53: 1 | AF53: 1 | AG53: 1 | AH53: 0 | AI53: 0 | AJ53: 0 | AK53: 0 | AL53: 0 | AM53: 0 | AN53: 0 | AO53: 0 | AP53: 0 | AQ53: 0 | AR53: 0 | AS53: 0 | AT53: 0 | AU53: 0 | AV53: 0 | AW53: 0 | AX53: 0 | AY53: 0 | AZ53: 0 | BA53: 0 | BB53: 0 | BC53: 0 | BD53: 0 | BE53: 0 | BF53: 0 | BG53: 0 | BH53: 0 | BI53: 0 | BJ53: 0 | BK53: 0 | BL53: 0 | BM53: 0 | BN53: 0 | BO53: 0 | BP53: 0 | BQ53: 0 | BR53: 0 | BS53: 0 | BT53: 0 | BU53: 0 | BV53: 0 | BW53: 0 | BX53: 0 | BY53: 0 | BZ53: 0 | CA53: 0 | CB53: 0 | CC53: 0 | CD53: =CC53+CD52-CC54 -> 0 | CE53: 0 | CF53: 0 | CG53: 0 | CH53: 0 | CI53: 0 | CJ53: 0 | CK53: 0 | CL53: 0 | CM53: 0 | CN53: 0 | CO53: 0 | CP53: 0 | CQ53: 0 | CR53: 0 | CS53: 0 | CT53: 0 | CU53: 0 | CV53: 0 | CW53: 0 | CX53: 0 | CY53: 0 | CZ53: 0 | DA53: 0 | DB53: 0 | DC53: 0 | DD53: 0 | DE53: 0 | DF53: 0
B54: Exit Date | J54: flag | L54: =IF(Buyout!J12=InputC!B174,Timing!L30,Buyout!J16) -> 2036 | P54: =SUM(R54:DF54) -> 1 | R54: =IF(R$5=$L54,1,0) -> 0 | S54: 0 | T54: 0 | U54: 0 | V54: 0 | W54: 0 | X54: 0 | Y54: 0 | Z54: 0 | AA54: 0 | AB54: 0 | AC54: 0 | AD54: 0 | AE54: 0 | AF54: 0 | AG54: 1 | AH54: 0 | AI54: 0 | AJ54: 0 | AK54: 0 | AL54: 0 | AM54: 0 | AN54: 0 | AO54: 0 | AP54: 0 | AQ54: 0 | AR54: 0 | AS54: 0 | AT54: 0 | AU54: 0 | AV54: 0 | AW54: 0 | AX54: =IF(AX$5=$L54,1,0) -> 0 | AY54: 0 | AZ54: 0 | BA54: 0 | BB54: 0 | BC54: 0 | BD54: 0 | BE54: 0 | BF54: 0 | BG54: 0 | BH54: 0 | BI54: 0 | BJ54: 0 | BK54: 0 | BL54: 0 | BM54: 0 | BN54: 0 | BO54: 0 | BP54: 0 | BQ54: 0 | BR54: 0 | BS54: 0 | BT54: 0 | BU54: 0 | BV54: 0 | BW54: 0 | BX54: 0 | BY54: 0 | BZ54: 0 | CA54: 0 | CB54: 0 | CC54: 0 | CD54: =IF(CD$5=$L54,1,0) -> 0 | CE54: 0 | CF54: 0 | CG54: 0 | CH54: 0 | CI54: 0 | CJ54: 0 | CK54: 0 | CL54: 0 | CM54: 0 | CN54: 0 | CO54: 0 | CP54: 0 | CQ54: 0 | CR54: 0 | CS54: 0 | CT54: 0 | CU54: 0 | CV54: 0 | CW54: 0 | CX54: 0 | CY54: 0 | CZ54: 0 | DA54: 0 | DB54: 0 | DC54: 0 | DD54: 0 | DE54: 0 | DF54: 0
B56: Holding Period Counter | J56: # | R56: =(R53+Q56)*R53 -> 0 | S56: =(S53+R56)*S53 -> 0 | T56: 0 | U56: 0 | V56: 0 | W56: 1 | X56: 2 | Y56: 3 | Z56: 4 | AA56: 5 | AB56: 6 | AC56: 7 | AD56: 8 | AE56: 9 | AF56: 10 | AG56: 11 | AH56: 0 | AI56: 0 | AJ56: 0 | AK56: 0 | AL56: 0 | AM56: 0 | AN56: 0 | AO56: 0 | AP56: 0 | AQ56: 0 | AR56: 0 | AS56: 0 | AT56: 0 | AU56: 0 | AV56: 0 | AW56: 0 | AX56: 0 | AY56: 0 | AZ56: 0 | BA56: 0 | BB56: 0 | BC56: 0 | BD56: 0 | BE56: 0 | BF56: 0 | BG56: 0 | BH56: 0 | BI56: 0 | BJ56: 0 | BK56: 0 | BL56: 0 | BM56: 0 | BN56: 0 | BO56: 0 | BP56: 0 | BQ56: 0 | BR56: 0 | BS56: 0 | BT56: 0 | BU56: 0 | BV56: 0 | BW56: 0 | BX56: 0 | BY56: 0 | BZ56: 0 | CA56: 0 | CB56: 0 | CC56: 0 | CD56: 0 | CE56: =(CE53+CD56)*CE53 -> 0 | CF56: 0 | CG56: 0 | CH56: 0 | CI56: 0 | CJ56: 0 | CK56: 0 | CL56: 0 | CM56: 0 | CN56: 0 | CO56: 0 | CP56: 0 | CQ56: 0 | CR56: 0 | CS56: 0 | CT56: 0 | CU56: 0 | CV56: 0 | CW56: 0 | CX56: 0 | CY56: 0 | CZ56: 0 | DA56: 0 | DB56: 0 | DC56: 0 | DD56: 0 | DE56: 0 | DF56: 0
B57: Label | J57: label | R57: =IF(R53=1,"Hold","") ->  | W57: Hold | X57: Hold | Y57: Hold | Z57: Hold | AA57: Hold | AB57: Hold | AC57: Hold | AD57: Hold | AE57: Hold | AF57: Hold | AG57: Hold | CD57: =IF(CD53=1,"Hold","") -> 
B59: Post-Acquisition Period | J59: flag | P59: =SUM(R59:DF59) -> 49 | R59: =IF(AND(R$5>=$L52,R$5<=$L30),1,0) -> 0 | S59: 0 | T59: 0 | U59: 0 | V59: 0 | W59: 1 | X59: 1 | Y59: 1 | Z59: 1 | AA59: 1 | AB59: 1 | AC59: 1 | AD59: 1 | AE59: 1 | AF59: 1 | AG59: 1 | AH59: 1 | AI59: 1 | AJ59: 1 | AK59: 1 | AL59: 1 | AM59: 1 | AN59: 1 | AO59: 1 | AP59: 1 | AQ59: 1 | AR59: 1 | AS59: 1 | AT59: 1 | AU59: 1 | AV59: 1 | AW59: 1 | AX59: =IF(AND(AX$5>=$L52,AX$5<=$L30),1,0) -> 1 | AY59: 1 | AZ59: 1 | BA59: 1 | BB59: 1 | BC59: 1 | BD59: 1 | BE59: 1 | BF59: 1 | BG59: 1 | BH59: 1 | BI59: 1 | BJ59: 1 | BK59: 1 | BL59: 1 | BM59: 1 | BN59: 1 | BO59: 1 | BP59: 1 | BQ59: 1 | BR59: 1 | BS59: 1 | BT59: 0 | BU59: 0 | BV59: 0 | BW59: 0 | BX59: 0 | BY59: 0 | BZ59: 0 | CA59: 0 | CB59: 0 | CC59: 0 | CD59: =IF(AND(CD$5>=$L52,CD$5<=$L30),1,0) -> 0 | CE59: 0 | CF59: 0 | CG59: 0 | CH59: 0 | CI59: 0 | CJ59: 0 | CK59: 0 | CL59: 0 | CM59: 0 | CN59: 0 | CO59: 0 | CP59: 0 | CQ59: 0 | CR59: 0 | CS59: 0 | CT59: 0 | CU59: 0 | CV59: 0 | CW59: 0 | CX59: 0 | CY59: 0 | CZ59: 0 | DA59: 0 | DB59: 0 | DC59: 0 | DD59: 0 | DE59: 0 | DF59: 0
B60: Post Holding Period (inclusive of acquisition) | J60: flag | P60: =SUM(R60:DF60) -> 39 | R60: =IF(AND(R$5>=$L54,R$5<=$L30),1,0) -> 0 | S60: 0 | T60: 0 | U60: 0 | V60: 0 | W60: 0 | X60: 0 | Y60: 0 | Z60: 0 | AA60: 0 | AB60: 0 | AC60: 0 | AD60: 0 | AE60: 0 | AF60: 0 | AG60: 1 | AH60: 1 | AI60: 1 | AJ60: 1 | AK60: 1 | AL60: 1 | AM60: 1 | AN60: 1 | AO60: 1 | AP60: 1 | AQ60: 1 | AR60: 1 | AS60: 1 | AT60: 1 | AU60: 1 | AV60: 1 | AW60: 1 | AX60: =IF(AND(AX$5>=$L54,AX$5<=$L30),1,0) -> 1 | AY60: 1 | AZ60: 1 | BA60: 1 | BB60: 1 | BC60: 1 | BD60: 1 | BE60: 1 | BF60: 1 | BG60: 1 | BH60: 1 | BI60: 1 | BJ60: 1 | BK60: 1 | BL60: 1 | BM60: 1 | BN60: 1 | BO60: 1 | BP60: 1 | BQ60: 1 | BR60: 1 | BS60: 1 | BT60: 0 | BU60: 0 | BV60: 0 | BW60: 0 | BX60: 0 | BY60: 0 | BZ60: 0 | CA60: 0 | CB60: 0 | CC60: 0 | CD60: =IF(AND(CD$5>=$L54,CD$5<=$L30),1,0) -> 0 | CE60: 0 | CF60: 0 | CG60: 0 | CH60: 0 | CI60: 0 | CJ60: 0 | CK60: 0 | CL60: 0 | CM60: 0 | CN60: 0 | CO60: 0 | CP60: 0 | CQ60: 0 | CR60: 0 | CS60: 0 | CT60: 0 | CU60: 0 | CV60: 0 | CW60: 0 | CX60: 0 | CY60: 0 | CZ60: 0 | DA60: 0 | DB60: 0 | DC60: 0 | DD60: 0 | DE60: 0 | DF60: 0
A62: End Sheet

Sheet CAPEX
M5: Year: | P5: =Timing!R5 -> 2021 | Q5: =Timing!S5 -> 2022 | R5: =Timing!T5 -> 2023 | S5: =Timing!U5 -> 2024 | T5: =Timing!V5 -> 2025 | U5: =Timing!W5 -> 2026 | V5: =Timing!X5 -> 2027 | W5: =Timing!Y5 -> 2028 | X5: =Timing!Z5 -> 2029 | Y5: =Timing!AA5 -> 2030 | Z5: =Timing!AB5 -> 2031 | AA5: =Timing!AC5 -> 2032 | AB5: =Timing!AD5 -> 2033 | AC5: =Timing!AE5 -> 2034 | AD5: =Timing!AF5 -> 2035 | AE5: =Timing!AG5 -> 2036 | AF5: =Timing!AH5 -> 2037 | AG5: =Timing!AI5 -> 2038 | AH5: =Timing!AJ5 -> 2039 | AI5: =Timing!AK5 -> 2040 | AJ5: =Timing!AL5 -> 2041 | AK5: =Timing!AM5 -> 2042 | AL5: =Timing!AN5 -> 2043 | AM5: =Timing!AO5 -> 2044 | AN5: =Timing!AP5 -> 2045 | AO5: =Timing!AQ5 -> 2046 | AP5: =Timing!AR5 -> 2047 | AQ5: =Timing!AS5 -> 2048 | AR5: =Timing!AT5 -> 2049 | AS5: =Timing!AU5 -> 2050 | AT5: =Timing!AV5 -> 2051 | AU5: =Timing!AW5 -> 2052 | AV5: =Timing!AX5 -> 2053 | AW5: =Timing!AY5 -> 2054 | AX5: =Timing!AZ5 -> 2055 | AY5: =Timing!BA5 -> 2056 | AZ5: =Timing!BB5 -> 2057 | BA5: =Timing!BC5 -> 2058 | BB5: =Timing!BD5 -> 2059 | BC5: =Timing!BE5 -> 2060 | BD5: =Timing!BF5 -> 2061 | BE5: =Timing!BG5 -> 2062 | BF5: =Timing!BH5 -> 2063 | BG5: =Timing!BI5 -> 2064 | BH5: =Timing!BJ5 -> 2065 | BI5: =Timing!BK5 -> 2066 | BJ5: =Timing!BL5 -> 2067 | BK5: =Timing!BM5 -> 2068 | BL5: =Timing!BN5 -> 2069 | BM5: =Timing!BO5 -> 2070 | BN5: =Timing!BP5 -> 2071 | BO5: =Timing!BQ5 -> 2072 | BP5: =Timing!BR5 -> 2073 | BQ5: =Timing!BS5 -> 2074 | BR5: =Timing!BT5 -> 2075 | BS5: =Timing!BU5 -> 2076 | BT5: =Timing!BV5 -> 2077 | BU5: =Timing!BW5 -> 2078 | BV5: =Timing!BX5 -> 2079 | BW5: =Timing!BY5 -> 2080 | BX5: =Timing!BZ5 -> 2081 | BY5: =Timing!CA5 -> 2082 | BZ5: =Timing!CB5 -> 2083 | CA5: =Timing!CC5 -> 2084 | CB5: =Timing!CD5 -> 2085 | CC5: =Timing!CE5 -> 2086 | CD5: =Timing!CF5 -> 2087 | CE5: =Timing!CG5 -> 2088 | CF5: =Timing!CH5 -> 2089 | CG5: =Timing!CI5 -> 2090 | CH5: =Timing!CJ5 -> 2091 | CI5: =Timing!CK5 -> 2092 | CJ5: =Timing!CL5 -> 2093 | CK5: =Timing!CM5 -> 2094 | CL5: =Timing!CN5 -> 2095 | CM5: =Timing!CO5 -> 2096 | CN5: =Timing!CP5 -> 2097 | CO5: =Timing!CQ5 -> 2098 | CP5: =Timing!CR5 -> 2099 | CQ5: =Timing!CS5 -> 2100 | CR5: =Timing!CT5 -> 2101 | CS5: =Timing!CU5 -> 2102 | CT5: =Timing!CV5 -> 2103 | CU5: =CT5+1 -> 2104 | CV5: 2105 | CW5: 2106 | CX5: 2107 | CY5: 2108 | CZ5: 2109 | DA5: 2110 | DB5: 2111 | DC5: 2112 | DD5: 2113
M6: Year #: | P6: =Timing!R6 -> 1 | Q6: =Timing!S6 -> 2 | R6: =Timing!T6 -> 3 | S6: =Timing!U6 -> 4 | T6: =Timing!V6 -> 5 | U6: =Timing!W6 -> 6 | V6: =Timing!X6 -> 7 | W6: =Timing!Y6 -> 8 | X6: =Timing!Z6 -> 9 | Y6: =Timing!AA6 -> 10 | Z6: =Timing!AB6 -> 11 | AA6: =Timing!AC6 -> 12 | AB6: =Timing!AD6 -> 13 | AC6: =Timing!AE6 -> 14 | AD6: =Timing!AF6 -> 15 | AE6: =Timing!AG6 -> 16 | AF6: =Timing!AH6 -> 17 | AG6: =Timing!AI6 -> 18 | AH6: =Timing!AJ6 -> 19 | AI6: =Timing!AK6 -> 20 | AJ6: =Timing!AL6 -> 21 | AK6: =Timing!AM6 -> 22 | AL6: =Timing!AN6 -> 23 | AM6: =Timing!AO6 -> 24 | AN6: =Timing!AP6 -> 25 | AO6: =Timing!AQ6 -> 26 | AP6: =Timing!AR6 -> 27 | AQ6: =Timing!AS6 -> 28 | AR6: =Timing!AT6 -> 29 | AS6: =Timing!AU6 -> 30 | AT6: =Timing!AV6 -> 31 | AU6: =Timing!AW6 -> 32 | AV6: =Timing!AX6 -> 33 | AW6: =Timing!AY6 -> 34 | AX6: =Timing!AZ6 -> 35 | AY6: =Timing!BA6 -> 36 | AZ6: =Timing!BB6 -> 37 | BA6: =Timing!BC6 -> 38 | BB6: =Timing!BD6 -> 39 | BC6: =Timing!BE6 -> 40 | BD6: =Timing!BF6 -> 41 | BE6: =Timing!BG6 -> 42 | BF6: =Timing!BH6 -> 43 | BG6: =Timing!BI6 -> 44 | BH6: =Timing!BJ6 -> 45 | BI6: =Timing!BK6 -> 46 | BJ6: =Timing!BL6 -> 47 | BK6: =Timing!BM6 -> 48 | BL6: =Timing!BN6 -> 49 | BM6: =Timing!BO6 -> 50 | BN6: =Timing!BP6 -> 51 | BO6: =Timing!BQ6 -> 52 | BP6: =Timing!BR6 -> 53 | BQ6: =Timing!BS6 -> 54 | BR6: =Timing!BT6 -> 55 | BS6: =Timing!BU6 -> 56 | BT6: =Timing!BV6 -> 57 | BU6: =Timing!BW6 -> 58 | BV6: =Timing!BX6 -> 59 | BW6: =Timing!BY6 -> 60 | BX6: =Timing!BZ6 -> 61 | BY6: =Timing!CA6 -> 62 | BZ6: =Timing!CB6 -> 63 | CA6: =Timing!CC6 -> 64 | CB6: =Timing!CD6 -> 65 | CC6: =Timing!CE6 -> 66 | CD6: =Timing!CF6 -> 67 | CE6: =Timing!CG6 -> 68 | CF6: =Timing!CH6 -> 69 | CG6: =Timing!CI6 -> 70 | CH6: =Timing!CJ6 -> 71 | CI6: =Timing!CK6 -> 72 | CJ6: =Timing!CL6 -> 73 | CK6: =Timing!CM6 -> 74 | CL6: =Timing!CN6 -> 75 | CM6: =Timing!CO6 -> 76 | CN6: =Timing!CP6 -> 77 | CO6: =Timing!CQ6 -> 78 | CP6: =Timing!CR6 -> 79 | CQ6: =Timing!CS6 -> 80 | CR6: =Timing!CT6 -> 81 | CS6: =Timing!CU6 -> 82 | CT6: =Timing!CV6 -> 83 | CU6: =#REF! ->  | CV6: =#REF! ->  | CW6: =#REF! ->  | CX6: =#REF! ->  | CY6: =#REF! ->  | CZ6: =#REF! ->  | DA6: =#REF! ->  | DB6: =#REF! ->  | DC6: =#REF! ->  | DD6: =#REF! -> 
M7: Forecast: | P7: =Timing!R7 -> Const | Q7: =Timing!S7 -> Const | R7: =Timing!T7 -> Const | S7: =Timing!U7 -> Ops | T7: =Timing!V7 -> Ops | U7: =Timing!W7 -> Ops | V7: =Timing!X7 -> Ops | W7: =Timing!Y7 -> Ops | X7: =Timing!Z7 -> Ops | Y7: =Timing!AA7 -> Ops | Z7: =Timing!AB7 -> Ops | AA7: =Timing!AC7 -> Ops | AB7: =Timing!AD7 -> Ops | AC7: =Timing!AE7 -> Ops | AD7: =Timing!AF7 -> Ops | AE7: =Timing!AG7 -> Ops | AF7: =Timing!AH7 -> Ops | AG7: =Timing!AI7 -> Ops | AH7: =Timing!AJ7 -> Ops | AI7: =Timing!AK7 -> Ops | AJ7: =Timing!AL7 -> Ops | AK7: =Timing!AM7 -> Ops | AL7: =Timing!AN7 -> Ops | AM7: =Timing!AO7 -> Ops | AN7: =Timing!AP7 -> Ops | AO7: =Timing!AQ7 -> Ops | AP7: =Timing!AR7 -> Ops | AQ7: =Timing!AS7 -> Ops | AR7: =Timing!AT7 -> Ops | AS7: =Timing!AU7 -> Ops | AT7: =Timing!AV7 -> Ops | AU7: =Timing!AW7 -> Ops | AV7: =Timing!AX7 -> Ops | AW7: =Timing!AY7 -> Ops | AX7: =Timing!AZ7 -> Ops | AY7: =Timing!BA7 -> Ops | AZ7: =Timing!BB7 -> Ops | BA7: =Timing!BC7 -> Ops | BB7: =Timing!BD7 -> Ops | BC7: =Timing!BE7 -> Ops | BD7: =Timing!BF7 -> Ops | BE7: =Timing!BG7 -> Ops | BF7: =Timing!BH7 -> Ops | BG7: =Timing!BI7 -> Ops | BH7: =Timing!BJ7 -> Ops | BI7: =Timing!BK7 -> Ops | BJ7: =Timing!BL7 -> Ops | BK7: =Timing!BM7 -> Ops | BL7: =Timing!BN7 -> Ops | BM7: =Timing!BO7 -> Ops | BN7: =Timing!BP7 -> Ops | BO7: =Timing!BQ7 -> Ops | BP7: =Timing!BR7 -> Ops | BQ7: =Timing!BS7 -> Ops | BR7: =Timing!BT7 ->  | BS7: =Timing!BU7 ->  | BT7: =Timing!BV7 ->  | BU7: =Timing!BW7 ->  | BV7: =Timing!BX7 ->  | BW7: =Timing!BY7 ->  | BX7: =Timing!BZ7 ->  | BY7: =Timing!CA7 ->  | BZ7: =Timing!CB7 ->  | CA7: =Timing!CC7 ->  | CB7: =Timing!CD7 ->  | CC7: =Timing!CE7 ->  | CD7: =Timing!CF7 ->  | CE7: =Timing!CG7 ->  | CF7: =Timing!CH7 ->  | CG7: =Timing!CI7 ->  | CH7: =Timing!CJ7 ->  | CI7: =Timing!CK7 ->  | CJ7: =Timing!CL7 ->  | CK7: =Timing!CM7 ->  | CL7: =Timing!CN7 ->  | CM7: =Timing!CO7 ->  | CN7: =Timing!CP7 ->  | CO7: =Timing!CQ7 ->  | CP7: =Timing!CR7 ->  | CQ7: =Timing!CS7 ->  | CR7: =Timing!CT7 ->  | CS7: =Timing!CU7 ->  | CT7: =Timing!CV7 ->  | CU7: =#REF! ->  | CV7: =#REF! ->  | CW7: =#REF! ->  | CX7: =#REF! ->  | CY7: =#REF! ->  | CZ7: =#REF! ->  | DA7: =#REF! ->  | DB7: =#REF! ->  | DC7: =#REF! ->  | DD7: =#REF! -> 
A9: Flags & Data
C11: Constructon Period | H11: flag | P11: =Timing!R24 -> 1 | Q11: =Timing!S24 -> 1 | R11: =Timing!T24 -> 1 | S11: =Timing!U24 -> 0 | T11: =Timing!V24 -> 0 | U11: =Timing!W24 -> 0 | V11: =Timing!X24 -> 0 | W11: =Timing!Y24 -> 0 | X11: =Timing!Z24 -> 0 | Y11: =Timing!AA24 -> 0 | Z11: =Timing!AB24 -> 0 | AA11: =Timing!AC24 -> 0 | AB11: =Timing!AD24 -> 0 | AC11: =Timing!AE24 -> 0 | AD11: =Timing!AF24 -> 0 | AE11: =Timing!AG24 -> 0 | AF11: =Timing!AH24 -> 0 | AG11: =Timing!AI24 -> 0 | AH11: =Timing!AJ24 -> 0 | AI11: =Timing!AK24 -> 0 | AJ11: =Timing!AL24 -> 0 | AK11: =Timing!AM24 -> 0 | AL11: =Timing!AN24 -> 0 | AM11: =Timing!AO24 -> 0 | AN11: =Timing!AP24 -> 0 | AO11: =Timing!AQ24 -> 0 | AP11: =Timing!AR24 -> 0 | AQ11: =Timing!AS24 -> 0 | AR11: =Timing!AT24 -> 0 | AS11: =Timing!AU24 -> 0 | AT11: =Timing!AV24 -> 0 | AU11: =Timing!AW24 -> 0 | AV11: =Timing!AX24 -> 0 | AW11: =Timing!AY24 -> 0 | AX11: =Timing!AZ24 -> 0 | AY11: =Timing!BA24 -> 0 | AZ11: =Timing!BB24 -> 0 | BA11: =Timing!BC24 -> 0 | BB11: =Timing!BD24 -> 0 | BC11: =Timing!BE24 -> 0 | BD11: =Timing!BF24 -> 0 | BE11: =Timing!BG24 -> 0 | BF11: =Timing!BH24 -> 0 | BG11: =Timing!BI24 -> 0 | BH11: =Timing!BJ24 -> 0 | BI11: =Timing!BK24 -> 0 | BJ11: =Timing!BL24 -> 0 | BK11: =Timing!BM24 -> 0 | BL11: =Timing!BN24 -> 0 | BM11: =Timing!BO24 -> 0 | BN11: =Timing!BP24 -> 0 | BO11: =Timing!BQ24 -> 0 | BP11: =Timing!BR24 -> 0 | BQ11: =Timing!BS24 -> 0 | BR11: =Timing!BT24 -> 0 | BS11: =Timing!BU24 -> 0 | BT11: =Timing!BV24 -> 0 | BU11: =Timing!BW24 -> 0 | BV11: =Timing!BX24 -> 0 | BW11: =Timing!BY24 -> 0 | BX11: =Timing!BZ24 -> 0 | BY11: =Timing!CA24 -> 0 | BZ11: =Timing!CB24 -> 0 | CA11: =Timing!CC24 -> 0 | CB11: =Timing!CD24 -> 0 | CC11: =Timing!CE24 -> 0 | CD11: =Timing!CF24 -> 0 | CE11: =Timing!CG24 -> 0 | CF11: =Timing!CH24 -> 0 | CG11: =Timing!CI24 -> 0 | CH11: =Timing!CJ24 -> 0 | CI11: =Timing!CK24 -> 0 | CJ11: =Timing!CL24 -> 0 | CK11: =Timing!CM24 -> 0 | CL11: =Timing!CN24 -> 0 | CM11: =Timing!CO24 -> 0 | CN11: =Timing!CP24 -> 0 | CO11: =Timing!CQ24 -> 0 | CP11: =Timing!CR24 -> 0 | CQ11: =Timing!CS24 -> 0
C12: Operating Period | H12: flag | P12: =Timing!R29 -> 0 | Q12: =Timing!S29 -> 0 | R12: =Timing!T29 -> 0 | S12: =Timing!U29 -> 1 | T12: =Timing!V29 -> 1 | U12: =Timing!W29 -> 1 | V12: =Timing!X29 -> 1 | W12: =Timing!Y29 -> 1 | X12: =Timing!Z29 -> 1 | Y12: =Timing!AA29 -> 1 | Z12: =Timing!AB29 -> 1 | AA12: =Timing!AC29 -> 1 | AB12: =Timing!AD29 -> 1 | AC12: =Timing!AE29 -> 1 | AD12: =Timing!AF29 -> 1 | AE12: =Timing!AG29 -> 1 | AF12: =Timing!AH29 -> 1 | AG12: =Timing!AI29 -> 1 | AH12: =Timing!AJ29 -> 1 | AI12: =Timing!AK29 -> 1 | AJ12: =Timing!AL29 -> 1 | AK12: =Timing!AM29 -> 1 | AL12: =Timing!AN29 -> 1 | AM12: =Timing!AO29 -> 1 | AN12: =Timing!AP29 -> 1 | AO12: =Timing!AQ29 -> 1 | AP12: =Timing!AR29 -> 1 | AQ12: =Timing!AS29 -> 1 | AR12: =Timing!AT29 -> 1 | AS12: =Timing!AU29 -> 1 | AT12: =Timing!AV29 -> 1 | AU12: =Timing!AW29 -> 1 | AV12: =Timing!AX29 -> 1 | AW12: =Timing!AY29 -> 1 | AX12: =Timing!AZ29 -> 1 | AY12: =Timing!BA29 -> 1 | AZ12: =Timing!BB29 -> 1 | BA12: =Timing!BC29 -> 1 | BB12: =Timing!BD29 -> 1 | BC12: =Timing!BE29 -> 1 | BD12: =Timing!BF29 -> 1 | BE12: =Timing!BG29 -> 1 | BF12: =Timing!BH29 -> 1 | BG12: =Timing!BI29 -> 1 | BH12: =Timing!BJ29 -> 1 | BI12: =Timing!BK29 -> 1 | BJ12: =Timing!BL29 -> 1 | BK12: =Timing!BM29 -> 1 | BL12: =Timing!BN29 -> 1 | BM12: =Timing!BO29 -> 1 | BN12: =Timing!BP29 -> 1 | BO12: =Timing!BQ29 -> 1 | BP12: =Timing!BR29 -> 1 | BQ12: =Timing!BS29 -> 1 | BR12: =Timing!BT29 -> 0 | BS12: =Timing!BU29 -> 0 | BT12: =Timing!BV29 -> 0 | BU12: =Timing!BW29 -> 0 | BV12: =Timing!BX29 -> 0 | BW12: =Timing!BY29 -> 0 | BX12: =Timing!BZ29 -> 0 | BY12: =Timing!CA29 -> 0 | BZ12: =Timing!CB29 -> 0 | CA12: =Timing!CC29 -> 0 | CB12: =Timing!CD29 -> 0 | CC12: =Timing!CE29 -> 0 | CD12: =Timing!CF29 -> 0 | CE12: =Timing!CG29 -> 0 | CF12: =Timing!CH29 -> 0 | CG12: =Timing!CI29 -> 0 | CH12: =Timing!CJ29 -> 0 | CI12: =Timing!CK29 -> 0 | CJ12: =Timing!CL29 -> 0 | CK12: =Timing!CM29 -> 0 | CL12: =Timing!CN29 -> 0 | CM12: =Timing!CO29 -> 0 | CN12: =Timing!CP29 -> 0 | CO12: =Timing!CQ29 -> 0 | CP12: =Timing!CR29 -> 0 | CQ12: =Timing!CS29 -> 0
C14: CPI | H14: % | P14: =InputT!R14 -> 0.01 | Q14: =InputT!S14 -> 0.01 | R14: =InputT!T14 -> 0.01 | S14: =InputT!U14 -> 0.01 | T14: =InputT!V14 -> 0.01 | U14: =InputT!W14 -> 0.01 | V14: =InputT!X14 -> 0.01 | W14: =InputT!Y14 -> 0.01 | X14: =InputT!Z14 -> 0.01 | Y14: =InputT!AA14 -> 0.01 | Z14: =InputT!AB14 -> 0.01 | AA14: =InputT!AC14 -> 0.01 | AB14: =InputT!AD14 -> 0.01 | AC14: =InputT!AE14 -> 0.01 | AD14: =InputT!AF14 -> 0.01 | AE14: =InputT!AG14 -> 0.01 | AF14: =InputT!AH14 -> 0.01 | AG14: =InputT!AI14 -> 0.01 | AH14: =InputT!AJ14 -> 0.01 | AI14: =InputT!AK14 -> 0.01 | AJ14: =InputT!AL14 -> 0.01 | AK14: =InputT!AM14 -> 0.01 | AL14: =InputT!AN14 -> 0.01 | AM14: =InputT!AO14 -> 0.01 | AN14: =InputT!AP14 -> 0.01 | AO14: =InputT!AQ14 -> 0.01 | AP14: =InputT!AR14 -> 0.01 | AQ14: =InputT!AS14 -> 0.01 | AR14: =InputT!AT14 -> 0.01 | AS14: =InputT!AU14 -> 0.01 | AT14: =InputT!AV14 -> 0.01 | AU14: =InputT!AW14 -> 0.01 | AV14: =InputT!AX14 -> 0.01 | AW14: =InputT!AY14 -> 0.01 | AX14: =InputT!AZ14 -> 0.01 | AY14: =InputT!BA14 -> 0.01 | AZ14: =InputT!BB14 -> 0.01 | BA14: =InputT!BC14 -> 0.01 | BB14: =InputT!BD14 -> 0.01 | BC14: =InputT!BE14 -> 0.01 | BD14: =InputT!BF14 -> 0.01 | BE14: =InputT!BG14 -> 0.01 | BF14: =InputT!BH14 -> 0.01 | BG14: =InputT!BI14 -> 0.01 | BH14: =InputT!BJ14 -> 0.01 | BI14: =InputT!BK14 -> 0.01 | BJ14: =InputT!BL14 -> 0.01 | BK14: =InputT!BM14 -> 0.01 | BL14: =InputT!BN14 -> 0.01 | BM14: =InputT!BO14 -> 0.01 | BN14: =InputT!BP14 -> 0.01 | BO14: =InputT!BQ14 -> 0.01 | BP14: =InputT!BR14 -> 0.01 | BQ14: =InputT!BS14 -> 0.01 | BR14: =InputT!BT14 -> 0.01 | BS14: =InputT!BU14 -> 0.01 | BT14: =InputT!BV14 -> 0.01 | BU14: =InputT!BW14 -> 0.01 | BV14: =InputT!BX14 -> 0.01 | BW14: =InputT!BY14 -> 0.01 | BX14: =InputT!BZ14 -> 0.01 | BY14: =InputT!CA14 -> 0.01 | BZ14: =InputT!CB14 -> 0.01 | CA14: =InputT!CC14 -> 0.01 | CB14: =InputT!CD14 -> 0.01 | CC14: =InputT!CE14 -> 0.01 | CD14: =InputT!CF14 -> 0.01 | CE14: =InputT!CG14 -> 0 | CF14: =InputT!CH14 -> 0 | CG14: =InputT!CI14 -> 0 | CH14: =InputT!CJ14 -> 0 | CI14: =InputT!CK14 -> 0 | CJ14: =InputT!CL14 -> 0 | CK14: =InputT!CM14 -> 0 | CL14: =InputT!CN14 -> 0 | CM14: =InputT!CO14 -> 0 | CN14: =InputT!CP14 -> 0 | CO14: =InputT!CQ14 -> 0 | CP14: =InputT!CR14 -> 0 | CQ14: =InputT!CS14 -> 0
C15: CPI Index | H15: # | P15: 1 | Q15: =P15*(Q14+1) -> 1.01 | R15: =Q15*(R14+1) -> 1.0201 | S15: =R15*(S14+1) -> 1.030301 | T15: 1.04060401 | U15: 1.05101005 | V15: 1.061520151 | W15: 1.072135352 | X15: 1.082856706 | Y15: 1.093685273 | Z15: 1.104622125 | AA15: 1.115668347 | AB15: 1.12682503 | AC15: 1.13809328 | AD15: 1.149474213 | AE15: 1.160968955 | AF15: 1.172578645 | AG15: 1.184304431 | AH15: 1.196147476 | AI15: 1.20810895 | AJ15: 1.22019004 | AK15: 1.23239194 | AL15: 1.24471586 | AM15: 1.257163018 | AN15: 1.269734649 | AO15: 1.282431995 | AP15: 1.295256315 | AQ15: 1.308208878 | AR15: 1.321290967 | AS15: 1.334503877 | AT15: 1.347848915 | AU15: 1.361327404 | AV15: 1.374940679 | AW15: 1.388690085 | AX15: 1.402576986 | AY15: 1.416602756 | AZ15: 1.430768784 | BA15: 1.445076471 | BB15: 1.459527236 | BC15: 1.474122509 | BD15: 1.488863734 | BE15: 1.503752371 | BF15: 1.518789895 | BG15: 1.533977794 | BH15: 1.549317572 | BI15: 1.564810747 | BJ15: 1.580458855 | BK15: 1.596263443 | BL15: 1.612226078 | BM15: 1.628348338 | BN15: 1.644631822 | BO15: 1.66107814 | BP15: 1.677688921 | BQ15: 1.694465811 | BR15: 1.711410469 | BS15: 1.728524573 | BT15: 1.745809819 | BU15: 1.763267917 | BV15: 1.780900597 | BW15: 1.798709603 | BX15: 1.816696699 | BY15: 1.834863666 | BZ15: 1.853212302 | CA15: 1.871744425 | CB15: 1.890461869 | CC15: =CB15*(CC14+1) -> 1.909366488 | CD15: 1.928460153 | CE15: 1.928460153 | CF15: 1.928460153 | CG15: 1.928460153 | CH15: 1.928460153 | CI15: 1.928460153 | CJ15: 1.928460153 | CK15: 1.928460153 | CL15: 1.928460153 | CM15: 1.928460153 | CN15: 1.928460153 | CO15: 1.928460153 | CP15: 1.928460153 | CQ15: 1.928460153
A17: Capital Expenditures
A18: EPC
J20: EPC
C21: =InputC!C28 -> Total Project Costs | H21: $m | J21: =InputC!K28 -> 120 | N21: =SUM(P21:DB21) -> 120 | P21: =$J21*InputT!R24 -> 61.2 | Q21: =$J21*InputT!S24 -> 34.8 | R21: =$J21*InputT!T24 -> 24 | S21: =$J21*InputT!U24 -> 0 | T21: =$J21*InputT!V24 -> 0 | U21: =$J21*InputT!W24 -> 0 | V21: =$J21*InputT!X24 -> 0 | W21: =$J21*InputT!Y24 -> 0 | X21: =$J21*InputT!Z24 -> 0 | Y21: =$J21*InputT!AA24 -> 0 | Z21: =$J21*InputT!AB24 -> 0 | AA21: =$J21*InputT!AC24 -> 0 | AB21: =$J21*InputT!AD24 -> 0 | AC21: =$J21*InputT!AE24 -> 0 | AD21: =$J21*InputT!AF24 -> 0 | AE21: =$J21*InputT!AG24 -> 0 | AF21: =$J21*InputT!AH24 -> 0 | AG21: =$J21*InputT!AI24 -> 0 | AH21: =$J21*InputT!AJ24 -> 0 | AI21: =$J21*InputT!AK24 -> 0 | AJ21: =$J21*InputT!AL24 -> 0 | AK21: =$J21*InputT!AM24 -> 0 | AL21: =$J21*InputT!AN24 -> 0 | AM21: =$J21*InputT!AO24 -> 0 | AN21: =$J21*InputT!AP24 -> 0 | AO21: =$J21*InputT!AQ24 -> 0 | AP21: =$J21*InputT!AR24 -> 0 | AQ21: =$J21*InputT!AS24 -> 0 | AR21: =$J21*InputT!AT24 -> 0 | AS21: =$J21*InputT!AU24 -> 0 | AT21: =$J21*InputT!AV24 -> 0 | AU21: =$J21*InputT!AW24 -> 0 | AV21: =$J21*InputT!AX24 -> 0 | AW21: =$J21*InputT!AY24 -> 0 | AX21: =$J21*InputT!AZ24 -> 0 | AY21: =$J21*InputT!BA24 -> 0 | AZ21: =$J21*InputT!BB24 -> 0 | BA21: =$J21*InputT!BC24 -> 0 | BB21: =$J21*InputT!BD24 -> 0 | BC21: =$J21*InputT!BE24 -> 0 | BD21: =$J21*InputT!BF24 -> 0 | BE21: =$J21*InputT!BG24 -> 0 | BF21: =$J21*InputT!BH24 -> 0 | BG21: =$J21*InputT!BI24 -> 0 | BH21: =$J21*InputT!BJ24 -> 0 | BI21: =$J21*InputT!BK24 -> 0 | BJ21: =$J21*InputT!BL24 -> 0 | BK21: =$J21*InputT!BM24 -> 0 | BL21: =$J21*InputT!BN24 -> 0 | BM21: =$J21*InputT!BO24 -> 0 | BN21: =$J21*InputT!BP24 -> 0 | BO21: =$J21*InputT!BQ24 -> 0 | BP21: =$J21*InputT!BR24 -> 0 | BQ21: =$J21*InputT!BS24 -> 0 | BR21: =$J21*InputT!BT24 -> 0 | BS21: =$J21*InputT!BU24 -> 0 | BT21: =$J21*InputT!BV24 -> 0 | BU21: =$J21*InputT!BW24 -> 0 | BV21: =$J21*InputT!BX24 -> 0 | BW21: =$J21*InputT!BY24 -> 0 | BX21: =$J21*InputT!BZ24 -> 0 | BY21: =$J21*InputT!CA24 -> 0 | BZ21: =$J21*InputT!CB24 -> 0 | CA21: =$J21*InputT!CC24 -> 0 | CB21: =$J21*InputT!CD24 -> 0 | CC21: =$J21*InputT!CE24 -> 0 | CD21: =$J21*InputT!CF24 -> 0 | CE21: =$J21*InputT!CG24 -> 0 | CF21: =$J21*InputT!CH24 -> 0 | CG21: =$J21*InputT!CI24 -> 0 | CH21: =$J21*InputT!CJ24 -> 0 | CI21: =$J21*InputT!CK24 -> 0 | CJ21: =$J21*InputT!CL24 -> 0 | CK21: =$J21*InputT!CM24 -> 0 | CL21: =$J21*InputT!CN24 -> 0 | CM21: =$J21*InputT!CO24 -> 0 | CN21: =$J21*InputT!CP24 -> 0 | CO21: =$J21*InputT!CQ24 -> 0 | CP21: =$J21*InputT!CR24 -> 0 | CQ21: =$J21*InputT!CS24 -> 0
C22: =InputC!C29 -> [Spare] | H22: $m | J22: =InputC!K29 -> 0 | N22: 0 | P22: =$J22*InputT!R25 -> 0 | Q22: =$J22*InputT!S25 -> 0 | R22: =$J22*InputT!T25 -> 0 | S22: =$J22*InputT!U25 -> 0 | T22: =$J22*InputT!V25 -> 0 | U22: =$J22*InputT!W25 -> 0 | V22: =$J22*InputT!X25 -> 0 | W22: =$J22*InputT!Y25 -> 0 | X22: =$J22*InputT!Z25 -> 0 | Y22: =$J22*InputT!AA25 -> 0 | Z22: =$J22*InputT!AB25 -> 0 | AA22: =$J22*InputT!AC25 -> 0 | AB22: =$J22*InputT!AD25 -> 0 | AC22: =$J22*InputT!AE25 -> 0 | AD22: =$J22*InputT!AF25 -> 0 | AE22: =$J22*InputT!AG25 -> 0 | AF22: =$J22*InputT!AH25 -> 0 | AG22: =$J22*InputT!AI25 -> 0 | AH22: =$J22*InputT!AJ25 -> 0 | AI22: =$J22*InputT!AK25 -> 0 | AJ22: =$J22*InputT!AL25 -> 0 | AK22: =$J22*InputT!AM25 -> 0 | AL22: =$J22*InputT!AN25 -> 0 | AM22: =$J22*InputT!AO25 -> 0 | AN22: =$J22*InputT!AP25 -> 0 | AO22: =$J22*InputT!AQ25 -> 0 | AP22: =$J22*InputT!AR25 -> 0 | AQ22: =$J22*InputT!AS25 -> 0 | AR22: =$J22*InputT!AT25 -> 0 | AS22: =$J22*InputT!AU25 -> 0 | AT22: =$J22*InputT!AV25 -> 0 | AU22: =$J22*InputT!AW25 -> 0 | AV22: =$J22*InputT!AX25 -> 0 | AW22: =$J22*InputT!AY25 -> 0 | AX22: =$J22*InputT!AZ25 -> 0 | AY22: =$J22*InputT!BA25 -> 0 | AZ22: =$J22*InputT!BB25 -> 0 | BA22: =$J22*InputT!BC25 -> 0 | BB22: =$J22*InputT!BD25 -> 0 | BC22: =$J22*InputT!BE25 -> 0 | BD22: =$J22*InputT!BF25 -> 0 | BE22: =$J22*InputT!BG25 -> 0 | BF22: =$J22*InputT!BH25 -> 0 | BG22: =$J22*InputT!BI25 -> 0 | BH22: =$J22*InputT!BJ25 -> 0 | BI22: =$J22*InputT!BK25 -> 0 | BJ22: =$J22*InputT!BL25 -> 0 | BK22: =$J22*InputT!BM25 -> 0 | BL22: =$J22*InputT!BN25 -> 0 | BM22: =$J22*InputT!BO25 -> 0 | BN22: =$J22*InputT!BP25 -> 0 | BO22: =$J22*InputT!BQ25 -> 0 | BP22: =$J22*InputT!BR25 -> 0 | BQ22: =$J22*InputT!BS25 -> 0 | BR22: =$J22*InputT!BT25 -> 0 | BS22: =$J22*InputT!BU25 -> 0 | BT22: =$J22*InputT!BV25 -> 0 | BU22: =$J22*InputT!BW25 -> 0 | BV22: =$J22*InputT!BX25 -> 0 | BW22: =$J22*InputT!BY25 -> 0 | BX22: =$J22*InputT!BZ25 -> 0 | BY22: =$J22*InputT!CA25 -> 0 | BZ22: =$J22*InputT!CB25 -> 0 | CA22: =$J22*InputT!CC25 -> 0 | CB22: =$J22*InputT!CD25 -> 0 | CC22: =$J22*InputT!CE25 -> 0 | CD22: =$J22*InputT!CF25 -> 0 | CE22: =$J22*InputT!CG25 -> 0 | CF22: =$J22*InputT!CH25 -> 0 | CG22: =$J22*InputT!CI25 -> 0 | CH22: =$J22*InputT!CJ25 -> 0 | CI22: =$J22*InputT!CK25 -> 0 | CJ22: =$J22*InputT!CL25 -> 0 | CK22: =$J22*InputT!CM25 -> 0 | CL22: =$J22*InputT!CN25 -> 0 | CM22: =$J22*InputT!CO25 -> 0 | CN22: =$J22*InputT!CP25 -> 0 | CO22: =$J22*InputT!CQ25 -> 0 | CP22: =$J22*InputT!CR25 -> 0 | CQ22: =$J22*InputT!CS25 -> 0
C23: =InputC!C30 -> [Spare] | H23: $m | J23: =InputC!K30 -> 0 | N23: 0 | P23: =$J23*InputT!R40 -> 0 | Q23: =$J23*InputT!S40 -> 0 | R23: =$J23*InputT!T40 -> 0 | S23: =$J23*InputT!U40 -> 0 | T23: =$J23*InputT!V40 -> 0 | U23: =$J23*InputT!W40 -> 0 | V23: =$J23*InputT!X40 -> 0 | W23: =$J23*InputT!Y40 -> 0 | X23: =$J23*InputT!Z40 -> 0 | Y23: =$J23*InputT!AA40 -> 0 | Z23: =$J23*InputT!AB40 -> 0 | AA23: =$J23*InputT!AC40 -> 0 | AB23: =$J23*InputT!AD40 -> 0 | AC23: =$J23*InputT!AE40 -> 0 | AD23: =$J23*InputT!AF40 -> 0 | AE23: =$J23*InputT!AG40 -> 0 | AF23: =$J23*InputT!AH40 -> 0 | AG23: =$J23*InputT!AI40 -> 0 | AH23: =$J23*InputT!AJ40 -> 0 | AI23: =$J23*InputT!AK40 -> 0 | AJ23: =$J23*InputT!AL40 -> 0 | AK23: =$J23*InputT!AM40 -> 0 | AL23: =$J23*InputT!AN40 -> 0 | AM23: =$J23*InputT!AO40 -> 0 | AN23: =$J23*InputT!AP40 -> 0 | AO23: =$J23*InputT!AQ40 -> 0 | AP23: =$J23*InputT!AR40 -> 0 | AQ23: =$J23*InputT!AS40 -> 0 | AR23: =$J23*InputT!AT40 -> 0 | AS23: =$J23*InputT!AU40 -> 0 | AT23: =$J23*InputT!AV40 -> 0 | AU23: =$J23*InputT!AW40 -> 0 | AV23: =$J23*InputT!AX40 -> 0 | AW23: =$J23*InputT!AY40 -> 0 | AX23: =$J23*InputT!AZ40 -> 0 | AY23: =$J23*InputT!BA40 -> 0 | AZ23: =$J23*InputT!BB40 -> 0 | BA23: =$J23*InputT!BC40 -> 0 | BB23: =$J23*InputT!BD40 -> 0 | BC23: =$J23*InputT!BE40 -> 0 | BD23: =$J23*InputT!BF40 -> 0 | BE23: =$J23*InputT!BG40 -> 0 | BF23: =$J23*InputT!BH40 -> 0 | BG23: =$J23*InputT!BI40 -> 0 | BH23: =$J23*InputT!BJ40 -> 0 | BI23: =$J23*InputT!BK40 -> 0 | BJ23: =$J23*InputT!BL40 -> 0 | BK23: =$J23*InputT!BM40 -> 0 | BL23: =$J23*InputT!BN40 -> 0 | BM23: =$J23*InputT!BO40 -> 0 | BN23: =$J23*InputT!BP40 -> 0 | BO23: =$J23*InputT!BQ40 -> 0 | BP23: =$J23*InputT!BR40 -> 0 | BQ23: =$J23*InputT!BS40 -> 0 | BR23: =$J23*InputT!BT40 -> 0 | BS23: =$J23*InputT!BU40 -> 0 | BT23: =$J23*InputT!BV40 -> 0 | BU23: =$J23*InputT!BW40 -> 0 | BV23: =$J23*InputT!BX40 -> 0 | BW23: =$J23*InputT!BY40 -> 0 | BX23: =$J23*InputT!BZ40 -> 0 | BY23: =$J23*InputT!CA40 -> 0 | BZ23: =$J23*InputT!CB40 -> 0 | CA23: =$J23*InputT!CC40 -> 0 | CB23: =$J23*InputT!CD40 -> 0 | CC23: =$J23*InputT!CE40 -> 0 | CD23: =$J23*InputT!CF40 -> 0 | CE23: =$J23*InputT!CG40 -> 0 | CF23: =$J23*InputT!CH40 -> 0 | CG23: =$J23*InputT!CI40 -> 0 | CH23: =$J23*InputT!CJ40 -> 0 | CI23: =$J23*InputT!CK40 -> 0 | CJ23: =$J23*InputT!CL40 -> 0 | CK23: =$J23*InputT!CM40 -> 0 | CL23: =$J23*InputT!CN40 -> 0 | CM23: =$J23*InputT!CO40 -> 0 | CN23: =$J23*InputT!CP40 -> 0 | CO23: =$J23*InputT!CQ40 -> 0 | CP23: =$J23*InputT!CR40 -> 0 | CQ23: =$J23*InputT!CS40 -> 0
C24: =InputC!C31 -> [Spare] | H24: $m | J24: =InputC!K31 -> 0 | N24: 0 | P24: =$J24*InputT!R41 -> 0 | Q24: =$J24*InputT!S41 -> 0 | R24: =$J24*InputT!T41 -> 0 | S24: =$J24*InputT!U41 -> 0 | T24: =$J24*InputT!V41 -> 0 | U24: =$J24*InputT!W41 -> 0 | V24: =$J24*InputT!X41 -> 0 | W24: =$J24*InputT!Y41 -> 0 | X24: =$J24*InputT!Z41 -> 0 | Y24: =$J24*InputT!AA41 -> 0 | Z24: =$J24*InputT!AB41 -> 0 | AA24: =$J24*InputT!AC41 -> 0 | AB24: =$J24*InputT!AD41 -> 0 | AC24: =$J24*InputT!AE41 -> 0 | AD24: =$J24*InputT!AF41 -> 0 | AE24: =$J24*InputT!AG41 -> 0 | AF24: =$J24*InputT!AH41 -> 0 | AG24: =$J24*InputT!AI41 -> 0 | AH24: =$J24*InputT!AJ41 -> 0 | AI24: =$J24*InputT!AK41 -> 0 | AJ24: =$J24*InputT!AL41 -> 0 | AK24: =$J24*InputT!AM41 -> 0 | AL24: =$J24*InputT!AN41 -> 0 | AM24: =$J24*InputT!AO41 -> 0 | AN24: =$J24*InputT!AP41 -> 0 | AO24: =$J24*InputT!AQ41 -> 0 | AP24: =$J24*InputT!AR41 -> 0 | AQ24: =$J24*InputT!AS41 -> 0 | AR24: =$J24*InputT!AT41 -> 0 | AS24: =$J24*InputT!AU41 -> 0 | AT24: =$J24*InputT!AV41 -> 0 | AU24: =$J24*InputT!AW41 -> 0 | AV24: =$J24*InputT!AX41 -> 0 | AW24: =$J24*InputT!AY41 -> 0 | AX24: =$J24*InputT!AZ41 -> 0 | AY24: =$J24*InputT!BA41 -> 0 | AZ24: =$J24*InputT!BB41 -> 0 | BA24: =$J24*InputT!BC41 -> 0 | BB24: =$J24*InputT!BD41 -> 0 | BC24: =$J24*InputT!BE41 -> 0 | BD24: =$J24*InputT!BF41 -> 0 | BE24: =$J24*InputT!BG41 -> 0 | BF24: =$J24*InputT!BH41 -> 0 | BG24: =$J24*InputT!BI41 -> 0 | BH24: =$J24*InputT!BJ41 -> 0 | BI24: =$J24*InputT!BK41 -> 0 | BJ24: =$J24*InputT!BL41 -> 0 | BK24: =$J24*InputT!BM41 -> 0 | BL24: =$J24*InputT!BN41 -> 0 | BM24: =$J24*InputT!BO41 -> 0 | BN24: =$J24*InputT!BP41 -> 0 | BO24: =$J24*InputT!BQ41 -> 0 | BP24: =$J24*InputT!BR41 -> 0 | BQ24: =$J24*InputT!BS41 -> 0 | BR24: =$J24*InputT!BT41 -> 0 | BS24: =$J24*InputT!BU41 -> 0 | BT24: =$J24*InputT!BV41 -> 0 | BU24: =$J24*InputT!BW41 -> 0 | BV24: =$J24*InputT!BX41 -> 0 | BW24: =$J24*InputT!BY41 -> 0 | BX24: =$J24*InputT!BZ41 -> 0 | BY24: =$J24*InputT!CA41 -> 0 | BZ24: =$J24*InputT!CB41 -> 0 | CA24: =$J24*InputT!CC41 -> 0 | CB24: =$J24*InputT!CD41 -> 0 | CC24: =$J24*InputT!CE41 -> 0 | CD24: =$J24*InputT!CF41 -> 0 | CE24: =$J24*InputT!CG41 -> 0 | CF24: =$J24*InputT!CH41 -> 0 | CG24: =$J24*InputT!CI41 -> 0 | CH24: =$J24*InputT!CJ41 -> 0 | CI24: =$J24*InputT!CK41 -> 0 | CJ24: =$J24*InputT!CL41 -> 0 | CK24: =$J24*InputT!CM41 -> 0 | CL24: =$J24*InputT!CN41 -> 0 | CM24: =$J24*InputT!CO41 -> 0 | CN24: =$J24*InputT!CP41 -> 0 | CO24: =$J24*InputT!CQ41 -> 0 | CP24: =$J24*InputT!CR41 -> 0 | CQ24: =$J24*InputT!CS41 -> 0
H25: $m | N25: 120 | P25: =SUM(P21:P24) -> 61.2 | Q25: 34.8 | R25: 24 | S25: 0 | T25: 0 | U25: 0 | V25: 0 | W25: 0 | X25: 0 | Y25: 0 | Z25: 0 | AA25: 0 | AB25: 0 | AC25: 0 | AD25: 0 | AE25: 0 | AF25: 0 | AG25: 0 | AH25: 0 | AI25: 0 | AJ25: 0 | AK25: 0 | AL25: 0 | AM25: 0 | AN25: 0 | AO25: 0 | AP25: 0 | AQ25: 0 | AR25: 0 | AS25: 0 | AT25: 0 | AU25: 0 | AV25: =SUM(AV21:AV24) -> 0 | AW25: 0 | AX25: 0 | AY25: 0 | AZ25: 0 | BA25: 0 | BB25: 0 | BC25: 0 | BD25: 0 | BE25: 0 | BF25: 0 | BG25: 0 | BH25: 0 | BI25: 0 | BJ25: 0 | BK25: 0 | BL25: 0 | BM25: 0 | BN25: 0 | BO25: 0 | BP25: 0 | BQ25: 0 | BR25: 0 | BS25: 0 | BT25: 0 | BU25: 0 | BV25: 0 | BW25: 0 | BX25: 0 | BY25: 0 | BZ25: 0 | CA25: 0 | CB25: =SUM(CB21:CB24) -> 0 | CC25: 0 | CD25: 0 | CE25: 0 | CF25: 0 | CG25: 0 | CH25: 0 | CI25: 0 | CJ25: 0 | CK25: 0 | CL25: 0 | CM25: 0 | CN25: 0 | CO25: 0 | CP25: 0 | CQ25: 0
J26: %
C27: Contingency | H27: $m | J27: =InputC!#REF! ->  | N27: =SUM(P27:DB27) ->  | P27: =P25*$J27 ->  | AV27: =AV25*$J27 ->  | CB27: =CB25*$J27 -> 
C29: Total EPC CAPEX | H29: $m | N29: =SUM(P29:DB29) ->  | P29: =P25+P27 ->  | CB29: =CB25+CB27 -> 
A32: Lifecycle CAPEX
C34: Maintenance Year | H34: flag | J34: =InputC!#REF! ->  | P34: =Timing!R34 -> 0 | Q34: =Timing!S34 -> 0 | R34: =Timing!T34 -> 0 | S34: =Timing!U34 -> 0 | T34: =Timing!V34 -> 1 | U34: =Timing!W34 -> 0 | V34: =Timing!X34 -> 1 | W34: =Timing!Y34 -> 0 | X34: =Timing!Z34 -> 1 | Y34: =Timing!AA34 -> 0 | Z34: =Timing!AB34 -> 1 | AA34: =Timing!AC34 -> 0 | AB34: =Timing!AD34 -> 1 | AC34: =Timing!AE34 -> 0 | AD34: =Timing!AF34 -> 1 | AE34: =Timing!AG34 -> 0 | AF34: =Timing!AH34 -> 1 | AG34: =Timing!AI34 -> 0 | AH34: =Timing!AJ34 -> 1 | AI34: =Timing!AK34 -> 0 | AJ34: =Timing!AL34 -> 1 | AK34: =Timing!AM34 -> 0 | AL34: =Timing!AN34 -> 1 | AM34: =Timing!AO34 -> 0 | AN34: =Timing!AP34 -> 1 | AO34: =Timing!AQ34 -> 0 | AP34: =Timing!AR34 -> 1 | AQ34: =Timing!AS34 -> 0 | AR34: =Timing!AT34 -> 1 | AS34: =Timing!AU34 -> 0 | AT34: =Timing!AV34 -> 1 | AU34: =Timing!AW34 -> 0 | AV34: =Timing!AX34 -> 1 | AW34: =Timing!AY34 -> 0 | AX34: =Timing!AZ34 -> 1 | AY34: =Timing!BA34 -> 0 | AZ34: =Timing!BB34 -> 1 | BA34: =Timing!BC34 -> 0 | BB34: =Timing!BD34 -> 1 | BC34: =Timing!BE34 -> 0 | BD34: =Timing!BF34 -> 1 | BE34: =Timing!BG34 -> 0 | BF34: =Timing!BH34 -> 1 | BG34: =Timing!BI34 -> 0 | BH34: =Timing!BJ34 -> 1 | BI34: =Timing!BK34 -> 0 | BJ34: =Timing!BL34 -> 1 | BK34: =Timing!BM34 -> 0 | BL34: =Timing!BN34 -> 1 | BM34: =Timing!BO34 -> 0 | BN34: =Timing!BP34 -> 1 | BO34: =Timing!BQ34 -> 0 | BP34: =Timing!BR34 -> 1 | BQ34: =Timing!BS34 -> 0 | BR34: =Timing!BT34 -> 0 | BS34: =Timing!BU34 -> 0 | BT34: =Timing!BV34 -> 0 | BU34: =Timing!BW34 -> 0 | BV34: =Timing!BX34 -> 0 | BW34: =Timing!BY34 -> 0 | BX34: =Timing!BZ34 -> 0 | BY34: =Timing!CA34 -> 0 | BZ34: =Timing!CB34 -> 0 | CA34: =Timing!CC34 -> 0 | CB34: =Timing!CD34 -> 0 | CC34: =Timing!CE34 -> 0 | CD34: =Timing!CF34 -> 0 | CE34: =Timing!CG34 -> 0 | CF34: =Timing!CH34 -> 0 | CG34: =Timing!CI34 -> 0 | CH34: =Timing!CJ34 -> 0 | CI34: =Timing!CK34 -> 0 | CJ34: =Timing!CL34 -> 0 | CK34: =Timing!CM34 -> 0 | CL34: =Timing!CN34 -> 0 | CM34: =Timing!CO34 -> 0 | CN34: =Timing!CP34 -> 0 | CO34: =Timing!CQ34 -> 0 | CP34: =Timing!CR34 -> 0 | CQ34: =Timing!CS34 -> 0
C36: Lifecycle CAPEX | H36: $m | J36: =InputC!#REF! ->  | N36: =SUM(P36:DB36) ->  | P36: =$J36*P34 ->  | AV36: =$J36*AV34 ->  | CB36: =$J36*CB34 -> 
C38: Total Lifecycle CAPEX | H38: $m | N38: =SUM(P38:DB38) ->  | P38: =P15*P36 ->  | AV38: =AV15*AV36 ->  | CB38: =CB15*CB36 -> 
A41: End Sheet

Sheet Ops
M5: Year: | P5: =Timing!R5 -> 2021 | Q5: =Timing!S5 -> 2022 | R5: =Timing!T5 -> 2023 | S5: =Timing!U5 -> 2024 | T5: =Timing!V5 -> 2025 | U5: =Timing!W5 -> 2026 | V5: =Timing!X5 -> 2027 | W5: =Timing!Y5 -> 2028 | X5: =Timing!Z5 -> 2029 | Y5: =Timing!AA5 -> 2030 | Z5: =Timing!AB5 -> 2031 | AA5: =Timing!AC5 -> 2032 | AB5: =Timing!AD5 -> 2033 | AC5: =Timing!AE5 -> 2034 | AD5: =Timing!AF5 -> 2035 | AE5: =Timing!AG5 -> 2036 | AF5: =Timing!AH5 -> 2037 | AG5: =Timing!AI5 -> 2038 | AH5: =Timing!AJ5 -> 2039 | AI5: =Timing!AK5 -> 2040 | AJ5: =Timing!AL5 -> 2041 | AK5: =Timing!AM5 -> 2042 | AL5: =Timing!AN5 -> 2043 | AM5: =Timing!AO5 -> 2044 | AN5: =Timing!AP5 -> 2045 | AO5: =Timing!AQ5 -> 2046 | AP5: =Timing!AR5 -> 2047 | AQ5: =Timing!AS5 -> 2048 | AR5: =Timing!AT5 -> 2049 | AS5: =Timing!AU5 -> 2050 | AT5: =Timing!AV5 -> 2051 | AU5: =Timing!AW5 -> 2052 | AV5: =Timing!AX5 -> 2053 | AW5: =Timing!AY5 -> 2054 | AX5: =Timing!AZ5 -> 2055 | AY5: =Timing!BA5 -> 2056 | AZ5: =Timing!BB5 -> 2057 | BA5: =Timing!BC5 -> 2058 | BB5: =Timing!BD5 -> 2059 | BC5: =Timing!BE5 -> 2060 | BD5: =Timing!BF5 -> 2061 | BE5: =Timing!BG5 -> 2062 | BF5: =Timing!BH5 -> 2063 | BG5: =Timing!BI5 -> 2064 | BH5: =Timing!BJ5 -> 2065 | BI5: =Timing!BK5 -> 2066 | BJ5: =Timing!BL5 -> 2067 | BK5: =Timing!BM5 -> 2068 | BL5: =Timing!BN5 -> 2069 | BM5: =Timing!BO5 -> 2070 | BN5: =Timing!BP5 -> 2071 | BO5: =Timing!BQ5 -> 2072 | BP5: =Timing!BR5 -> 2073 | BQ5: =Timing!BS5 -> 2074 | BR5: =Timing!BT5 -> 2075 | BS5: =Timing!BU5 -> 2076 | BT5: =Timing!BV5 -> 2077 | BU5: =Timing!BW5 -> 2078 | BV5: =Timing!BX5 -> 2079 | BW5: =Timing!BY5 -> 2080 | BX5: =Timing!BZ5 -> 2081 | BY5: =Timing!CA5 -> 2082 | BZ5: =Timing!CB5 -> 2083 | CA5: =Timing!CC5 -> 2084 | CB5: =Timing!CD5 -> 2085 | CC5: =Timing!CE5 -> 2086 | CD5: =Timing!CF5 -> 2087 | CE5: =Timing!CG5 -> 2088 | CF5: =Timing!CH5 -> 2089 | CG5: =Timing!CI5 -> 2090 | CH5: =Timing!CJ5 -> 2091 | CI5: =Timing!CK5 -> 2092 | CJ5: =Timing!CL5 -> 2093 | CK5: =Timing!CM5 -> 2094 | CL5: =Timing!CN5 -> 2095 | CM5: =Timing!CO5 -> 2096 | CN5: =Timing!CP5 -> 2097 | CO5: =Timing!CQ5 -> 2098 | CP5: =Timing!CR5 -> 2099 | CQ5: =Timing!CS5 -> 2100 | CR5: =Timing!CT5 -> 2101 | CS5: =Timing!CU5 -> 2102 | CT5: =Timing!CV5 -> 2103 | CU5: =CT5+1 -> 2104 | CV5: 2105 | CW5: 2106 | CX5: 2107 | CY5: 2108 | CZ5: 2109 | DA5: 2110 | DB5: 2111 | DC5: 2112 | DD5: 2113
M6: Year #: | P6: =Timing!R6 -> 1 | Q6: =Timing!S6 -> 2 | R6: =Timing!T6 -> 3 | S6: =Timing!U6 -> 4 | T6: =Timing!V6 -> 5 | U6: =Timing!W6 -> 6 | V6: =Timing!X6 -> 7 | W6: =Timing!Y6 -> 8 | X6: =Timing!Z6 -> 9 | Y6: =Timing!AA6 -> 10 | Z6: =Timing!AB6 -> 11 | AA6: =Timing!AC6 -> 12 | AB6: =Timing!AD6 -> 13 | AC6: =Timing!AE6 -> 14 | AD6: =Timing!AF6 -> 15 | AE6: =Timing!AG6 -> 16 | AF6: =Timing!AH6 -> 17 | AG6: =Timing!AI6 -> 18 | AH6: =Timing!AJ6 -> 19 | AI6: =Timing!AK6 -> 20 | AJ6: =Timing!AL6 -> 21 | AK6: =Timing!AM6 -> 22 | AL6: =Timing!AN6 -> 23 | AM6: =Timing!AO6 -> 24 | AN6: =Timing!AP6 -> 25 | AO6: =Timing!AQ6 -> 26 | AP6: =Timing!AR6 -> 27 | AQ6: =Timing!AS6 -> 28 | AR6: =Timing!AT6 -> 29 | AS6: =Timing!AU6 -> 30 | AT6: =Timing!AV6 -> 31 | AU6: =Timing!AW6 -> 32 | AV6: =Timing!AX6 -> 33 | AW6: =Timing!AY6 -> 34 | AX6: =Timing!AZ6 -> 35 | AY6: =Timing!BA6 -> 36 | AZ6: =Timing!BB6 -> 37 | BA6: =Timing!BC6 -> 38 | BB6: =Timing!BD6 -> 39 | BC6: =Timing!BE6 -> 40 | BD6: =Timing!BF6 -> 41 | BE6: =Timing!BG6 -> 42 | BF6: =Timing!BH6 -> 43 | BG6: =Timing!BI6 -> 44 | BH6: =Timing!BJ6 -> 45 | BI6: =Timing!BK6 -> 46 | BJ6: =Timing!BL6 -> 47 | BK6: =Timing!BM6 -> 48 | BL6: =Timing!BN6 -> 49 | BM6: =Timing!BO6 -> 50 | BN6: =Timing!BP6 -> 51 | BO6: =Timing!BQ6 -> 52 | BP6: =Timing!BR6 -> 53 | BQ6: =Timing!BS6 -> 54 | BR6: =Timing!BT6 -> 55 | BS6: =Timing!BU6 -> 56 | BT6: =Timing!BV6 -> 57 | BU6: =Timing!BW6 -> 58 | BV6: =Timing!BX6 -> 59 | BW6: =Timing!BY6 -> 60 | BX6: =Timing!BZ6 -> 61 | BY6: =Timing!CA6 -> 62 | BZ6: =Timing!CB6 -> 63 | CA6: =Timing!CC6 -> 64 | CB6: =Timing!CD6 -> 65 | CC6: =Timing!CE6 -> 66 | CD6: =Timing!CF6 -> 67 | CE6: =Timing!CG6 -> 68 | CF6: =Timing!CH6 -> 69 | CG6: =Timing!CI6 -> 70 | CH6: =Timing!CJ6 -> 71 | CI6: =Timing!CK6 -> 72 | CJ6: =Timing!CL6 -> 73 | CK6: =Timing!CM6 -> 74 | CL6: =Timing!CN6 -> 75 | CM6: =Timing!CO6 -> 76 | CN6: =Timing!CP6 -> 77 | CO6: =Timing!CQ6 -> 78 | CP6: =Timing!CR6 -> 79 | CQ6: =Timing!CS6 -> 80 | CR6: =Timing!CT6 -> 81 | CS6: =Timing!CU6 -> 82 | CT6: =Timing!CV6 -> 83 | CU6: =#REF! ->  | CV6: =#REF! ->  | CW6: =#REF! ->  | CX6: =#REF! ->  | CY6: =#REF! ->  | CZ6: =#REF! ->  | DA6: =#REF! ->  | DB6: =#REF! ->  | DC6: =#REF! ->  | DD6: =#REF! -> 
M7: Forecast: | P7: =Timing!R7 -> Const | Q7: =Timing!S7 -> Const | R7: =Timing!T7 -> Const | S7: =Timing!U7 -> Ops | T7: =Timing!V7 -> Ops | U7: =Timing!W7 -> Ops | V7: =Timing!X7 -> Ops | W7: =Timing!Y7 -> Ops | X7: =Timing!Z7 -> Ops | Y7: =Timing!AA7 -> Ops | Z7: =Timing!AB7 -> Ops | AA7: =Timing!AC7 -> Ops | AB7: =Timing!AD7 -> Ops | AC7: =Timing!AE7 -> Ops | AD7: =Timing!AF7 -> Ops | AE7: =Timing!AG7 -> Ops | AF7: =Timing!AH7 -> Ops | AG7: =Timing!AI7 -> Ops | AH7: =Timing!AJ7 -> Ops | AI7: =Timing!AK7 -> Ops | AJ7: =Timing!AL7 -> Ops | AK7: =Timing!AM7 -> Ops | AL7: =Timing!AN7 -> Ops | AM7: =Timing!AO7 -> Ops | AN7: =Timing!AP7 -> Ops | AO7: =Timing!AQ7 -> Ops | AP7: =Timing!AR7 -> Ops | AQ7: =Timing!AS7 -> Ops | AR7: =Timing!AT7 -> Ops | AS7: =Timing!AU7 -> Ops | AT7: =Timing!AV7 -> Ops | AU7: =Timing!AW7 -> Ops | AV7: =Timing!AX7 -> Ops | AW7: =Timing!AY7 -> Ops | AX7: =Timing!AZ7 -> Ops | AY7: =Timing!BA7 -> Ops | AZ7: =Timing!BB7 -> Ops | BA7: =Timing!BC7 -> Ops | BB7: =Timing!BD7 -> Ops | BC7: =Timing!BE7 -> Ops | BD7: =Timing!BF7 -> Ops | BE7: =Timing!BG7 -> Ops | BF7: =Timing!BH7 -> Ops | BG7: =Timing!BI7 -> Ops | BH7: =Timing!BJ7 -> Ops | BI7: =Timing!BK7 -> Ops | BJ7: =Timing!BL7 -> Ops | BK7: =Timing!BM7 -> Ops | BL7: =Timing!BN7 -> Ops | BM7: =Timing!BO7 -> Ops | BN7: =Timing!BP7 -> Ops | BO7: =Timing!BQ7 -> Ops | BP7: =Timing!BR7 -> Ops | BQ7: =Timing!BS7 -> Ops | BR7: =Timing!BT7 ->  | BS7: =Timing!BU7 ->  | BT7: =Timing!BV7 ->  | BU7: =Timing!BW7 ->  | BV7: =Timing!BX7 ->  | BW7: =Timing!BY7 ->  | BX7: =Timing!BZ7 ->  | BY7: =Timing!CA7 ->  | BZ7: =Timing!CB7 ->  | CA7: =Timing!CC7 ->  | CB7: =Timing!CD7 ->  | CC7: =Timing!CE7 ->  | CD7: =Timing!CF7 ->  | CE7: =Timing!CG7 ->  | CF7: =Timing!CH7 ->  | CG7: =Timing!CI7 ->  | CH7: =Timing!CJ7 ->  | CI7: =Timing!CK7 ->  | CJ7: =Timing!CL7 ->  | CK7: =Timing!CM7 ->  | CL7: =Timing!CN7 ->  | CM7: =Timing!CO7 ->  | CN7: =Timing!CP7 ->  | CO7: =Timing!CQ7 ->  | CP7: =Timing!CR7 ->  | CQ7: =Timing!CS7 ->  | CR7: =Timing!CT7 ->  | CS7: =Timing!CU7 ->  | CT7: =Timing!CV7 ->  | CU7: =#REF! ->  | CV7: =#REF! ->  | CW7: =#REF! ->  | CX7: =#REF! ->  | CY7: =#REF! ->  | CZ7: =#REF! ->  | DA7: =#REF! ->  | DB7: =#REF! ->  | DC7: =#REF! ->  | DD7: =#REF! -> 
A9: Flags & Data
C11: Constructon Period | H11: flag | P11: =CAPEX!P11 -> 1 | Q11: =CAPEX!Q11 -> 1 | R11: =CAPEX!R11 -> 1 | S11: =CAPEX!S11 -> 0 | T11: =CAPEX!T11 -> 0 | U11: =CAPEX!U11 -> 0 | V11: =CAPEX!V11 -> 0 | W11: =CAPEX!W11 -> 0 | X11: =CAPEX!X11 -> 0 | Y11: =CAPEX!Y11 -> 0 | Z11: =CAPEX!Z11 -> 0 | AA11: =CAPEX!AA11 -> 0 | AB11: =CAPEX!AB11 -> 0 | AC11: =CAPEX!AC11 -> 0 | AD11: =CAPEX!AD11 -> 0 | AE11: =CAPEX!AE11 -> 0 | AF11: =CAPEX!AF11 -> 0 | AG11: =CAPEX!AG11 -> 0 | AH11: =CAPEX!AH11 -> 0 | AI11: =CAPEX!AI11 -> 0 | AJ11: =CAPEX!AJ11 -> 0 | AK11: =CAPEX!AK11 -> 0 | AL11: =CAPEX!AL11 -> 0 | AM11: =CAPEX!AM11 -> 0 | AN11: =CAPEX!AN11 -> 0 | AO11: =CAPEX!AO11 -> 0 | AP11: =CAPEX!AP11 -> 0 | AQ11: =CAPEX!AQ11 -> 0 | AR11: =CAPEX!AR11 -> 0 | AS11: =CAPEX!AS11 -> 0 | AT11: =CAPEX!AT11 -> 0 | AU11: =CAPEX!AU11 -> 0 | AV11: =CAPEX!AV11 -> 0 | AW11: =CAPEX!AW11 -> 0 | AX11: =CAPEX!AX11 -> 0 | AY11: =CAPEX!AY11 -> 0 | AZ11: =CAPEX!AZ11 -> 0 | BA11: =CAPEX!BA11 -> 0 | BB11: =CAPEX!BB11 -> 0 | BC11: =CAPEX!BC11 -> 0 | BD11: =CAPEX!BD11 -> 0 | BE11: =CAPEX!BE11 -> 0 | BF11: =CAPEX!BF11 -> 0 | BG11: =CAPEX!BG11 -> 0 | BH11: =CAPEX!BH11 -> 0 | BI11: =CAPEX!BI11 -> 0 | BJ11: =CAPEX!BJ11 -> 0 | BK11: =CAPEX!BK11 -> 0 | BL11: =CAPEX!BL11 -> 0 | BM11: =CAPEX!BM11 -> 0 | BN11: =CAPEX!BN11 -> 0 | BO11: =CAPEX!BO11 -> 0 | BP11: =CAPEX!BP11 -> 0 | BQ11: =CAPEX!BQ11 -> 0 | BR11: =CAPEX!BR11 -> 0 | BS11: =CAPEX!BS11 -> 0 | BT11: =CAPEX!BT11 -> 0 | BU11: =CAPEX!BU11 -> 0 | BV11: =CAPEX!BV11 -> 0 | BW11: =CAPEX!BW11 -> 0 | BX11: =CAPEX!BX11 -> 0 | BY11: =CAPEX!BY11 -> 0 | BZ11: =CAPEX!BZ11 -> 0 | CA11: =CAPEX!CA11 -> 0 | CB11: =CAPEX!CB11 -> 0 | CC11: =CAPEX!CC11 -> 0 | CD11: =CAPEX!CD11 -> 0 | CE11: =CAPEX!CE11 -> 0 | CF11: =CAPEX!CF11 -> 0 | CG11: =CAPEX!CG11 -> 0 | CH11: =CAPEX!CH11 -> 0 | CI11: =CAPEX!CI11 -> 0 | CJ11: =CAPEX!CJ11 -> 0 | CK11: =CAPEX!CK11 -> 0 | CL11: =CAPEX!CL11 -> 0 | CM11: =CAPEX!CM11 -> 0 | CN11: =CAPEX!CN11 -> 0 | CO11: =CAPEX!CO11 -> 0 | CP11: =CAPEX!CP11 -> 0 | CQ11: =CAPEX!CQ11 -> 0 | CR11: =CAPEX!CR11 -> 0 | CS11: =CAPEX!CS11 -> 0 | CT11: =CAPEX!CT11 -> 0
C12: Operating Period | H12: flag | P12: =CAPEX!P12 -> 0 | Q12: =CAPEX!Q12 -> 0 | R12: =CAPEX!R12 -> 0 | S12: =CAPEX!S12 -> 1 | T12: =CAPEX!T12 -> 1 | U12: =CAPEX!U12 -> 1 | V12: =CAPEX!V12 -> 1 | W12: =CAPEX!W12 -> 1 | X12: =CAPEX!X12 -> 1 | Y12: =CAPEX!Y12 -> 1 | Z12: =CAPEX!Z12 -> 1 | AA12: =CAPEX!AA12 -> 1 | AB12: =CAPEX!AB12 -> 1 | AC12: =CAPEX!AC12 -> 1 | AD12: =CAPEX!AD12 -> 1 | AE12: =CAPEX!AE12 -> 1 | AF12: =CAPEX!AF12 -> 1 | AG12: =CAPEX!AG12 -> 1 | AH12: =CAPEX!AH12 -> 1 | AI12: =CAPEX!AI12 -> 1 | AJ12: =CAPEX!AJ12 -> 1 | AK12: =CAPEX!AK12 -> 1 | AL12: =CAPEX!AL12 -> 1 | AM12: =CAPEX!AM12 -> 1 | AN12: =CAPEX!AN12 -> 1 | AO12: =CAPEX!AO12 -> 1 | AP12: =CAPEX!AP12 -> 1 | AQ12: =CAPEX!AQ12 -> 1 | AR12: =CAPEX!AR12 -> 1 | AS12: =CAPEX!AS12 -> 1 | AT12: =CAPEX!AT12 -> 1 | AU12: =CAPEX!AU12 -> 1 | AV12: =CAPEX!AV12 -> 1 | AW12: =CAPEX!AW12 -> 1 | AX12: =CAPEX!AX12 -> 1 | AY12: =CAPEX!AY12 -> 1 | AZ12: =CAPEX!AZ12 -> 1 | BA12: =CAPEX!BA12 -> 1 | BB12: =CAPEX!BB12 -> 1 | BC12: =CAPEX!BC12 -> 1 | BD12: =CAPEX!BD12 -> 1 | BE12: =CAPEX!BE12 -> 1 | BF12: =CAPEX!BF12 -> 1 | BG12: =CAPEX!BG12 -> 1 | BH12: =CAPEX!BH12 -> 1 | BI12: =CAPEX!BI12 -> 1 | BJ12: =CAPEX!BJ12 -> 1 | BK12: =CAPEX!BK12 -> 1 | BL12: =CAPEX!BL12 -> 1 | BM12: =CAPEX!BM12 -> 1 | BN12: =CAPEX!BN12 -> 1 | BO12: =CAPEX!BO12 -> 1 | BP12: =CAPEX!BP12 -> 1 | BQ12: =CAPEX!BQ12 -> 1 | BR12: =CAPEX!BR12 -> 0 | BS12: =CAPEX!BS12 -> 0 | BT12: =CAPEX!BT12 -> 0 | BU12: =CAPEX!BU12 -> 0 | BV12: =CAPEX!BV12 -> 0 | BW12: =CAPEX!BW12 -> 0 | BX12: =CAPEX!BX12 -> 0 | BY12: =CAPEX!BY12 -> 0 | BZ12: =CAPEX!BZ12 -> 0 | CA12: =CAPEX!CA12 -> 0 | CB12: =CAPEX!CB12 -> 0 | CC12: =CAPEX!CC12 -> 0 | CD12: =CAPEX!CD12 -> 0 | CE12: =CAPEX!CE12 -> 0 | CF12: =CAPEX!CF12 -> 0 | CG12: =CAPEX!CG12 -> 0 | CH12: =CAPEX!CH12 -> 0 | CI12: =CAPEX!CI12 -> 0 | CJ12: =CAPEX!CJ12 -> 0 | CK12: =CAPEX!CK12 -> 0 | CL12: =CAPEX!CL12 -> 0 | CM12: =CAPEX!CM12 -> 0 | CN12: =CAPEX!CN12 -> 0 | CO12: =CAPEX!CO12 -> 0 | CP12: =CAPEX!CP12 -> 0 | CQ12: =CAPEX!CQ12 -> 0 | CR12: =CAPEX!CR12 -> 0 | CS12: =CAPEX!CS12 -> 0 | CT12: =CAPEX!CT12 -> 0
C14: Operating Counter | H14: # | P14: =Timing!R32 -> 0 | Q14: =Timing!S32 -> 0 | R14: =Timing!T32 -> 0 | S14: =Timing!U32 -> 1 | T14: =Timing!V32 -> 2 | U14: =Timing!W32 -> 3 | V14: =Timing!X32 -> 4 | W14: =Timing!Y32 -> 5 | X14: =Timing!Z32 -> 6 | Y14: =Timing!AA32 -> 7 | Z14: =Timing!AB32 -> 8 | AA14: =Timing!AC32 -> 9 | AB14: =Timing!AD32 -> 10 | AC14: =Timing!AE32 -> 11 | AD14: =Timing!AF32 -> 12 | AE14: =Timing!AG32 -> 13 | AF14: =Timing!AH32 -> 14 | AG14: =Timing!AI32 -> 15 | AH14: =Timing!AJ32 -> 16 | AI14: =Timing!AK32 -> 17 | AJ14: =Timing!AL32 -> 18 | AK14: =Timing!AM32 -> 19 | AL14: =Timing!AN32 -> 20 | AM14: =Timing!AO32 -> 21 | AN14: =Timing!AP32 -> 22 | AO14: =Timing!AQ32 -> 23 | AP14: =Timing!AR32 -> 24 | AQ14: =Timing!AS32 -> 25 | AR14: =Timing!AT32 -> 26 | AS14: =Timing!AU32 -> 27 | AT14: =Timing!AV32 -> 28 | AU14: =Timing!AW32 -> 29 | AV14: =Timing!AX32 -> 30 | AW14: =Timing!AY32 -> 31 | AX14: =Timing!AZ32 -> 32 | AY14: =Timing!BA32 -> 33 | AZ14: =Timing!BB32 -> 34 | BA14: =Timing!BC32 -> 35 | BB14: =Timing!BD32 -> 36 | BC14: =Timing!BE32 -> 37 | BD14: =Timing!BF32 -> 38 | BE14: =Timing!BG32 -> 39 | BF14: =Timing!BH32 -> 40 | BG14: =Timing!BI32 -> 41 | BH14: =Timing!BJ32 -> 42 | BI14: =Timing!BK32 -> 43 | BJ14: =Timing!BL32 -> 44 | BK14: =Timing!BM32 -> 45 | BL14: =Timing!BN32 -> 46 | BM14: =Timing!BO32 -> 47 | BN14: =Timing!BP32 -> 48 | BO14: =Timing!BQ32 -> 49 | BP14: =Timing!BR32 -> 50 | BQ14: =Timing!BS32 -> 51 | BR14: =Timing!BT32 -> 0 | BS14: =Timing!BU32 -> 0 | BT14: =Timing!BV32 -> 0 | BU14: =Timing!BW32 -> 0 | BV14: =Timing!BX32 -> 0 | BW14: =Timing!BY32 -> 0 | BX14: =Timing!BZ32 -> 0 | BY14: =Timing!CA32 -> 0 | BZ14: =Timing!CB32 -> 0 | CA14: =Timing!CC32 -> 0 | CB14: =Timing!CD32 -> 0 | CC14: =Timing!CE32 -> 0 | CD14: =Timing!CF32 -> 0 | CE14: =Timing!CG32 -> 0 | CF14: =Timing!CH32 -> 0 | CG14: =Timing!CI32 -> 0 | CH14: =Timing!CJ32 -> 0 | CI14: =Timing!CK32 -> 0 | CJ14: =Timing!CL32 -> 0 | CK14: =Timing!CM32 -> 0 | CL14: =Timing!CN32 -> 0 | CM14: =Timing!CO32 -> 0 | CN14: =Timing!CP32 -> 0 | CO14: =Timing!CQ32 -> 0 | CP14: =Timing!CR32 -> 0 | CQ14: =Timing!CS32 -> 0 | CR14: =Timing!CT32 -> 0 | CS14: =Timing!CU32 -> 0 | CT14: =Timing!CV32 -> 0
C16: CPI | H16: % | P16: =CAPEX!P14 -> 0.01 | Q16: =CAPEX!Q14 -> 0.01 | R16: =CAPEX!R14 -> 0.01 | S16: =CAPEX!S14 -> 0.01 | T16: =CAPEX!T14 -> 0.01 | U16: =CAPEX!U14 -> 0.01 | V16: =CAPEX!V14 -> 0.01 | W16: =CAPEX!W14 -> 0.01 | X16: =CAPEX!X14 -> 0.01 | Y16: =CAPEX!Y14 -> 0.01 | Z16: =CAPEX!Z14 -> 0.01 | AA16: =CAPEX!AA14 -> 0.01 | AB16: =CAPEX!AB14 -> 0.01 | AC16: =CAPEX!AC14 -> 0.01 | AD16: =CAPEX!AD14 -> 0.01 | AE16: =CAPEX!AE14 -> 0.01 | AF16: =CAPEX!AF14 -> 0.01 | AG16: =CAPEX!AG14 -> 0.01 | AH16: =CAPEX!AH14 -> 0.01 | AI16: =CAPEX!AI14 -> 0.01 | AJ16: =CAPEX!AJ14 -> 0.01 | AK16: =CAPEX!AK14 -> 0.01 | AL16: =CAPEX!AL14 -> 0.01 | AM16: =CAPEX!AM14 -> 0.01 | AN16: =CAPEX!AN14 -> 0.01 | AO16: =CAPEX!AO14 -> 0.01 | AP16: =CAPEX!AP14 -> 0.01 | AQ16: =CAPEX!AQ14 -> 0.01 | AR16: =CAPEX!AR14 -> 0.01 | AS16: =CAPEX!AS14 -> 0.01 | AT16: =CAPEX!AT14 -> 0.01 | AU16: =CAPEX!AU14 -> 0.01 | AV16: =CAPEX!AV14 -> 0.01 | AW16: =CAPEX!AW14 -> 0.01 | AX16: =CAPEX!AX14 -> 0.01 | AY16: =CAPEX!AY14 -> 0.01 | AZ16: =CAPEX!AZ14 -> 0.01 | BA16: =CAPEX!BA14 -> 0.01 | BB16: =CAPEX!BB14 -> 0.01 | BC16: =CAPEX!BC14 -> 0.01 | BD16: =CAPEX!BD14 -> 0.01 | BE16: =CAPEX!BE14 -> 0.01 | BF16: =CAPEX!BF14 -> 0.01 | BG16: =CAPEX!BG14 -> 0.01 | BH16: =CAPEX!BH14 -> 0.01 | BI16: =CAPEX!BI14 -> 0.01 | BJ16: =CAPEX!BJ14 -> 0.01 | BK16: =CAPEX!BK14 -> 0.01 | BL16: =CAPEX!BL14 -> 0.01 | BM16: =CAPEX!BM14 -> 0.01 | BN16: =CAPEX!BN14 -> 0.01 | BO16: =CAPEX!BO14 -> 0.01 | BP16: =CAPEX!BP14 -> 0.01 | BQ16: =CAPEX!BQ14 -> 0.01 | BR16: =CAPEX!BR14 -> 0.01 | BS16: =CAPEX!BS14 -> 0.01 | BT16: =CAPEX!BT14 -> 0.01 | BU16: =CAPEX!BU14 -> 0.01 | BV16: =CAPEX!BV14 -> 0.01 | BW16: =CAPEX!BW14 -> 0.01 | BX16: =CAPEX!BX14 -> 0.01 | BY16: =CAPEX!BY14 -> 0.01 | BZ16: =CAPEX!BZ14 -> 0.01 | CA16: =CAPEX!CA14 -> 0.01 | CB16: =CAPEX!CB14 -> 0.01 | CC16: =CAPEX!CC14 -> 0.01 | CD16: =CAPEX!CD14 -> 0.01 | CE16: =CAPEX!CE14 -> 0 | CF16: =CAPEX!CF14 -> 0 | CG16: =CAPEX!CG14 -> 0 | CH16: =CAPEX!CH14 -> 0 | CI16: =CAPEX!CI14 -> 0 | CJ16: =CAPEX!CJ14 -> 0 | CK16: =CAPEX!CK14 -> 0 | CL16: =CAPEX!CL14 -> 0 | CM16: =CAPEX!CM14 -> 0 | CN16: =CAPEX!CN14 -> 0 | CO16: =CAPEX!CO14 -> 0 | CP16: =CAPEX!CP14 -> 0 | CQ16: =CAPEX!CQ14 -> 0 | CR16: =CAPEX!CR14 -> 0 | CS16: =CAPEX!CS14 -> 0 | CT16: =CAPEX!CT14 -> 0
C17: CPI Index | H17: # | P17: =CAPEX!P15 -> 1 | Q17: =CAPEX!Q15 -> 1.01 | R17: =CAPEX!R15 -> 1.0201 | S17: =CAPEX!S15 -> 1.030301 | T17: =CAPEX!T15 -> 1.04060401 | U17: =CAPEX!U15 -> 1.05101005 | V17: =CAPEX!V15 -> 1.061520151 | W17: =CAPEX!W15 -> 1.072135352 | X17: =CAPEX!X15 -> 1.082856706 | Y17: =CAPEX!Y15 -> 1.093685273 | Z17: =CAPEX!Z15 -> 1.104622125 | AA17: =CAPEX!AA15 -> 1.115668347 | AB17: =CAPEX!AB15 -> 1.12682503 | AC17: =CAPEX!AC15 -> 1.13809328 | AD17: =CAPEX!AD15 -> 1.149474213 | AE17: =CAPEX!AE15 -> 1.160968955 | AF17: =CAPEX!AF15 -> 1.172578645 | AG17: =CAPEX!AG15 -> 1.184304431 | AH17: =CAPEX!AH15 -> 1.196147476 | AI17: =CAPEX!AI15 -> 1.20810895 | AJ17: =CAPEX!AJ15 -> 1.22019004 | AK17: =CAPEX!AK15 -> 1.23239194 | AL17: =CAPEX!AL15 -> 1.24471586 | AM17: =CAPEX!AM15 -> 1.257163018 | AN17: =CAPEX!AN15 -> 1.269734649 | AO17: =CAPEX!AO15 -> 1.282431995 | AP17: =CAPEX!AP15 -> 1.295256315 | AQ17: =CAPEX!AQ15 -> 1.308208878 | AR17: =CAPEX!AR15 -> 1.321290967 | AS17: =CAPEX!AS15 -> 1.334503877 | AT17: =CAPEX!AT15 -> 1.347848915 | AU17: =CAPEX!AU15 -> 1.361327404 | AV17: =CAPEX!AV15 -> 1.374940679 | AW17: =CAPEX!AW15 -> 1.388690085 | AX17: =CAPEX!AX15 -> 1.402576986 | AY17: =CAPEX!AY15 -> 1.416602756 | AZ17: =CAPEX!AZ15 -> 1.430768784 | BA17: =CAPEX!BA15 -> 1.445076471 | BB17: =CAPEX!BB15 -> 1.459527236 | BC17: =CAPEX!BC15 -> 1.474122509 | BD17: =CAPEX!BD15 -> 1.488863734 | BE17: =CAPEX!BE15 -> 1.503752371 | BF17: =CAPEX!BF15 -> 1.518789895 | BG17: =CAPEX!BG15 -> 1.533977794 | BH17: =CAPEX!BH15 -> 1.549317572 | BI17: =CAPEX!BI15 -> 1.564810747 | BJ17: =CAPEX!BJ15 -> 1.580458855 | BK17: =CAPEX!BK15 -> 1.596263443 | BL17: =CAPEX!BL15 -> 1.612226078 | BM17: =CAPEX!BM15 -> 1.628348338 | BN17: =CAPEX!BN15 -> 1.644631822 | BO17: =CAPEX!BO15 -> 1.66107814 | BP17: =CAPEX!BP15 -> 1.677688921 | BQ17: =CAPEX!BQ15 -> 1.694465811 | BR17: =CAPEX!BR15 -> 1.711410469 | BS17: =CAPEX!BS15 -> 1.728524573 | BT17: =CAPEX!BT15 -> 1.745809819 | BU17: =CAPEX!BU15 -> 1.763267917 | BV17: =CAPEX!BV15 -> 1.780900597 | BW17: =CAPEX!BW15 -> 1.798709603 | BX17: =CAPEX!BX15 -> 1.816696699 | BY17: =CAPEX!BY15 -> 1.834863666 | BZ17: =CAPEX!BZ15 -> 1.853212302 | CA17: =CAPEX!CA15 -> 1.871744425 | CB17: =CAPEX!CB15 -> 1.890461869 | CC17: =CAPEX!CC15 -> 1.909366488 | CD17: =CAPEX!CD15 -> 1.928460153 | CE17: =CAPEX!CE15 -> 1.928460153 | CF17: =CAPEX!CF15 -> 1.928460153 | CG17: =CAPEX!CG15 -> 1.928460153 | CH17: =CAPEX!CH15 -> 1.928460153 | CI17: =CAPEX!CI15 -> 1.928460153 | CJ17: =CAPEX!CJ15 -> 1.928460153 | CK17: =CAPEX!CK15 -> 1.928460153 | CL17: =CAPEX!CL15 -> 1.928460153 | CM17: =CAPEX!CM15 -> 1.928460153 | CN17: =CAPEX!CN15 -> 1.928460153 | CO17: =CAPEX!CO15 -> 1.928460153 | CP17: =CAPEX!CP15 -> 1.928460153 | CQ17: =CAPEX!CQ15 -> 1.928460153 | CR17: =CAPEX!CR15 -> 0 | CS17: =CAPEX!CS15 -> 0 | CT17: =CAPEX!CT15 -> 0
A20: Operations
A21: Capacity + Volume
J23: p.a.
C24: Pipeline Capacity | H24: bcm p.a. | J24: =InputC!K39 -> 120 | P24: =$J24*P$12 -> 0 | Q24: =$J24*Q$12 -> 0 | R24: 0 | S24: 120 | T24: 120 | U24: 120 | V24: 120 | W24: 120 | X24: 120 | Y24: 120 | Z24: 120 | AA24: 120 | AB24: 120 | AC24: 120 | AD24: 120 | AE24: 120 | AF24: 120 | AG24: 120 | AH24: 120 | AI24: 120 | AJ24: 120 | AK24: 120 | AL24: 120 | AM24: 120 | AN24: 120 | AO24: 120 | AP24: 120 | AQ24: 120 | AR24: 120 | AS24: 120 | AT24: 120 | AU24: 120 | AV24: 120 | AW24: 120 | AX24: 120 | AY24: 120 | AZ24: 120 | BA24: 120 | BB24: 120 | BC24: 120 | BD24: 120 | BE24: 120 | BF24: 120 | BG24: 120 | BH24: 120 | BI24: 120 | BJ24: 120 | BK24: 120 | BL24: 120 | BM24: 120 | BN24: 120 | BO24: 120 | BP24: 120 | BQ24: 120 | BR24: 0 | BS24: 0 | BT24: 0 | BU24: 0 | BV24: 0 | BW24: 0 | BX24: 0 | BY24: 0 | BZ24: 0 | CA24: 0 | CB24: 0 | CC24: =$J24*CC$12 -> 0 | CD24: 0 | CE24: 0 | CF24: 0 | CG24: 0 | CH24: 0 | CI24: 0 | CJ24: 0 | CK24: 0 | CL24: 0 | CM24: 0 | CN24: 0 | CO24: 0 | CP24: 0 | CQ24: 0 | CR24: 0 | CS24: 0 | CT24: 0
C26: Availability
C27: Maintenance Period | H27: flag | J27: Reduction | P27: =Timing!R34 -> 0 | Q27: =Timing!S34 -> 0 | R27: =Timing!T34 -> 0 | S27: =Timing!U34 -> 0 | T27: =Timing!V34 -> 1 | U27: =Timing!W34 -> 0 | V27: =Timing!X34 -> 1 | W27: =Timing!Y34 -> 0 | X27: =Timing!Z34 -> 1 | Y27: =Timing!AA34 -> 0 | Z27: =Timing!AB34 -> 1 | AA27: =Timing!AC34 -> 0 | AB27: =Timing!AD34 -> 1 | AC27: =Timing!AE34 -> 0 | AD27: =Timing!AF34 -> 1 | AE27: =Timing!AG34 -> 0 | AF27: =Timing!AH34 -> 1 | AG27: =Timing!AI34 -> 0 | AH27: =Timing!AJ34 -> 1 | AI27: =Timing!AK34 -> 0 | AJ27: =Timing!AL34 -> 1 | AK27: =Timing!AM34 -> 0 | AL27: =Timing!AN34 -> 1 | AM27: =Timing!AO34 -> 0 | AN27: =Timing!AP34 -> 1 | AO27: =Timing!AQ34 -> 0 | AP27: =Timing!AR34 -> 1 | AQ27: =Timing!AS34 -> 0 | AR27: =Timing!AT34 -> 1 | AS27: =Timing!AU34 -> 0 | AT27: =Timing!AV34 -> 1 | AU27: =Timing!AW34 -> 0 | AV27: =Timing!AX34 -> 1 | AW27: =Timing!AY34 -> 0 | AX27: =Timing!AZ34 -> 1 | AY27: =Timing!BA34 -> 0 | AZ27: =Timing!BB34 -> 1 | BA27: =Timing!BC34 -> 0 | BB27: =Timing!BD34 -> 1 | BC27: =Timing!BE34 -> 0 | BD27: =Timing!BF34 -> 1 | BE27: =Timing!BG34 -> 0 | BF27: =Timing!BH34 -> 1 | BG27: =Timing!BI34 -> 0 | BH27: =Timing!BJ34 -> 1 | BI27: =Timing!BK34 -> 0 | BJ27: =Timing!BL34 -> 1 | BK27: =Timing!BM34 -> 0 | BL27: =Timing!BN34 -> 1 | BM27: =Timing!BO34 -> 0 | BN27: =Timing!BP34 -> 1 | BO27: =Timing!BQ34 -> 0 | BP27: =Timing!BR34 -> 1 | BQ27: =Timing!BS34 -> 0 | BR27: =Timing!BT34 -> 0 | BS27: =Timing!BU34 -> 0 | BT27: =Timing!BV34 -> 0 | BU27: =Timing!BW34 -> 0 | BV27: =Timing!BX34 -> 0 | BW27: =Timing!BY34 -> 0 | BX27: =Timing!BZ34 -> 0 | BY27: =Timing!CA34 -> 0 | BZ27: =Timing!CB34 -> 0 | CA27: =Timing!CC34 -> 0 | CB27: =Timing!CD34 -> 0 | CC27: =Timing!CE34 -> 0 | CD27: =Timing!CF34 -> 0 | CE27: =Timing!CG34 -> 0 | CF27: =Timing!CH34 -> 0 | CG27: =Timing!CI34 -> 0 | CH27: =Timing!CJ34 -> 0 | CI27: =Timing!CK34 -> 0 | CJ27: =Timing!CL34 -> 0 | CK27: =Timing!CM34 -> 0 | CL27: =Timing!CN34 -> 0 | CM27: =Timing!CO34 -> 0 | CN27: =Timing!CP34 -> 0 | CO27: =Timing!CQ34 -> 0 | CP27: =Timing!CR34 -> 0 | CQ27: =Timing!CS34 -> 0 | CR27: =Timing!CT34 -> 0 | CS27: =Timing!CU34 -> 0 | CT27: =Timing!CV34 -> 0
C28: Availability | H28: % | J28: =InputC!#REF! ->  | P28: =IF(P27=0,1,1-$J28)*P12 -> 0 | Q28: 0 | R28: 0 | S28: 1 | U28: 1 | W28: 1 | Y28: 1 | AA28: 1 | AC28: 1 | AE28: 1 | AG28: 1 | AI28: 1 | AK28: 1 | AM28: 1 | AO28: 1 | AQ28: 1 | AS28: 1 | AU28: 1 | AW28: 1 | AY28: 1 | BA28: 1 | BC28: 1 | BE28: 1 | BG28: 1 | BI28: 1 | BK28: 1 | BM28: 1 | BO28: 1 | BQ28: 1 | BR28: 0 | BS28: 0 | BT28: 0 | BU28: 0 | BV28: 0 | BW28: 0 | BX28: 0 | BY28: 0 | BZ28: 0 | CA28: 0 | CB28: =IF(CB27=0,1,1-$J28)*CB12 -> 0 | CC28: 0 | CD28: 0 | CE28: 0 | CF28: 0 | CG28: 0 | CH28: 0 | CI28: 0 | CJ28: 0 | CK28: 0 | CL28: 0 | CM28: 0 | CN28: 0 | CO28: 0 | CP28: 0 | CQ28: 0 | CR28: 0 | CS28: 0 | CT28: 0
C30: Gas Volumes Shipped | H30: bcm | N30: =SUM(P30:DD30) ->  | P30: =P24*P28 -> 0 | Q30: =Q24*Q28 -> 0 | R30: 0 | S30: 120 | U30: 120 | W30: 120 | Y30: 120 | AA30: 120 | AC30: 120 | AE30: 120 | AG30: 120 | AI30: 120 | AK30: 120 | AM30: 120 | AO30: 120 | AQ30: 120 | AS30: 120 | AU30: 120 | AW30: 120 | AY30: 120 | BA30: 120 | BC30: 120 | BE30: 120 | BG30: 120 | BI30: 120 | BK30: 120 | BM30: 120 | BO30: 120 | BQ30: 120 | BR30: 0 | BS30: 0 | BT30: 0 | BU30: 0 | BV30: 0 | BW30: 0 | BX30: 0 | BY30: 0 | BZ30: 0 | CA30: 0 | CB30: 0 | CC30: =CC24*CC28 -> 0 | CD30: 0 | CE30: 0 | CF30: 0 | CG30: 0 | CH30: 0 | CI30: 0 | CJ30: 0 | CK30: 0 | CL30: 0 | CM30: 0 | CN30: 0 | CO30: 0 | CP30: 0 | CQ30: 0 | CR30: 0 | CS30: 0 | CT30: 0
A33: EBITDA
B35: Revenues
J36: $ / 1000 m3
C37: Tariff | H37: $ / 1000 m3 | J37: 41.5229846 | P37: =Tariff!P39 -> 0 | Q37: =Tariff!Q39 -> 0 | R37: =Tariff!R39 -> 0 | S37: =Tariff!S39 -> 33.95238168 | T37: =Tariff!T39 -> 33.95238168 | U37: =Tariff!U39 -> 33.95238168 | V37: =Tariff!V39 -> 33.95238168 | W37: =Tariff!W39 -> 33.95238168 | X37: =Tariff!X39 -> 33.95238168 | Y37: =Tariff!Y39 -> 33.95238168 | Z37: =Tariff!Z39 -> 33.95238168 | AA37: =Tariff!AA39 -> 33.95238168 | AB37: =Tariff!AB39 -> 33.95238168 | AC37: =Tariff!AC39 -> 33.95238168 | AD37: =Tariff!AD39 -> 33.95238168 | AE37: =Tariff!AE39 -> 33.95238168 | AF37: =Tariff!AF39 -> 33.95238168 | AG37: =Tariff!AG39 -> 33.95238168 | AH37: =Tariff!AH39 -> 33.95238168 | AI37: =Tariff!AI39 -> 33.95238168 | AJ37: =Tariff!AJ39 -> 33.95238168 | AK37: =Tariff!AK39 -> 33.95238168 | AL37: =Tariff!AL39 -> 33.95238168 | AM37: =Tariff!AM39 -> 33.95238168 | AN37: =Tariff!AN39 -> 33.95238168 | AO37: =Tariff!AO39 -> 33.95238168 | AP37: =Tariff!AP39 -> 33.95238168 | AQ37: =Tariff!AQ39 -> 33.95238168 | AR37: =Tariff!AR39 -> 33.95238168 | AS37: =Tariff!AS39 -> 33.95238168 | AT37: =Tariff!AT39 -> 33.95238168 | AU37: =Tariff!AU39 -> 33.95238168 | AV37: =Tariff!AV39 -> 33.95238168 | AW37: =Tariff!AW39 -> 33.95238168 | AX37: =Tariff!AX39 -> 33.95238168 | AY37: =Tariff!AY39 -> 33.95238168 | AZ37: =Tariff!AZ39 -> 33.95238168 | BA37: =Tariff!BA39 -> 33.95238168 | BB37: =Tariff!BB39 -> 33.95238168 | BC37: =Tariff!BC39 -> 33.95238168 | BD37: =Tariff!BD39 -> 33.95238168 | BE37: =Tariff!BE39 -> 33.95238168 | BF37: =Tariff!BF39 -> 33.95238168 | BG37: =Tariff!BG39 -> 33.95238168 | BH37: =Tariff!BH39 -> 33.95238168 | BI37: =Tariff!BI39 -> 33.95238168 | BJ37: =Tariff!BJ39 -> 33.95238168 | BK37: =Tariff!BK39 -> 33.95238168 | BL37: =Tariff!BL39 -> 33.95238168 | BM37: =Tariff!BM39 -> 33.95238168 | BN37: =Tariff!BN39 -> 33.95238168 | BO37: =Tariff!BO39 -> 33.95238168 | BP37: =Tariff!BP39 -> 33.95238168 | BQ37: =Tariff!BQ39 -> 33.95238168 | BR37: =Tariff!BR39 -> 0 | BS37: =Tariff!BS39 -> 0 | BT37: =Tariff!BT39 -> 0 | BU37: =Tariff!BU39 -> 0 | BV37: =Tariff!BV39 -> 0 | BW37: =Tariff!BW39 -> 0 | BX37: =Tariff!BX39 -> 0 | BY37: =Tariff!BY39 -> 0 | BZ37: =Tariff!BZ39 -> 0 | CA37: =Tariff!CA39 -> 0 | CB37: =Tariff!CB39 -> 0 | CC37: =Tariff!CC39 -> 0 | CD37: =Tariff!CD39 -> 0 | CE37: =Tariff!CE39 -> 0 | CF37: =Tariff!CF39 -> 0 | CG37: =Tariff!CG39 -> 0 | CH37: =Tariff!CH39 -> 0 | CI37: =Tariff!CI39 -> 0 | CJ37: =Tariff!CJ39 -> 0 | CK37: =Tariff!CK39 -> 0 | CL37: =Tariff!CL39 -> 0 | CM37: =Tariff!CM39 -> 0 | CN37: =Tariff!CN39 -> 0 | CO37: =Tariff!CO39 -> 0 | CP37: =Tariff!CP39 -> 0 | CQ37: =Tariff!CQ39 -> 0 | CR37: =Tariff!CR39 -> 0 | CS37: =Tariff!CS39 -> 0 | CT37: =Tariff!CT39 -> 0
C38: Pipeline Capacity | H38: bcm p.a. | P38: =Tariff!P40 -> 0 | Q38: =Tariff!Q40 -> 0 | R38: =Tariff!R40 -> 0 | S38: =Tariff!S40 -> 120 | T38: =Tariff!T40 ->  | U38: =Tariff!U40 -> 120 | V38: =Tariff!V40 ->  | W38: =Tariff!W40 -> 120 | X38: =Tariff!X40 ->  | Y38: =Tariff!Y40 -> 120 | Z38: =Tariff!Z40 ->  | AA38: =Tariff!AA40 -> 120 | AB38: =Tariff!AB40 ->  | AC38: =Tariff!AC40 -> 120 | AD38: =Tariff!AD40 ->  | AE38: =Tariff!AE40 -> 120 | AF38: =Tariff!AF40 ->  | AG38: =Tariff!AG40 -> 120 | AH38: =Tariff!AH40 ->  | AI38: =Tariff!AI40 -> 120 | AJ38: =Tariff!AJ40 ->  | AK38: =Tariff!AK40 -> 120 | AL38: =Tariff!AL40 ->  | AM38: =Tariff!AM40 -> 120 | AN38: =Tariff!AN40 ->  | AO38: =Tariff!AO40 -> 120 | AP38: =Tariff!AP40 ->  | AQ38: =Tariff!AQ40 -> 120 | AR38: =Tariff!AR40 ->  | AS38: =Tariff!AS40 -> 120 | AT38: =Tariff!AT40 ->  | AU38: =Tariff!AU40 -> 120 | AV38: =Tariff!AV40 ->  | AW38: =Tariff!AW40 -> 120 | AX38: =Tariff!AX40 ->  | AY38: =Tariff!AY40 -> 120 | AZ38: =Tariff!AZ40 ->  | BA38: =Tariff!BA40 -> 120 | BB38: =Tariff!BB40 ->  | BC38: =Tariff!BC40 -> 120 | BD38: =Tariff!BD40 ->  | BE38: =Tariff!BE40 -> 120 | BF38: =Tariff!BF40 ->  | BG38: =Tariff!BG40 -> 120 | BH38: =Tariff!BH40 ->  | BI38: =Tariff!BI40 -> 120 | BJ38: =Tariff!BJ40 ->  | BK38: =Tariff!BK40 -> 120 | BL38: =Tariff!BL40 ->  | BM38: =Tariff!BM40 -> 120 | BN38: =Tariff!BN40 ->  | BO38: =Tariff!BO40 -> 120 | BP38: =Tariff!BP40 ->  | BQ38: =Tariff!BQ40 -> 120 | BR38: =Tariff!BR40 -> 0 | BS38: =Tariff!BS40 -> 0 | BT38: =Tariff!BT40 -> 0 | BU38: =Tariff!BU40 -> 0 | BV38: =Tariff!BV40 -> 0 | BW38: =Tariff!BW40 -> 0 | BX38: =Tariff!BX40 -> 0 | BY38: =Tariff!BY40 -> 0 | BZ38: =Tariff!BZ40 -> 0 | CA38: =Tariff!CA40 -> 0 | CB38: =Tariff!CB40 -> 0 | CC38: =Tariff!CC40 -> 0 | CD38: =Tariff!CD40 -> 0 | CE38: =Tariff!CE40 -> 0 | CF38: =Tariff!CF40 -> 0 | CG38: =Tariff!CG40 -> 0 | CH38: =Tariff!CH40 -> 0 | CI38: =Tariff!CI40 -> 0 | CJ38: =Tariff!CJ40 -> 0 | CK38: =Tariff!CK40 -> 0 | CL38: =Tariff!CL40 -> 0 | CM38: =Tariff!CM40 -> 0 | CN38: =Tariff!CN40 -> 0 | CO38: =Tariff!CO40 -> 0 | CP38: =Tariff!CP40 -> 0 | CQ38: =Tariff!CQ40 -> 0 | CR38: =Tariff!CR40 -> 0 | CS38: =Tariff!CS40 -> 0 | CT38: =Tariff!CT40 -> 0
H39: $m | N39: =SUM(P39:DD39) ->  | P39: =Tariff!P41 -> 0 | Q39: =Tariff!Q41 -> 0 | R39: =Tariff!R41 -> 0 | S39: =Tariff!S41 -> 4074.285802 | T39: =Tariff!T41 ->  | U39: =Tariff!U41 -> 4074.285802 | V39: =Tariff!V41 ->  | W39: =Tariff!W41 -> 4074.285802 | X39: =Tariff!X41 ->  | Y39: =Tariff!Y41 -> 4074.285802 | Z39: =Tariff!Z41 ->  | AA39: =Tariff!AA41 -> 4074.285802 | AB39: =Tariff!AB41 ->  | AC39: =Tariff!AC41 -> 4074.285802 | AD39: =Tariff!AD41 ->  | AE39: =Tariff!AE41 -> 4074.285802 | AF39: =Tariff!AF41 ->  | AG39: =Tariff!AG41 -> 4074.285802 | AH39: =Tariff!AH41 ->  | AI39: =Tariff!AI41 -> 4074.285802 | AJ39: =Tariff!AJ41 ->  | AK39: =Tariff!AK41 -> 4074.285802 | AL39: =Tariff!AL41 ->  | AM39: =Tariff!AM41 -> 4074.285802 | AN39: =Tariff!AN41 ->  | AO39: =Tariff!AO41 -> 4074.285802 | AP39: =Tariff!AP41 ->  | AQ39: =Tariff!AQ41 -> 4074.285802 | AR39: =Tariff!AR41 ->  | AS39: =Tariff!AS41 -> 4074.285802 | AT39: =Tariff!AT41 ->  | AU39: =Tariff!AU41 -> 4074.285802 | AV39: =Tariff!AV41 ->  | AW39: =Tariff!AW41 -> 4074.285802 | AX39: =Tariff!AX41 ->  | AY39: =Tariff!AY41 -> 4074.285802 | AZ39: =Tariff!AZ41 ->  | BA39: =Tariff!BA41 -> 4074.285802 | BB39: =Tariff!BB41 ->  | BC39: =Tariff!BC41 -> 4074.285802 | BD39: =Tariff!BD41 ->  | BE39: =Tariff!BE41 -> 4074.285802 | BF39: =Tariff!BF41 ->  | BG39: =Tariff!BG41 -> 4074.285802 | BH39: =Tariff!BH41 ->  | BI39: =Tariff!BI41 -> 4074.285802 | BJ39: =Tariff!BJ41 ->  | BK39: =Tariff!BK41 -> 4074.285802 | BL39: =Tariff!BL41 ->  | BM39: =Tariff!BM41 -> 4074.285802 | BN39: =Tariff!BN41 ->  | BO39: =Tariff!BO41 -> 4074.285802 | BP39: =Tariff!BP41 ->  | BQ39: =Tariff!BQ41 -> 4074.285802 | BR39: =Tariff!BR41 -> 0 | BS39: =Tariff!BS41 -> 0 | BT39: =Tariff!BT41 -> 0 | BU39: =Tariff!BU41 -> 0 | BV39: =Tariff!BV41 -> 0 | BW39: =Tariff!BW41 -> 0 | BX39: =Tariff!BX41 -> 0 | BY39: =Tariff!BY41 -> 0 | BZ39: =Tariff!BZ41 -> 0 | CA39: =Tariff!CA41 -> 0 | CB39: =Tariff!CB41 -> 0 | CC39: =Tariff!CC41 -> 0 | CD39: =Tariff!CD41 -> 0 | CE39: =Tariff!CE41 -> 0 | CF39: =Tariff!CF41 -> 0 | CG39: =Tariff!CG41 -> 0 | CH39: =Tariff!CH41 -> 0 | CI39: =Tariff!CI41 -> 0 | CJ39: =Tariff!CJ41 -> 0 | CK39: =Tariff!CK41 -> 0 | CL39: =Tariff!CL41 -> 0 | CM39: =Tariff!CM41 -> 0 | CN39: =Tariff!CN41 -> 0 | CO39: =Tariff!CO41 -> 0 | CP39: =Tariff!CP41 -> 0 | CQ39: =Tariff!CQ41 -> 0 | CR39: =Tariff!CR41 -> 0 | CS39: =Tariff!CS41 -> 0 | CT39: =Tariff!CT41 -> 0
B41: OPEX
C43: Fixed | J43: p.a.
C44: =InputC!C48 -> Operating Costs | H44: $m | J44: =InputC!K48 -> 3.158843434 | N44: =SUM(P44:DD44) -> 215.1518173 | P44: =$J44*P$17*P$12 -> 0 | Q44: 0 | R44: 0 | S44: 3.254559549 | T44: 3.287105144 | U44: 3.319976196 | V44: 3.353175958 | W44: 3.386707717 | X44: 3.420574794 | Y44: 3.454780542 | Z44: 3.489328348 | AA44: 3.524221631 | AB44: 3.559463848 | AC44: 3.595058486 | AD44: 3.631009071 | AE44: 3.667319162 | AF44: =$J44*AF$17*AF$12 -> 3.703992353 | AG44: 3.741032277 | AH44: 3.7784426 | AI44: 3.816227026 | AJ44: 3.854389296 | AK44: 3.892933189 | AL44: 3.931862521 | AM44: 3.971181146 | AN44: 4.010892957 | AO44: 4.051001887 | AP44: 4.091511906 | AQ44: 4.132427025 | AR44: 4.173751295 | AS44: 4.215488808 | AT44: 4.257643696 | AU44: 4.300220133 | AV44: =$J44*AV$17*AV$12 -> 4.343222334 | AW44: 4.386654558 | AX44: 4.430521103 | AY44: 4.474826314 | AZ44: 4.519574578 | BA44: 4.564770323 | BB44: 4.610418027 | BC44: 4.656522207 | BD44: 4.703087429 | BE44: 4.750118303 | BF44: 4.797619486 | BG44: 4.845595681 | BH44: 4.894051638 | BI44: 4.942992154 | BJ44: 4.992422076 | BK44: 5.042346297 | BL44: =$J44*BL$17*BL$12 -> 5.09276976 | BM44: 5.143697457 | BN44: 5.195134432 | BO44: 5.247085776 | BP44: 5.299556634 | BQ44: 5.3525522 | BR44: 0 | BS44: 0 | BT44: 0 | BU44: 0 | BV44: 0 | BW44: 0 | BX44: 0 | BY44: 0 | BZ44: 0 | CA44: 0 | CB44: =$J44*CB$17*CB$12 -> 0 | CC44: 0 | CD44: 0 | CE44: 0 | CF44: 0 | CG44: 0 | CH44: 0 | CI44: 0 | CJ44: 0 | CK44: 0 | CL44: 0 | CM44: 0 | CN44: 0 | CO44: 0 | CP44: 0 | CQ44: 0 | CR44: 0 | CS44: =$J44*CS$17*CS$12 -> 0 | CT44: 0
C45: =InputC!#REF! ->  | H45: $m | J45: =InputC!#REF! -> 
C46: =InputC!#REF! ->  | H46: $m | J46: =InputC!#REF! -> 
C47: =InputC!#REF! ->  | H47: $m | J47: =InputC!#REF! -> 
C48: =InputC!#REF! ->  | H48: $m | J48: =InputC!#REF! -> 
C49: =InputC!#REF! ->  | H49: $m | J49: =InputC!#REF! -> 
C50: =InputC!#REF! ->  | H50: $m | J50: =InputC!#REF! -> 
H51: $m | J51: =SUM(J44:J50) ->  | P51: =SUM(P44:P50) ->  | CB51: =SUM(CB44:CB50) ->  | CR51: =SUM(CR44:CR50) -> 
C53: Variable | J53: $ / m3
C54: =InputC!#REF! ->  | H54: $ | J54: =InputC!#REF! ->  | N54: =SUM(P54:DD54) ->  | P54: =$J54*P$30*1000000000/1000000*P$17 ->  | Q54: =$J54*Q$30*1000000000/1000000*Q$17 ->  | CC54: =$J54*CC$30*1000000000/1000000*CC$17 ->  | CS54: =$J54*CS$30*1000000000/1000000*CS$17 -> 
C55: =InputC!#REF! ->  | H55: $ | J55: =InputC!#REF! ->  | P55: =$J55*P$30*1000000000/1000000*P$17 -> 
C56: =InputC!#REF! ->  | H56: $ | J56: =InputC!#REF! -> 
C57: =InputC!#REF! ->  | H57: $ | J57: =InputC!#REF! -> 
C58: =InputC!#REF! ->  | H58: $ | J58: =InputC!#REF! ->  | AT58: =$J58*AT$30*1000000000/1000000*AT$17 -> 
H59: $ | J59: =SUM(J54:J58) ->  | P59: =SUM(P54:P58) ->  | CB59: =SUM(CB54:CB58) ->  | CR59: =SUM(CR54:CR58) -> 
C61: Total OPEX | H61: $m | N61: =SUM(P61:DD61) ->  | P61: =P59+P51 ->  | CB61: =CB59+CB51 ->  | CR61: =CR59+CR51 -> 
C63: EBITDA | H63: $m | N63: =SUM(P63:DD63) ->  | P63: =P39-P61 ->  | CB63: =CB39-CB61 ->  | CR63: =CR39-CR61 -> 
A65: Working Capital
B67: Accounts Receivable
C69: Opening Balance | H69: $m | P69: =O72 -> 0 | CB69: =CA72 ->  | CR69: =CQ72 ->  | CS69: =CR72 ->  | CT69: =CS72 ->  | CU69: =CT72 -> 
C70: (+) | D70: Revenue | H70: $m | J70: Days | N70: =SUM(P70:CQ70) ->  | P70: =P39 -> 0 | Q70: =Q39 -> 0 | R70: 0 | S70: 4074.285802 | U70: 4074.285802 | W70: 4074.285802 | Y70: 4074.285802 | AA70: 4074.285802 | AC70: 4074.285802 | AE70: 4074.285802 | AG70: 4074.285802 | AI70: 4074.285802 | AK70: 4074.285802 | AM70: 4074.285802 | AO70: 4074.285802 | AQ70: 4074.285802 | AS70: 4074.285802 | AU70: 4074.285802 | AW70: 4074.285802 | AY70: 4074.285802 | BA70: 4074.285802 | BC70: 4074.285802 | BE70: 4074.285802 | BG70: 4074.285802 | BI70: 4074.285802 | BK70: 4074.285802 | BM70: 4074.285802 | BO70: 4074.285802 | BQ70: 4074.285802 | BR70: 0 | BS70: 0 | BT70: 0 | BU70: 0 | BV70: 0 | BW70: 0 | BX70: 0 | BY70: 0 | BZ70: 0 | CA70: 0 | CB70: 0 | CC70: =CC39 -> 0 | CD70: 0 | CE70: 0 | CF70: 0 | CG70: 0 | CH70: 0 | CI70: 0 | CJ70: 0 | CK70: 0 | CL70: 0 | CM70: 0 | CN70: 0 | CO70: 0 | CP70: 0 | CQ70: 0 | CR70: =CR39 -> 0 | CS70: 0 | CT70: 0 | CU70: =CU13 -> 0 | CV70: 0 | CW70: 0 | CX70: 0 | CY70: 0 | CZ70: 0 | DA70: 0 | DB70: 0 | DC70: 0 | DD70: 0 | DE70: 0 | DF70: 0 | DG70: 0 | DH70: 0 | DI70: 0 | DJ70: 0 | DK70: 0 | DL70: 0 | DM70: 0 | DN70: 0 | DO70: 0 | DP70: 0 | DQ70: 0 | DR70: 0 | DS70: 0 | DT70: 0 | DU70: 0 | DV70: 0 | DW70: 0 | DX70: 0 | DY70: 0 | DZ70: 0 | EA70: 0 | EB70: 0 | EC70: 0 | ED70: 0 | EE70: 0 | EF70: 0 | EG70: 0 | EH70: 0 | EI70: 0 | EJ70: 0 | EK70: 0 | EL70: 0 | EM70: 0 | EN70: 0 | EO70: 0 | EP70: 0 | EQ70: 0 | ER70: 0 | ES70: 0 | ET70: 0
C71: (-) | D71: Cash Receipts | H71: $m | J71: =InputC!#REF! ->  | N71: =SUM(P71:CQ71) ->  | P71: =(365-$J71)/365*P70+P69 ->  | Q71: =(365-$J71)/365*Q70+Q69 ->  | CC71: =(365-$J71)/365*CC70+CC69 ->  | CR71: =(365-$J71)/365*CR70+CR69 ->  | CU71: =(CU69+(#REF!-$K71)/#REF!*CU70) ->  | CV71: =(CV69+(#REF!-$K71)/#REF!*CV70) ->  | CW71: =(CW69+(#REF!-$K71)/#REF!*CW70) ->  | CX71: =(CX69+(#REF!-$K71)/#REF!*CX70) ->  | CY71: =(CY69+(#REF!-$K71)/#REF!*CY70) ->  | CZ71: =(CZ69+(#REF!-$K71)/#REF!*CZ70) ->  | DA71: =(DA69+(#REF!-$K71)/#REF!*DA70) ->  | DB71: =(DB69+(#REF!-$K71)/#REF!*DB70) ->  | DC71: =(DC69+(#REF!-$K71)/#REF!*DC70) ->  | DD71: =(DD69+(#REF!-$K71)/#REF!*DD70) ->  | DE71: =(DE69+(#REF!-$K71)/#REF!*DE70) ->  | DF71: =(DF69+(#REF!-$K71)/#REF!*DF70) ->  | DG71: =(DG69+(#REF!-$K71)/#REF!*DG70) ->  | DH71: =(DH69+(#REF!-$K71)/#REF!*DH70) ->  | DI71: =(DI69+(#REF!-$K71)/#REF!*DI70) ->  | DJ71: =(DJ69+(#REF!-$K71)/#REF!*DJ70) ->  | DK71: =(DK69+(#REF!-$K71)/#REF!*DK70) ->  | DL71: =(DL69+(#REF!-$K71)/#REF!*DL70) ->  | DM71: =(DM69+(#REF!-$K71)/#REF!*DM70) ->  | DN71: =(DN69+(#REF!-$K71)/#REF!*DN70) ->  | DO71: =(DO69+(#REF!-$K71)/#REF!*DO70) ->  | DP71: =(DP69+(#REF!-$K71)/#REF!*DP70) ->  | DQ71: =(DQ69+(#REF!-$K71)/#REF!*DQ70) ->  | DR71: =(DR69+(#REF!-$K71)/#REF!*DR70) ->  | DS71: =(DS69+(#REF!-$K71)/#REF!*DS70) ->  | DT71: =(DT69+(#REF!-$K71)/#REF!*DT70) ->  | DU71: =(DU69+(#REF!-$K71)/#REF!*DU70) ->  | DV71: =(DV69+(#REF!-$K71)/#REF!*DV70) ->  | DW71: =(DW69+(#REF!-$K71)/#REF!*DW70) ->  | DX71: =(DX69+(#REF!-$K71)/#REF!*DX70) ->  | DY71: =(DY69+(#REF!-$K71)/#REF!*DY70) ->  | DZ71: =(DZ69+(#REF!-$K71)/#REF!*DZ70) ->  | EA71: =(EA69+(#REF!-$K71)/#REF!*EA70) ->  | EB71: =(EB69+(#REF!-$K71)/#REF!*EB70) ->  | EC71: =(EC69+(#REF!-$K71)/#REF!*EC70) ->  | ED71: =(ED69+(#REF!-$K71)/#REF!*ED70) ->  | EE71: =(EE69+(#REF!-$K71)/#REF!*EE70) ->  | EF71: =(EF69+(#REF!-$K71)/#REF!*EF70) ->  | EG71: =(EG69+(#REF!-$K71)/#REF!*EG70) ->  | EH71: =(EH69+(#REF!-$K71)/#REF!*EH70) ->  | EI71: =(EI69+(#REF!-$K71)/#REF!*EI70) ->  | EJ71: =(EJ69+(#REF!-$K71)/#REF!*EJ70) ->  | EK71: =(EK69+(#REF!-$K71)/#REF!*EK70) ->  | EL71: =(EL69+(#REF!-$K71)/#REF!*EL70) ->  | EM71: =(EM69+(#REF!-$K71)/#REF!*EM70) ->  | EN71: =(EN69+(#REF!-$K71)/#REF!*EN70) ->  | EO71: =(EO69+(#REF!-$K71)/#REF!*EO70) ->  | EP71: =(EP69+(#REF!-$K71)/#REF!*EP70) ->  | EQ71: =(EQ69+(#REF!-$K71)/#REF!*EQ70) ->  | ER71: =(ER69+(#REF!-$K71)/#REF!*ER70) ->  | ES71: =(ES69+(#REF!-$K71)/#REF!*ES70) ->  | ET71: =(ET69+(#REF!-$K71)/#REF!*ET70) -> 
C72: Closing Balance | H72: $m | P72: =P69+P70-P71 ->  | CB72: =CB69+CB70-CB71 ->  | CR72: =CR69+CR70-CR71 ->  | EN72: =EN69+EN70-EN71 -> 
C74: Accounts Receivable Movement | H74: $m | N74: =SUM(P74:CQ74) ->  | P74: =(P72-P69) ->  | CB74: =(CB72-CB69) ->  | CR74: =(CR72-CR69) ->  | EN74: =(EN72-EN69) -> 
B76: Accounts Payable
C78: Opening Balance | H78: $m | P78: =O81 -> 0 | CB78: =CA81 ->  | CR78: =CQ81 ->  | CS78: =CR81 ->  | CT78: =CS81 ->  | CU78: =CT81 -> 
C79: (+) | D79: Operating Costs | H79: $m | J79: Days | N79: =SUM(P79:CQ79) ->  | P79: =P61 ->  | Q79: =Q61 ->  | CC79: =CC61 ->  | CR79: =CR61 ->  | CU79: =CU62 -> 0 | CV79: 0 | CW79: 0 | CX79: 0 | CY79: 0 | CZ79: 0 | DA79: 0 | DB79: 0 | DC79: 0 | DD79: 0 | DE79: 0 | DF79: 0 | DG79: 0 | DH79: 0 | DI79: 0 | DJ79: 0 | DK79: 0 | DL79: 0 | DM79: 0 | DN79: 0 | DO79: 0 | DP79: 0 | DQ79: 0 | DR79: 0 | DS79: 0 | DT79: 0 | DU79: 0 | DV79: 0 | DW79: 0 | DX79: 0 | DY79: 0 | DZ79: 0 | EA79: 0 | EB79: 0 | EC79: 0 | ED79: 0 | EE79: 0 | EF79: 0 | EG79: 0 | EH79: 0 | EI79: 0 | EJ79: 0 | EK79: 0 | EL79: 0 | EM79: 0 | EN79: 0 | EO79: 0 | EP79: 0 | EQ79: 0 | ER79: 0 | ES79: 0 | ET79: 0
C80: (-) | D80: Cash Debts | H80: $m | J80: =InputC!#REF! ->  | P80: =(365-$J80)/365*P79+P78 ->  | Q80: =(365-$J80)/365*Q79+Q78 ->  | CC80: =(365-$J80)/365*CC79+CC78 ->  | CR80: =(365-$J80)/365*CR79+CR78 ->  | CU80: =(CU78+(#REF!-$K80)/#REF!*CU79) ->  | CV80: =(CV78+(#REF!-$K80)/#REF!*CV79) ->  | CW80: =(CW78+(#REF!-$K80)/#REF!*CW79) ->  | CX80: =(CX78+(#REF!-$K80)/#REF!*CX79) ->  | CY80: =(CY78+(#REF!-$K80)/#REF!*CY79) ->  | CZ80: =(CZ78+(#REF!-$K80)/#REF!*CZ79) ->  | DA80: =(DA78+(#REF!-$K80)/#REF!*DA79) ->  | DB80: =(DB78+(#REF!-$K80)/#REF!*DB79) ->  | DC80: =(DC78+(#REF!-$K80)/#REF!*DC79) ->  | DD80: =(DD78+(#REF!-$K80)/#REF!*DD79) ->  | DE80: =(DE78+(#REF!-$K80)/#REF!*DE79) ->  | DF80: =(DF78+(#REF!-$K80)/#REF!*DF79) ->  | DG80: =(DG78+(#REF!-$K80)/#REF!*DG79) ->  | DH80: =(DH78+(#REF!-$K80)/#REF!*DH79) ->  | DI80: =(DI78+(#REF!-$K80)/#REF!*DI79) ->  | DJ80: =(DJ78+(#REF!-$K80)/#REF!*DJ79) ->  | DK80: =(DK78+(#REF!-$K80)/#REF!*DK79) ->  | DL80: =(DL78+(#REF!-$K80)/#REF!*DL79) ->  | DM80: =(DM78+(#REF!-$K80)/#REF!*DM79) ->  | DN80: =(DN78+(#REF!-$K80)/#REF!*DN79) ->  | DO80: =(DO78+(#REF!-$K80)/#REF!*DO79) ->  | DP80: =(DP78+(#REF!-$K80)/#REF!*DP79) ->  | DQ80: =(DQ78+(#REF!-$K80)/#REF!*DQ79) ->  | DR80: =(DR78+(#REF!-$K80)/#REF!*DR79) ->  | DS80: =(DS78+(#REF!-$K80)/#REF!*DS79) ->  | DT80: =(DT78+(#REF!-$K80)/#REF!*DT79) ->  | DU80: =(DU78+(#REF!-$K80)/#REF!*DU79) ->  | DV80: =(DV78+(#REF!-$K80)/#REF!*DV79) ->  | DW80: =(DW78+(#REF!-$K80)/#REF!*DW79) ->  | DX80: =(DX78+(#REF!-$K80)/#REF!*DX79) ->  | DY80: =(DY78+(#REF!-$K80)/#REF!*DY79) ->  | DZ80: =(DZ78+(#REF!-$K80)/#REF!*DZ79) ->  | EA80: =(EA78+(#REF!-$K80)/#REF!*EA79) ->  | EB80: =(EB78+(#REF!-$K80)/#REF!*EB79) ->  | EC80: =(EC78+(#REF!-$K80)/#REF!*EC79) ->  | ED80: =(ED78+(#REF!-$K80)/#REF!*ED79) ->  | EE80: =(EE78+(#REF!-$K80)/#REF!*EE79) ->  | EF80: =(EF78+(#REF!-$K80)/#REF!*EF79) ->  | EG80: =(EG78+(#REF!-$K80)/#REF!*EG79) ->  | EH80: =(EH78+(#REF!-$K80)/#REF!*EH79) ->  | EI80: =(EI78+(#REF!-$K80)/#REF!*EI79) ->  | EJ80: =(EJ78+(#REF!-$K80)/#REF!*EJ79) ->  | EK80: =(EK78+(#REF!-$K80)/#REF!*EK79) ->  | EL80: =(EL78+(#REF!-$K80)/#REF!*EL79) ->  | EM80: =(EM78+(#REF!-$K80)/#REF!*EM79) ->  | EN80: =(EN78+(#REF!-$K80)/#REF!*EN79) ->  | EO80: =(EO78+(#REF!-$K80)/#REF!*EO79) ->  | EP80: =(EP78+(#REF!-$K80)/#REF!*EP79) ->  | EQ80: =(EQ78+(#REF!-$K80)/#REF!*EQ79) ->  | ER80: =(ER78+(#REF!-$K80)/#REF!*ER79) ->  | ES80: =(ES78+(#REF!-$K80)/#REF!*ES79) ->  | ET80: =(ET78+(#REF!-$K80)/#REF!*ET79) -> 
C81: Closing Balance | H81: $m | P81: =P78+P79-P80 ->  | CB81: =CB78+CB79-CB80 ->  | CR81: =CR78+CR79-CR80 ->  | EN81: =EN78+EN79-EN80 -> 
C83: Accounts Payable Movement | H83: $m | N83: =SUM(P83:CQ83) ->  | P83: =(P81-P78) ->  | CB83: =(CB81-CB78) ->  | CR83: =(CR81-CR78) ->  | EN83: =(EN81-EN78) -> 
B85: Net Working Capital
C87: =B67 -> Accounts Receivable | H87: $m | P87: =P74 ->  | Q87: =Q74 ->  | CC87: =CC74 ->  | CR87: =CR74 ->  | CU87: =CU72 ->  | EP87: =EP72 ->  | EQ87: =EQ72 ->  | ER87: =ER72 ->  | ES87: =ES72 ->  | ET87: =ET72 -> 
C88: =B76 -> Accounts Payable | H88: $m | P88: =P83 ->  | Q88: =Q83 ->  | CC88: =CC83 ->  | CR88: =CR83 ->  | CU88: =CU81 ->  | EP88: =EP81 ->  | EQ88: =EQ81 ->  | ER88: =ER81 ->  | ES88: =ES81 ->  | ET88: =ET81 -> 
C89: Net Working Capital Movement | H89: $m | N89: =SUM(P89:CQ89) ->  | P89: =P87-P88 ->  | Q89: =Q87-Q88 ->  | CC89: =CC87-CC88 ->  | CR89: =CR87-CR88 ->  | EO89: =EO87-EO88 ->  | EP89: =EP87-EP88 ->  | EQ89: =EQ87-EQ88 ->  | ER89: =ER87-ER88 ->  | ES89: =ES87-ES88 ->  | ET89: =ET87-ET88 -> 
A92: End Sheet

Sheet Tariff
M5: Year: | P5: =Timing!R5 -> 2021 | Q5: =Timing!S5 -> 2022 | R5: =Timing!T5 -> 2023 | S5: =Timing!U5 -> 2024 | T5: =Timing!V5 -> 2025 | U5: =Timing!W5 -> 2026 | V5: =Timing!X5 -> 2027 | W5: =Timing!Y5 -> 2028 | X5: =Timing!Z5 -> 2029 | Y5: =Timing!AA5 -> 2030 | Z5: =Timing!AB5 -> 2031 | AA5: =Timing!AC5 -> 2032 | AB5: =Timing!AD5 -> 2033 | AC5: =Timing!AE5 -> 2034 | AD5: =Timing!AF5 -> 2035 | AE5: =Timing!AG5 -> 2036 | AF5: =Timing!AH5 -> 2037 | AG5: =Timing!AI5 -> 2038 | AH5: =Timing!AJ5 -> 2039 | AI5: =Timing!AK5 -> 2040 | AJ5: =Timing!AL5 -> 2041 | AK5: =Timing!AM5 -> 2042 | AL5: =Timing!AN5 -> 2043 | AM5: =Timing!AO5 -> 2044 | AN5: =Timing!AP5 -> 2045 | AO5: =Timing!AQ5 -> 2046 | AP5: =Timing!AR5 -> 2047 | AQ5: =Timing!AS5 -> 2048 | AR5: =Timing!AT5 -> 2049 | AS5: =Timing!AU5 -> 2050 | AT5: =Timing!AV5 -> 2051 | AU5: =Timing!AW5 -> 2052 | AV5: =Timing!AX5 -> 2053 | AW5: =Timing!AY5 -> 2054 | AX5: =Timing!AZ5 -> 2055 | AY5: =Timing!BA5 -> 2056 | AZ5: =Timing!BB5 -> 2057 | BA5: =Timing!BC5 -> 2058 | BB5: =Timing!BD5 -> 2059 | BC5: =Timing!BE5 -> 2060 | BD5: =Timing!BF5 -> 2061 | BE5: =Timing!BG5 -> 2062 | BF5: =Timing!BH5 -> 2063 | BG5: =Timing!BI5 -> 2064 | BH5: =Timing!BJ5 -> 2065 | BI5: =Timing!BK5 -> 2066 | BJ5: =Timing!BL5 -> 2067 | BK5: =Timing!BM5 -> 2068 | BL5: =Timing!BN5 -> 2069 | BM5: =Timing!BO5 -> 2070 | BN5: =Timing!BP5 -> 2071 | BO5: =Timing!BQ5 -> 2072 | BP5: =Timing!BR5 -> 2073 | BQ5: =Timing!BS5 -> 2074 | BR5: =Timing!BT5 -> 2075 | BS5: =Timing!BU5 -> 2076 | BT5: =Timing!BV5 -> 2077 | BU5: =Timing!BW5 -> 2078 | BV5: =Timing!BX5 -> 2079 | BW5: =Timing!BY5 -> 2080 | BX5: =Timing!BZ5 -> 2081 | BY5: =Timing!CA5 -> 2082 | BZ5: =Timing!CB5 -> 2083 | CA5: =Timing!CC5 -> 2084 | CB5: =Timing!CD5 -> 2085 | CC5: =Timing!CE5 -> 2086 | CD5: =Timing!CF5 -> 2087 | CE5: =Timing!CG5 -> 2088 | CF5: =Timing!CH5 -> 2089 | CG5: =Timing!CI5 -> 2090 | CH5: =Timing!CJ5 -> 2091 | CI5: =Timing!CK5 -> 2092 | CJ5: =Timing!CL5 -> 2093 | CK5: =Timing!CM5 -> 2094 | CL5: =Timing!CN5 -> 2095 | CM5: =Timing!CO5 -> 2096 | CN5: =Timing!CP5 -> 2097 | CO5: =Timing!CQ5 -> 2098 | CP5: =Timing!CR5 -> 2099 | CQ5: =Timing!CS5 -> 2100 | CR5: =Timing!CT5 -> 2101 | CS5: =Timing!CU5 -> 2102 | CT5: =Timing!CV5 -> 2103 | CU5: =CT5+1 -> 2104 | CV5: 2105 | CW5: 2106 | CX5: 2107 | CY5: 2108 | CZ5: 2109 | DA5: 2110 | DB5: 2111 | DC5: 2112 | DD5: 2113
M6: Year #: | P6: =Timing!R6 -> 1 | Q6: =Timing!S6 -> 2 | R6: =Timing!T6 -> 3 | S6: =Timing!U6 -> 4 | T6: =Timing!V6 -> 5 | U6: =Timing!W6 -> 6 | V6: =Timing!X6 -> 7 | W6: =Timing!Y6 -> 8 | X6: =Timing!Z6 -> 9 | Y6: =Timing!AA6 -> 10 | Z6: =Timing!AB6 -> 11 | AA6: =Timing!AC6 -> 12 | AB6: =Timing!AD6 -> 13 | AC6: =Timing!AE6 -> 14 | AD6: =Timing!AF6 -> 15 | AE6: =Timing!AG6 -> 16 | AF6: =Timing!AH6 -> 17 | AG6: =Timing!AI6 -> 18 | AH6: =Timing!AJ6 -> 19 | AI6: =Timing!AK6 -> 20 | AJ6: =Timing!AL6 -> 21 | AK6: =Timing!AM6 -> 22 | AL6: =Timing!AN6 -> 23 | AM6: =Timing!AO6 -> 24 | AN6: =Timing!AP6 -> 25 | AO6: =Timing!AQ6 -> 26 | AP6: =Timing!AR6 -> 27 | AQ6: =Timing!AS6 -> 28 | AR6: =Timing!AT6 -> 29 | AS6: =Timing!AU6 -> 30 | AT6: =Timing!AV6 -> 31 | AU6: =Timing!AW6 -> 32 | AV6: =Timing!AX6 -> 33 | AW6: =Timing!AY6 -> 34 | AX6: =Timing!AZ6 -> 35 | AY6: =Timing!BA6 -> 36 | AZ6: =Timing!BB6 -> 37 | BA6: =Timing!BC6 -> 38 | BB6: =Timing!BD6 -> 39 | BC6: =Timing!BE6 -> 40 | BD6: =Timing!BF6 -> 41 | BE6: =Timing!BG6 -> 42 | BF6: =Timing!BH6 -> 43 | BG6: =Timing!BI6 -> 44 | BH6: =Timing!BJ6 -> 45 | BI6: =Timing!BK6 -> 46 | BJ6: =Timing!BL6 -> 47 | BK6: =Timing!BM6 -> 48 | BL6: =Timing!BN6 -> 49 | BM6: =Timing!BO6 -> 50 | BN6: =Timing!BP6 -> 51 | BO6: =Timing!BQ6 -> 52 | BP6: =Timing!BR6 -> 53 | BQ6: =Timing!BS6 -> 54 | BR6: =Timing!BT6 -> 55 | BS6: =Timing!BU6 -> 56 | BT6: =Timing!BV6 -> 57 | BU6: =Timing!BW6 -> 58 | BV6: =Timing!BX6 -> 59 | BW6: =Timing!BY6 -> 60 | BX6: =Timing!BZ6 -> 61 | BY6: =Timing!CA6 -> 62 | BZ6: =Timing!CB6 -> 63 | CA6: =Timing!CC6 -> 64 | CB6: =Timing!CD6 -> 65 | CC6: =Timing!CE6 -> 66 | CD6: =Timing!CF6 -> 67 | CE6: =Timing!CG6 -> 68 | CF6: =Timing!CH6 -> 69 | CG6: =Timing!CI6 -> 70 | CH6: =Timing!CJ6 -> 71 | CI6: =Timing!CK6 -> 72 | CJ6: =Timing!CL6 -> 73 | CK6: =Timing!CM6 -> 74 | CL6: =Timing!CN6 -> 75 | CM6: =Timing!CO6 -> 76 | CN6: =Timing!CP6 -> 77 | CO6: =Timing!CQ6 -> 78 | CP6: =Timing!CR6 -> 79 | CQ6: =Timing!CS6 -> 80 | CR6: =Timing!CT6 -> 81 | CS6: =Timing!CU6 -> 82 | CT6: =Timing!CV6 -> 83 | CU6: =#REF! ->  | CV6: =#REF! ->  | CW6: =#REF! ->  | CX6: =#REF! ->  | CY6: =#REF! ->  | CZ6: =#REF! ->  | DA6: =#REF! ->  | DB6: =#REF! ->  | DC6: =#REF! ->  | DD6: =#REF! -> 
M7: Forecast: | P7: =Timing!R7 -> Const | Q7: =Timing!S7 -> Const | R7: =Timing!T7 -> Const | S7: =Timing!U7 -> Ops | T7: =Timing!V7 -> Ops | U7: =Timing!W7 -> Ops | V7: =Timing!X7 -> Ops | W7: =Timing!Y7 -> Ops | X7: =Timing!Z7 -> Ops | Y7: =Timing!AA7 -> Ops | Z7: =Timing!AB7 -> Ops | AA7: =Timing!AC7 -> Ops | AB7: =Timing!AD7 -> Ops | AC7: =Timing!AE7 -> Ops | AD7: =Timing!AF7 -> Ops | AE7: =Timing!AG7 -> Ops | AF7: =Timing!AH7 -> Ops | AG7: =Timing!AI7 -> Ops | AH7: =Timing!AJ7 -> Ops | AI7: =Timing!AK7 -> Ops | AJ7: =Timing!AL7 -> Ops | AK7: =Timing!AM7 -> Ops | AL7: =Timing!AN7 -> Ops | AM7: =Timing!AO7 -> Ops | AN7: =Timing!AP7 -> Ops | AO7: =Timing!AQ7 -> Ops | AP7: =Timing!AR7 -> Ops | AQ7: =Timing!AS7 -> Ops | AR7: =Timing!AT7 -> Ops | AS7: =Timing!AU7 -> Ops | AT7: =Timing!AV7 -> Ops | AU7: =Timing!AW7 -> Ops | AV7: =Timing!AX7 -> Ops | AW7: =Timing!AY7 -> Ops | AX7: =Timing!AZ7 -> Ops | AY7: =Timing!BA7 -> Ops | AZ7: =Timing!BB7 -> Ops | BA7: =Timing!BC7 -> Ops | BB7: =Timing!BD7 -> Ops | BC7: =Timing!BE7 -> Ops | BD7: =Timing!BF7 -> Ops | BE7: =Timing!BG7 -> Ops | BF7: =Timing!BH7 -> Ops | BG7: =Timing!BI7 -> Ops | BH7: =Timing!BJ7 -> Ops | BI7: =Timing!BK7 -> Ops | BJ7: =Timing!BL7 -> Ops | BK7: =Timing!BM7 -> Ops | BL7: =Timing!BN7 -> Ops | BM7: =Timing!BO7 -> Ops | BN7: =Timing!BP7 -> Ops | BO7: =Timing!BQ7 -> Ops | BP7: =Timing!BR7 -> Ops | BQ7: =Timing!BS7 -> Ops | BR7: =Timing!BT7 ->  | BS7: =Timing!BU7 ->  | BT7: =Timing!BV7 ->  | BU7: =Timing!BW7 ->  | BV7: =Timing!BX7 ->  | BW7: =Timing!BY7 ->  | BX7: =Timing!BZ7 ->  | BY7: =Timing!CA7 ->  | BZ7: =Timing!CB7 ->  | CA7: =Timing!CC7 ->  | CB7: =Timing!CD7 ->  | CC7: =Timing!CE7 ->  | CD7: =Timing!CF7 ->  | CE7: =Timing!CG7 ->  | CF7: =Timing!CH7 ->  | CG7: =Timing!CI7 ->  | CH7: =Timing!CJ7 ->  | CI7: =Timing!CK7 ->  | CJ7: =Timing!CL7 ->  | CK7: =Timing!CM7 ->  | CL7: =Timing!CN7 ->  | CM7: =Timing!CO7 ->  | CN7: =Timing!CP7 ->  | CO7: =Timing!CQ7 ->  | CP7: =Timing!CR7 ->  | CQ7: =Timing!CS7 ->  | CR7: =Timing!CT7 ->  | CS7: =Timing!CU7 ->  | CT7: =Timing!CV7 ->  | CU7: =#REF! ->  | CV7: =#REF! ->  | CW7: =#REF! ->  | CX7: =#REF! ->  | CY7: =#REF! ->  | CZ7: =#REF! ->  | DA7: =#REF! ->  | DB7: =#REF! ->  | DC7: =#REF! ->  | DD7: =#REF! -> 
A9: Flags
C11: Constructon Period | H11: flag | P11: =Ops!P11 -> 1 | Q11: =Ops!Q11 -> 1 | R11: =Ops!R11 -> 1 | S11: =Ops!S11 -> 0 | T11: =Ops!T11 -> 0 | U11: =Ops!U11 -> 0 | V11: =Ops!V11 -> 0 | W11: =Ops!W11 -> 0 | X11: =Ops!X11 -> 0 | Y11: =Ops!Y11 -> 0 | Z11: =Ops!Z11 -> 0 | AA11: =Ops!AA11 -> 0 | AB11: =Ops!AB11 -> 0 | AC11: =Ops!AC11 -> 0 | AD11: =Ops!AD11 -> 0 | AE11: =Ops!AE11 -> 0 | AF11: =Ops!AF11 -> 0 | AG11: =Ops!AG11 -> 0 | AH11: =Ops!AH11 -> 0 | AI11: =Ops!AI11 -> 0 | AJ11: =Ops!AJ11 -> 0 | AK11: =Ops!AK11 -> 0 | AL11: =Ops!AL11 -> 0 | AM11: =Ops!AM11 -> 0 | AN11: =Ops!AN11 -> 0 | AO11: =Ops!AO11 -> 0 | AP11: =Ops!AP11 -> 0 | AQ11: =Ops!AQ11 -> 0 | AR11: =Ops!AR11 -> 0 | AS11: =Ops!AS11 -> 0 | AT11: =Ops!AT11 -> 0 | AU11: =Ops!AU11 -> 0 | AV11: =Ops!AV11 -> 0 | AW11: =Ops!AW11 -> 0 | AX11: =Ops!AX11 -> 0 | AY11: =Ops!AY11 -> 0 | AZ11: =Ops!AZ11 -> 0 | BA11: =Ops!BA11 -> 0 | BB11: =Ops!BB11 -> 0 | BC11: =Ops!BC11 -> 0 | BD11: =Ops!BD11 -> 0 | BE11: =Ops!BE11 -> 0 | BF11: =Ops!BF11 -> 0 | BG11: =Ops!BG11 -> 0 | BH11: =Ops!BH11 -> 0 | BI11: =Ops!BI11 -> 0 | BJ11: =Ops!BJ11 -> 0 | BK11: =Ops!BK11 -> 0 | BL11: =Ops!BL11 -> 0 | BM11: =Ops!BM11 -> 0 | BN11: =Ops!BN11 -> 0 | BO11: =Ops!BO11 -> 0 | BP11: =Ops!BP11 -> 0 | BQ11: =Ops!BQ11 -> 0 | BR11: =Ops!BR11 -> 0 | BS11: =Ops!BS11 -> 0 | BT11: =Ops!BT11 -> 0 | BU11: =Ops!BU11 -> 0 | BV11: =Ops!BV11 -> 0 | BW11: =Ops!BW11 -> 0 | BX11: =Ops!BX11 -> 0 | BY11: =Ops!BY11 -> 0 | BZ11: =Ops!BZ11 -> 0 | CA11: =Ops!CA11 -> 0 | CB11: =Ops!CB11 -> 0 | CC11: =Ops!CC11 -> 0 | CD11: =Ops!CD11 -> 0 | CE11: =Ops!CE11 -> 0 | CF11: =Ops!CF11 -> 0 | CG11: =Ops!CG11 -> 0 | CH11: =Ops!CH11 -> 0 | CI11: =Ops!CI11 -> 0 | CJ11: =Ops!CJ11 -> 0 | CK11: =Ops!CK11 -> 0 | CL11: =Ops!CL11 -> 0 | CM11: =Ops!CM11 -> 0 | CN11: =Ops!CN11 -> 0 | CO11: =Ops!CO11 -> 0 | CP11: =Ops!CP11 -> 0 | CQ11: =Ops!CQ11 -> 0
C12: Operating Period | H12: flag | P12: =Ops!P12 -> 0 | Q12: =Ops!Q12 -> 0 | R12: =Ops!R12 -> 0 | S12: =Ops!S12 -> 1 | T12: =Ops!T12 -> 1 | U12: =Ops!U12 -> 1 | V12: =Ops!V12 -> 1 | W12: =Ops!W12 -> 1 | X12: =Ops!X12 -> 1 | Y12: =Ops!Y12 -> 1 | Z12: =Ops!Z12 -> 1 | AA12: =Ops!AA12 -> 1 | AB12: =Ops!AB12 -> 1 | AC12: =Ops!AC12 -> 1 | AD12: =Ops!AD12 -> 1 | AE12: =Ops!AE12 -> 1 | AF12: =Ops!AF12 -> 1 | AG12: =Ops!AG12 -> 1 | AH12: =Ops!AH12 -> 1 | AI12: =Ops!AI12 -> 1 | AJ12: =Ops!AJ12 -> 1 | AK12: =Ops!AK12 -> 1 | AL12: =Ops!AL12 -> 1 | AM12: =Ops!AM12 -> 1 | AN12: =Ops!AN12 -> 1 | AO12: =Ops!AO12 -> 1 | AP12: =Ops!AP12 -> 1 | AQ12: =Ops!AQ12 -> 1 | AR12: =Ops!AR12 -> 1 | AS12: =Ops!AS12 -> 1 | AT12: =Ops!AT12 -> 1 | AU12: =Ops!AU12 -> 1 | AV12: =Ops!AV12 -> 1 | AW12: =Ops!AW12 -> 1 | AX12: =Ops!AX12 -> 1 | AY12: =Ops!AY12 -> 1 | AZ12: =Ops!AZ12 -> 1 | BA12: =Ops!BA12 -> 1 | BB12: =Ops!BB12 -> 1 | BC12: =Ops!BC12 -> 1 | BD12: =Ops!BD12 -> 1 | BE12: =Ops!BE12 -> 1 | BF12: =Ops!BF12 -> 1 | BG12: =Ops!BG12 -> 1 | BH12: =Ops!BH12 -> 1 | BI12: =Ops!BI12 -> 1 | BJ12: =Ops!BJ12 -> 1 | BK12: =Ops!BK12 -> 1 | BL12: =Ops!BL12 -> 1 | BM12: =Ops!BM12 -> 1 | BN12: =Ops!BN12 -> 1 | BO12: =Ops!BO12 -> 1 | BP12: =Ops!BP12 -> 1 | BQ12: =Ops!BQ12 -> 1 | BR12: =Ops!BR12 -> 0 | BS12: =Ops!BS12 -> 0 | BT12: =Ops!BT12 -> 0 | BU12: =Ops!BU12 -> 0 | BV12: =Ops!BV12 -> 0 | BW12: =Ops!BW12 -> 0 | BX12: =Ops!BX12 -> 0 | BY12: =Ops!BY12 -> 0 | BZ12: =Ops!BZ12 -> 0 | CA12: =Ops!CA12 -> 0 | CB12: =Ops!CB12 -> 0 | CC12: =Ops!CC12 -> 0 | CD12: =Ops!CD12 -> 0 | CE12: =Ops!CE12 -> 0 | CF12: =Ops!CF12 -> 0 | CG12: =Ops!CG12 -> 0 | CH12: =Ops!CH12 -> 0 | CI12: =Ops!CI12 -> 0 | CJ12: =Ops!CJ12 -> 0 | CK12: =Ops!CK12 -> 0 | CL12: =Ops!CL12 -> 0 | CM12: =Ops!CM12 -> 0 | CN12: =Ops!CN12 -> 0 | CO12: =Ops!CO12 -> 0 | CP12: =Ops!CP12 -> 0 | CQ12: =Ops!CQ12 -> 0
C13: Decommissioning | H13: flag | P13: =Timing!R30 -> 0 | Q13: =Timing!S30 -> 0 | R13: =Timing!T30 -> 0 | S13: =Timing!U30 -> 0 | T13: =Timing!V30 -> 0 | U13: =Timing!W30 -> 0 | V13: =Timing!X30 -> 0 | W13: =Timing!Y30 -> 0 | X13: =Timing!Z30 -> 0 | Y13: =Timing!AA30 -> 0 | Z13: =Timing!AB30 -> 0 | AA13: =Timing!AC30 -> 0 | AB13: =Timing!AD30 -> 0 | AC13: =Timing!AE30 -> 0 | AD13: =Timing!AF30 -> 0 | AE13: =Timing!AG30 -> 0 | AF13: =Timing!AH30 -> 0 | AG13: =Timing!AI30 -> 0 | AH13: =Timing!AJ30 -> 0 | AI13: =Timing!AK30 -> 0 | AJ13: =Timing!AL30 -> 0 | AK13: =Timing!AM30 -> 0 | AL13: =Timing!AN30 -> 0 | AM13: =Timing!AO30 -> 0 | AN13: =Timing!AP30 -> 0 | AO13: =Timing!AQ30 -> 0 | AP13: =Timing!AR30 -> 0 | AQ13: =Timing!AS30 -> 0 | AR13: =Timing!AT30 -> 0 | AS13: =Timing!AU30 -> 0 | AT13: =Timing!AV30 -> 0 | AU13: =Timing!AW30 -> 0 | AV13: =Timing!AX30 -> 0 | AW13: =Timing!AY30 -> 0 | AX13: =Timing!AZ30 -> 0 | AY13: =Timing!BA30 -> 0 | AZ13: =Timing!BB30 -> 0 | BA13: =Timing!BC30 -> 0 | BB13: =Timing!BD30 -> 0 | BC13: =Timing!BE30 -> 0 | BD13: =Timing!BF30 -> 0 | BE13: =Timing!BG30 -> 0 | BF13: =Timing!BH30 -> 0 | BG13: =Timing!BI30 -> 0 | BH13: =Timing!BJ30 -> 0 | BI13: =Timing!BK30 -> 0 | BJ13: =Timing!BL30 -> 0 | BK13: =Timing!BM30 -> 0 | BL13: =Timing!BN30 -> 0 | BM13: =Timing!BO30 -> 0 | BN13: =Timing!BP30 -> 0 | BO13: =Timing!BQ30 -> 0 | BP13: =Timing!BR30 -> 0 | BQ13: =Timing!BS30 -> 1 | BR13: =Timing!BT30 -> 0 | BS13: =Timing!BU30 -> 0 | BT13: =Timing!BV30 -> 0 | BU13: =Timing!BW30 -> 0 | BV13: =Timing!BX30 -> 0 | BW13: =Timing!BY30 -> 0 | BX13: =Timing!BZ30 -> 0 | BY13: =Timing!CA30 -> 0 | BZ13: =Timing!CB30 -> 0 | CA13: =Timing!CC30 -> 0 | CB13: =Timing!CD30 -> 0 | CC13: =Timing!CE30 -> 0 | CD13: =Timing!CF30 -> 0 | CE13: =Timing!CG30 -> 0 | CF13: =Timing!CH30 -> 0 | CG13: =Timing!CI30 -> 0 | CH13: =Timing!CJ30 -> 0 | CI13: =Timing!CK30 -> 0 | CJ13: =Timing!CL30 -> 0 | CK13: =Timing!CM30 -> 0 | CL13: =Timing!CN30 -> 0 | CM13: =Timing!CO30 -> 0 | CN13: =Timing!CP30 -> 0 | CO13: =Timing!CQ30 -> 0 | CP13: =Timing!CR30 -> 0 | CQ13: =Timing!CS30 -> 0
C15: Operating Counter | H15: # | P15: =Timing!R32 -> 0 | Q15: =Timing!S32 -> 0 | R15: =Timing!T32 -> 0 | S15: =Timing!U32 -> 1 | T15: =Timing!V32 -> 2 | U15: =Timing!W32 -> 3 | V15: =Timing!X32 -> 4 | W15: =Timing!Y32 -> 5 | X15: =Timing!Z32 -> 6 | Y15: =Timing!AA32 -> 7 | Z15: =Timing!AB32 -> 8 | AA15: =Timing!AC32 -> 9 | AB15: =Timing!AD32 -> 10 | AC15: =Timing!AE32 -> 11 | AD15: =Timing!AF32 -> 12 | AE15: =Timing!AG32 -> 13 | AF15: =Timing!AH32 -> 14 | AG15: =Timing!AI32 -> 15 | AH15: =Timing!AJ32 -> 16 | AI15: =Timing!AK32 -> 17 | AJ15: =Timing!AL32 -> 18 | AK15: =Timing!AM32 -> 19 | AL15: =Timing!AN32 -> 20 | AM15: =Timing!AO32 -> 21 | AN15: =Timing!AP32 -> 22 | AO15: =Timing!AQ32 -> 23 | AP15: =Timing!AR32 -> 24 | AQ15: =Timing!AS32 -> 25 | AR15: =Timing!AT32 -> 26 | AS15: =Timing!AU32 -> 27 | AT15: =Timing!AV32 -> 28 | AU15: =Timing!AW32 -> 29 | AV15: =Timing!AX32 -> 30 | AW15: =Timing!AY32 -> 31 | AX15: =Timing!AZ32 -> 32 | AY15: =Timing!BA32 -> 33 | AZ15: =Timing!BB32 -> 34 | BA15: =Timing!BC32 -> 35 | BB15: =Timing!BD32 -> 36 | BC15: =Timing!BE32 -> 37 | BD15: =Timing!BF32 -> 38 | BE15: =Timing!BG32 -> 39 | BF15: =Timing!BH32 -> 40 | BG15: =Timing!BI32 -> 41 | BH15: =Timing!BJ32 -> 42 | BI15: =Timing!BK32 -> 43 | BJ15: =Timing!BL32 -> 44 | BK15: =Timing!BM32 -> 45 | BL15: =Timing!BN32 -> 46 | BM15: =Timing!BO32 -> 47 | BN15: =Timing!BP32 -> 48 | BO15: =Timing!BQ32 -> 49 | BP15: =Timing!BR32 -> 50 | BQ15: =Timing!BS32 -> 51 | BR15: =Timing!BT32 -> 0 | BS15: =Timing!BU32 -> 0 | BT15: =Timing!BV32 -> 0 | BU15: =Timing!BW32 -> 0 | BV15: =Timing!BX32 -> 0 | BW15: =Timing!BY32 -> 0 | BX15: =Timing!BZ32 -> 0 | BY15: =Timing!CA32 -> 0 | BZ15: =Timing!CB32 -> 0 | CA15: =Timing!CC32 -> 0 | CB15: =Timing!CD32 -> 0 | CC15: =Timing!CE32 -> 0 | CD15: =Timing!CF32 -> 0 | CE15: =Timing!CG32 -> 0 | CF15: =Timing!CH32 -> 0 | CG15: =Timing!CI32 -> 0 | CH15: =Timing!CJ32 -> 0 | CI15: =Timing!CK32 -> 0 | CJ15: =Timing!CL32 -> 0 | CK15: =Timing!CM32 -> 0 | CL15: =Timing!CN32 -> 0 | CM15: =Timing!CO32 -> 0 | CN15: =Timing!CP32 -> 0 | CO15: =Timing!CQ32 -> 0 | CP15: =Timing!CR32 -> 0 | CQ15: =Timing!CS32 -> 0
A17: Tariff
C19: Project Capacity | H19: bcm p.a. | P19: =InputC!$K$39*Tariff!P12 -> 0 | Q19: =InputC!$K$39*Tariff!Q12 -> 0 | R19: =InputC!$K$39*Tariff!R12 -> 0 | S19: =InputC!$K$39*Tariff!S12 -> 120 | T19: =InputC!$K$39*Tariff!T12 -> 120 | U19: =InputC!$K$39*Tariff!U12 -> 120 | V19: =InputC!$K$39*Tariff!V12 -> 120 | W19: =InputC!$K$39*Tariff!W12 -> 120 | X19: =InputC!$K$39*Tariff!X12 -> 120 | Y19: =InputC!$K$39*Tariff!Y12 -> 120 | Z19: =InputC!$K$39*Tariff!Z12 -> 120 | AA19: =InputC!$K$39*Tariff!AA12 -> 120 | AB19: =InputC!$K$39*Tariff!AB12 -> 120 | AC19: =InputC!$K$39*Tariff!AC12 -> 120 | AD19: =InputC!$K$39*Tariff!AD12 -> 120 | AE19: =InputC!$K$39*Tariff!AE12 -> 120 | AF19: =InputC!$K$39*Tariff!AF12 -> 120 | AG19: =InputC!$K$39*Tariff!AG12 -> 120 | AH19: =InputC!$K$39*Tariff!AH12 -> 120 | AI19: =InputC!$K$39*Tariff!AI12 -> 120 | AJ19: =InputC!$K$39*Tariff!AJ12 -> 120 | AK19: =InputC!$K$39*Tariff!AK12 -> 120 | AL19: =InputC!$K$39*Tariff!AL12 -> 120 | AM19: =InputC!$K$39*Tariff!AM12 -> 120 | AN19: =InputC!$K$39*Tariff!AN12 -> 120 | AO19: =InputC!$K$39*Tariff!AO12 -> 120 | AP19: =InputC!$K$39*Tariff!AP12 -> 120 | AQ19: =InputC!$K$39*Tariff!AQ12 -> 120 | AR19: =InputC!$K$39*Tariff!AR12 -> 120 | AS19: =InputC!$K$39*Tariff!AS12 -> 120 | AT19: =InputC!$K$39*Tariff!AT12 -> 120 | AU19: =InputC!$K$39*Tariff!AU12 -> 120 | AV19: =InputC!$K$39*Tariff!AV12 -> 120 | AW19: =InputC!$K$39*Tariff!AW12 -> 120 | AX19: =InputC!$K$39*Tariff!AX12 -> 120 | AY19: =InputC!$K$39*Tariff!AY12 -> 120 | AZ19: =InputC!$K$39*Tariff!AZ12 -> 120 | BA19: =InputC!$K$39*Tariff!BA12 -> 120 | BB19: =InputC!$K$39*Tariff!BB12 -> 120 | BC19: =InputC!$K$39*Tariff!BC12 -> 120 | BD19: =InputC!$K$39*Tariff!BD12 -> 120 | BE19: =InputC!$K$39*Tariff!BE12 -> 120 | BF19: =InputC!$K$39*Tariff!BF12 -> 120 | BG19: =InputC!$K$39*Tariff!BG12 -> 120 | BH19: =InputC!$K$39*Tariff!BH12 -> 120 | BI19: =InputC!$K$39*Tariff!BI12 -> 120 | BJ19: =InputC!$K$39*Tariff!BJ12 -> 120 | BK19: =InputC!$K$39*Tariff!BK12 -> 120 | BL19: =InputC!$K$39*Tariff!BL12 -> 120 | BM19: =InputC!$K$39*Tariff!BM12 -> 120 | BN19: =InputC!$K$39*Tariff!BN12 -> 120 | BO19: =InputC!$K$39*Tariff!BO12 -> 120 | BP19: =InputC!$K$39*Tariff!BP12 -> 120 | BQ19: =InputC!$K$39*Tariff!BQ12 -> 120 | BR19: =InputC!$K$39*Tariff!BR12 -> 0 | BS19: =InputC!$K$39*Tariff!BS12 -> 0 | BT19: =InputC!$K$39*Tariff!BT12 -> 0 | BU19: =InputC!$K$39*Tariff!BU12 -> 0 | BV19: =InputC!$K$39*Tariff!BV12 -> 0 | BW19: =InputC!$K$39*Tariff!BW12 -> 0 | BX19: =InputC!$K$39*Tariff!BX12 -> 0 | BY19: =InputC!$K$39*Tariff!BY12 -> 0 | BZ19: =InputC!$K$39*Tariff!BZ12 -> 0 | CA19: =InputC!$K$39*Tariff!CA12 -> 0 | CB19: =InputC!$K$39*Tariff!CB12 -> 0 | CC19: =InputC!$K$39*Tariff!CC12 -> 0 | CD19: =InputC!$K$39*Tariff!CD12 -> 0 | CE19: =InputC!$K$39*Tariff!CE12 -> 0 | CF19: =InputC!$K$39*Tariff!CF12 -> 0 | CG19: =InputC!$K$39*Tariff!CG12 -> 0 | CH19: =InputC!$K$39*Tariff!CH12 -> 0 | CI19: =InputC!$K$39*Tariff!CI12 -> 0 | CJ19: =InputC!$K$39*Tariff!CJ12 -> 0 | CK19: =InputC!$K$39*Tariff!CK12 -> 0 | CL19: =InputC!$K$39*Tariff!CL12 -> 0 | CM19: =InputC!$K$39*Tariff!CM12 -> 0 | CN19: =InputC!$K$39*Tariff!CN12 -> 0 | CO19: =InputC!$K$39*Tariff!CO12 -> 0 | CP19: =InputC!$K$39*Tariff!CP12 -> 0 | CQ19: =InputC!$K$39*Tariff!CQ12 -> 0
